Workbook

Sheet Discrete Entry
A1: Event # | B1: GMT Date mm/dd/yy | C1: GMT Time hh:mm | D1: Calendar Day | E1: Event | F1: Type | G1: Station | H1: Cast | I1: Latitude deg N | J1: Latitude min | K1: Longitude deg E | L1: Longitude min | M1: Niskin # | N1: Carboy # | O1: Carboy # | P1: Sample Bottle # | Q1: Balch Sample # | R1: Approx. Depth [m] | S1: CHN? | T1: CHN Vol Filt [mL] | U1: PIC? | V1: PIC Vol Filt [mL] | W1: CC? | X1: CC Vol Filt [mL] | Y1: BSi? | Z1: BSi Vol Filt [mL] | AA1: Chl? | AB1: Chl Vol Filt [mL] | AC1: SEM? | AD1: SEM Vol Filt [mL] | AE1: Light Level | AF1: General Comments | AG1: CHN Comments | AH1: PIC Comments | AI1: CC Comments | AJ1: BSi Comments | AK1: Chl Comments | AL1: SEM Comments
A2: =YEAR(B2)*100000000+MONTH(B2)*1000000+DAY(B2)*10000+HOUR(C2)*100+MINUTE(C2) -> 202001270339 | B2: 2020-01-27 | C2: 03:39:00 | D2: =B2-DATE(YEAR(B2),1,1)+1 -> 27 | F2: CTD | G2: 1 | H2: 1 | I2: -38.583 | K2: 24.001 | M2: 9 | P2: 1 | Q2: 1 | R2: 78 | S2: y | T2: 2000 | U2: y | V2: 200 | W2: y | X2: 50 | Y2: y | Z2: 200 | AA2: y | AB2: 100 | AC2: y | AD2: 100 | AF2: chl max
A3: =YEAR(B3)*100000000+MONTH(B3)*1000000+DAY(B3)*10000+HOUR(C3)*100+MINUTE(C3) -> 202001270339 | B3: 2020-01-27 | C3: 03:39:00 | D3: 27 | F3: CTD | G3: 1 | H3: 1 | I3: -38.583 | K3: 24.001 | M3: 11 | P3: 2 | Q3: =Q2+1 -> 2 | R3: 40 | S3: y | T3: 2000 | U3: y | V3: 200 | W3: y | X3: 50 | Y3: y | Z3: 200 | AA3: y | AB3: 100
A4: 202001270339 | B4: 2020-01-27 | C4: 03:39:00 | D4: 27 | F4: CTD | G4: 1 | H4: 1 | I4: -38.583 | K4: 24.001 | M4: 13 | P4: 3 | Q4: =Q3+1 -> 3 | R4: 33 | S4: y | T4: 2000 | U4: y | V4: 200 | W4: y | X4: 50 | Y4: y | Z4: 200 | AA4: y | AB4: 100
A5: 202001270339 | B5: 2020-01-27 | C5: 03:39:00 | D5: 27 | F5: CTD | G5: 1 | H5: 1 | I5: -38.583 | K5: 24.001 | M5: 15 | P5: 4 | Q5: 4 | R5: 30 | S5: y | T5: 2000 | U5: y | V5: 200 | W5: y | X5: 50 | Y5: y | Z5: 200 | AA5: y | AB5: 100
A6: 202001270339 | B6: 2020-01-27 | C6: 03:39:00 | D6: 27 | F6: CTD | G6: 1 | H6: 1 | I6: -38.583 | K6: 24.001 | M6: 17 | P6: 5 | Q6: 5 | R6: 23 | S6: y | T6: 2000 | U6: y | V6: 200 | W6: y | X6: 50 | Y6: y | Z6: 200 | AA6: y | AB6: 100 | AC6: y | AD6: 100
A7: 202001270339 | B7: 2020-01-27 | C7: 03:39:00 | D7: 27 | F7: CTD | G7: 1 | H7: 1 | I7: -38.583 | K7: 24.001 | M7: 19 | P7: 6 | Q7: 6 | R7: 16 | S7: y | T7: 2000 | U7: y | V7: 200 | W7: y | X7: 50 | Y7: y | Z7: 200 | AA7: y | AB7: 100
A8: 202001270339 | B8: 2020-01-27 | C8: 03:39:00 | D8: 27 | F8: CTD | G8: 1 | H8: 1 | I8: -38.583 | K8: 24.001 | M8: 21 | P8: 7 | Q8: 7 | R8: 10 | S8: y | T8: 2000 | U8: y | V8: 200 | W8: y | X8: 50 | Y8: y | Z8: 200 | AA8: y | AB8: 100
A9: 202001270339 | B9: 2020-01-27 | C9: 03:39:00 | D9: 27 | F9: CTD | G9: 1 | H9: 1 | I9: -38.583 | K9: 24.001 | M9: 23 | P9: 8 | Q9: 8 | R9: 4 | S9: y | T9: 2000 | U9: y | V9: 200 | W9: y | X9: 50 | Y9: y | Z9: 200 | AA9: y | AB9: 100 | AC9: y | AD9: 100
A10: 200701272007 | B10: 2007-01-27 | C10: 20:07:00 | D10: 27 | F10: CTD | G10: 2 | H10: 1 | I10: -38.7176 | K10: 28.2328 | M10: 8 | P10: 1 | Q10: 9 | R10: 300 | S10: y | T10: 2000 | U10: y | V10: 200 | W10: y | X10: 50 | Y10: y | Z10: 200 | AA10: y | AB10: 100
A11: 200701272007 | B11: 2007-01-27 | C11: 20:07:00 | D11: 27 | F11: CTD | G11: 2 | H11: 1 | I11: -38.7176 | K11: 28.2328 | M11: 10 | P11: 2 | Q11: 10 | R11: 200 | S11: y | T11: 2000 | U11: y | V11: 200 | W11: y | X11: 50 | Y11: y | Z11: 200 | AA11: y | AB11: 100
A12: 200701272007 | B12: 2007-01-27 | C12: 20:07:00 | D12: 27 | F12: CTD | G12: 2 | H12: 1 | I12: -38.7176 | K12: 28.2328 | M12: 12 | P12: 3 | Q12: 11 | R12: 150 | S12: y | T12: 2000 | U12: y | V12: 200 | W12: y | X12: 50 | Y12: y | Z12: 200 | AA12: y | AB12: 100
A13: 200701272007 | B13: 2007-01-27 | C13: 20:07:00 | D13: 27 | F13: CTD | G13: 2 | H13: 1 | I13: -38.7176 | K13: 28.2328 | M13: 14 | P13: 4 | Q13: 12 | R13: 100 | S13: y | T13: 2000 | U13: y | V13: 200 | W13: y | X13: 50 | Y13: y | Z13: 200 | AA13: y | AB13: 100
A14: 200701272007 | B14: 2007-01-27 | C14: 20:07:00 | D14: 27 | F14: CTD | G14: 2 | H14: 1 | I14: -38.7176 | K14: 28.2328 | M14: 18 | P14: 5 | Q14: 13 | R14: 65 | S14: y | T14: 2000 | U14: y | V14: 200 | W14: y | X14: 50 | Y14: y | Z14: 200 | AA14: y | AB14: 100 | AC14: y | AD14: 100
A15: 200701272007 | B15: 2007-01-27 | C15: 20:07:00 | D15: 27 | F15: CTD | G15: 2 | H15: 1 | I15: -38.7176 | K15: 28.2328 | M15: 20 | P15: 6 | Q15: 14 | R15: 40 | S15: y | T15: 2000 | U15: y | V15: 200 | W15: y | X15: 50 | Y15: y | Z15: 200 | AA15: y | AB15: 100
A16: 200701272007 | B16: 2007-01-27 | C16: 20:07:00 | D16: 27 | F16: CTD | G16: 2 | H16: 1 | I16: -38.7176 | K16: 28.2328 | M16: 22 | P16: 7 | Q16: 15 | R16: 20 | S16: y | T16: 2000 | U16: y | V16: 200 | W16: y | X16: 50 | Y16: y | Z16: 200 | AA16: y | AB16: 100
A17: 200701272007 | B17: 2007-01-27 | C17: 20:07:00 | D17: 27 | F17: CTD | G17: 2 | H17: 1 | I17: -38.7176 | K17: 28.2328 | M17: 24 | P17: 8 | Q17: 16 | R17: 5 | S17: y | T17: 2000 | U17: y | V17: 200 | W17: y | X17: 50 | Y17: y | Z17: 200 | AA17: y | AB17: 100 | AC17: y | AD17: 100
A18: 202001280411 | B18: 2020-01-28 | C18: 04:11:00 | D18: 28 | F18: CTD | G18: 3 | H18: 1 | I18: -38 | J18: 46.0045 | K18: 27 | L18: 43.097 | M18: 10 | P18: 1 | Q18: 17 | R18: 750 | S18: y | T18: 2000 | U18: y | V18: 200 | W18: y | X18: 50 | Y18: y | Z18: 200 | AA18: y | AB18: 100
A19: 202001280411 | B19: 2020-01-28 | C19: 04:11:00 | D19: 28 | F19: CTD | G19: 3 | H19: 1 | I19: -38 | J19: 46.0045 | K19: 27 | L19: 43.097 | M19: 12 | P19: 2 | Q19: 18 | R19: 670 | S19: y | T19: 2000 | U19: y | V19: 200 | W19: y | X19: 50 | Y19: y | Z19: 200 | AA19: y | AB19: 100
A20: 202001280411 | B20: 2020-01-28 | C20: 04:11:00 | D20: 28 | F20: CTD | G20: 3 | H20: 1 | I20: -38 | J20: 46.0045 | K20: 27 | L20: 43.097 | M20: 14 | P20: 3 | Q20: 19 | R20: 510 | S20: y | T20: 2000 | U20: y | V20: 200 | W20: y | X20: 50 | Y20: y | Z20: 200 | AA20: y | AB20: 100 | AC20: y | AD20: 100
A21: 202001280411 | B21: 2020-01-28 | C21: 04:11:00 | D21: 28 | F21: CTD | G21: 3 | H21: 1 | I21: -38 | J21: 46.0045 | K21: 27 | L21: 43.097 | M21: 16 | P21: 4 | Q21: 20 | R21: 270 | S21: y | T21: 2000 | U21: y | V21: 200 | W21: y | X21: 50 | Y21: y | Z21: 200 | AA21: y | AB21: 100
A22: 202001280411 | B22: 2020-01-28 | C22: 04:11:00 | D22: 28 | F22: CTD | G22: 3 | H22: 1 | I22: -38 | J22: 46.0045 | K22: 27 | L22: 43.097 | M22: 18 | P22: 5 | Q22: 21 | R22: 100 | S22: y | T22: 2000 | U22: y | V22: 200 | W22: y | X22: 50 | Y22: y | Z22: 200 | AA22: y | AB22: 100
A23: 202001280411 | B23: 2020-01-28 | C23: 04:11:00 | D23: 28 | F23: CTD | G23: 3 | H23: 1 | I23: -38 | J23: 46.0045 | K23: 27 | L23: 43.097 | M23: 20 | P23: 6 | Q23: 22 | R23: 54.9 | S23: y | T23: 2000 | U23: y | V23: 200 | W23: y | X23: 50 | Y23: y | Z23: 200 | AA23: y | AB23: 100
A24: 202001280411 | B24: 2020-01-28 | C24: 04:11:00 | D24: 28 | F24: CTD | G24: 3 | H24: 1 | I24: -38 | J24: 46.0045 | K24: 27 | L24: 43.097 | M24: 22 | P24: 7 | Q24: 23 | R24: 43.2 | S24: y | T24: 2000 | U24: y | V24: 200 | W24: y | X24: 50 | Y24: y | Z24: 200 | AA24: y | AB24: 100
A25: 202001280411 | B25: 2020-01-28 | C25: 04:11:00 | D25: 28 | F25: CTD | G25: 3 | H25: 1 | I25: -38 | J25: 46.0045 | K25: 27 | L25: 43.097 | M25: 24 | P25: 8 | Q25: 24 | R25: 31.2 | S25: y | T25: 2000 | U25: y | V25: 200 | W25: y | X25: 50 | Y25: y | Z25: 200 | AA25: y | AB25: 100 | AC25: y | AD25: 100
A26: 202001282138 | B26: 2020-01-28 | C26: 21:38:00 | D26: 28 | F26: CTD | G26: 4 | H26: 1 | I26: -38.8105 | K26: 30.1489 | M26: 10 | P26: 1 | Q26: 25 | R26: 150 | S26: y | T26: 2000 | U26: y | V26: 200 | W26: y | X26: 50 | Y26: y | Z26: 200 | AA26: y | AB26: 100
A27: 202001282138 | B27: 2020-01-28 | C27: 21:38:00 | D27: 28 | F27: CTD | G27: 4 | H27: 1 | I27: -38.8105 | K27: 30.1489 | M27: 12 | P27: 2 | Q27: 26 | R27: 102 | S27: y | T27: 2000 | U27: y | V27: 200 | W27: y | X27: 50 | Y27: y | Z27: 200 | AA27: y | AB27: 100
A28: 202001282138 | B28: 2020-01-28 | C28: 21:38:00 | D28: 28 | F28: CTD | G28: 4 | H28: 1 | I28: -38.8105 | K28: 30.1489 | M28: 14 | P28: 3 | Q28: 27 | R28: 72 | S28: y | T28: 2000 | U28: y | V28: 200 | W28: y | X28: 50 | Y28: y | Z28: 200 | AA28: y | AB28: 100
A29: 202001282138 | B29: 2020-01-28 | C29: 21:38:00 | D29: 28 | F29: CTD | G29: 4 | H29: 1 | I29: -38.8105 | K29: 30.1489 | M29: 16 | P29: 4 | Q29: 28 | R29: 49 | S29: y | T29: 2000 | U29: y | V29: 200 | W29: y | X29: 50 | Y29: y | Z29: 200 | AA29: y | AB29: 100 | AC29: y | AD29: 100
A30: 202001282138 | B30: 2020-01-28 | C30: 21:38:00 | D30: 28 | F30: CTD | G30: 4 | H30: 1 | I30: -38.8105 | K30: 30.1489 | M30: 18 | P30: 5 | Q30: 29 | R30: 40 | S30: y | T30: 2000 | U30: y | V30: 200 | W30: y | X30: 50 | Y30: y | Z30: 200 | AA30: y | AB30: 100
A31: 202001282138 | B31: 2020-01-28 | C31: 21:38:00 | D31: 28 | F31: CTD | G31: 4 | H31: 1 | I31: -38.8105 | K31: 30.1489 | M31: 20 | P31: 6 | Q31: 30 | R31: 28 | S31: y | T31: 2000 | U31: y | V31: 200 | W31: y | X31: 50 | Y31: y | Z31: 200 | AA31: y | AB31: 100
A32: 202001282138 | B32: 2020-01-28 | C32: 21:38:00 | D32: 28 | F32: CTD | G32: 4 | H32: 1 | I32: -38.8105 | K32: 30.1489 | M32: 22 | P32: 7 | Q32: 31 | R32: 19 | S32: y | T32: 2000 | U32: y | V32: 200 | W32: y | X32: 50 | Y32: y | Z32: 200 | AA32: y | AB32: 100
A33: 202001282138 | B33: 2020-01-28 | C33: 21:38:00 | D33: 28 | F33: CTD | G33: 4 | H33: 1 | I33: -38.8105 | K33: 30.1489 | M33: 24 | P33: 8 | Q33: 32 | R33: 12 | S33: y | T33: 2000 | U33: y | V33: 200 | W33: y | X33: 50 | Y33: y | Z33: 200 | AA33: y | AB33: 100 | AC33: y | AD33: 100
A34: 202001290610 | B34: 2020-01-29 | C34: 06:10:00 | D34: 29 | F34: UW | I34: -38.9856 | K34: 30.518 | Q34: 33 | R34: 4.5 | S34: y | T34: 2000 | U34: y | V34: 200 | W34: y | X34: 50 | Y34: y | Z34: 200 | AA34: y | AB34: 100
A35: 202001290801 | B35: 2020-01-29 | C35: 08:01:00 | D35: 29 | F35: UW | I35: -39.0307 | K35: 31.8955 | Q35: 34 | R35: 4.5 | S35: y | T35: 2000 | U35: y | V35: 200 | W35: y | X35: 50 | Y35: y | Z35: 200 | AA35: y | AB35: 100
A36: 202001291001 | B36: 2020-01-29 | C36: 10:01:00 | D36: 29 | F36: UW | I36: -39.0749 | K36: 32.3052 | Q36: 35 | R36: 4.5 | S36: y | T36: 2000 | U36: y | V36: 200 | W36: y | X36: 50 | Y36: y | Z36: 200 | AA36: y | AB36: 100
A37: 202001291205 | B37: 2020-01-29 | C37: 12:05:00 | D37: 29 | F37: UW | I37: -39.1261 | K37: 32.7473 | Q37: 36 | R37: 4.5 | S37: y | T37: 1000 | U37: y | V37: 200 | W37: y | X37: 50 | Y37: y | Z37: 200 | AA37: y | AB37: 100
A38: 202001291400 | B38: 2020-01-29 | C38: 14:00:00 | D38: 29 | F38: UW | I38: -39.1829 | K38: 33.1359 | Q38: 37 | R38: 4.5 | S38: y | T38: 1000 | U38: y | V38: 200 | W38: y | X38: 50 | Y38: y | Z38: 200 | AA38: y | AB38: 100
A39: 202001291427 | B39: 2020-01-29 | C39: 14:27:00 | D39: 29 | F39: UW | I39: -39.1857 | K39: 33.2282 | Q39: 38 | R39: 4.5 | S39: y | T39: 1000 | U39: y | V39: 200 | W39: y | X39: 50 | Y39: y | Z39: 200 | AA39: y | AB39: 100 | AC39: Y | AD39: 100
A40: 202001291600 | B40: 2020-01-29 | C40: 16:00:00 | D40: 29 | F40: UW | I40: -39.212 | K40: 33.5515 | Q40: 39 | R40: 4.5 | S40: y | T40: 1000 | U40: y | V40: 200 | W40: y | X40: 50 | Y40: y | Z40: 200 | AA40: y | AB40: 100 | AC40: Y | AD40: 100
A41: 202001291800 | B41: 2020-01-29 | C41: 18:00:00 | D41: 29 | F41: UW | I41: -39.2447 | K41: 33.9451 | Q41: 40 | R41: 4.5 | S41: y | T41: 1000 | U41: y | V41: 200 | W41: y | X41: 50 | Y41: y | Z41: 200 | AA41: y | AB41: 100
A42: 202001292000 | B42: 2020-01-29 | C42: 20:00:00 | D42: 29 | F42: UW | I42: -39.2618 | K42: 34.3365 | Q42: 41 | R42: 4.5 | S42: y | T42: 1000 | U42: y | V42: 200 | W42: y | X42: 50 | Y42: y | Z42: 200 | AA42: y | AB42: 100
A43: 202001292127 | B43: 2020-01-29 | C43: 21:27:00 | D43: 29 | F43: UW | I43: -39.2768 | K43: 34.2563 | Q43: 42 | R43: 4.5 | S43: y | T43: 1000 | U43: y | V43: 200 | W43: y | X43: 50 | Y43: y | Z43: 200 | AA43: y | AB43: 100
A44: 202001300000 | B44: 2020-01-30 | C44: 00:00:00 | D44: 30 | F44: UW | I44: -39.231 | K44: 33.7548 | Q44: 43 | R44: 4.5 | S44: y | T44: 1000 | U44: y | V44: 200 | W44: y | X44: 50 | Y44: y | Z44: 200 | AA44: y | AB44: 100
A45: 202001300300 | B45: 2020-01-30 | C45: 03:00:00 | D45: 30 | F45: CTD | G45: 5 | H45: 1 | I45: -39.1883 | K45: 33.2991 | M45: 10 | P45: 1 | Q45: 44 | R45: 70 | S45: y | T45: 2000 | U45: y | V45: 200 | W45: y | X45: 50 | Y45: y | Z45: 200 | AA45: y | AB45: 100
A46: 202001300300 | B46: 2020-01-30 | C46: 03:00:00 | D46: 30 | F46: CTD | G46: 5 | H46: 1 | I46: -39.1883 | K46: 33.2991 | M46: 12 | P46: 2 | Q46: 45 | R46: 50 | S46: y | T46: 2000 | U46: y | V46: 200 | W46: y | X46: 50 | Y46: y | Z46: 200 | AA46: y | AB46: 100
A47: 202001300300 | B47: 2020-01-30 | C47: 03:00:00 | D47: 30 | F47: CTD | G47: 5 | H47: 1 | I47: -39.1883 | K47: 33.2991 | M47: 14 | P47: 3 | Q47: 46 | R47: 38.3 | S47: y | T47: 2000 | U47: y | V47: 200 | W47: y | X47: 50 | Y47: y | Z47: 200 | AA47: y | AB47: 100 | AC47: Y | AD47: 100
A48: 202001300300 | B48: 2020-01-30 | C48: 03:00:00 | D48: 30 | F48: CTD | G48: 5 | H48: 1 | I48: -39.1883 | K48: 33.2991 | M48: 16 | P48: 4 | Q48: 47 | R48: 30 | S48: y | T48: 2000 | U48: y | V48: 200 | W48: y | X48: 50 | Y48: y | Z48: 200 | AA48: y | AB48: 100
A49: 202001300300 | B49: 2020-01-30 | C49: 03:00:00 | D49: 30 | F49: CTD | G49: 5 | H49: 1 | I49: -39.1883 | K49: 33.2991 | M49: 18 | P49: 5 | Q49: 48 | R49: 21.6 | S49: y | T49: 2000 | U49: y | V49: 200 | W49: y | X49: 50 | Y49: y | Z49: 200 | AA49: y | AB49: 100
A50: 202001300300 | B50: 2020-01-30 | C50: 03:00:00 | D50: 30 | F50: CTD | G50: 5 | H50: 1 | I50: -39.1883 | K50: 33.2991 | M50: 20 | P50: 6 | Q50: 49 | R50: 14.1 | S50: y | T50: 2000 | U50: y | V50: 200 | W50: y | X50: 50 | Y50: y | Z50: 200 | AA50: y | AB50: 100
A51: 202001300300 | B51: 2020-01-30 | C51: 03:00:00 | D51: 30 | F51: CTD | G51: 5 | H51: 1 | I51: -39.1883 | K51: 33.2991 | M51: 22 | P51: 7 | Q51: 50 | R51: 10 | S51: y | T51: 2000 | U51: y | V51: 200 | W51: y | X51: 50 | Y51: y | Z51: 200 | AA51: y | AB51: 100
A52: 202001300300 | B52: 2020-01-30 | C52: 03:00:00 | D52: 30 | F52: CTD | G52: 5 | H52: 1 | I52: -39.1883 | K52: 33.2991 | M52: 24 | P52: 8 | Q52: 51 | R52: 6.5 | S52: y | T52: 2000 | U52: y | V52: 200 | W52: y | X52: 50 | Y52: y | Z52: 200 | AA52: y | AB52: 100 | AC52: Y | AD52: 100
A53: 202001301112 | B53: 2020-01-30 | C53: 11:12:00 | D53: 30 | F53: EXP | G53: 5 | H53: 3 | I53: -39.2369 | K53: 33.2267 | O53: 1 | Q53: 52 | R53: 0 | S53: y | T53: 1000 | U53: y | V53: 200 | W53: y | X53: 50 | Y53: y | Z53: 200 | AA53: y | AB53: 100 | AC53: Y | AD53: 100 | AF53: CONTROL T0
A54: 202001301112 | B54: 2020-01-30 | C54: 11:12:00 | D54: 30 | F54: EXP | G54: 5 | H54: 3 | I54: -39.2369 | K54: 33.2267 | O54: 2 | Q54: 53 | R54: 0 | S54: y | T54: 1000 | U54: y | V54: 200 | Y54: y | Z54: 200 | AA54: y | AB54: 100 | AF54: CONTROL T0
A55: 202001301112 | B55: 2020-01-30 | C55: 11:12:00 | D55: 30 | F55: EXP | G55: 5 | H55: 3 | I55: -39.2369 | K55: 33.2267 | O55: 3 | Q55: 54 | R55: 0 | S55: y | T55: 1000 | U55: y | V55: 200 | Y55: y | Z55: 200 | AA55: y | AB55: 100 | AF55: CONTROL T0
A56: 202001301100 | B56: 2020-01-30 | C56: 11:00:00 | D56: 30 | F56: UW | I56: -39.3801 | K56: 32.8546 | Q56: 55 | R56: 4.5 | S56: y | T56: 1000 | U56: y | V56: 200 | W56: y | X56: 50 | Y56: y | Z56: 200 | AA56: y | AB56: 100
A57: 202001301300 | B57: 2020-01-30 | C57: 13:00:00 | D57: 30 | F57: UW | I57: -39.3796 | K57: 32.7427 | Q57: 56 | R57: 4.5 | S57: y | T57: 1000 | U57: y | V57: 200 | W57: y | X57: 50 | Y57: y | Z57: 200 | AA57: y | AB57: 100
A58: 202001301326 | B58: 2020-01-30 | C58: 13:26:00 | D58: 30 | F58: EXP | G58: 5 | H58: 3 | I58: -39.2369 | K58: 33.2267 | O58: 7 | Q58: 57 | R58: 0 | S58: y | T58: 1000 | U58: y | V58: 200 | W58: y | X58: 50 | Y58: y | Z58: 200 | AA58: y | AB58: 100 | AF58: SAMW 5% ADDITION T0
A59: 202001301326 | B59: 2020-01-30 | C59: 13:26:00 | D59: 30 | F59: EXP | G59: 5 | H59: 3 | I59: -39.2369 | K59: 33.2267 | O59: 8 | Q59: 58 | R59: 0 | S59: y | T59: 1000 | U59: y | V59: 200 | W59: y | X59: 50 | Y59: y | Z59: 200 | AA59: y | AB59: 100 | AF59: SAMW 5% ADDITION T0
A60: 202001301326 | B60: 2020-01-30 | C60: 13:26:00 | D60: 30 | F60: EXP | G60: 5 | H60: 3 | I60: -39.2369 | K60: 33.2267 | O60: 9 | Q60: 59 | R60: 0 | S60: y | T60: 1000 | U60: y | V60: 200 | W60: y | X60: 50 | Y60: y | Z60: 200 | AA60: y | AB60: 100 | AF60: SAMW 5% ADDITION T0
A61: 202001301500 | B61: 2020-01-30 | C61: 15:00:00 | D61: 30 | F61: UW | I61: -39.5999 | K61: 32.4286 | Q61: 60 | R61: 4.5 | S61: y | T61: 1000 | U61: y | V61: 200 | W61: y | X61: 50 | Y61: y | Z61: 200 | AA61: y | AB61: 100
A62: 202001301700 | B62: 2020-01-30 | C62: 17:00:00 | D62: 30 | F62: UW | I62: -39.6889 | K62: 32.4024 | Q62: 61 | R62: 4.5 | S62: y | T62: 1000 | U62: y | V62: 200 | W62: y | X62: 50 | Y62: y | Z62: 200 | AA62: y | AB62: 100
A63: 202001301900 | B63: 2020-01-30 | C63: 19:00:00 | D63: 30 | F63: UW | I63: -39.6798 | K63: 32.7961 | Q63: 62 | R63: 4.5 | S63: y | T63: 1000 | U63: y | V63: 200 | W63: y | X63: 50 | Y63: y | Z63: 200 | AA63: y | AB63: 100
A64: 202001302100 | B64: 2020-01-30 | C64: 21:00:00 | D64: 30 | F64: UW | I64: -39.6789 | K64: 33.1991 | Q64: 63 | R64: 4.5 | S64: y | T64: 1000 | U64: y | V64: 200 | W64: y | X64: 50 | Y64: y | Z64: 200 | AA64: y | AB64: 100
A65: 202001302245 | B65: 2020-01-30 | C65: 22:45:00 | D65: 30 | F65: UW | I65: -39.6908 | K65: 33.5543 | Q65: 64 | R65: 4.5 | S65: y | T65: 1000 | U65: y | V65: 200 | W65: y | X65: 50 | Y65: y | Z65: 200 | AA65: y | AB65: 100
A66: 202001310100 | B66: 2020-01-31 | C66: 01:00:00 | D66: =B66-DATE(YEAR(B66),1,1)+1 -> 31 | F66: UW | I66: -39.6819 | K66: 34.0074 | Q66: 65 | R66: 4.5 | S66: y | T66: 1000 | U66: y | V66: 200 | W66: y | X66: 50 | Y66: y | Z66: 200 | AA66: y | AB66: 100
A67: =YEAR(B67)*100000000+MONTH(B67)*1000000+DAY(B67)*10000+HOUR(C67)*100+MINUTE(C67) -> 202001310300 | B67: 2020-01-31 | C67: 03:00:00 | D67: 31 | F67: UW | I67: -39.6814 | K67: 34.4009 | Q67: 66 | R67: 4.5 | S67: y | T67: 1000 | U67: y | V67: 200 | W67: y | X67: 50 | Y67: y | Z67: 200 | AA67: y | AB67: 100
A68: 202001310500 | B68: 2020-01-31 | C68: 05:00:00 | D68: 31 | F68: UW | I68: -39.6853 | K68: 34.8116 | Q68: =Q67+1 -> 67 | R68: 4.5 | S68: y | T68: 1000 | U68: y | V68: 200 | W68: y | X68: 50 | Y68: y | Z68: 200 | AA68: y | AB68: 100
A69: 202001310700 | B69: 2020-01-31 | C69: 07:00:00 | D69: 31 | F69: UW | I69: -39.5526 | K69: 34.9799 | Q69: 68 | R69: 4.5 | S69: y | T69: 1000 | U69: y | V69: 200 | W69: y | X69: 50 | Y69: y | Z69: 200 | AA69: y | AB69: 100
A70: 202001310907 | B70: 2020-01-31 | C70: 09:07:00 | D70: 31 | F70: CTD | G70: 6 | H70: 1 | I70: -39.5677 | K70: 34.9793 | M70: 10 | P70: 1 | Q70: 69 | R70: 149.9 | S70: y | T70: 1000 | U70: y | V70: 200 | W70: y | X70: 50 | Y70: y | Z70: 200 | AA70: y | AB70: 100
A71: 202001310907 | B71: 2020-01-31 | C71: 09:07:00 | D71: 31 | F71: CTD | G71: 6 | H71: 1 | I71: -39.5677 | K71: 34.9793 | M71: 12 | P71: 2 | Q71: 70 | R71: 80.1 | S71: y | T71: 1000 | U71: y | V71: 200 | W71: y | X71: 50 | Y71: y | Z71: 200 | AA71: y | AB71: 100
A72: 202001310907 | B72: 2020-01-31 | C72: 09:07:00 | D72: 31 | F72: CTD | G72: 6 | H72: 1 | I72: -39.5677 | K72: 34.9793 | M72: 14 | P72: 3 | Q72: 71 | R72: 60.1 | S72: y | T72: 1000 | U72: y | V72: 200 | W72: y | X72: 50 | Y72: y | Z72: 200 | AA72: y | AB72: 100
A73: 202001310907 | B73: 2020-01-31 | C73: 09:07:00 | D73: 31 | F73: CTD | G73: 6 | H73: 1 | I73: -39.5677 | K73: 34.9793 | M73: 16 | P73: 4 | Q73: 72 | R73: 50 | S73: y | T73: 1000 | U73: y | V73: 200 | W73: y | X73: 50 | Y73: y | Z73: 200 | AA73: y | AB73: 100
A74: 202001310907 | B74: 2020-01-31 | C74: 09:07:00 | D74: 31 | F74: CTD | G74: 6 | H74: 1 | I74: -39.5677 | K74: 34.9793 | M74: 18 | P74: 5 | Q74: 73 | R74: 40 | S74: y | T74: 1000 | U74: y | V74: 200 | W74: y | X74: 50 | Y74: y | Z74: 200 | AA74: y | AB74: 100
A75: 202001310907 | B75: 2020-01-31 | C75: 09:07:00 | D75: 31 | F75: CTD | G75: 6 | H75: 1 | I75: -39.5677 | K75: 34.9793 | M75: 20 | P75: 6 | Q75: 74 | R75: 36.1 | S75: y | T75: 1000 | U75: y | V75: 200 | W75: y | X75: 50 | Y75: y | Z75: 200 | AA75: y | AB75: 100
A76: 202001310907 | B76: 2020-01-31 | C76: 09:07:00 | D76: 31 | F76: CTD | G76: 6 | H76: 1 | I76: -39.5677 | K76: 34.9793 | M76: 22 | P76: 7 | Q76: 75 | R76: 19.1 | S76: y | T76: 1000 | U76: y | V76: 200 | W76: y | X76: 50 | Y76: y | Z76: 200 | AA76: y | AB76: 100
A77: 202001310907 | B77: 2020-01-31 | C77: 09:07:00 | D77: 31 | F77: CTD | G77: 6 | H77: 1 | I77: -39.5677 | K77: 34.9793 | M77: 24 | P77: 8 | Q77: 76 | R77: 3 | S77: y | T77: 1000 | U77: y | V77: 200 | W77: y | X77: 50 | Y77: y | Z77: 200 | AA77: y | AB77: 100
A78: 202001311230 | B78: 2020-01-31 | C78: 12:30:00 | D78: 31 | F78: EXP | I78: -39.2369 | K78: 33.2267 | O78: 1 | Q78: 77 | R78: 0 | S78: y | T78: 1000 | U78: y | V78: 200 | W78: y | X78: 50 | Y78: y | Z78: 200 | AA78: y | AB78: 100 | AF78: Experiment 1, T1 (24)
A79: 202001311230 | B79: 2020-01-31 | C79: 12:30:00 | D79: 31 | F79: EXP | I79: -39.2369 | K79: 33.2267 | O79: 2 | Q79: 78 | R79: 0 | S79: y | T79: 1000 | U79: y | V79: 200 | W79: y | X79: 50 | Y79: y | Z79: 200 | AA79: y | AB79: 100
A80: 202001311230 | B80: 2020-01-31 | C80: 12:30:00 | D80: 31 | F80: EXP | I80: -39.2369 | K80: 33.2267 | O80: 3 | Q80: 79 | R80: 0 | S80: y | T80: 1000 | U80: y | V80: 100 | W80: y | X80: 72 | Y80: y | Z80: 200 | AA80: n
A81: 202001311230 | B81: 2020-01-31 | C81: 12:30:00 | D81: 31 | F81: EXP | I81: -39.2369 | K81: 33.2267 | O81: 4 | Q81: 80 | R81: 0 | S81: y | T81: 1000 | U81: y | V81: 200 | Y81: y | Z81: 200 | AA81: y | AB81: 100
A82: 202001311230 | B82: 2020-01-31 | C82: 12:30:00 | D82: 31 | F82: EXP | I82: -39.2369 | K82: 33.2267 | O82: 5 | Q82: 81 | R82: 0 | S82: y | T82: 1000 | U82: y | V82: 200 | W82: y | X82: 50 | Y82: y | Z82: 200 | AA82: y | AB82: 100
A83: 202001311230 | B83: 2020-01-31 | C83: 12:30:00 | D83: 31 | F83: EXP | I83: -39.2369 | K83: 33.2267 | O83: 6 | Q83: 82 | R83: 0 | S83: y | T83: 1000 | U83: y | V83: 200 | W83: y | X83: 50 | Y83: y | Z83: 200 | AA83: y | AB83: 50
A84: 202001311230 | B84: 2020-01-31 | C84: 12:30:00 | D84: 31 | F84: EXP | I84: -39.2369 | K84: 33.2267 | O84: 7 | Q84: 83 | R84: 0 | S84: y | T84: 1000 | U84: y | V84: 200 | W84: y | X84: 50 | Y84: y | Z84: 200 | AA84: y | AB84: 175
A85: 202001311230 | B85: 2020-01-31 | C85: 12:30:00 | D85: 31 | F85: EXP | I85: -39.2369 | K85: 33.2267 | O85: 8 | Q85: 84 | R85: 0 | S85: y | T85: 1000 | U85: y | V85: 200 | W85: y | X85: 50 | Y85: y | Z85: 200 | AA85: y | AB85: 100
A86: 202001311230 | B86: 2020-01-31 | C86: 12:30:00 | D86: 31 | F86: EXP | I86: -39.2369 | K86: 33.2267 | O86: 9 | Q86: 85 | R86: 0 | S86: y | T86: 1000 | U86: y | V86: 200 | W86: y | X86: 50 | Y86: y | Z86: 200 | AA86: y | AB86: 100
A87: 202001311230 | B87: 2020-01-31 | C87: 12:30:00 | D87: 31 | F87: EXP | I87: -39.2369 | K87: 33.2267 | O87: 10 | Q87: 86 | R87: 0 | S87: y | T87: 1000 | U87: y | V87: 200 | W87: y | X87: 50 | Y87: y | Z87: 200 | AA87: y | AB87: 100
A88: 202001311230 | B88: 2020-01-31 | C88: 12:30:00 | D88: 31 | F88: EXP | I88: -39.2369 | K88: 33.2267 | O88: 11 | Q88: 87 | R88: 0 | S88: y | T88: 1000 | U88: y | V88: 200 | W88: y | X88: 50 | Y88: y | Z88: 200 | AA88: y | AB88: 100
A89: 202001311230 | B89: 2020-01-31 | C89: 12:30:00 | D89: 31 | F89: EXP | I89: -39.2369 | K89: 33.2267 | O89: 12 | Q89: 88 | R89: 0 | S89: y | T89: 1000 | U89: y | V89: 200 | W89: y | X89: 50 | Y89: y | Z89: 200 | AA89: y | AB89: 100
A90: 202001311230 | B90: 2020-01-31 | C90: 12:30:00 | D90: 31 | F90: EXP | I90: -39.2369 | K90: 33.2267 | O90: 13 | Q90: 89 | R90: 0 | S90: y | T90: 1000 | U90: y | V90: 200 | W90: y | X90: 50 | Y90: y | Z90: 200 | AA90: y | AB90: 100
A91: 202001311230 | B91: 2020-01-31 | C91: 12:30:00 | D91: 31 | F91: EXP | I91: -39.2369 | K91: 33.2267 | O91: 14 | Q91: 90 | R91: 0 | S91: y | T91: 1000 | U91: y | V91: 200 | W91: y | X91: 50 | Y91: y | Z91: 200 | AA91: y | AB91: 100
A92: 202001311230 | B92: 2020-01-31 | C92: 12:30:00 | D92: 31 | F92: EXP | I92: -39.2369 | K92: 33.2267 | O92: 15 | Q92: 91 | R92: 0 | S92: y | T92: 1000 | U92: y | V92: 200 | W92: y | X92: 50 | Y92: y | Z92: 200 | AA92: y | AB92: 100
A93: 202001311230 | B93: 2020-01-31 | C93: 12:30:00 | D93: 31 | F93: EXP | I93: -39.2369 | K93: 33.2267 | O93: 16 | Q93: 92 | R93: 0 | S93: y | T93: 1000 | U93: y | V93: 200 | W93: y | X93: 50 | Y93: y | Z93: 200 | AA93: y | AB93: 100
A94: 202001311230 | B94: 2020-01-31 | C94: 12:30:00 | D94: 31 | F94: EXP | I94: -39.2369 | K94: 33.2267 | O94: 17 | Q94: 93 | R94: 0 | S94: y | T94: 1000 | U94: y | V94: 200 | W94: y | X94: 50 | Y94: y | Z94: 200 | AA94: y | AB94: 100
A95: 202001311230 | B95: 2020-01-31 | C95: 12:30:00 | D95: 31 | F95: EXP | I95: -39.2369 | K95: 33.2267 | O95: 18 | Q95: 94 | R95: 0 | S95: y | T95: 1000 | U95: y | V95: 200 | W95: y | X95: 50 | Y95: y | Z95: 200 | AA95: y | AB95: 100
A96: 202001311605 | B96: 2020-01-31 | C96: 16:05:00 | D96: 31 | F96: UW | I96: -39.4744 | K96: 34.3175 | Q96: 95 | R96: 4.5 | S96: y | T96: 1000 | U96: y | V96: 200 | W96: y | X96: 50 | Y96: y | Z96: 200 | AA96: y | AB96: 100
A97: 202001311806 | B97: 2020-01-31 | C97: 18:06:00 | D97: 31 | F97: UW | I97: -39.4723 | K97: 33.919 | Q97: 96 | R97: 4.5 | S97: y | T97: 1000 | U97: y | V97: 200 | W97: y | X97: 50 | Y97: y | Z97: 200 | AA97: y | AB97: 100
A98: 202001312000 | B98: 2020-01-31 | C98: 20:00:00 | D98: 31 | F98: UW | I98: -39.4777 | K98: 33.5358 | Q98: 97 | R98: 4.5 | S98: y | T98: 1000 | U98: y | V98: 200 | W98: y | X98: 50 | Y98: y | Z98: 200 | AA98: y | AB98: 100
A99: 202001312159 | B99: 2020-01-31 | C99: 21:59:00 | D99: 31 | F99: UW | I99: -39.4695 | K99: 33.9429 | Q99: 98 | R99: 4.5 | S99: y | T99: 1000 | U99: y | V99: 200 | W99: y | X99: 50 | Y99: y | Z99: 200 | AA99: y | AB99: 100
A100: 202002010137 | B100: 2020-02-01 | C100: 01:37:00 | D100: 32 | F100: CTD | G100: 7 | H100: 1 | I100: -39.4752 | K100: 34.1997 | M100: 10 | Q100: 99 | R100: 210.2 | S100: y | T100: 1000 | U100: y | V100: 200 | W100: y | X100: 50 | Y100: y | Z100: 200 | AA100: y | AB100: 100
A101: 202002010137 | B101: 2020-02-01 | C101: 01:37:00 | D101: 32 | F101: CTD | G101: 7 | H101: 1 | I101: -39.4752 | K101: 34.1997 | M101: 12 | Q101: 100 | R101: 90.2 | S101: y | T101: 1000 | U101: y | V101: 200 | W101: y | X101: 50 | Y101: y | Z101: 200 | AA101: y | AB101: 100
A102: 202002010137 | B102: 2020-02-01 | C102: 01:37:00 | D102: 32 | F102: CTD | G102: 7 | H102: 1 | I102: -39.4752 | K102: 34.1997 | M102: 14 | Q102: 101 | R102: 70.9 | S102: y | T102: 1000 | U102: y | V102: 200 | W102: y | X102: 50 | Y102: y | Z102: 200 | AA102: y | AB102: 100
A103: 202002010137 | B103: 2020-02-01 | C103: 01:37:00 | D103: 32 | F103: CTD | G103: 7 | H103: 1 | I103: -39.4752 | K103: 34.1997 | M103: 16 | Q103: 102 | R103: 57.8 | S103: y | T103: 1000 | U103: y | V103: 200 | W103: y | X103: 50 | Y103: y | Z103: 200 | AA103: y | AB103: 100
A104: 202002010137 | B104: 2020-02-01 | C104: 01:37:00 | D104: 32 | F104: CTD | G104: 7 | H104: 1 | I104: -39.4752 | K104: 34.1997 | M104: 18 | Q104: 103 | R104: 42.1 | S104: y | T104: 1000 | U104: y | V104: 200 | W104: y | X104: 50 | Y104: y | Z104: 200 | AA104: y | AB104: 100
A105: 202002010137 | B105: 2020-02-01 | C105: 01:37:00 | D105: 32 | F105: CTD | G105: 7 | H105: 1 | I105: -39.4752 | K105: 34.1997 | M105: 20 | Q105: 104 | R105: 27 | S105: y | T105: 1000 | U105: y | V105: 200 | W105: y | X105: 50 | Y105: y | Z105: 200 | AA105: y | AB105: 100
A106: 202002010137 | B106: 2020-02-01 | C106: 01:37:00 | D106: 32 | F106: CTD | G106: 7 | H106: 1 | I106: -39.4752 | K106: 34.1997 | M106: 22 | Q106: 105 | R106: 19.2 | S106: y | T106: 1000 | U106: y | V106: 200 | W106: y | X106: 50 | Y106: y | Z106: 200 | AA106: y | AB106: 100
A107: 202002010137 | B107: 2020-02-01 | C107: 01:37:00 | D107: 32 | F107: CTD | G107: 7 | H107: 1 | I107: -39.4752 | K107: 34.1997 | M107: 24 | Q107: 106 | R107: 12.6 | S107: y | T107: 1000 | U107: y | V107: 200 | W107: y | X107: 50 | Y107: y | Z107: 200 | AA107: y | AB107: 100
A108: 202002010610 | B108: 2020-02-01 | C108: 06:10:00 | D108: 32 | F108: UW | I108: -39.0914 | K108: 34.2029 | Q108: 107 | R108: 4.5 | S108: y | T108: 1000 | U108: y | V108: 200 | W108: y | X108: 50 | Y108: y | Z108: 200 | AA108: y | AB108: 100
A109: 202002010810 | B109: 2020-02-01 | C109: 08:10:00 | D109: 32 | F109: UW | I109: -38.724 | K109: 34.2007 | Q109: 108 | R109: 4.5 | S109: y | T109: 1000 | U109: y | V109: 200 | W109: y | X109: 50 | Y109: y | Z109: 200 | AA109: y | AB109: 100
A110: 202002011200 | B110: 2020-02-01 | C110: 12:00:00 | D110: 32 | F110: UW | I110: -38.8837 | K110: 34.1975 | Q110: 109 | R110: 4.5 | S110: y | T110: 1000 | U110: y | V110: 200 | W110: y | X110: 50 | Y110: y | Z110: 200 | AA110: y | AB110: 100
A111: 202002011245 | B111: 2020-02-01 | C111: 12:45:00 | D111: 32 | F111: EXP | G111: 5 | H111: 3 | I111: -39.2369 | K111: 33.2267 | O111: 1 | Q111: 110 | R111: 0 | S111: y | T111: 1000 | U111: y | V111: 200 | W111: y | X111: 50 | Y111: y | Z111: 200 | AA111: y | AB111: 100
A112: 202002011245 | B112: 2020-02-01 | C112: 12:45:00 | D112: 32 | F112: EXP | G112: 5 | H112: 3 | I112: -39.2369 | K112: 33.2267 | O112: 2 | Q112: 111 | R112: 0 | S112: y | T112: 1000 | U112: y | V112: 200 | W112: y | X112: 50 | Y112: y | Z112: 200 | AA112: y | AB112: 100
A113: 202002011245 | B113: 2020-02-01 | C113: 12:45:00 | D113: 32 | F113: EXP | G113: 5 | H113: 3 | I113: -39.2369 | K113: 33.2267 | O113: 3 | Q113: 112 | R113: 0 | S113: y | T113: 1000 | U113: y | V113: 200 | W113: y | X113: 50 | Y113: y | Z113: 200 | AA113: y | AB113: 100
A114: 202002011315 | B114: 2020-02-01 | C114: 13:15:00 | D114: 32 | F114: EXP | G114: 5 | H114: 3 | I114: -39.2369 | K114: 33.2267 | O114: 4 | Q114: 113 | R114: 0 | S114: y | T114: 1000 | U114: y | V114: 200 | W114: y | X114: 50 | Y114: y | Z114: 200 | AA114: y | AB114: 100
A115: 202002011315 | B115: 2020-02-01 | C115: 13:15:00 | D115: 32 | F115: EXP | G115: 5 | H115: 3 | I115: -39.2369 | K115: 33.2267 | O115: 5 | Q115: 114 | R115: 0 | S115: y | T115: 1000 | U115: y | V115: 200 | W115: y | X115: 50 | Y115: y | Z115: 200 | AA115: y | AB115: 100
A116: 202002011315 | B116: 2020-02-01 | C116: 13:15:00 | D116: 32 | F116: EXP | G116: 5 | H116: 3 | I116: -39.2369 | K116: 33.2267 | O116: 6 | Q116: 115 | R116: 0 | S116: y | T116: 1000 | U116: y | V116: 200 | W116: y | X116: 50 | Y116: y | Z116: 200 | AA116: y | AB116: 100
A117: 202002011345 | B117: 2020-02-01 | C117: 13:45:00 | D117: 32 | F117: EXP | G117: 5 | H117: 3 | I117: -39.2369 | K117: 33.2267 | O117: 7 | Q117: 116 | R117: 0 | S117: y | T117: 1000 | U117: y | V117: 200 | W117: y | X117: 50 | Y117: y | Z117: 200 | AA117: y | AB117: 100
A118: 202002011345 | B118: 2020-02-01 | C118: 13:45:00 | D118: 32 | F118: EXP | G118: 5 | H118: 3 | I118: -39.2369 | K118: 33.2267 | O118: 8 | Q118: 117 | R118: 0 | S118: y | T118: 1000 | U118: y | V118: 200 | W118: y | X118: 50 | Y118: y | Z118: 200 | AA118: y | AB118: 100
A119: 202002011345 | B119: 2020-02-01 | C119: 13:45:00 | D119: 32 | F119: EXP | G119: 5 | H119: 3 | I119: -39.2369 | K119: 33.2267 | O119: 9 | Q119: 118 | R119: 0 | S119: y | T119: 1000 | U119: y | V119: 200 | W119: y | X119: 50 | Y119: y | Z119: 200 | AA119: y | AB119: 100
A120: 202002011415 | B120: 2020-02-01 | C120: 14:15:00 | D120: 32 | F120: EXP | G120: 5 | H120: 3 | I120: -39.2369 | K120: 33.2267 | O120: 10 | Q120: 119 | R120: 0 | S120: y | T120: 1000 | U120: y | V120: 200 | W120: y | X120: 50 | Y120: y | Z120: 200 | AA120: y | AB120: 100
A121: 202002011415 | B121: 2020-02-01 | C121: 14:15:00 | D121: 32 | F121: EXP | G121: 5 | H121: 3 | I121: -39.2369 | K121: 33.2267 | O121: 11 | Q121: 120 | R121: 0 | S121: y | T121: 1000 | U121: y | V121: 200 | W121: y | X121: 50 | Y121: y | Z121: 200 | AA121: y | AB121: 100
A122: 202002011415 | B122: 2020-02-01 | C122: 14:15:00 | D122: 32 | F122: EXP | G122: 5 | H122: 3 | I122: -39.2369 | K122: 33.2267 | O122: 12 | Q122: 121 | R122: 0 | S122: y | T122: 1000 | U122: y | V122: 200 | W122: y | X122: 50 | Y122: y | Z122: 200 | AA122: y | AB122: 100
A123: 202002011440 | B123: 2020-02-01 | C123: 14:40:00 | D123: 32 | F123: EXP | G123: 5 | H123: 3 | I123: -39.2369 | K123: 33.2267 | O123: 13 | Q123: 122 | R123: 0 | S123: y | T123: 1000 | U123: y | V123: 200 | W123: y | X123: 50 | Y123: y | Z123: 200 | AA123: y | AB123: 100
A124: 202002011440 | B124: 2020-02-01 | C124: 14:40:00 | D124: 32 | F124: EXP | G124: 5 | H124: 3 | I124: -39.2369 | K124: 33.2267 | O124: 14 | Q124: 123 | R124: 0 | S124: y | T124: 1000 | U124: y | V124: 200 | W124: y | X124: 50 | Y124: y | Z124: 200 | AA124: y | AB124: 100
A125: 202002011440 | B125: 2020-02-01 | C125: 14:40:00 | D125: 32 | F125: EXP | G125: 5 | H125: 3 | I125: -39.2369 | K125: 33.2267 | O125: 15 | Q125: 124 | R125: 0 | S125: y | T125: 1000 | U125: y | V125: 200 | W125: y | X125: 50 | Y125: y | Z125: 200 | AA125: y | AB125: 100
A126: 202002011510 | B126: 2020-02-01 | C126: 15:10:00 | D126: 32 | F126: EXP | G126: 5 | H126: 3 | I126: -39.2369 | K126: 33.2267 | O126: 16 | Q126: 125 | R126: 0 | S126: y | T126: 1000 | U126: y | V126: 200 | W126: y | X126: 50 | Y126: y | Z126: 200 | AA126: y | AB126: 100
A127: 202002011510 | B127: 2020-02-01 | C127: 15:10:00 | D127: 32 | F127: EXP | G127: 5 | H127: 3 | I127: -39.2369 | K127: 33.2267 | O127: 17 | Q127: 126 | R127: 0 | S127: y | T127: 1000 | U127: y | V127: 200 | W127: y | X127: 50 | Y127: y | Z127: 200 | AA127: y | AB127: 100
A128: 202002011510 | B128: 2020-02-01 | C128: 15:10:00 | D128: 32 | F128: EXP | G128: 5 | H128: 3 | I128: -39.2369 | K128: 33.2267 | O128: 18 | Q128: 127 | R128: 0 | S128: y | T128: 1000 | U128: y | V128: 200 | W128: y | X128: 50 | Y128: y | Z128: 200 | AA128: y | AB128: 100
A129: 202002011600 | B129: 2020-02-01 | C129: 16:00:00 | D129: 32 | F129: UW | I129: -39.4952 | K129: 34.1973 | Q129: 128 | R129: 4.5 | S129: y | T129: 1000 | U129: y | V129: 200 | W129: y | X129: 50 | Y129: y | Z129: 200 | AA129: y | AB129: 100
A130: 202002011800 | B130: 2020-02-01 | C130: 18:00:00 | D130: =B130-DATE(YEAR(B130),1,1)+1 -> 32 | F130: UW | I130: -39.7983 | K130: 34.1986 | Q130: 129 | R130: 4.5 | S130: y | T130: 1000 | U130: y | V130: 200 | W130: y | X130: 50 | Y130: y | Z130: 200 | AA130: y | AB130: 100
A131: =YEAR(B131)*100000000+MONTH(B131)*1000000+DAY(B131)*10000+HOUR(C131)*100+MINUTE(C131) -> 202002012000 | B131: 2020-02-01 | C131: 20:00:00 | D131: 32 | F131: UW | I131: -40.1033 | K131: 34.2003 | Q131: 130 | R131: 4.5 | S131: y | T131: 1000 | U131: y | V131: 200 | W131: y | X131: 50 | Y131: y | Z131: 200 | AA131: y | AB131: 100
A132: 202002020039 | B132: 2020-02-02 | C132: 00:39:00 | D132: 33 | F132: CTD | G132: 8 | H132: 1 | I132: -40.4995 | K132: 34.2006 | M132: 10 | P132: 1 | Q132: =Q131+1 -> 131 | R132: 100 | S132: y | T132: 1000 | U132: y | V132: 200 | W132: y | X132: 50 | Y132: y | Z132: 200 | AA132: y | AB132: 100
A133: 202002020039 | B133: 2020-02-02 | C133: 00:39:00 | D133: 33 | F133: CTD | G133: 8 | H133: 1 | I133: -40.4995 | K133: 34.2006 | M133: 12 | P133: 2 | Q133: 132 | R133: 70 | S133: y | T133: 1000 | U133: y | V133: 200 | W133: y | X133: 50 | Y133: y | Z133: 200 | AA133: y | AB133: 100
A134: 202002020039 | B134: 2020-02-02 | C134: 00:39:00 | D134: 33 | F134: CTD | G134: 8 | H134: 1 | I134: -40.4995 | K134: 34.2006 | M134: 14 | P134: 3 | Q134: 133 | R134: 51.1 | S134: y | T134: 1000 | U134: y | V134: 200 | W134: y | X134: 50 | Y134: y | Z134: 200 | AA134: y | AB134: 100
A135: 202002020039 | B135: 2020-02-02 | C135: 00:39:00 | D135: 33 | F135: CTD | G135: 8 | H135: 1 | I135: -40.4995 | K135: 34.2006 | M135: 16 | P135: 4 | Q135: 134 | R135: 40 | S135: y | T135: 1000 | U135: y | V135: 200 | W135: y | X135: 50 | Y135: y | Z135: 200 | AA135: y | AB135: 100 | AC135: y | AD135: 100
A136: 202002020039 | B136: 2020-02-02 | C136: 00:39:00 | D136: 33 | F136: CTD | G136: 8 | H136: 1 | I136: -40.4995 | K136: 34.2006 | M136: 18 | P136: 5 | Q136: 135 | R136: 29 | S136: y | T136: 1000 | U136: y | V136: 200 | W136: y | X136: 50 | Y136: y | Z136: 200 | AA136: y | AB136: 100
A137: 202002020039 | B137: 2020-02-02 | C137: 00:39:00 | D137: 33 | F137: CTD | G137: 8 | H137: 1 | I137: -40.4995 | K137: 34.2006 | M137: 20 | P137: 6 | Q137: 136 | R137: 18.6 | S137: y | T137: 1000 | U137: y | V137: 200 | W137: y | X137: 50 | Y137: y | Z137: 200 | AA137: y | AB137: 100
A138: 202002020039 | B138: 2020-02-02 | C138: 00:39:00 | D138: 33 | F138: CTD | G138: 8 | H138: 1 | I138: -40.4995 | K138: 34.2006 | M138: 22 | P138: 7 | Q138: 137 | R138: 13.5 | S138: y | T138: 1000 | U138: y | V138: 200 | W138: y | X138: 50 | Y138: y | Z138: 200 | AA138: y | AB138: 100
A139: 202002020039 | B139: 2020-02-02 | C139: 00:39:00 | D139: 33 | F139: CTD | G139: 8 | H139: 1 | I139: -40.4995 | K139: 34.2006 | M139: 24 | P139: 8 | Q139: 138 | R139: 8.7 | S139: y | T139: 1000 | U139: y | V139: 200 | W139: y | X139: 50 | Y139: y | Z139: 200 | AA139: y | AB139: 100 | AC139: y | AD139: 100
A140: 202002020804 | B140: 2020-02-02 | C140: 08:04:00 | D140: 33 | F140: CTD | G140: 9 | H140: 1 | I140: -40.006 | K140: 34.1995 | M140: 10 | P140: 1 | Q140: 139 | R140: 300 | S140: y | T140: 1000 | U140: y | V140: 200 | W140: y | X140: 50 | Y140: y | Z140: 200 | AA140: y | AB140: 100
A141: 202002020804 | B141: 2020-02-02 | C141: 08:04:00 | D141: 33 | F141: CTD | G141: 9 | H141: 1 | I141: -40.006 | K141: 34.1995 | M141: 12 | P141: 2 | Q141: 140 | R141: 150 | S141: y | T141: 1000 | U141: y | V141: 200 | W141: y | X141: 50 | Y141: y | Z141: 200 | AA141: y | AB141: 100
A142: 202002020804 | B142: 2020-02-02 | C142: 08:04:00 | D142: 33 | F142: CTD | G142: 9 | H142: 1 | I142: -40.006 | K142: 34.1995 | M142: 14 | P142: 3 | Q142: 141 | R142: 90 | S142: y | T142: 1000 | U142: y | V142: 200 | W142: y | X142: 50 | Y142: y | Z142: 200 | AA142: y | AB142: 100
A143: 202002020804 | B143: 2020-02-02 | C143: 08:04:00 | D143: 33 | F143: CTD | G143: 9 | H143: 1 | I143: -40.006 | K143: 34.1995 | M143: 16 | P143: 4 | Q143: 142 | R143: 70 | S143: y | T143: 1000 | U143: y | V143: 200 | W143: y | X143: 50 | Y143: y | Z143: 200 | AA143: y | AB143: 100
A144: 202002020804 | B144: 2020-02-02 | C144: 08:04:00 | D144: 33 | F144: CTD | G144: 9 | H144: 1 | I144: -40.006 | K144: 34.1995 | M144: 18 | P144: 5 | Q144: 143 | R144: 46 | S144: y | T144: 1000 | U144: y | V144: 200 | W144: y | X144: 50 | Y144: y | Z144: 200 | AA144: y | AB144: 100
A145: 202002020804 | B145: 2020-02-02 | C145: 08:04:00 | D145: 33 | F145: CTD | G145: 9 | H145: 1 | I145: -40.006 | K145: 34.1995 | M145: 20 | P145: 6 | Q145: 144 | R145: 40 | S145: y | T145: 1000 | U145: y | V145: 200 | W145: y | X145: 50 | Y145: y | Z145: 200 | AA145: y | AB145: 100 | AC145: y | AD145: 100
A146: 202002020804 | B146: 2020-02-02 | C146: 08:04:00 | D146: 33 | F146: CTD | G146: 9 | H146: 1 | I146: -40.006 | K146: 34.1995 | M146: 22 | P146: 7 | Q146: 145 | R146: 20 | S146: y | T146: 1000 | U146: y | V146: 200 | W146: y | X146: 50 | Y146: y | Z146: 200 | AA146: y | AB146: 100
A147: 202002020804 | B147: 2020-02-02 | C147: 08:04:00 | D147: 33 | F147: CTD | G147: 9 | H147: 1 | I147: -40.006 | K147: 34.1995 | M147: 24 | P147: 8 | Q147: 146 | R147: 3.6 | S147: y | T147: 1000 | U147: y | V147: 200 | W147: y | X147: 50 | Y147: y | Z147: 200 | AA147: y | AB147: 100 | AC147: y | AD147: 100
A148: 202002021210 | B148: 2020-02-02 | C148: 12:10:00 | D148: 33 | F148: CTD | G148: 10 | H148: 1 | I148: -39.4751 | K148: 34.1997 | M148: 2 | P148: 1 | Q148: 147 | R148: 750 | S148: y | T148: 1000 | U148: y | V148: 200 | W148: y | X148: 50 | Y148: y | Z148: 200 | AA148: y | AB148: 100
A149: 202002021210 | B149: 2020-02-02 | C149: 12:10:00 | D149: 33 | F149: CTD | G149: 10 | H149: 1 | I149: -39.4751 | K149: 34.1997 | M149: 6 | P149: 2 | Q149: 148 | R149: 450 | S149: y | T149: 1000 | U149: y | V149: 200 | W149: y | X149: 50 | Y149: y | Z149: 200 | AA149: y | AB149: 100
A150: 202002021210 | B150: 2020-02-02 | C150: 12:10:00 | D150: 33 | F150: CTD | G150: 10 | H150: 1 | I150: -39.4751 | K150: 34.1997 | M150: 10 | P150: 3 | Q150: 149 | R150: 200 | S150: y | T150: 1000 | U150: y | V150: 200 | W150: y | X150: 50 | Y150: y | Z150: 200 | AA150: y | AB150: 100
A151: 202002021210 | B151: 2020-02-02 | C151: 12:10:00 | D151: 33 | F151: CTD | G151: 10 | H151: 1 | I151: -39.4751 | K151: 34.1997 | M151: 14 | P151: 4 | Q151: 150 | R151: 100 | S151: y | T151: 1000 | U151: y | V151: 200 | W151: y | X151: 50 | Y151: y | Z151: 200 | AA151: y | AB151: 100
A152: 202002021210 | B152: 2020-02-02 | C152: 12:10:00 | D152: 33 | F152: CTD | G152: 10 | H152: 1 | I152: -39.4751 | K152: 34.1997 | M152: 16 | P152: 5 | Q152: 151 | R152: 80 | S152: y | T152: 1000 | U152: y | V152: 200 | W152: y | X152: 50 | Y152: y | Z152: 200 | AA152: y | AB152: 100
A153: 202002021210 | B153: 2020-02-02 | C153: 12:10:00 | D153: 33 | F153: CTD | G153: 10 | H153: 1 | I153: -39.4751 | K153: 34.1997 | M153: 19 | P153: 6 | Q153: 152 | R153: 60 | S153: y | T153: 1000 | U153: y | V153: 200 | W153: y | X153: 50 | Y153: y | Z153: 200 | AA153: y | AB153: 100 | AC153: y | AD153: 100
A154: 202002021210 | B154: 2020-02-02 | C154: 12:10:00 | D154: 33 | F154: CTD | G154: 10 | H154: 1 | I154: -39.4751 | K154: 34.1997 | M154: 22 | P154: 7 | Q154: 153 | R154: 20 | S154: y | T154: 1000 | U154: y | V154: 200 | W154: y | X154: 50 | Y154: y | Z154: 200 | AA154: y | AB154: 100
A155: 202002021210 | B155: 2020-02-02 | C155: 12:10:00 | D155: 33 | F155: CTD | G155: 10 | H155: 1 | I155: -39.4751 | K155: 34.1997 | M155: 24 | P155: 8 | Q155: 154 | R155: 5 | S155: y | T155: 1000 | U155: y | V155: 200 | W155: y | X155: 50 | Y155: y | Z155: 200 | AA155: y | AB155: 100 | AC155: y | AD155: 100
A156: 202002021610 | B156: 2020-02-02 | C156: 16:10:00 | D156: 33 | F156: CTD | G156: 11 | H156: 1 | I156: -39.0015 | K156: 34.2 | M156: 6 | P156: 1 | Q156: 155 | R156: 450 | S156: y | T156: 1000 | U156: y | V156: 200 | W156: y | X156: 50 | Y156: y | Z156: 200 | AA156: y | AB156: 100
A157: 202002021610 | B157: 2020-02-02 | C157: 16:10:00 | D157: 33 | F157: CTD | G157: 11 | H157: 1 | I157: -39.0015 | K157: 34.2 | M157: 10 | P157: 2 | Q157: 156 | R157: 200 | S157: y | T157: 1000 | U157: y | V157: 200 | W157: y | X157: 50 | Y157: y | Z157: 200 | AA157: y | AB157: 100
A158: 202002021610 | B158: 2020-02-02 | C158: 16:10:00 | D158: 33 | F158: CTD | G158: 11 | H158: 1 | I158: -39.0015 | K158: 34.2 | M158: 14 | P158: 3 | Q158: 157 | R158: 100 | S158: y | T158: 1000 | U158: y | V158: 200 | W158: y | X158: 50 | Y158: y | Z158: 200 | AA158: y | AB158: 100
A159: 202002021610 | B159: 2020-02-02 | C159: 16:10:00 | D159: 33 | F159: CTD | G159: 11 | H159: 1 | I159: -39.0015 | K159: 34.2 | M159: 16 | P159: 4 | Q159: 158 | R159: 80 | S159: y | T159: 1000 | U159: y | V159: 200 | W159: y | X159: 50 | Y159: y | Z159: 200 | AA159: y | AB159: 100
A160: 202002021610 | B160: 2020-02-02 | C160: 16:10:00 | D160: 33 | F160: CTD | G160: 11 | H160: 1 | I160: -39.0015 | K160: 34.2 | M160: 18 | P160: 5 | Q160: 159 | R160: 60 | S160: y | T160: 1000 | U160: y | V160: 200 | W160: y | X160: 50 | Y160: y | Z160: 200 | AA160: y | AB160: 100
A161: 202002021610 | B161: 2020-02-02 | C161: 16:10:00 | D161: 33 | F161: CTD | G161: 11 | H161: 1 | I161: -39.0015 | K161: 34.2 | M161: 20 | P161: 6 | Q161: 160 | R161: 40 | S161: y | T161: 1000 | U161: y | V161: 200 | W161: y | X161: 50 | Y161: y | Z161: 200 | AA161: y | AB161: 100 | AC161: y | AD161: 100
A162: 202002021610 | B162: 2020-02-02 | C162: 16:10:00 | D162: 33 | F162: CTD | G162: 11 | H162: 1 | I162: -39.0015 | K162: 34.2 | M162: 22 | P162: 7 | Q162: 161 | R162: 20 | S162: y | T162: 1000 | U162: y | V162: 200 | W162: y | X162: 50 | Y162: y | Z162: 200 | AA162: y | AB162: 100
A163: 202002021610 | B163: 2020-02-02 | C163: 16:10:00 | D163: 33 | F163: CTD | G163: 11 | H163: 1 | I163: -39.0015 | K163: 34.2 | M163: 24 | P163: 8 | Q163: 162 | R163: 4.5 | S163: y | T163: 1000 | U163: y | V163: 200 | W163: y | X163: 50 | Y163: y | Z163: 200 | AA163: y | AB163: 100 | AC163: y | AD163: 100
A164: 202002022036 | B164: 2020-02-02 | C164: 20:36:00 | D164: 33 | F164: CTD | G164: 12 | H164: 1 | I164: -38.501 | K164: 34.1995 | M164: 6 | P164: 1 | Q164: 163 | R164: 401 | S164: y | T164: 1000 | U164: y | V164: 200 | W164: y | X164: 50 | Y164: y | Z164: 200 | AA164: y | AB164: 100
A165: 202002022036 | B165: 2020-02-02 | C165: 20:36:00 | D165: 33 | F165: CTD | G165: 12 | H165: 1 | I165: -38.501 | K165: 34.1995 | M165: 8 | P165: 2 | Q165: 164 | R165: 202 | S165: y | T165: 1000 | U165: y | V165: 200 | W165: y | X165: 50 | Y165: y | Z165: 200 | AA165: y | AB165: 100
A166: 202002022036 | B166: 2020-02-02 | C166: 20:36:00 | D166: 33 | F166: CTD | G166: 12 | H166: 1 | I166: -38.501 | K166: 34.1995 | M166: 14 | P166: 3 | Q166: 165 | R166: 75 | S166: y | T166: 1000 | U166: y | V166: 200 | W166: y | X166: 50 | Y166: y | Z166: 200 | AA166: y | AB166: 100
A167: 202002022036 | B167: 2020-02-02 | C167: 20:36:00 | D167: 33 | F167: CTD | G167: 12 | H167: 1 | I167: -38.501 | K167: 34.1995 | M167: 16 | P167: 4 | Q167: 166 | R167: 54 | S167: y | T167: 1000 | U167: y | V167: 200 | W167: y | X167: 50 | Y167: y | Z167: 200 | AA167: y | AB167: 100 | AC167: y | AD167: 100
A168: 202002022036 | B168: 2020-02-02 | C168: 20:36:00 | D168: 33 | F168: CTD | G168: 12 | H168: 1 | I168: -38.501 | K168: 34.1995 | M168: 18 | P168: 5 | Q168: 167 | R168: 42 | S168: y | T168: 1000 | U168: y | V168: 200 | W168: y | X168: 50 | Y168: y | Z168: 200 | AA168: y | AB168: 100
A169: 202002022036 | B169: 2020-02-02 | C169: 20:36:00 | D169: 33 | F169: CTD | G169: 12 | H169: 1 | I169: -38.501 | K169: 34.1995 | M169: 20 | P169: 6 | Q169: 168 | R169: 27 | S169: y | T169: 1000 | U169: y | V169: 200 | W169: y | X169: 50 | Y169: y | Z169: 200 | AA169: y | AB169: 100
A170: 202002022036 | B170: 2020-02-02 | C170: 20:36:00 | D170: 33 | F170: CTD | G170: 12 | H170: 1 | I170: -38.501 | K170: 34.1995 | M170: 22 | P170: 7 | Q170: 169 | R170: 19 | S170: y | T170: 1000 | U170: y | V170: 200 | W170: y | X170: 50 | Y170: y | Z170: 200 | AA170: y | AB170: 100
A171: 202002022036 | B171: 2020-02-02 | C171: 20:36:00 | D171: 33 | F171: CTD | G171: 12 | H171: 1 | I171: -38.501 | K171: 34.1995 | M171: 24 | P171: 8 | Q171: 170 | R171: 12 | S171: y | T171: 1000 | U171: y | V171: 200 | W171: y | X171: 50 | Y171: y | Z171: 200 | AA171: y | AB171: 100 | AC171: y | AD171: 100
A172: 202002030200 | B172: 2020-02-03 | C172: 02:00:00 | D172: 34 | F172: UW | I172: -38.6519 | K172: 34.519 | Q172: 171 | R172: 4.5 | S172: y | T172: 1000 | U172: y | V172: 200 | W172: y | X172: 50 | Y172: y | Z172: 200 | AA172: y | AB172: 100
A173: 202002030400 | B173: 2020-02-03 | C173: 04:00:00 | D173: 34 | F173: UW | I173: -38.851 | K173: 34.661 | Q173: 172 | R173: 4.5 | S173: y | T173: 1000 | U173: y | V173: 200 | W173: y | X173: 50 | Y173: y | Z173: 200 | AA173: y | AB173: 100
A174: 202002030600 | B174: 2020-02-03 | C174: 06:00:00 | D174: 34 | F174: UW | I174: -39.0858 | K174: 34.9667 | Q174: 173 | R174: 4.5 | S174: y | T174: 1000 | U174: y | V174: 200 | W174: y | X174: 50 | Y174: y | Z174: 200 | AA174: y | AB174: 100
A175: 202002030800 | B175: 2020-02-03 | C175: 08:00:00 | D175: 34 | F175: UW | I175: -39.3126 | K175: 34.251 | Q175: 174 | R175: 4.5 | S175: y | T175: 1000 | U175: y | V175: 200 | W175: y | X175: 50 | Y175: y | Z175: 200 | AA175: y | AB175: 100
A176: 202002031115 | B176: 2020-02-03 | C176: 11:15:00 | D176: 34 | F176: CTD | G176: 13 | H176: 1 | I176: -39.4725 | K176: 35.467 | M176: 10 | P176: 1 | Q176: 175 | R176: 380.4 | S176: y | T176: 1000 | U176: y | V176: 200 | W176: y | X176: 50 | Y176: y | Z176: 200 | AA176: y | AB176: 100
A177: 202002031115 | B177: 2020-02-03 | C177: 11:15:00 | D177: 34 | F177: CTD | G177: 13 | H177: 1 | I177: -39.4725 | K177: 35.467 | M177: 12 | P177: 2 | Q177: 176 | R177: 240.1 | S177: y | T177: 1000 | U177: y | V177: 200 | W177: y | X177: 50 | Y177: y | Z177: 200 | AA177: y | AB177: 100
A178: 202002031115 | B178: 2020-02-03 | C178: 11:15:00 | D178: 34 | F178: CTD | G178: 13 | H178: 1 | I178: -39.4725 | K178: 35.467 | M178: 14 | P178: 3 | Q178: 177 | R178: 140.7 | S178: y | T178: 1000 | U178: y | V178: 200 | W178: y | X178: 50 | Y178: y | Z178: 200 | AA178: y | AB178: 100
A179: 202002031115 | B179: 2020-02-03 | C179: 11:15:00 | D179: 34 | F179: CTD | G179: 13 | H179: 1 | I179: -39.4725 | K179: 35.467 | M179: 16 | P179: 4 | Q179: 178 | R179: 98.5 | S179: y | T179: 1000 | U179: y | V179: 200 | W179: y | X179: 50 | Y179: y | Z179: 200 | AA179: y | AB179: 100
A180: 202002031115 | B180: 2020-02-03 | C180: 11:15:00 | D180: 34 | F180: CTD | G180: 13 | H180: 1 | I180: -39.4725 | K180: 35.467 | M180: 18 | P180: 5 | Q180: 179 | R180: 70.1 | S180: y | T180: 1000 | U180: y | V180: 200 | W180: y | X180: 50 | Y180: y | Z180: 200 | AA180: y | AB180: 100
A181: 202002031115 | B181: 2020-02-03 | C181: 11:15:00 | D181: 34 | F181: CTD | G181: 13 | H181: 1 | I181: -39.4725 | K181: 35.467 | M181: 20 | P181: 6 | Q181: 180 | R181: 52.6 | S181: y | T181: 1000 | U181: y | V181: 200 | W181: y | X181: 50 | Y181: y | Z181: 200 | AA181: y | AB181: 100
A182: 202002031115 | B182: 2020-02-03 | C182: 11:15:00 | D182: 34 | F182: CTD | G182: 13 | H182: 1 | I182: -39.4725 | K182: 35.467 | M182: 22 | P182: 7 | Q182: 181 | R182: 30 | S182: y | T182: 1000 | U182: y | V182: 200 | W182: y | X182: 50 | Y182: y | Z182: 200 | AA182: y | AB182: 100 | AC182: y | AD182: 100
A183: 202002031115 | B183: 2020-02-03 | C183: 11:15:00 | D183: 34 | F183: CTD | G183: 13 | H183: 1 | I183: -39.4725 | K183: 35.467 | M183: 24 | P183: 8 | Q183: 182 | R183: 10 | S183: y | T183: 1000 | U183: y | V183: 200 | W183: y | X183: 50 | Y183: y | Z183: 200 | AA183: y | AB183: 100 | AC183: y | AD183: 100
A184: 202002031449 | B184: 2020-02-03 | C184: 14:49:00 | D184: 34 | F184: CTD | G184: 14 | H184: 1 | I184: -39.475 | K184: 34.8335 | M184: 10 | P184: 1 | Q184: 183 | R184: 251 | S184: y | T184: 1000 | U184: y | V184: 200 | W184: y | X184: 50 | Y184: y | Z184: 200 | AA184: y | AB184: 100
A185: 202002031449 | B185: 2020-02-03 | C185: 14:49:00 | D185: 34 | F185: CTD | G185: 14 | H185: 1 | I185: -39.475 | K185: 34.8335 | M185: 12 | P185: 2 | Q185: 184 | R185: 150 | S185: y | T185: 1000 | U185: y | V185: 200 | W185: y | X185: 50 | Y185: y | Z185: 200 | AA185: y | AB185: 100
A186: 202002031449 | B186: 2020-02-03 | C186: 14:49:00 | D186: 34 | F186: CTD | G186: 14 | H186: 1 | I186: -39.475 | K186: 34.8335 | M186: 14 | P186: 3 | Q186: 185 | R186: 100 | S186: y | T186: 1000 | U186: y | V186: 200 | W186: y | X186: 50 | Y186: y | Z186: 200 | AA186: y | AB186: 100
A187: 202002031449 | B187: 2020-02-03 | C187: 14:49:00 | D187: 34 | F187: CTD | G187: 14 | H187: 1 | I187: -39.475 | K187: 34.8335 | M187: 18 | P187: 4 | Q187: 186 | R187: 79 | S187: y | T187: 1000 | U187: y | V187: 200 | W187: y | X187: 50 | Y187: y | Z187: 200 | AA187: y | AB187: 100
A188: 202002031449 | B188: 2020-02-03 | C188: 14:49:00 | D188: 34 | F188: CTD | G188: 14 | H188: 1 | I188: -39.475 | K188: 34.8335 | M188: 19 | P188: 5 | Q188: 187 | R188: 60 | S188: y | T188: 1000 | U188: y | V188: 200 | W188: y | X188: 50 | Y188: y | Z188: 200 | AA188: y | AB188: 100
A189: 202002031449 | B189: 2020-02-03 | C189: 14:49:00 | D189: 34 | F189: CTD | G189: 14 | H189: 1 | I189: -39.475 | K189: 34.8335 | M189: 20 | P189: 6 | Q189: 188 | R189: 40 | S189: y | T189: 1000 | U189: y | V189: 200 | W189: y | X189: 50 | Y189: y | Z189: 200 | AA189: y | AB189: 100
A190: 202002031449 | B190: 2020-02-03 | C190: 14:49:00 | D190: 34 | F190: CTD | G190: 14 | H190: 1 | I190: -39.475 | K190: 34.8335 | M190: 22 | P190: 7 | Q190: 189 | R190: 20 | S190: y | T190: 1000 | U190: y | V190: 200 | W190: y | X190: 50 | Y190: y | Z190: 200 | AA190: y | AB190: 100
A191: 202002031449 | B191: 2020-02-03 | C191: 14:49:00 | D191: 34 | F191: CTD | G191: 14 | H191: 1 | I191: -39.475 | K191: 34.8335 | M191: 24 | P191: 8 | Q191: 190 | R191: 4.1 | S191: y | T191: 1000 | U191: y | V191: 200 | W191: y | X191: 50 | Y191: y | Z191: 200 | AA191: y | AB191: 100
A192: 202002031847 | B192: 2020-02-03 | C192: 18:47:00 | D192: 34 | F192: CTD | G192: 15 | H192: 1 | I192: -39.4748 | K192: 34.2003 | M192: 10 | P192: 1 | Q192: 191 | R192: 200 | S192: y | T192: 1000 | U192: y | V192: 200 | W192: y | X192: 50 | Y192: y | Z192: 200 | AA192: y | AB192: 100
A193: 202002031847 | B193: 2020-02-03 | C193: 18:47:00 | D193: 34 | F193: CTD | G193: 15 | H193: 1 | I193: -39.4748 | K193: 34.2003 | M193: 12 | P193: 2 | Q193: 192 | R193: 149 | S193: y | T193: 1000 | U193: y | V193: 200 | W193: y | X193: 50 | Y193: y | Z193: 200 | AA193: y | AB193: 100
A194: 202002031847 | B194: 2020-02-03 | C194: 18:47:00 | D194: =B194-DATE(YEAR(B194),1,1)+1 -> 34 | F194: CTD | G194: 15 | H194: 1 | I194: -39.4748 | K194: 34.2003 | M194: 14 | P194: 3 | Q194: 193 | R194: 99 | S194: y | T194: 1000 | U194: y | V194: 200 | W194: y | X194: 50 | Y194: y | Z194: 200 | AA194: y | AB194: 100
A195: =YEAR(B195)*100000000+MONTH(B195)*1000000+DAY(B195)*10000+HOUR(C195)*100+MINUTE(C195) -> 202002031847 | B195: 2020-02-03 | C195: 18:47:00 | D195: 34 | F195: CTD | G195: 15 | H195: 1 | I195: -39.4748 | K195: 34.2003 | M195: 16 | P195: 4 | Q195: 194 | R195: 80 | S195: y | T195: 1000 | U195: y | V195: 200 | W195: y | X195: 50 | Y195: y | Z195: 200 | AA195: y | AB195: 100
A196: 202002031847 | B196: 2020-02-03 | C196: 18:47:00 | D196: 34 | F196: CTD | G196: 15 | H196: 1 | I196: -39.4748 | K196: 34.2003 | M196: 18 | P196: 5 | Q196: =Q195+1 -> 195 | R196: 50 | S196: y | T196: 1000 | U196: y | V196: 200 | W196: y | X196: 50 | Y196: y | Z196: 200 | AA196: y | AB196: 100
A197: 202002031847 | B197: 2020-02-03 | C197: 18:47:00 | D197: 34 | F197: CTD | G197: 15 | H197: 1 | I197: -39.4748 | K197: 34.2003 | M197: 20 | P197: 6 | Q197: 196 | R197: 33 | S197: y | T197: 1000 | U197: y | V197: 200 | W197: y | X197: 50 | Y197: y | Z197: 200 | AA197: y | AB197: 100
A198: 202002031847 | B198: 2020-02-03 | C198: 18:47:00 | D198: 34 | F198: CTD | G198: 15 | H198: 1 | I198: -39.4748 | K198: 34.2003 | M198: 22 | P198: 7 | Q198: 197 | R198: 20 | S198: y | T198: 1000 | U198: y | V198: 200 | W198: y | X198: 50 | Y198: y | Z198: 200 | AA198: y | AB198: 100
A199: 202002031847 | B199: 2020-02-03 | C199: 18:47:00 | D199: 34 | F199: CTD | G199: 15 | H199: 1 | I199: -39.4748 | K199: 34.2003 | M199: 24 | P199: 8 | Q199: 198 | R199: 4 | S199: y | T199: 1000 | U199: y | V199: 200 | W199: y | X199: 50 | Y199: y | Z199: 200 | AA199: y | AB199: 100
A200: 202002032315 | B200: 2020-02-03 | C200: 23:15:00 | D200: 34 | F200: CTD | G200: 16 | H200: 1 | I200: -39.4754 | K200: 33.5653 | M200: 10 | P200: 1 | Q200: 199 | R200: 250 | S200: y | T200: 1000 | U200: y | V200: 200 | W200: y | X200: 50 | Y200: y | Z200: 200 | AA200: y | AB200: 100
... 603 more rows

Sheet Inventory
A1: Start Date | B1: 2019-01-06 | C1: Sample days remaining | D1: =B3-B2 -> -379
A2: Current Date | B2: =TODAY() -> 2020-02-29 | C2: Days completed | D2: =B2-B1+1 -> 420
A3: End Date | B3: 2019-02-15
A5: CHN Samples/day
A6: PIC Samples/day
A7: CC Samples/day
A8: BSi Samples/day
A9: Chl Surface(x3) Samples/day
A10: Chl Depth Samples/day
A11: PsyCalc Samples/day
A12: SEM Samples/day
E13: Based on targets | G13: Based on usage
A14: Item | B14: Starting Count | C14: Remaining Count | D14: Days supply | E14: # Needed | F14: Excess | G14: # Needed | H14: Excess
A15: 0.4 polycarbonate | C15: =B15-B26-B28-(B30*4)-B31-B34-B35 ->  | D15: =C15/($B$6+$B$8+($B$11*4)+$B$12) ->  | E15: =ROUND($D$1*($B$6+$B$8+($B$11*4)+$B$12),0) -> 0 | F15: =C15-E15 ->  | G15: =D26+D28+(D30*4)+D31 ->  | H15: =C15-G15 -> 
A16: 0.4um H/A | C16: =B16-B27-B29 -> -1488 | D16: =C16/$B$7+($B$9*3)+$B$10 ->  | E16: =ROUND($D$1*($B$7+($B$9*3)+$B$10),0) -> 0 | F16: =C16-E16 -> -1488 | G16: =D27+D29 -> -1343 | H16: =C16-G16 -> -145
A17: GF/F | C17: =B17-B25-B36 -> -755 | D17: =C17/$B$5 ->  | E17: =ROUND($D$1*($B$5),0) -> 0 | F17: =C17-E17 -> -755 | G17: =D25 -> -681 | H17: =C17-G17 -> -74
A18: GF/A | C18: =B18-(B30*4) ->  | D18: =C18/($B$11*4) ->  | E18: =ROUND($D$1*($B$11*4),0) -> 0 | F18: =C18-E18 ->  | G18: =D30*4 ->  | H18: =C18-G18 -> 
A20: Petri plates | C20: =B20-100-B25-B31-B36 -> -944 | D20: =C20-100/($B$5+$B$12) ->  | E20: =ROUND(($D$1*($B$5+$B$12))+100,0) -> 100 | F20: =C20-E20 -> -1044 | G20: =D25+D31+100 -> -661 | H20: =C20-G20 -> -283
A21: PIC tubes | C21: =B21-B26-B35 -> -755 | D21: =C21/$B$6 ->  | E21: =ROUND($D$1*$B$6,0) -> 0 | F21: =C21-E21 -> -755 | G21: =D26 -> -681 | H21: =C21-G21 -> -74
A22: BSi tubes | C22: =B22-B28-B34 -> -755 | D22: =C22/$B$8 ->  | E22: =ROUND($D$1*$B$8,0) -> 0 | F22: =C22-E22 -> -755 | G22: =D28 -> -681 | H22: =C22-G22 -> -74
B24: Actual | C24: Avg Samples/day | D24: Samples Left | F24: Total
A25: CHN | B25: =COUNTIF('Discrete Entry'!S2:S800,"y") -> 755 | C25: =B25/$D$2 -> 1.797619048 | D25: =ROUND(C25*$D$1,0) -> -681 | F25: =B25+D25 -> 74
A26: PIC | B26: =COUNTIF('Discrete Entry'!U2:U800,"y") -> 755 | C26: 1.797619048 | D26: -681 | F26: 74
A27: CC | B27: =COUNTIF('Discrete Entry'!W2:W800,"y") -> 752 | C27: 1.79047619 | D27: -679 | F27: 73
A28: BSi | B28: =COUNTIF('Discrete Entry'!Y2:Y800,"y") -> 755 | C28: 1.797619048 | D28: -681 | F28: 74
A29: Chl | B29: =COUNTIF('Discrete Entry'!AA2:AA800,"y") -> 736 | C29: 1.752380952 | D29: -664 | F29: 72
A30: PsyCalc | B30: =#N/A -> 
A31: SEM | B31: =COUNTIF('Discrete Entry'!AC$2:AC$801,"y") -> 89 | C31: 0.2119047619 | D31: -80 | F31: 9
A34: BSi blanks
A35: PIC blanks
A36: CHN blanks
B38: Starting Count | C38: Number Used | D38: Remaining Count
A39: Borate tubes | D39: =B39-C39 -> 0
A40: 1um filter cartridges | D40: =B40-C40 -> 0
A41: 0.2um filter cartridges | D41: =B41-C41 -> 0

Sheet CHN
A1: Balch Sample # | B1: CHN Comments | C1: CHN Vol Filt [mL] | D1: POC [ug] | E1: PON [ug] | F1: POC [ug L^-1] | G1: Quality Flag POC | H1: PON [ug L^-1] | I1: Quality Flag PON | J1: POC [umol L^-1] | K1: PON [umol L^-1] | M1: For Cruise Blanks
B2: =VLOOKUP(A2, 'Discrete Entry'!$Q$2:$AL$801, 17,0) ->  | C2: =VLOOKUP(A2, 'Discrete Entry'!$Q$2:$Z$801, 4,0) ->  | F2: =IF(ISNUMBER(D2),((D2-$N$15)/(C2/1000)),-999) -> -999 | H2: =IF(ISNUMBER(E2),((E2-$O$15)/(C2/1000)),-999) -> -999 | J2: =IF(F2=-999,-999,F2/12) -> -999 | K2: =IF(H2=-999,-999,H2/14) -> -999 | M2: Blank# | N2: POC [ug] | O2: PON [ug]
B3: =VLOOKUP(A3, 'Discrete Entry'!$Q$2:$AL$801, 17,0) ->  | C3: =VLOOKUP(A3, 'Discrete Entry'!$Q$2:$Z$801, 4,0) ->  | F3: -999 | H3: -999 | J3: -999 | K3: -999 | M3: BLANK1
B4: =VLOOKUP(A4, 'Discrete Entry'!$Q$2:$AL$801, 17,0) ->  | C4: =VLOOKUP(A4, 'Discrete Entry'!$Q$2:$Z$801, 4,0) ->  | F4: -999 | H4: -999 | J4: -999 | K4: -999 | M4: BLANK2
B5: =VLOOKUP(A5, 'Discrete Entry'!$Q$2:$AL$801, 17,0) ->  | C5: =VLOOKUP(A5, 'Discrete Entry'!$Q$2:$Z$801, 4,0) ->  | F5: -999 | H5: -999 | J5: -999 | K5: -999 | M5: BLANK3
B6: =VLOOKUP(A6, 'Discrete Entry'!$Q$2:$AL$801, 17,0) ->  | C6: =VLOOKUP(A6, 'Discrete Entry'!$Q$2:$Z$801, 4,0) ->  | F6: -999 | H6: -999 | J6: -999 | K6: -999 | M6: BLANK4
B7: =VLOOKUP(A7, 'Discrete Entry'!$Q$2:$AL$801, 17,0) ->  | C7: =VLOOKUP(A7, 'Discrete Entry'!$Q$2:$Z$801, 4,0) ->  | F7: -999 | H7: -999 | J7: -999 | K7: -999 | M7: BLANK5
B8: =VLOOKUP(A8, 'Discrete Entry'!$Q$2:$AL$801, 17,0) ->  | C8: =VLOOKUP(A8, 'Discrete Entry'!$Q$2:$Z$801, 4,0) ->  | F8: -999 | H8: -999 | J8: -999 | K8: -999 | M8: BLANK6
B9: =VLOOKUP(A9, 'Discrete Entry'!$Q$2:$AL$801, 17,0) ->  | C9: =VLOOKUP(A9, 'Discrete Entry'!$Q$2:$Z$801, 4,0) ->  | F9: -999 | H9: -999 | J9: -999 | K9: -999 | M9: BLANK7
B10: =VLOOKUP(A10, 'Discrete Entry'!$Q$2:$AL$801, 17,0) ->  | C10: =VLOOKUP(A10, 'Discrete Entry'!$Q$2:$Z$801, 4,0) ->  | F10: -999 | H10: -999 | J10: -999 | K10: -999 | M10: BLANK8
B11: =VLOOKUP(A11, 'Discrete Entry'!$Q$2:$AL$801, 17,0) ->  | C11: =VLOOKUP(A11, 'Discrete Entry'!$Q$2:$Z$801, 4,0) ->  | F11: -999 | H11: -999 | J11: -999 | K11: -999 | M11: BLANK9
B12: =VLOOKUP(A12, 'Discrete Entry'!$Q$2:$AL$801, 17,0) ->  | C12: =VLOOKUP(A12, 'Discrete Entry'!$Q$2:$Z$801, 4,0) ->  | F12: -999 | H12: -999 | J12: -999 | K12: -999 | M12: BLANK10
B13: =VLOOKUP(A13, 'Discrete Entry'!$Q$2:$AL$801, 17,0) ->  | C13: =VLOOKUP(A13, 'Discrete Entry'!$Q$2:$Z$801, 4,0) ->  | F13: -999 | H13: -999 | J13: -999 | K13: -999 | M13: BLANK11
B14: =VLOOKUP(A14, 'Discrete Entry'!$Q$2:$AL$801, 17,0) ->  | C14: =VLOOKUP(A14, 'Discrete Entry'!$Q$2:$Z$801, 4,0) ->  | F14: -999 | H14: -999 | J14: -999 | K14: -999 | M14: BLANK12
B15: =VLOOKUP(A15, 'Discrete Entry'!$Q$2:$AL$801, 17,0) ->  | C15: =VLOOKUP(A15, 'Discrete Entry'!$Q$2:$Z$801, 4,0) ->  | F15: -999 | H15: -999 | J15: -999 | K15: -999 | M15: Average | N15: =AVERAGE(N3:N14) ->  | O15: =AVERAGE(O3:O14) -> 
B16: =VLOOKUP(A16, 'Discrete Entry'!$Q$2:$AL$801, 17,0) ->  | C16: =VLOOKUP(A16, 'Discrete Entry'!$Q$2:$Z$801, 4,0) ->  | F16: -999 | H16: -999 | J16: -999 | K16: -999
B17: =VLOOKUP(A17, 'Discrete Entry'!$Q$2:$AL$801, 17,0) ->  | C17: =VLOOKUP(A17, 'Discrete Entry'!$Q$2:$Z$801, 4,0) ->  | F17: -999 | H17: -999 | J17: -999 | K17: -999
B18: =VLOOKUP(A18, 'Discrete Entry'!$Q$2:$AL$801, 17,0) ->  | C18: =VLOOKUP(A18, 'Discrete Entry'!$Q$2:$Z$801, 4,0) ->  | F18: -999 | H18: -999 | J18: -999 | K18: -999
B19: =VLOOKUP(A19, 'Discrete Entry'!$Q$2:$AL$801, 17,0) ->  | C19: =VLOOKUP(A19, 'Discrete Entry'!$Q$2:$Z$801, 4,0) ->  | F19: -999 | H19: -999 | J19: -999 | K19: -999
B20: =VLOOKUP(A20, 'Discrete Entry'!$Q$2:$AL$801, 17,0) ->  | C20: =VLOOKUP(A20, 'Discrete Entry'!$Q$2:$Z$801, 4,0) ->  | F20: -999 | H20: -999 | J20: -999 | K20: -999
B21: =VLOOKUP(A21, 'Discrete Entry'!$Q$2:$AL$801, 17,0) ->  | C21: =VLOOKUP(A21, 'Discrete Entry'!$Q$2:$Z$801, 4,0) ->  | F21: -999 | H21: -999 | J21: -999 | K21: -999
B22: =VLOOKUP(A22, 'Discrete Entry'!$Q$2:$AL$801, 17,0) ->  | C22: =VLOOKUP(A22, 'Discrete Entry'!$Q$2:$Z$801, 4,0) ->  | F22: -999 | H22: -999 | J22: -999 | K22: -999
B23: =VLOOKUP(A23, 'Discrete Entry'!$Q$2:$AL$801, 17,0) ->  | C23: =VLOOKUP(A23, 'Discrete Entry'!$Q$2:$Z$801, 4,0) ->  | F23: -999 | H23: -999 | J23: -999 | K23: -999
B24: =VLOOKUP(A24, 'Discrete Entry'!$Q$2:$AL$801, 17,0) ->  | C24: =VLOOKUP(A24, 'Discrete Entry'!$Q$2:$Z$801, 4,0) ->  | F24: -999 | H24: -999 | J24: -999 | K24: -999
B25: =VLOOKUP(A25, 'Discrete Entry'!$Q$2:$AL$801, 17,0) ->  | C25: =VLOOKUP(A25, 'Discrete Entry'!$Q$2:$Z$801, 4,0) ->  | F25: -999 | H25: -999 | J25: -999 | K25: -999
B26: =VLOOKUP(A26, 'Discrete Entry'!$Q$2:$AL$801, 17,0) ->  | C26: =VLOOKUP(A26, 'Discrete Entry'!$Q$2:$Z$801, 4,0) ->  | F26: -999 | H26: -999 | J26: -999 | K26: -999
B27: =VLOOKUP(A27, 'Discrete Entry'!$Q$2:$AL$801, 17,0) ->  | C27: =VLOOKUP(A27, 'Discrete Entry'!$Q$2:$Z$801, 4,0) ->  | F27: -999 | H27: -999 | J27: -999 | K27: -999
B28: =VLOOKUP(A28, 'Discrete Entry'!$Q$2:$AL$801, 17,0) ->  | C28: =VLOOKUP(A28, 'Discrete Entry'!$Q$2:$Z$801, 4,0) ->  | F28: -999 | H28: -999 | J28: -999 | K28: -999
B29: =VLOOKUP(A29, 'Discrete Entry'!$Q$2:$AL$801, 17,0) ->  | C29: =VLOOKUP(A29, 'Discrete Entry'!$Q$2:$Z$801, 4,0) ->  | F29: -999 | H29: -999 | J29: -999 | K29: -999
B30: =VLOOKUP(A30, 'Discrete Entry'!$Q$2:$AL$801, 17,0) ->  | C30: =VLOOKUP(A30, 'Discrete Entry'!$Q$2:$Z$801, 4,0) ->  | F30: -999 | H30: -999 | J30: -999 | K30: -999
B31: =VLOOKUP(A31, 'Discrete Entry'!$Q$2:$AL$801, 17,0) ->  | C31: =VLOOKUP(A31, 'Discrete Entry'!$Q$2:$Z$801, 4,0) ->  | F31: -999 | H31: -999 | J31: -999 | K31: -999
B32: =VLOOKUP(A32, 'Discrete Entry'!$Q$2:$AL$801, 17,0) ->  | C32: =VLOOKUP(A32, 'Discrete Entry'!$Q$2:$Z$801, 4,0) ->  | F32: -999 | H32: -999 | J32: -999 | K32: -999
B33: =VLOOKUP(A33, 'Discrete Entry'!$Q$2:$AL$801, 17,0) ->  | C33: =VLOOKUP(A33, 'Discrete Entry'!$Q$2:$Z$801, 4,0) ->  | F33: -999 | H33: -999 | J33: -999 | K33: -999
B34: =VLOOKUP(A34, 'Discrete Entry'!$Q$2:$AL$801, 17,0) ->  | C34: =VLOOKUP(A34, 'Discrete Entry'!$Q$2:$Z$801, 4,0) ->  | F34: -999 | H34: -999 | J34: -999 | K34: -999
B35: =VLOOKUP(A35, 'Discrete Entry'!$Q$2:$AL$801, 17,0) ->  | C35: =VLOOKUP(A35, 'Discrete Entry'!$Q$2:$Z$801, 4,0) ->  | F35: -999 | H35: -999 | J35: -999 | K35: -999
B36: =VLOOKUP(A36, 'Discrete Entry'!$Q$2:$AL$801, 17,0) ->  | C36: =VLOOKUP(A36, 'Discrete Entry'!$Q$2:$Z$801, 4,0) ->  | F36: -999 | H36: -999 | J36: -999 | K36: -999
B37: =VLOOKUP(A37, 'Discrete Entry'!$Q$2:$AL$801, 17,0) ->  | C37: =VLOOKUP(A37, 'Discrete Entry'!$Q$2:$Z$801, 4,0) ->  | F37: -999 | H37: -999 | J37: -999 | K37: -999
B38: =VLOOKUP(A38, 'Discrete Entry'!$Q$2:$AL$801, 17,0) ->  | C38: =VLOOKUP(A38, 'Discrete Entry'!$Q$2:$Z$801, 4,0) ->  | F38: -999 | H38: -999 | J38: -999 | K38: -999
B39: =VLOOKUP(A39, 'Discrete Entry'!$Q$2:$AL$801, 17,0) ->  | C39: =VLOOKUP(A39, 'Discrete Entry'!$Q$2:$Z$801, 4,0) ->  | F39: -999 | H39: -999 | J39: -999 | K39: -999
B40: =VLOOKUP(A40, 'Discrete Entry'!$Q$2:$AL$801, 17,0) ->  | C40: =VLOOKUP(A40, 'Discrete Entry'!$Q$2:$Z$801, 4,0) ->  | F40: -999 | H40: -999 | J40: -999 | K40: -999
B41: =VLOOKUP(A41, 'Discrete Entry'!$Q$2:$AL$801, 17,0) ->  | C41: =VLOOKUP(A41, 'Discrete Entry'!$Q$2:$Z$801, 4,0) ->  | F41: -999 | H41: -999 | J41: -999 | K41: -999
B42: =VLOOKUP(A42, 'Discrete Entry'!$Q$2:$AL$801, 17,0) ->  | C42: =VLOOKUP(A42, 'Discrete Entry'!$Q$2:$Z$801, 4,0) ->  | F42: -999 | H42: -999 | J42: -999 | K42: -999
B43: =VLOOKUP(A43, 'Discrete Entry'!$Q$2:$AL$801, 17,0) ->  | C43: =VLOOKUP(A43, 'Discrete Entry'!$Q$2:$Z$801, 4,0) ->  | F43: -999 | H43: -999 | J43: -999 | K43: -999
B44: =VLOOKUP(A44, 'Discrete Entry'!$Q$2:$AL$801, 17,0) ->  | C44: =VLOOKUP(A44, 'Discrete Entry'!$Q$2:$Z$801, 4,0) ->  | F44: -999 | H44: -999 | J44: -999 | K44: -999
B45: =VLOOKUP(A45, 'Discrete Entry'!$Q$2:$AL$801, 17,0) ->  | C45: =VLOOKUP(A45, 'Discrete Entry'!$Q$2:$Z$801, 4,0) ->  | F45: -999 | H45: -999 | J45: -999 | K45: -999
B46: =VLOOKUP(A46, 'Discrete Entry'!$Q$2:$AL$801, 17,0) ->  | C46: =VLOOKUP(A46, 'Discrete Entry'!$Q$2:$Z$801, 4,0) ->  | F46: -999 | H46: -999 | J46: -999 | K46: -999
B47: =VLOOKUP(A47, 'Discrete Entry'!$Q$2:$AL$801, 17,0) ->  | C47: =VLOOKUP(A47, 'Discrete Entry'!$Q$2:$Z$801, 4,0) ->  | F47: -999 | H47: -999 | J47: -999 | K47: -999
B48: =VLOOKUP(A48, 'Discrete Entry'!$Q$2:$AL$801, 17,0) ->  | C48: =VLOOKUP(A48, 'Discrete Entry'!$Q$2:$Z$801, 4,0) ->  | F48: -999 | H48: -999 | J48: -999 | K48: -999
B49: =VLOOKUP(A49, 'Discrete Entry'!$Q$2:$AL$801, 17,0) ->  | C49: =VLOOKUP(A49, 'Discrete Entry'!$Q$2:$Z$801, 4,0) ->  | F49: -999 | H49: -999 | J49: -999 | K49: -999
B50: =VLOOKUP(A50, 'Discrete Entry'!$Q$2:$AL$801, 17,0) ->  | C50: =VLOOKUP(A50, 'Discrete Entry'!$Q$2:$Z$801, 4,0) ->  | F50: -999 | H50: -999 | J50: -999 | K50: -999
B51: =VLOOKUP(A51, 'Discrete Entry'!$Q$2:$AL$801, 17,0) ->  | C51: =VLOOKUP(A51, 'Discrete Entry'!$Q$2:$Z$801, 4,0) ->  | F51: -999 | H51: -999 | J51: -999 | K51: -999
B52: =VLOOKUP(A52, 'Discrete Entry'!$Q$2:$AL$801, 17,0) ->  | C52: =VLOOKUP(A52, 'Discrete Entry'!$Q$2:$Z$801, 4,0) ->  | F52: -999 | H52: -999 | J52: -999 | K52: -999
B53: =VLOOKUP(A53, 'Discrete Entry'!$Q$2:$AL$801, 17,0) ->  | C53: =VLOOKUP(A53, 'Discrete Entry'!$Q$2:$Z$801, 4,0) ->  | F53: -999 | H53: -999 | J53: -999 | K53: -999
B54: =VLOOKUP(A54, 'Discrete Entry'!$Q$2:$AL$801, 17,0) ->  | C54: =VLOOKUP(A54, 'Discrete Entry'!$Q$2:$Z$801, 4,0) ->  | F54: -999 | H54: -999 | J54: -999 | K54: -999
B55: =VLOOKUP(A55, 'Discrete Entry'!$Q$2:$AL$801, 17,0) ->  | C55: =VLOOKUP(A55, 'Discrete Entry'!$Q$2:$Z$801, 4,0) ->  | F55: -999 | H55: -999 | J55: -999 | K55: -999
B56: =VLOOKUP(A56, 'Discrete Entry'!$Q$2:$AL$801, 17,0) ->  | C56: =VLOOKUP(A56, 'Discrete Entry'!$Q$2:$Z$801, 4,0) ->  | F56: -999 | H56: -999 | J56: -999 | K56: -999
B57: =VLOOKUP(A57, 'Discrete Entry'!$Q$2:$AL$801, 17,0) ->  | C57: =VLOOKUP(A57, 'Discrete Entry'!$Q$2:$Z$801, 4,0) ->  | F57: -999 | H57: -999 | J57: -999 | K57: -999
B58: =VLOOKUP(A58, 'Discrete Entry'!$Q$2:$AL$801, 17,0) ->  | C58: =VLOOKUP(A58, 'Discrete Entry'!$Q$2:$Z$801, 4,0) ->  | F58: -999 | H58: -999 | J58: -999 | K58: -999
B59: =VLOOKUP(A59, 'Discrete Entry'!$Q$2:$AL$801, 17,0) ->  | C59: =VLOOKUP(A59, 'Discrete Entry'!$Q$2:$Z$801, 4,0) ->  | F59: -999 | H59: -999 | J59: -999 | K59: -999
B60: =VLOOKUP(A60, 'Discrete Entry'!$Q$2:$AL$801, 17,0) ->  | C60: =VLOOKUP(A60, 'Discrete Entry'!$Q$2:$Z$801, 4,0) ->  | F60: -999 | H60: -999 | J60: -999 | K60: -999
B61: =VLOOKUP(A61, 'Discrete Entry'!$Q$2:$AL$801, 17,0) ->  | C61: =VLOOKUP(A61, 'Discrete Entry'!$Q$2:$Z$801, 4,0) ->  | F61: -999 | H61: -999 | J61: -999 | K61: -999
B62: =VLOOKUP(A62, 'Discrete Entry'!$Q$2:$AL$801, 17,0) ->  | C62: =VLOOKUP(A62, 'Discrete Entry'!$Q$2:$Z$801, 4,0) ->  | F62: -999 | H62: -999 | J62: -999 | K62: -999
B63: =VLOOKUP(A63, 'Discrete Entry'!$Q$2:$AL$801, 17,0) ->  | C63: =VLOOKUP(A63, 'Discrete Entry'!$Q$2:$Z$801, 4,0) ->  | F63: -999 | H63: -999 | J63: -999 | K63: -999
B64: =VLOOKUP(A64, 'Discrete Entry'!$Q$2:$AL$801, 17,0) ->  | C64: =VLOOKUP(A64, 'Discrete Entry'!$Q$2:$Z$801, 4,0) ->  | F64: -999 | H64: -999 | J64: -999 | K64: -999
B65: =VLOOKUP(A65, 'Discrete Entry'!$Q$2:$AL$801, 17,0) ->  | C65: =VLOOKUP(A65, 'Discrete Entry'!$Q$2:$Z$801, 4,0) ->  | F65: -999 | H65: -999 | J65: -999 | K65: -999
B66: =VLOOKUP(A66, 'Discrete Entry'!$Q$2:$AL$801, 17,0) ->  | C66: =VLOOKUP(A66, 'Discrete Entry'!$Q$2:$Z$801, 4,0) ->  | F66: =IF(ISNUMBER(D66),((D66-$N$15)/(C66/1000)),-999) -> -999 | H66: =IF(ISNUMBER(E66),((E66-$O$15)/(C66/1000)),-999) -> -999 | J66: =IF(F66=-999,-999,F66/12) -> -999 | K66: =IF(H66=-999,-999,H66/14) -> -999
B67: =VLOOKUP(A67, 'Discrete Entry'!$Q$2:$AL$801, 17,0) ->  | C67: =VLOOKUP(A67, 'Discrete Entry'!$Q$2:$Z$801, 4,0) ->  | F67: -999 | H67: -999 | J67: -999 | K67: -999
B68: =VLOOKUP(A68, 'Discrete Entry'!$Q$2:$AL$801, 17,0) ->  | C68: =VLOOKUP(A68, 'Discrete Entry'!$Q$2:$Z$801, 4,0) ->  | F68: -999 | H68: -999 | J68: -999 | K68: -999
B69: =VLOOKUP(A69, 'Discrete Entry'!$Q$2:$AL$801, 17,0) ->  | C69: =VLOOKUP(A69, 'Discrete Entry'!$Q$2:$Z$801, 4,0) ->  | F69: -999 | H69: -999 | J69: -999 | K69: -999
B70: =VLOOKUP(A70, 'Discrete Entry'!$Q$2:$AL$801, 17,0) ->  | C70: =VLOOKUP(A70, 'Discrete Entry'!$Q$2:$Z$801, 4,0) ->  | F70: -999 | H70: -999 | J70: -999 | K70: -999
B71: =VLOOKUP(A71, 'Discrete Entry'!$Q$2:$AL$801, 17,0) ->  | C71: =VLOOKUP(A71, 'Discrete Entry'!$Q$2:$Z$801, 4,0) ->  | F71: -999 | H71: -999 | J71: -999 | K71: -999
B72: =VLOOKUP(A72, 'Discrete Entry'!$Q$2:$AL$801, 17,0) ->  | C72: =VLOOKUP(A72, 'Discrete Entry'!$Q$2:$Z$801, 4,0) ->  | F72: -999 | H72: -999 | J72: -999 | K72: -999
B73: =VLOOKUP(A73, 'Discrete Entry'!$Q$2:$AL$801, 17,0) ->  | C73: =VLOOKUP(A73, 'Discrete Entry'!$Q$2:$Z$801, 4,0) ->  | F73: -999 | H73: -999 | J73: -999 | K73: -999
B74: =VLOOKUP(A74, 'Discrete Entry'!$Q$2:$AL$801, 17,0) ->  | C74: =VLOOKUP(A74, 'Discrete Entry'!$Q$2:$Z$801, 4,0) ->  | F74: -999 | H74: -999 | J74: -999 | K74: -999
B75: =VLOOKUP(A75, 'Discrete Entry'!$Q$2:$AL$801, 17,0) ->  | C75: =VLOOKUP(A75, 'Discrete Entry'!$Q$2:$Z$801, 4,0) ->  | F75: -999 | H75: -999 | J75: -999 | K75: -999
B76: =VLOOKUP(A76, 'Discrete Entry'!$Q$2:$AL$801, 17,0) ->  | C76: =VLOOKUP(A76, 'Discrete Entry'!$Q$2:$Z$801, 4,0) ->  | F76: -999 | H76: -999 | J76: -999 | K76: -999
B77: =VLOOKUP(A77, 'Discrete Entry'!$Q$2:$AL$801, 17,0) ->  | C77: =VLOOKUP(A77, 'Discrete Entry'!$Q$2:$Z$801, 4,0) ->  | F77: -999 | H77: -999 | J77: -999 | K77: -999
B78: =VLOOKUP(A78, 'Discrete Entry'!$Q$2:$AL$801, 17,0) ->  | C78: =VLOOKUP(A78, 'Discrete Entry'!$Q$2:$Z$801, 4,0) ->  | F78: -999 | H78: -999 | J78: -999 | K78: -999
B79: =VLOOKUP(A79, 'Discrete Entry'!$Q$2:$AL$801, 17,0) ->  | C79: =VLOOKUP(A79, 'Discrete Entry'!$Q$2:$Z$801, 4,0) ->  | F79: -999 | H79: -999 | J79: -999 | K79: -999
B80: =VLOOKUP(A80, 'Discrete Entry'!$Q$2:$AL$801, 17,0) ->  | C80: =VLOOKUP(A80, 'Discrete Entry'!$Q$2:$Z$801, 4,0) ->  | F80: -999 | H80: -999 | J80: -999 | K80: -999
B81: =VLOOKUP(A81, 'Discrete Entry'!$Q$2:$AL$801, 17,0) ->  | C81: =VLOOKUP(A81, 'Discrete Entry'!$Q$2:$Z$801, 4,0) ->  | F81: -999 | H81: -999 | J81: -999 | K81: -999
B82: =VLOOKUP(A82, 'Discrete Entry'!$Q$2:$AL$801, 17,0) ->  | C82: =VLOOKUP(A82, 'Discrete Entry'!$Q$2:$Z$801, 4,0) ->  | F82: -999 | H82: -999 | J82: -999 | K82: -999
B83: =VLOOKUP(A83, 'Discrete Entry'!$Q$2:$AL$801, 17,0) ->  | C83: =VLOOKUP(A83, 'Discrete Entry'!$Q$2:$Z$801, 4,0) ->  | F83: -999 | H83: -999 | J83: -999 | K83: -999
B84: =VLOOKUP(A84, 'Discrete Entry'!$Q$2:$AL$801, 17,0) ->  | C84: =VLOOKUP(A84, 'Discrete Entry'!$Q$2:$Z$801, 4,0) ->  | F84: -999 | H84: -999 | J84: -999 | K84: -999
B85: =VLOOKUP(A85, 'Discrete Entry'!$Q$2:$AL$801, 17,0) ->  | C85: =VLOOKUP(A85, 'Discrete Entry'!$Q$2:$Z$801, 4,0) ->  | F85: -999 | H85: -999 | J85: -999 | K85: -999
B86: =VLOOKUP(A86, 'Discrete Entry'!$Q$2:$AL$801, 17,0) ->  | C86: =VLOOKUP(A86, 'Discrete Entry'!$Q$2:$Z$801, 4,0) ->  | F86: -999 | H86: -999 | J86: -999 | K86: -999
B87: =VLOOKUP(A87, 'Discrete Entry'!$Q$2:$AL$801, 17,0) ->  | C87: =VLOOKUP(A87, 'Discrete Entry'!$Q$2:$Z$801, 4,0) ->  | F87: -999 | H87: -999 | J87: -999 | K87: -999
B88: =VLOOKUP(A88, 'Discrete Entry'!$Q$2:$AL$801, 17,0) ->  | C88: =VLOOKUP(A88, 'Discrete Entry'!$Q$2:$Z$801, 4,0) ->  | F88: -999 | H88: -999 | J88: -999 | K88: -999
B89: =VLOOKUP(A89, 'Discrete Entry'!$Q$2:$AL$801, 17,0) ->  | C89: =VLOOKUP(A89, 'Discrete Entry'!$Q$2:$Z$801, 4,0) ->  | F89: -999 | H89: -999 | J89: -999 | K89: -999
B90: =VLOOKUP(A90, 'Discrete Entry'!$Q$2:$AL$801, 17,0) ->  | C90: =VLOOKUP(A90, 'Discrete Entry'!$Q$2:$Z$801, 4,0) ->  | F90: -999 | H90: -999 | J90: -999 | K90: -999
B91: =VLOOKUP(A91, 'Discrete Entry'!$Q$2:$AL$801, 17,0) ->  | C91: =VLOOKUP(A91, 'Discrete Entry'!$Q$2:$Z$801, 4,0) ->  | F91: -999 | H91: -999 | J91: -999 | K91: -999
B92: =VLOOKUP(A92, 'Discrete Entry'!$Q$2:$AL$801, 17,0) ->  | C92: =VLOOKUP(A92, 'Discrete Entry'!$Q$2:$Z$801, 4,0) ->  | F92: -999 | H92: -999 | J92: -999 | K92: -999
B93: =VLOOKUP(A93, 'Discrete Entry'!$Q$2:$AL$801, 17,0) ->  | C93: =VLOOKUP(A93, 'Discrete Entry'!$Q$2:$Z$801, 4,0) ->  | F93: -999 | H93: -999 | J93: -999 | K93: -999
B94: =VLOOKUP(A94, 'Discrete Entry'!$Q$2:$AL$801, 17,0) ->  | C94: =VLOOKUP(A94, 'Discrete Entry'!$Q$2:$Z$801, 4,0) ->  | F94: -999 | H94: -999 | J94: -999 | K94: -999
B95: =VLOOKUP(A95, 'Discrete Entry'!$Q$2:$AL$801, 17,0) ->  | C95: =VLOOKUP(A95, 'Discrete Entry'!$Q$2:$Z$801, 4,0) ->  | F95: -999 | H95: -999 | J95: -999 | K95: -999
B96: =VLOOKUP(A96, 'Discrete Entry'!$Q$2:$AL$801, 17,0) ->  | C96: =VLOOKUP(A96, 'Discrete Entry'!$Q$2:$Z$801, 4,0) ->  | F96: -999 | H96: -999 | J96: -999 | K96: -999
B97: =VLOOKUP(A97, 'Discrete Entry'!$Q$2:$AL$801, 17,0) ->  | C97: =VLOOKUP(A97, 'Discrete Entry'!$Q$2:$Z$801, 4,0) ->  | F97: -999 | H97: -999 | J97: -999 | K97: -999
B98: =VLOOKUP(A98, 'Discrete Entry'!$Q$2:$AL$801, 17,0) ->  | C98: =VLOOKUP(A98, 'Discrete Entry'!$Q$2:$Z$801, 4,0) ->  | F98: -999 | H98: -999 | J98: -999 | K98: -999
B99: =VLOOKUP(A99, 'Discrete Entry'!$Q$2:$AL$801, 17,0) ->  | C99: =VLOOKUP(A99, 'Discrete Entry'!$Q$2:$Z$801, 4,0) ->  | F99: -999 | H99: -999 | J99: -999 | K99: -999
B100: =VLOOKUP(A100, 'Discrete Entry'!$Q$2:$AL$801, 17,0) ->  | C100: =VLOOKUP(A100, 'Discrete Entry'!$Q$2:$Z$801, 4,0) ->  | F100: -999 | H100: -999 | J100: -999 | K100: -999
B101: =VLOOKUP(A101, 'Discrete Entry'!$Q$2:$AL$801, 17,0) ->  | C101: =VLOOKUP(A101, 'Discrete Entry'!$Q$2:$Z$801, 4,0) ->  | F101: -999 | H101: -999 | J101: -999 | K101: -999
B102: =VLOOKUP(A102, 'Discrete Entry'!$Q$2:$AL$801, 17,0) ->  | C102: =VLOOKUP(A102, 'Discrete Entry'!$Q$2:$Z$801, 4,0) ->  | F102: -999 | H102: -999 | J102: -999 | K102: -999
B103: =VLOOKUP(A103, 'Discrete Entry'!$Q$2:$AL$801, 17,0) ->  | C103: =VLOOKUP(A103, 'Discrete Entry'!$Q$2:$Z$801, 4,0) ->  | F103: -999 | H103: -999 | J103: -999 | K103: -999
B104: =VLOOKUP(A104, 'Discrete Entry'!$Q$2:$AL$801, 17,0) ->  | C104: =VLOOKUP(A104, 'Discrete Entry'!$Q$2:$Z$801, 4,0) ->  | F104: -999 | H104: -999 | J104: -999 | K104: -999
B105: =VLOOKUP(A105, 'Discrete Entry'!$Q$2:$AL$801, 17,0) ->  | C105: =VLOOKUP(A105, 'Discrete Entry'!$Q$2:$Z$801, 4,0) ->  | F105: -999 | H105: -999 | J105: -999 | K105: -999
B106: =VLOOKUP(A106, 'Discrete Entry'!$Q$2:$AL$801, 17,0) ->  | C106: =VLOOKUP(A106, 'Discrete Entry'!$Q$2:$Z$801, 4,0) ->  | F106: -999 | H106: -999 | J106: -999 | K106: -999
B107: =VLOOKUP(A107, 'Discrete Entry'!$Q$2:$AL$801, 17,0) ->  | C107: =VLOOKUP(A107, 'Discrete Entry'!$Q$2:$Z$801, 4,0) ->  | F107: -999 | H107: -999 | J107: -999 | K107: -999
B108: =VLOOKUP(A108, 'Discrete Entry'!$Q$2:$AL$801, 17,0) ->  | C108: =VLOOKUP(A108, 'Discrete Entry'!$Q$2:$Z$801, 4,0) ->  | F108: -999 | H108: -999 | J108: -999 | K108: -999
B109: =VLOOKUP(A109, 'Discrete Entry'!$Q$2:$AL$801, 17,0) ->  | C109: =VLOOKUP(A109, 'Discrete Entry'!$Q$2:$Z$801, 4,0) ->  | F109: -999 | H109: -999 | J109: -999 | K109: -999
B110: =VLOOKUP(A110, 'Discrete Entry'!$Q$2:$AL$801, 17,0) ->  | C110: =VLOOKUP(A110, 'Discrete Entry'!$Q$2:$Z$801, 4,0) ->  | F110: -999 | H110: -999 | J110: -999 | K110: -999
B111: =VLOOKUP(A111, 'Discrete Entry'!$Q$2:$AL$801, 17,0) ->  | C111: =VLOOKUP(A111, 'Discrete Entry'!$Q$2:$Z$801, 4,0) ->  | F111: -999 | H111: -999 | J111: -999 | K111: -999
B112: =VLOOKUP(A112, 'Discrete Entry'!$Q$2:$AL$801, 17,0) ->  | C112: =VLOOKUP(A112, 'Discrete Entry'!$Q$2:$Z$801, 4,0) ->  | F112: -999 | H112: -999 | J112: -999 | K112: -999
B113: =VLOOKUP(A113, 'Discrete Entry'!$Q$2:$AL$801, 17,0) ->  | C113: =VLOOKUP(A113, 'Discrete Entry'!$Q$2:$Z$801, 4,0) ->  | F113: -999 | H113: -999 | J113: -999 | K113: -999
B114: =VLOOKUP(A114, 'Discrete Entry'!$Q$2:$AL$801, 17,0) ->  | C114: =VLOOKUP(A114, 'Discrete Entry'!$Q$2:$Z$801, 4,0) ->  | F114: -999 | H114: -999 | J114: -999 | K114: -999
B115: =VLOOKUP(A115, 'Discrete Entry'!$Q$2:$AL$801, 17,0) ->  | C115: =VLOOKUP(A115, 'Discrete Entry'!$Q$2:$Z$801, 4,0) ->  | F115: -999 | H115: -999 | J115: -999 | K115: -999
B116: =VLOOKUP(A116, 'Discrete Entry'!$Q$2:$AL$801, 17,0) ->  | C116: =VLOOKUP(A116, 'Discrete Entry'!$Q$2:$Z$801, 4,0) ->  | F116: -999 | H116: -999 | J116: -999 | K116: -999
B117: =VLOOKUP(A117, 'Discrete Entry'!$Q$2:$AL$801, 17,0) ->  | C117: =VLOOKUP(A117, 'Discrete Entry'!$Q$2:$Z$801, 4,0) ->  | F117: -999 | H117: -999 | J117: -999 | K117: -999
B118: =VLOOKUP(A118, 'Discrete Entry'!$Q$2:$AL$801, 17,0) ->  | C118: =VLOOKUP(A118, 'Discrete Entry'!$Q$2:$Z$801, 4,0) ->  | F118: -999 | H118: -999 | J118: -999 | K118: -999
B119: =VLOOKUP(A119, 'Discrete Entry'!$Q$2:$AL$801, 17,0) ->  | C119: =VLOOKUP(A119, 'Discrete Entry'!$Q$2:$Z$801, 4,0) ->  | F119: -999 | H119: -999 | J119: -999 | K119: -999
B120: =VLOOKUP(A120, 'Discrete Entry'!$Q$2:$AL$801, 17,0) ->  | C120: =VLOOKUP(A120, 'Discrete Entry'!$Q$2:$Z$801, 4,0) ->  | F120: -999 | H120: -999 | J120: -999 | K120: -999
B121: =VLOOKUP(A121, 'Discrete Entry'!$Q$2:$AL$801, 17,0) ->  | C121: =VLOOKUP(A121, 'Discrete Entry'!$Q$2:$Z$801, 4,0) ->  | F121: -999 | H121: -999 | J121: -999 | K121: -999
B122: =VLOOKUP(A122, 'Discrete Entry'!$Q$2:$AL$801, 17,0) ->  | C122: =VLOOKUP(A122, 'Discrete Entry'!$Q$2:$Z$801, 4,0) ->  | F122: -999 | H122: -999 | J122: -999 | K122: -999
B123: =VLOOKUP(A123, 'Discrete Entry'!$Q$2:$AL$801, 17,0) ->  | C123: =VLOOKUP(A123, 'Discrete Entry'!$Q$2:$Z$801, 4,0) ->  | F123: -999 | H123: -999 | J123: -999 | K123: -999
B124: =VLOOKUP(A124, 'Discrete Entry'!$Q$2:$AL$801, 17,0) ->  | C124: =VLOOKUP(A124, 'Discrete Entry'!$Q$2:$Z$801, 4,0) ->  | F124: -999 | H124: -999 | J124: -999 | K124: -999
B125: =VLOOKUP(A125, 'Discrete Entry'!$Q$2:$AL$801, 17,0) ->  | C125: =VLOOKUP(A125, 'Discrete Entry'!$Q$2:$Z$801, 4,0) ->  | F125: -999 | H125: -999 | J125: -999 | K125: -999
B126: =VLOOKUP(A126, 'Discrete Entry'!$Q$2:$AL$801, 17,0) ->  | C126: =VLOOKUP(A126, 'Discrete Entry'!$Q$2:$Z$801, 4,0) ->  | F126: -999 | H126: -999 | J126: -999 | K126: -999
B127: =VLOOKUP(A127, 'Discrete Entry'!$Q$2:$AL$801, 17,0) ->  | C127: =VLOOKUP(A127, 'Discrete Entry'!$Q$2:$Z$801, 4,0) ->  | F127: -999 | H127: -999 | J127: -999 | K127: -999
B128: =VLOOKUP(A128, 'Discrete Entry'!$Q$2:$AL$801, 17,0) ->  | C128: =VLOOKUP(A128, 'Discrete Entry'!$Q$2:$Z$801, 4,0) ->  | F128: -999 | H128: -999 | J128: -999 | K128: -999
B129: =VLOOKUP(A129, 'Discrete Entry'!$Q$2:$AL$801, 17,0) ->  | C129: =VLOOKUP(A129, 'Discrete Entry'!$Q$2:$Z$801, 4,0) ->  | F129: -999 | H129: -999 | J129: -999 | K129: -999
B130: =VLOOKUP(A130, 'Discrete Entry'!$Q$2:$AL$801, 17,0) ->  | C130: =VLOOKUP(A130, 'Discrete Entry'!$Q$2:$Z$801, 4,0) ->  | F130: =IF(ISNUMBER(D130),((D130-$N$15)/(C130/1000)),-999) -> -999 | H130: =IF(ISNUMBER(E130),((E130-$O$15)/(C130/1000)),-999) -> -999 | J130: =IF(F130=-999,-999,F130/12) -> -999 | K130: =IF(H130=-999,-999,H130/14) -> -999
B131: =VLOOKUP(A131, 'Discrete Entry'!$Q$2:$AL$801, 17,0) ->  | C131: =VLOOKUP(A131, 'Discrete Entry'!$Q$2:$Z$801, 4,0) ->  | F131: -999 | H131: -999 | J131: -999 | K131: -999
B132: =VLOOKUP(A132, 'Discrete Entry'!$Q$2:$AL$801, 17,0) ->  | C132: =VLOOKUP(A132, 'Discrete Entry'!$Q$2:$Z$801, 4,0) ->  | F132: -999 | H132: -999 | J132: -999 | K132: -999
B133: =VLOOKUP(A133, 'Discrete Entry'!$Q$2:$AL$801, 17,0) ->  | C133: =VLOOKUP(A133, 'Discrete Entry'!$Q$2:$Z$801, 4,0) ->  | F133: -999 | H133: -999 | J133: -999 | K133: -999
B134: =VLOOKUP(A134, 'Discrete Entry'!$Q$2:$AL$801, 17,0) ->  | C134: =VLOOKUP(A134, 'Discrete Entry'!$Q$2:$Z$801, 4,0) ->  | F134: -999 | H134: -999 | J134: -999 | K134: -999
B135: =VLOOKUP(A135, 'Discrete Entry'!$Q$2:$AL$801, 17,0) ->  | C135: =VLOOKUP(A135, 'Discrete Entry'!$Q$2:$Z$801, 4,0) ->  | F135: -999 | H135: -999 | J135: -999 | K135: -999
B136: =VLOOKUP(A136, 'Discrete Entry'!$Q$2:$AL$801, 17,0) ->  | C136: =VLOOKUP(A136, 'Discrete Entry'!$Q$2:$Z$801, 4,0) ->  | F136: -999 | H136: -999 | J136: -999 | K136: -999
B137: =VLOOKUP(A137, 'Discrete Entry'!$Q$2:$AL$801, 17,0) ->  | C137: =VLOOKUP(A137, 'Discrete Entry'!$Q$2:$Z$801, 4,0) ->  | F137: -999 | H137: -999 | J137: -999 | K137: -999
B138: =VLOOKUP(A138, 'Discrete Entry'!$Q$2:$AL$801, 17,0) ->  | C138: =VLOOKUP(A138, 'Discrete Entry'!$Q$2:$Z$801, 4,0) ->  | F138: -999 | H138: -999 | J138: -999 | K138: -999
B139: =VLOOKUP(A139, 'Discrete Entry'!$Q$2:$AL$801, 17,0) ->  | C139: =VLOOKUP(A139, 'Discrete Entry'!$Q$2:$Z$801, 4,0) ->  | F139: -999 | H139: -999 | J139: -999 | K139: -999
B140: =VLOOKUP(A140, 'Discrete Entry'!$Q$2:$AL$801, 17,0) ->  | C140: =VLOOKUP(A140, 'Discrete Entry'!$Q$2:$Z$801, 4,0) ->  | F140: -999 | H140: -999 | J140: -999 | K140: -999
B141: =VLOOKUP(A141, 'Discrete Entry'!$Q$2:$AL$801, 17,0) ->  | C141: =VLOOKUP(A141, 'Discrete Entry'!$Q$2:$Z$801, 4,0) ->  | F141: -999 | H141: -999 | J141: -999 | K141: -999
B142: =VLOOKUP(A142, 'Discrete Entry'!$Q$2:$AL$801, 17,0) ->  | C142: =VLOOKUP(A142, 'Discrete Entry'!$Q$2:$Z$801, 4,0) ->  | F142: -999 | H142: -999 | J142: -999 | K142: -999
B143: =VLOOKUP(A143, 'Discrete Entry'!$Q$2:$AL$801, 17,0) ->  | C143: =VLOOKUP(A143, 'Discrete Entry'!$Q$2:$Z$801, 4,0) ->  | F143: -999 | H143: -999 | J143: -999 | K143: -999
B144: =VLOOKUP(A144, 'Discrete Entry'!$Q$2:$AL$801, 17,0) ->  | C144: =VLOOKUP(A144, 'Discrete Entry'!$Q$2:$Z$801, 4,0) ->  | F144: -999 | H144: -999 | J144: -999 | K144: -999
B145: =VLOOKUP(A145, 'Discrete Entry'!$Q$2:$AL$801, 17,0) ->  | C145: =VLOOKUP(A145, 'Discrete Entry'!$Q$2:$Z$801, 4,0) ->  | F145: -999 | H145: -999 | J145: -999 | K145: -999
B146: =VLOOKUP(A146, 'Discrete Entry'!$Q$2:$AL$801, 17,0) ->  | C146: =VLOOKUP(A146, 'Discrete Entry'!$Q$2:$Z$801, 4,0) ->  | F146: -999 | H146: -999 | J146: -999 | K146: -999
B147: =VLOOKUP(A147, 'Discrete Entry'!$Q$2:$AL$801, 17,0) ->  | C147: =VLOOKUP(A147, 'Discrete Entry'!$Q$2:$Z$801, 4,0) ->  | F147: -999 | H147: -999 | J147: -999 | K147: -999
B148: =VLOOKUP(A148, 'Discrete Entry'!$Q$2:$AL$801, 17,0) ->  | C148: =VLOOKUP(A148, 'Discrete Entry'!$Q$2:$Z$801, 4,0) ->  | F148: -999 | H148: -999 | J148: -999 | K148: -999
B149: =VLOOKUP(A149, 'Discrete Entry'!$Q$2:$AL$801, 17,0) ->  | C149: =VLOOKUP(A149, 'Discrete Entry'!$Q$2:$Z$801, 4,0) ->  | F149: -999 | H149: -999 | J149: -999 | K149: -999
B150: =VLOOKUP(A150, 'Discrete Entry'!$Q$2:$AL$801, 17,0) ->  | C150: =VLOOKUP(A150, 'Discrete Entry'!$Q$2:$Z$801, 4,0) ->  | F150: -999 | H150: -999 | J150: -999 | K150: -999
B151: =VLOOKUP(A151, 'Discrete Entry'!$Q$2:$AL$801, 17,0) ->  | C151: =VLOOKUP(A151, 'Discrete Entry'!$Q$2:$Z$801, 4,0) ->  | F151: -999 | H151: -999 | J151: -999 | K151: -999
B152: =VLOOKUP(A152, 'Discrete Entry'!$Q$2:$AL$801, 17,0) ->  | C152: =VLOOKUP(A152, 'Discrete Entry'!$Q$2:$Z$801, 4,0) ->  | F152: -999 | H152: -999 | J152: -999 | K152: -999
B153: =VLOOKUP(A153, 'Discrete Entry'!$Q$2:$AL$801, 17,0) ->  | C153: =VLOOKUP(A153, 'Discrete Entry'!$Q$2:$Z$801, 4,0) ->  | F153: -999 | H153: -999 | J153: -999 | K153: -999
B154: =VLOOKUP(A154, 'Discrete Entry'!$Q$2:$AL$801, 17,0) ->  | C154: =VLOOKUP(A154, 'Discrete Entry'!$Q$2:$Z$801, 4,0) ->  | F154: -999 | H154: -999 | J154: -999 | K154: -999
B155: =VLOOKUP(A155, 'Discrete Entry'!$Q$2:$AL$801, 17,0) ->  | C155: =VLOOKUP(A155, 'Discrete Entry'!$Q$2:$Z$801, 4,0) ->  | F155: -999 | H155: -999 | J155: -999 | K155: -999
B156: =VLOOKUP(A156, 'Discrete Entry'!$Q$2:$AL$801, 17,0) ->  | C156: =VLOOKUP(A156, 'Discrete Entry'!$Q$2:$Z$801, 4,0) ->  | F156: -999 | H156: -999 | J156: -999 | K156: -999
B157: =VLOOKUP(A157, 'Discrete Entry'!$Q$2:$AL$801, 17,0) ->  | C157: =VLOOKUP(A157, 'Discrete Entry'!$Q$2:$Z$801, 4,0) ->  | F157: -999 | H157: -999 | J157: -999 | K157: -999
B158: =VLOOKUP(A158, 'Discrete Entry'!$Q$2:$AL$801, 17,0) ->  | C158: =VLOOKUP(A158, 'Discrete Entry'!$Q$2:$Z$801, 4,0) ->  | F158: -999 | H158: -999 | J158: -999 | K158: -999
B159: =VLOOKUP(A159, 'Discrete Entry'!$Q$2:$AL$801, 17,0) ->  | C159: =VLOOKUP(A159, 'Discrete Entry'!$Q$2:$Z$801, 4,0) ->  | F159: -999 | H159: -999 | J159: -999 | K159: -999
B160: =VLOOKUP(A160, 'Discrete Entry'!$Q$2:$AL$801, 17,0) ->  | C160: =VLOOKUP(A160, 'Discrete Entry'!$Q$2:$Z$801, 4,0) ->  | F160: -999 | H160: -999 | J160: -999 | K160: -999
B161: =VLOOKUP(A161, 'Discrete Entry'!$Q$2:$AL$801, 17,0) ->  | C161: =VLOOKUP(A161, 'Discrete Entry'!$Q$2:$Z$801, 4,0) ->  | F161: -999 | H161: -999 | J161: -999 | K161: -999
B162: =VLOOKUP(A162, 'Discrete Entry'!$Q$2:$AL$801, 17,0) ->  | C162: =VLOOKUP(A162, 'Discrete Entry'!$Q$2:$Z$801, 4,0) ->  | F162: -999 | H162: -999 | J162: -999 | K162: -999
B163: =VLOOKUP(A163, 'Discrete Entry'!$Q$2:$AL$801, 17,0) ->  | C163: =VLOOKUP(A163, 'Discrete Entry'!$Q$2:$Z$801, 4,0) ->  | F163: -999 | H163: -999 | J163: -999 | K163: -999
B164: =VLOOKUP(A164, 'Discrete Entry'!$Q$2:$AL$801, 17,0) ->  | C164: =VLOOKUP(A164, 'Discrete Entry'!$Q$2:$Z$801, 4,0) ->  | F164: -999 | H164: -999 | J164: -999 | K164: -999
B165: =VLOOKUP(A165, 'Discrete Entry'!$Q$2:$AL$801, 17,0) ->  | C165: =VLOOKUP(A165, 'Discrete Entry'!$Q$2:$Z$801, 4,0) ->  | F165: -999 | H165: -999 | J165: -999 | K165: -999
B166: =VLOOKUP(A166, 'Discrete Entry'!$Q$2:$AL$801, 17,0) ->  | C166: =VLOOKUP(A166, 'Discrete Entry'!$Q$2:$Z$801, 4,0) ->  | F166: -999 | H166: -999 | J166: -999 | K166: -999
B167: =VLOOKUP(A167, 'Discrete Entry'!$Q$2:$AL$801, 17,0) ->  | C167: =VLOOKUP(A167, 'Discrete Entry'!$Q$2:$Z$801, 4,0) ->  | F167: -999 | H167: -999 | J167: -999 | K167: -999
B168: =VLOOKUP(A168, 'Discrete Entry'!$Q$2:$AL$801, 17,0) ->  | C168: =VLOOKUP(A168, 'Discrete Entry'!$Q$2:$Z$801, 4,0) ->  | F168: -999 | H168: -999 | J168: -999 | K168: -999
B169: =VLOOKUP(A169, 'Discrete Entry'!$Q$2:$AL$801, 17,0) ->  | C169: =VLOOKUP(A169, 'Discrete Entry'!$Q$2:$Z$801, 4,0) ->  | F169: -999 | H169: -999 | J169: -999 | K169: -999
B170: =VLOOKUP(A170, 'Discrete Entry'!$Q$2:$AL$801, 17,0) ->  | C170: =VLOOKUP(A170, 'Discrete Entry'!$Q$2:$Z$801, 4,0) ->  | F170: -999 | H170: -999 | J170: -999 | K170: -999
B171: =VLOOKUP(A171, 'Discrete Entry'!$Q$2:$AL$801, 17,0) ->  | C171: =VLOOKUP(A171, 'Discrete Entry'!$Q$2:$Z$801, 4,0) ->  | F171: -999 | H171: -999 | J171: -999 | K171: -999
B172: =VLOOKUP(A172, 'Discrete Entry'!$Q$2:$AL$801, 17,0) ->  | C172: =VLOOKUP(A172, 'Discrete Entry'!$Q$2:$Z$801, 4,0) ->  | F172: -999 | H172: -999 | J172: -999 | K172: -999
B173: =VLOOKUP(A173, 'Discrete Entry'!$Q$2:$AL$801, 17,0) ->  | C173: =VLOOKUP(A173, 'Discrete Entry'!$Q$2:$Z$801, 4,0) ->  | F173: -999 | H173: -999 | J173: -999 | K173: -999
B174: =VLOOKUP(A174, 'Discrete Entry'!$Q$2:$AL$801, 17,0) ->  | C174: =VLOOKUP(A174, 'Discrete Entry'!$Q$2:$Z$801, 4,0) ->  | F174: -999 | H174: -999 | J174: -999 | K174: -999
B175: =VLOOKUP(A175, 'Discrete Entry'!$Q$2:$AL$801, 17,0) ->  | C175: =VLOOKUP(A175, 'Discrete Entry'!$Q$2:$Z$801, 4,0) ->  | F175: -999 | H175: -999 | J175: -999 | K175: -999
B176: =VLOOKUP(A176, 'Discrete Entry'!$Q$2:$AL$801, 17,0) ->  | C176: =VLOOKUP(A176, 'Discrete Entry'!$Q$2:$Z$801, 4,0) ->  | F176: -999 | H176: -999 | J176: -999 | K176: -999
B177: =VLOOKUP(A177, 'Discrete Entry'!$Q$2:$AL$801, 17,0) ->  | C177: =VLOOKUP(A177, 'Discrete Entry'!$Q$2:$Z$801, 4,0) ->  | F177: -999 | H177: -999 | J177: -999 | K177: -999
B178: =VLOOKUP(A178, 'Discrete Entry'!$Q$2:$AL$801, 17,0) ->  | C178: =VLOOKUP(A178, 'Discrete Entry'!$Q$2:$Z$801, 4,0) ->  | F178: -999 | H178: -999 | J178: -999 | K178: -999
B179: =VLOOKUP(A179, 'Discrete Entry'!$Q$2:$AL$801, 17,0) ->  | C179: =VLOOKUP(A179, 'Discrete Entry'!$Q$2:$Z$801, 4,0) ->  | F179: -999 | H179: -999 | J179: -999 | K179: -999
B180: =VLOOKUP(A180, 'Discrete Entry'!$Q$2:$AL$801, 17,0) ->  | C180: =VLOOKUP(A180, 'Discrete Entry'!$Q$2:$Z$801, 4,0) ->  | F180: -999 | H180: -999 | J180: -999 | K180: -999
B181: =VLOOKUP(A181, 'Discrete Entry'!$Q$2:$AL$801, 17,0) ->  | C181: =VLOOKUP(A181, 'Discrete Entry'!$Q$2:$Z$801, 4,0) ->  | F181: -999 | H181: -999 | J181: -999 | K181: -999
B182: =VLOOKUP(A182, 'Discrete Entry'!$Q$2:$AL$801, 17,0) ->  | C182: =VLOOKUP(A182, 'Discrete Entry'!$Q$2:$Z$801, 4,0) ->  | F182: -999 | H182: -999 | J182: -999 | K182: -999
B183: =VLOOKUP(A183, 'Discrete Entry'!$Q$2:$AL$801, 17,0) ->  | C183: =VLOOKUP(A183, 'Discrete Entry'!$Q$2:$Z$801, 4,0) ->  | F183: -999 | H183: -999 | J183: -999 | K183: -999
B184: =VLOOKUP(A184, 'Discrete Entry'!$Q$2:$AL$801, 17,0) ->  | C184: =VLOOKUP(A184, 'Discrete Entry'!$Q$2:$Z$801, 4,0) ->  | F184: -999 | H184: -999 | J184: -999 | K184: -999
B185: =VLOOKUP(A185, 'Discrete Entry'!$Q$2:$AL$801, 17,0) ->  | C185: =VLOOKUP(A185, 'Discrete Entry'!$Q$2:$Z$801, 4,0) ->  | F185: -999 | H185: -999 | J185: -999 | K185: -999
B186: =VLOOKUP(A186, 'Discrete Entry'!$Q$2:$AL$801, 17,0) ->  | C186: =VLOOKUP(A186, 'Discrete Entry'!$Q$2:$Z$801, 4,0) ->  | F186: -999 | H186: -999 | J186: -999 | K186: -999
B187: =VLOOKUP(A187, 'Discrete Entry'!$Q$2:$AL$801, 17,0) ->  | C187: =VLOOKUP(A187, 'Discrete Entry'!$Q$2:$Z$801, 4,0) ->  | F187: -999 | H187: -999 | J187: -999 | K187: -999
B188: =VLOOKUP(A188, 'Discrete Entry'!$Q$2:$AL$801, 17,0) ->  | C188: =VLOOKUP(A188, 'Discrete Entry'!$Q$2:$Z$801, 4,0) ->  | F188: -999 | H188: -999 | J188: -999 | K188: -999
B189: =VLOOKUP(A189, 'Discrete Entry'!$Q$2:$AL$801, 17,0) ->  | C189: =VLOOKUP(A189, 'Discrete Entry'!$Q$2:$Z$801, 4,0) ->  | F189: -999 | H189: -999 | J189: -999 | K189: -999
B190: =VLOOKUP(A190, 'Discrete Entry'!$Q$2:$AL$801, 17,0) ->  | C190: =VLOOKUP(A190, 'Discrete Entry'!$Q$2:$Z$801, 4,0) ->  | F190: -999 | H190: -999 | J190: -999 | K190: -999
B191: =VLOOKUP(A191, 'Discrete Entry'!$Q$2:$AL$801, 17,0) ->  | C191: =VLOOKUP(A191, 'Discrete Entry'!$Q$2:$Z$801, 4,0) ->  | F191: -999 | H191: -999 | J191: -999 | K191: -999
B192: =VLOOKUP(A192, 'Discrete Entry'!$Q$2:$AL$801, 17,0) ->  | C192: =VLOOKUP(A192, 'Discrete Entry'!$Q$2:$Z$801, 4,0) ->  | F192: -999 | H192: -999 | J192: -999 | K192: -999
B193: =VLOOKUP(A193, 'Discrete Entry'!$Q$2:$AL$801, 17,0) ->  | C193: =VLOOKUP(A193, 'Discrete Entry'!$Q$2:$Z$801, 4,0) ->  | F193: -999 | H193: -999 | J193: -999 | K193: -999
B194: =VLOOKUP(A194, 'Discrete Entry'!$Q$2:$AL$801, 17,0) ->  | C194: =VLOOKUP(A194, 'Discrete Entry'!$Q$2:$Z$801, 4,0) ->  | F194: =IF(ISNUMBER(D194),((D194-$N$15)/(C194/1000)),-999) -> -999 | H194: =IF(ISNUMBER(E194),((E194-$O$15)/(C194/1000)),-999) -> -999 | J194: =IF(F194=-999,-999,F194/12) -> -999 | K194: =IF(H194=-999,-999,H194/14) -> -999
B195: =VLOOKUP(A195, 'Discrete Entry'!$Q$2:$AL$801, 17,0) ->  | C195: =VLOOKUP(A195, 'Discrete Entry'!$Q$2:$Z$801, 4,0) ->  | F195: -999 | H195: -999 | J195: -999 | K195: -999
B196: =VLOOKUP(A196, 'Discrete Entry'!$Q$2:$AL$801, 17,0) ->  | C196: =VLOOKUP(A196, 'Discrete Entry'!$Q$2:$Z$801, 4,0) ->  | F196: -999 | H196: -999 | J196: -999 | K196: -999
B197: =VLOOKUP(A197, 'Discrete Entry'!$Q$2:$AL$801, 17,0) ->  | C197: =VLOOKUP(A197, 'Discrete Entry'!$Q$2:$Z$801, 4,0) ->  | F197: -999 | H197: -999 | J197: -999 | K197: -999
B198: =VLOOKUP(A198, 'Discrete Entry'!$Q$2:$AL$801, 17,0) ->  | C198: =VLOOKUP(A198, 'Discrete Entry'!$Q$2:$Z$801, 4,0) ->  | F198: -999 | H198: -999 | J198: -999 | K198: -999
B199: =VLOOKUP(A199, 'Discrete Entry'!$Q$2:$AL$801, 17,0) ->  | C199: =VLOOKUP(A199, 'Discrete Entry'!$Q$2:$Z$801, 4,0) ->  | F199: -999 | H199: -999 | J199: -999 | K199: -999
B200: =VLOOKUP(A200, 'Discrete Entry'!$Q$2:$AL$801, 17,0) ->  | C200: =VLOOKUP(A200, 'Discrete Entry'!$Q$2:$Z$801, 4,0) ->  | F200: -999 | H200: -999 | J200: -999 | K200: -999
... 601 more rows

Sheet PIC Raw
A1: Balch Sample # | B1: Sample ID | C1: PIC Vol Filt [mL] | D1: Vol Extracted [mL] | E1: Ca [ppb] | F1: Mg [ppb] | G1: Sr [ppb] | H1: Na [ppb] | I1: PIC Comments | L1: For Cruise Blanks
C2: =VLOOKUP(A2, 'Discrete Entry'!$Q$2:$Z$801, 6,0) ->  | I2: =VLOOKUP(A2, 'Discrete Entry'!$Q$2:$AL$801, 18,0) ->  | L2: Blank# | M2: Ca [ppb] | N2: Mg [ppb] | O2: Sr [ppb] | P2: Na [ppb]
C3: =VLOOKUP(A3, 'Discrete Entry'!$Q$2:$Z$801, 6,0) ->  | I3: =VLOOKUP(A3, 'Discrete Entry'!$Q$2:$AL$801, 18,0) ->  | L3: BLANK1
C4: =VLOOKUP(A4, 'Discrete Entry'!$Q$2:$Z$801, 6,0) ->  | I4: =VLOOKUP(A4, 'Discrete Entry'!$Q$2:$AL$801, 18,0) ->  | L4: BLANK2
C5: =VLOOKUP(A5, 'Discrete Entry'!$Q$2:$Z$801, 6,0) ->  | I5: =VLOOKUP(A5, 'Discrete Entry'!$Q$2:$AL$801, 18,0) ->  | L5: BLANK3
C6: =VLOOKUP(A6, 'Discrete Entry'!$Q$2:$Z$801, 6,0) ->  | I6: =VLOOKUP(A6, 'Discrete Entry'!$Q$2:$AL$801, 18,0) ->  | L6: BLANK4
C7: =VLOOKUP(A7, 'Discrete Entry'!$Q$2:$Z$801, 6,0) ->  | I7: =VLOOKUP(A7, 'Discrete Entry'!$Q$2:$AL$801, 18,0) ->  | L7: BLANK5
C8: =VLOOKUP(A8, 'Discrete Entry'!$Q$2:$Z$801, 6,0) ->  | I8: =VLOOKUP(A8, 'Discrete Entry'!$Q$2:$AL$801, 18,0) ->  | L8: BLANK6
C9: =VLOOKUP(A9, 'Discrete Entry'!$Q$2:$Z$801, 6,0) ->  | I9: =VLOOKUP(A9, 'Discrete Entry'!$Q$2:$AL$801, 18,0) ->  | L9: BLANK7
C10: =VLOOKUP(A10, 'Discrete Entry'!$Q$2:$Z$801, 6,0) ->  | I10: =VLOOKUP(A10, 'Discrete Entry'!$Q$2:$AL$801, 18,0) ->  | L10: BLANK8
C11: =VLOOKUP(A11, 'Discrete Entry'!$Q$2:$Z$801, 6,0) ->  | I11: =VLOOKUP(A11, 'Discrete Entry'!$Q$2:$AL$801, 18,0) ->  | L11: BLANK9
C12: =VLOOKUP(A12, 'Discrete Entry'!$Q$2:$Z$801, 6,0) ->  | I12: =VLOOKUP(A12, 'Discrete Entry'!$Q$2:$AL$801, 18,0) ->  | L12: BLANK10
C13: =VLOOKUP(A13, 'Discrete Entry'!$Q$2:$Z$801, 6,0) ->  | I13: =VLOOKUP(A13, 'Discrete Entry'!$Q$2:$AL$801, 18,0) ->  | L13: BLANK11
C14: =VLOOKUP(A14, 'Discrete Entry'!$Q$2:$Z$801, 6,0) ->  | I14: =VLOOKUP(A14, 'Discrete Entry'!$Q$2:$AL$801, 18,0) ->  | L14: BLANK12
C15: =VLOOKUP(A15, 'Discrete Entry'!$Q$2:$Z$801, 6,0) ->  | I15: =VLOOKUP(A15, 'Discrete Entry'!$Q$2:$AL$801, 18,0) ->  | L15: Average | M15: =AVERAGE(M3:M14) ->  | N15: =AVERAGE(N3:N14) ->  | O15: =AVERAGE(O3:O14) ->  | P15: =AVERAGE(P3:P14) -> 
C16: =VLOOKUP(A16, 'Discrete Entry'!$Q$2:$Z$801, 6,0) ->  | I16: =VLOOKUP(A16, 'Discrete Entry'!$Q$2:$AL$801, 18,0) -> 
C17: =VLOOKUP(A17, 'Discrete Entry'!$Q$2:$Z$801, 6,0) ->  | I17: =VLOOKUP(A17, 'Discrete Entry'!$Q$2:$AL$801, 18,0) -> 
C18: =VLOOKUP(A18, 'Discrete Entry'!$Q$2:$Z$801, 6,0) ->  | I18: =VLOOKUP(A18, 'Discrete Entry'!$Q$2:$AL$801, 18,0) -> 
C19: =VLOOKUP(A19, 'Discrete Entry'!$Q$2:$Z$801, 6,0) ->  | I19: =VLOOKUP(A19, 'Discrete Entry'!$Q$2:$AL$801, 18,0) -> 
C20: =VLOOKUP(A20, 'Discrete Entry'!$Q$2:$Z$801, 6,0) ->  | I20: =VLOOKUP(A20, 'Discrete Entry'!$Q$2:$AL$801, 18,0) -> 
C21: =VLOOKUP(A21, 'Discrete Entry'!$Q$2:$Z$801, 6,0) ->  | I21: =VLOOKUP(A21, 'Discrete Entry'!$Q$2:$AL$801, 18,0) -> 
C22: =VLOOKUP(A22, 'Discrete Entry'!$Q$2:$Z$801, 6,0) ->  | I22: =VLOOKUP(A22, 'Discrete Entry'!$Q$2:$AL$801, 18,0) -> 
C23: =VLOOKUP(A23, 'Discrete Entry'!$Q$2:$Z$801, 6,0) ->  | I23: =VLOOKUP(A23, 'Discrete Entry'!$Q$2:$AL$801, 18,0) -> 
C24: =VLOOKUP(A24, 'Discrete Entry'!$Q$2:$Z$801, 6,0) ->  | I24: =VLOOKUP(A24, 'Discrete Entry'!$Q$2:$AL$801, 18,0) -> 
C25: =VLOOKUP(A25, 'Discrete Entry'!$Q$2:$Z$801, 6,0) ->  | I25: =VLOOKUP(A25, 'Discrete Entry'!$Q$2:$AL$801, 18,0) -> 
C26: =VLOOKUP(A26, 'Discrete Entry'!$Q$2:$Z$801, 6,0) ->  | I26: =VLOOKUP(A26, 'Discrete Entry'!$Q$2:$AL$801, 18,0) -> 
C27: =VLOOKUP(A27, 'Discrete Entry'!$Q$2:$Z$801, 6,0) ->  | I27: =VLOOKUP(A27, 'Discrete Entry'!$Q$2:$AL$801, 18,0) -> 
C28: =VLOOKUP(A28, 'Discrete Entry'!$Q$2:$Z$801, 6,0) ->  | I28: =VLOOKUP(A28, 'Discrete Entry'!$Q$2:$AL$801, 18,0) -> 
C29: =VLOOKUP(A29, 'Discrete Entry'!$Q$2:$Z$801, 6,0) ->  | I29: =VLOOKUP(A29, 'Discrete Entry'!$Q$2:$AL$801, 18,0) -> 
C30: =VLOOKUP(A30, 'Discrete Entry'!$Q$2:$Z$801, 6,0) ->  | I30: =VLOOKUP(A30, 'Discrete Entry'!$Q$2:$AL$801, 18,0) -> 
C31: =VLOOKUP(A31, 'Discrete Entry'!$Q$2:$Z$801, 6,0) ->  | I31: =VLOOKUP(A31, 'Discrete Entry'!$Q$2:$AL$801, 18,0) -> 
C32: =VLOOKUP(A32, 'Discrete Entry'!$Q$2:$Z$801, 6,0) ->  | I32: =VLOOKUP(A32, 'Discrete Entry'!$Q$2:$AL$801, 18,0) -> 
C33: =VLOOKUP(A33, 'Discrete Entry'!$Q$2:$Z$801, 6,0) ->  | I33: =VLOOKUP(A33, 'Discrete Entry'!$Q$2:$AL$801, 18,0) -> 
C34: =VLOOKUP(A34, 'Discrete Entry'!$Q$2:$Z$801, 6,0) ->  | I34: =VLOOKUP(A34, 'Discrete Entry'!$Q$2:$AL$801, 18,0) -> 
C35: =VLOOKUP(A35, 'Discrete Entry'!$Q$2:$Z$801, 6,0) ->  | I35: =VLOOKUP(A35, 'Discrete Entry'!$Q$2:$AL$801, 18,0) -> 
C36: =VLOOKUP(A36, 'Discrete Entry'!$Q$2:$Z$801, 6,0) ->  | I36: =VLOOKUP(A36, 'Discrete Entry'!$Q$2:$AL$801, 18,0) -> 
C37: =VLOOKUP(A37, 'Discrete Entry'!$Q$2:$Z$801, 6,0) ->  | I37: =VLOOKUP(A37, 'Discrete Entry'!$Q$2:$AL$801, 18,0) -> 
C38: =VLOOKUP(A38, 'Discrete Entry'!$Q$2:$Z$801, 6,0) ->  | I38: =VLOOKUP(A38, 'Discrete Entry'!$Q$2:$AL$801, 18,0) -> 
C39: =VLOOKUP(A39, 'Discrete Entry'!$Q$2:$Z$801, 6,0) ->  | I39: =VLOOKUP(A39, 'Discrete Entry'!$Q$2:$AL$801, 18,0) -> 
C40: =VLOOKUP(A40, 'Discrete Entry'!$Q$2:$Z$801, 6,0) ->  | I40: =VLOOKUP(A40, 'Discrete Entry'!$Q$2:$AL$801, 18,0) -> 
C41: =VLOOKUP(A41, 'Discrete Entry'!$Q$2:$Z$801, 6,0) ->  | I41: =VLOOKUP(A41, 'Discrete Entry'!$Q$2:$AL$801, 18,0) -> 
C42: =VLOOKUP(A42, 'Discrete Entry'!$Q$2:$Z$801, 6,0) ->  | I42: =VLOOKUP(A42, 'Discrete Entry'!$Q$2:$AL$801, 18,0) -> 
C43: =VLOOKUP(A43, 'Discrete Entry'!$Q$2:$Z$801, 6,0) ->  | I43: =VLOOKUP(A43, 'Discrete Entry'!$Q$2:$AL$801, 18,0) -> 
C44: =VLOOKUP(A44, 'Discrete Entry'!$Q$2:$Z$801, 6,0) ->  | I44: =VLOOKUP(A44, 'Discrete Entry'!$Q$2:$AL$801, 18,0) -> 
C45: =VLOOKUP(A45, 'Discrete Entry'!$Q$2:$Z$801, 6,0) ->  | I45: =VLOOKUP(A45, 'Discrete Entry'!$Q$2:$AL$801, 18,0) -> 
C46: =VLOOKUP(A46, 'Discrete Entry'!$Q$2:$Z$801, 6,0) ->  | I46: =VLOOKUP(A46, 'Discrete Entry'!$Q$2:$AL$801, 18,0) -> 
C47: =VLOOKUP(A47, 'Discrete Entry'!$Q$2:$Z$801, 6,0) ->  | I47: =VLOOKUP(A47, 'Discrete Entry'!$Q$2:$AL$801, 18,0) -> 
C48: =VLOOKUP(A48, 'Discrete Entry'!$Q$2:$Z$801, 6,0) ->  | I48: =VLOOKUP(A48, 'Discrete Entry'!$Q$2:$AL$801, 18,0) -> 
C49: =VLOOKUP(A49, 'Discrete Entry'!$Q$2:$Z$801, 6,0) ->  | I49: =VLOOKUP(A49, 'Discrete Entry'!$Q$2:$AL$801, 18,0) -> 
C50: =VLOOKUP(A50, 'Discrete Entry'!$Q$2:$Z$801, 6,0) ->  | I50: =VLOOKUP(A50, 'Discrete Entry'!$Q$2:$AL$801, 18,0) -> 
C51: =VLOOKUP(A51, 'Discrete Entry'!$Q$2:$Z$801, 6,0) ->  | I51: =VLOOKUP(A51, 'Discrete Entry'!$Q$2:$AL$801, 18,0) -> 
C52: =VLOOKUP(A52, 'Discrete Entry'!$Q$2:$Z$801, 6,0) ->  | I52: =VLOOKUP(A52, 'Discrete Entry'!$Q$2:$AL$801, 18,0) -> 
C53: =VLOOKUP(A53, 'Discrete Entry'!$Q$2:$Z$801, 6,0) ->  | I53: =VLOOKUP(A53, 'Discrete Entry'!$Q$2:$AL$801, 18,0) -> 
C54: =VLOOKUP(A54, 'Discrete Entry'!$Q$2:$Z$801, 6,0) ->  | I54: =VLOOKUP(A54, 'Discrete Entry'!$Q$2:$AL$801, 18,0) -> 
C55: =VLOOKUP(A55, 'Discrete Entry'!$Q$2:$Z$801, 6,0) ->  | I55: =VLOOKUP(A55, 'Discrete Entry'!$Q$2:$AL$801, 18,0) -> 
C56: =VLOOKUP(A56, 'Discrete Entry'!$Q$2:$Z$801, 6,0) ->  | I56: =VLOOKUP(A56, 'Discrete Entry'!$Q$2:$AL$801, 18,0) -> 
C57: =VLOOKUP(A57, 'Discrete Entry'!$Q$2:$Z$801, 6,0) ->  | I57: =VLOOKUP(A57, 'Discrete Entry'!$Q$2:$AL$801, 18,0) -> 
C58: =VLOOKUP(A58, 'Discrete Entry'!$Q$2:$Z$801, 6,0) ->  | I58: =VLOOKUP(A58, 'Discrete Entry'!$Q$2:$AL$801, 18,0) -> 
C59: =VLOOKUP(A59, 'Discrete Entry'!$Q$2:$Z$801, 6,0) ->  | I59: =VLOOKUP(A59, 'Discrete Entry'!$Q$2:$AL$801, 18,0) -> 
C60: =VLOOKUP(A60, 'Discrete Entry'!$Q$2:$Z$801, 6,0) ->  | I60: =VLOOKUP(A60, 'Discrete Entry'!$Q$2:$AL$801, 18,0) -> 
C61: =VLOOKUP(A61, 'Discrete Entry'!$Q$2:$Z$801, 6,0) ->  | I61: =VLOOKUP(A61, 'Discrete Entry'!$Q$2:$AL$801, 18,0) -> 
C62: =VLOOKUP(A62, 'Discrete Entry'!$Q$2:$Z$801, 6,0) ->  | I62: =VLOOKUP(A62, 'Discrete Entry'!$Q$2:$AL$801, 18,0) -> 
C63: =VLOOKUP(A63, 'Discrete Entry'!$Q$2:$Z$801, 6,0) ->  | I63: =VLOOKUP(A63, 'Discrete Entry'!$Q$2:$AL$801, 18,0) -> 
C64: =VLOOKUP(A64, 'Discrete Entry'!$Q$2:$Z$801, 6,0) ->  | I64: =VLOOKUP(A64, 'Discrete Entry'!$Q$2:$AL$801, 18,0) -> 
C65: =VLOOKUP(A65, 'Discrete Entry'!$Q$2:$Z$801, 6,0) ->  | I65: =VLOOKUP(A65, 'Discrete Entry'!$Q$2:$AL$801, 18,0) -> 
C66: =VLOOKUP(A66, 'Discrete Entry'!$Q$2:$Z$801, 6,0) ->  | I66: =VLOOKUP(A66, 'Discrete Entry'!$Q$2:$AL$801, 18,0) -> 
C67: =VLOOKUP(A67, 'Discrete Entry'!$Q$2:$Z$801, 6,0) ->  | I67: =VLOOKUP(A67, 'Discrete Entry'!$Q$2:$AL$801, 18,0) -> 
C68: =VLOOKUP(A68, 'Discrete Entry'!$Q$2:$Z$801, 6,0) ->  | I68: =VLOOKUP(A68, 'Discrete Entry'!$Q$2:$AL$801, 18,0) -> 
C69: =VLOOKUP(A69, 'Discrete Entry'!$Q$2:$Z$801, 6,0) ->  | I69: =VLOOKUP(A69, 'Discrete Entry'!$Q$2:$AL$801, 18,0) -> 
C70: =VLOOKUP(A70, 'Discrete Entry'!$Q$2:$Z$801, 6,0) ->  | I70: =VLOOKUP(A70, 'Discrete Entry'!$Q$2:$AL$801, 18,0) -> 
C71: =VLOOKUP(A71, 'Discrete Entry'!$Q$2:$Z$801, 6,0) ->  | I71: =VLOOKUP(A71, 'Discrete Entry'!$Q$2:$AL$801, 18,0) -> 
C72: =VLOOKUP(A72, 'Discrete Entry'!$Q$2:$Z$801, 6,0) ->  | I72: =VLOOKUP(A72, 'Discrete Entry'!$Q$2:$AL$801, 18,0) -> 
C73: =VLOOKUP(A73, 'Discrete Entry'!$Q$2:$Z$801, 6,0) ->  | I73: =VLOOKUP(A73, 'Discrete Entry'!$Q$2:$AL$801, 18,0) -> 
C74: =VLOOKUP(A74, 'Discrete Entry'!$Q$2:$Z$801, 6,0) ->  | I74: =VLOOKUP(A74, 'Discrete Entry'!$Q$2:$AL$801, 18,0) -> 
C75: =VLOOKUP(A75, 'Discrete Entry'!$Q$2:$Z$801, 6,0) ->  | I75: =VLOOKUP(A75, 'Discrete Entry'!$Q$2:$AL$801, 18,0) -> 
C76: =VLOOKUP(A76, 'Discrete Entry'!$Q$2:$Z$801, 6,0) ->  | I76: =VLOOKUP(A76, 'Discrete Entry'!$Q$2:$AL$801, 18,0) -> 
C77: =VLOOKUP(A77, 'Discrete Entry'!$Q$2:$Z$801, 6,0) ->  | I77: =VLOOKUP(A77, 'Discrete Entry'!$Q$2:$AL$801, 18,0) -> 
C78: =VLOOKUP(A78, 'Discrete Entry'!$Q$2:$Z$801, 6,0) ->  | I78: =VLOOKUP(A78, 'Discrete Entry'!$Q$2:$AL$801, 18,0) -> 
C79: =VLOOKUP(A79, 'Discrete Entry'!$Q$2:$Z$801, 6,0) ->  | I79: =VLOOKUP(A79, 'Discrete Entry'!$Q$2:$AL$801, 18,0) -> 
C80: =VLOOKUP(A80, 'Discrete Entry'!$Q$2:$Z$801, 6,0) ->  | I80: =VLOOKUP(A80, 'Discrete Entry'!$Q$2:$AL$801, 18,0) -> 
C81: =VLOOKUP(A81, 'Discrete Entry'!$Q$2:$Z$801, 6,0) ->  | I81: =VLOOKUP(A81, 'Discrete Entry'!$Q$2:$AL$801, 18,0) -> 
C82: =VLOOKUP(A82, 'Discrete Entry'!$Q$2:$Z$801, 6,0) ->  | I82: =VLOOKUP(A82, 'Discrete Entry'!$Q$2:$AL$801, 18,0) -> 
C83: =VLOOKUP(A83, 'Discrete Entry'!$Q$2:$Z$801, 6,0) ->  | I83: =VLOOKUP(A83, 'Discrete Entry'!$Q$2:$AL$801, 18,0) -> 
C84: =VLOOKUP(A84, 'Discrete Entry'!$Q$2:$Z$801, 6,0) ->  | I84: =VLOOKUP(A84, 'Discrete Entry'!$Q$2:$AL$801, 18,0) -> 
C85: =VLOOKUP(A85, 'Discrete Entry'!$Q$2:$Z$801, 6,0) ->  | I85: =VLOOKUP(A85, 'Discrete Entry'!$Q$2:$AL$801, 18,0) -> 
C86: =VLOOKUP(A86, 'Discrete Entry'!$Q$2:$Z$801, 6,0) ->  | I86: =VLOOKUP(A86, 'Discrete Entry'!$Q$2:$AL$801, 18,0) -> 
C87: =VLOOKUP(A87, 'Discrete Entry'!$Q$2:$Z$801, 6,0) ->  | I87: =VLOOKUP(A87, 'Discrete Entry'!$Q$2:$AL$801, 18,0) -> 
C88: =VLOOKUP(A88, 'Discrete Entry'!$Q$2:$Z$801, 6,0) ->  | I88: =VLOOKUP(A88, 'Discrete Entry'!$Q$2:$AL$801, 18,0) -> 
C89: =VLOOKUP(A89, 'Discrete Entry'!$Q$2:$Z$801, 6,0) ->  | I89: =VLOOKUP(A89, 'Discrete Entry'!$Q$2:$AL$801, 18,0) -> 
C90: =VLOOKUP(A90, 'Discrete Entry'!$Q$2:$Z$801, 6,0) ->  | I90: =VLOOKUP(A90, 'Discrete Entry'!$Q$2:$AL$801, 18,0) -> 
C91: =VLOOKUP(A91, 'Discrete Entry'!$Q$2:$Z$801, 6,0) ->  | I91: =VLOOKUP(A91, 'Discrete Entry'!$Q$2:$AL$801, 18,0) -> 
C92: =VLOOKUP(A92, 'Discrete Entry'!$Q$2:$Z$801, 6,0) ->  | I92: =VLOOKUP(A92, 'Discrete Entry'!$Q$2:$AL$801, 18,0) -> 
C93: =VLOOKUP(A93, 'Discrete Entry'!$Q$2:$Z$801, 6,0) ->  | I93: =VLOOKUP(A93, 'Discrete Entry'!$Q$2:$AL$801, 18,0) -> 
C94: =VLOOKUP(A94, 'Discrete Entry'!$Q$2:$Z$801, 6,0) ->  | I94: =VLOOKUP(A94, 'Discrete Entry'!$Q$2:$AL$801, 18,0) -> 
C95: =VLOOKUP(A95, 'Discrete Entry'!$Q$2:$Z$801, 6,0) ->  | I95: =VLOOKUP(A95, 'Discrete Entry'!$Q$2:$AL$801, 18,0) -> 
C96: =VLOOKUP(A96, 'Discrete Entry'!$Q$2:$Z$801, 6,0) ->  | I96: =VLOOKUP(A96, 'Discrete Entry'!$Q$2:$AL$801, 18,0) -> 
C97: =VLOOKUP(A97, 'Discrete Entry'!$Q$2:$Z$801, 6,0) ->  | I97: =VLOOKUP(A97, 'Discrete Entry'!$Q$2:$AL$801, 18,0) -> 
C98: =VLOOKUP(A98, 'Discrete Entry'!$Q$2:$Z$801, 6,0) ->  | I98: =VLOOKUP(A98, 'Discrete Entry'!$Q$2:$AL$801, 18,0) -> 
C99: =VLOOKUP(A99, 'Discrete Entry'!$Q$2:$Z$801, 6,0) ->  | I99: =VLOOKUP(A99, 'Discrete Entry'!$Q$2:$AL$801, 18,0) -> 
C100: =VLOOKUP(A100, 'Discrete Entry'!$Q$2:$Z$801, 6,0) ->  | I100: =VLOOKUP(A100, 'Discrete Entry'!$Q$2:$AL$801, 18,0) -> 
C101: =VLOOKUP(A101, 'Discrete Entry'!$Q$2:$Z$801, 6,0) ->  | I101: =VLOOKUP(A101, 'Discrete Entry'!$Q$2:$AL$801, 18,0) -> 
C102: =VLOOKUP(A102, 'Discrete Entry'!$Q$2:$Z$801, 6,0) ->  | I102: =VLOOKUP(A102, 'Discrete Entry'!$Q$2:$AL$801, 18,0) -> 
C103: =VLOOKUP(A103, 'Discrete Entry'!$Q$2:$Z$801, 6,0) ->  | I103: =VLOOKUP(A103, 'Discrete Entry'!$Q$2:$AL$801, 18,0) -> 
C104: =VLOOKUP(A104, 'Discrete Entry'!$Q$2:$Z$801, 6,0) ->  | I104: =VLOOKUP(A104, 'Discrete Entry'!$Q$2:$AL$801, 18,0) -> 
C105: =VLOOKUP(A105, 'Discrete Entry'!$Q$2:$Z$801, 6,0) ->  | I105: =VLOOKUP(A105, 'Discrete Entry'!$Q$2:$AL$801, 18,0) -> 
C106: =VLOOKUP(A106, 'Discrete Entry'!$Q$2:$Z$801, 6,0) ->  | I106: =VLOOKUP(A106, 'Discrete Entry'!$Q$2:$AL$801, 18,0) -> 
C107: =VLOOKUP(A107, 'Discrete Entry'!$Q$2:$Z$801, 6,0) ->  | I107: =VLOOKUP(A107, 'Discrete Entry'!$Q$2:$AL$801, 18,0) -> 
C108: =VLOOKUP(A108, 'Discrete Entry'!$Q$2:$Z$801, 6,0) ->  | I108: =VLOOKUP(A108, 'Discrete Entry'!$Q$2:$AL$801, 18,0) -> 
C109: =VLOOKUP(A109, 'Discrete Entry'!$Q$2:$Z$801, 6,0) ->  | I109: =VLOOKUP(A109, 'Discrete Entry'!$Q$2:$AL$801, 18,0) -> 
C110: =VLOOKUP(A110, 'Discrete Entry'!$Q$2:$Z$801, 6,0) ->  | I110: =VLOOKUP(A110, 'Discrete Entry'!$Q$2:$AL$801, 18,0) -> 
C111: =VLOOKUP(A111, 'Discrete Entry'!$Q$2:$Z$801, 6,0) ->  | I111: =VLOOKUP(A111, 'Discrete Entry'!$Q$2:$AL$801, 18,0) -> 
C112: =VLOOKUP(A112, 'Discrete Entry'!$Q$2:$Z$801, 6,0) ->  | I112: =VLOOKUP(A112, 'Discrete Entry'!$Q$2:$AL$801, 18,0) -> 
C113: =VLOOKUP(A113, 'Discrete Entry'!$Q$2:$Z$801, 6,0) ->  | I113: =VLOOKUP(A113, 'Discrete Entry'!$Q$2:$AL$801, 18,0) -> 
C114: =VLOOKUP(A114, 'Discrete Entry'!$Q$2:$Z$801, 6,0) ->  | I114: =VLOOKUP(A114, 'Discrete Entry'!$Q$2:$AL$801, 18,0) -> 
C115: =VLOOKUP(A115, 'Discrete Entry'!$Q$2:$Z$801, 6,0) ->  | I115: =VLOOKUP(A115, 'Discrete Entry'!$Q$2:$AL$801, 18,0) -> 
C116: =VLOOKUP(A116, 'Discrete Entry'!$Q$2:$Z$801, 6,0) ->  | I116: =VLOOKUP(A116, 'Discrete Entry'!$Q$2:$AL$801, 18,0) -> 
C117: =VLOOKUP(A117, 'Discrete Entry'!$Q$2:$Z$801, 6,0) ->  | I117: =VLOOKUP(A117, 'Discrete Entry'!$Q$2:$AL$801, 18,0) -> 
C118: =VLOOKUP(A118, 'Discrete Entry'!$Q$2:$Z$801, 6,0) ->  | I118: =VLOOKUP(A118, 'Discrete Entry'!$Q$2:$AL$801, 18,0) -> 
C119: =VLOOKUP(A119, 'Discrete Entry'!$Q$2:$Z$801, 6,0) ->  | I119: =VLOOKUP(A119, 'Discrete Entry'!$Q$2:$AL$801, 18,0) -> 
C120: =VLOOKUP(A120, 'Discrete Entry'!$Q$2:$Z$801, 6,0) ->  | I120: =VLOOKUP(A120, 'Discrete Entry'!$Q$2:$AL$801, 18,0) -> 
C121: =VLOOKUP(A121, 'Discrete Entry'!$Q$2:$Z$801, 6,0) ->  | I121: =VLOOKUP(A121, 'Discrete Entry'!$Q$2:$AL$801, 18,0) -> 
C122: =VLOOKUP(A122, 'Discrete Entry'!$Q$2:$Z$801, 6,0) ->  | I122: =VLOOKUP(A122, 'Discrete Entry'!$Q$2:$AL$801, 18,0) -> 
C123: =VLOOKUP(A123, 'Discrete Entry'!$Q$2:$Z$801, 6,0) ->  | I123: =VLOOKUP(A123, 'Discrete Entry'!$Q$2:$AL$801, 18,0) -> 
C124: =VLOOKUP(A124, 'Discrete Entry'!$Q$2:$Z$801, 6,0) ->  | I124: =VLOOKUP(A124, 'Discrete Entry'!$Q$2:$AL$801, 18,0) -> 
C125: =VLOOKUP(A125, 'Discrete Entry'!$Q$2:$Z$801, 6,0) ->  | I125: =VLOOKUP(A125, 'Discrete Entry'!$Q$2:$AL$801, 18,0) -> 
C126: =VLOOKUP(A126, 'Discrete Entry'!$Q$2:$Z$801, 6,0) ->  | I126: =VLOOKUP(A126, 'Discrete Entry'!$Q$2:$AL$801, 18,0) -> 
C127: =VLOOKUP(A127, 'Discrete Entry'!$Q$2:$Z$801, 6,0) ->  | I127: =VLOOKUP(A127, 'Discrete Entry'!$Q$2:$AL$801, 18,0) -> 
C128: =VLOOKUP(A128, 'Discrete Entry'!$Q$2:$Z$801, 6,0) ->  | I128: =VLOOKUP(A128, 'Discrete Entry'!$Q$2:$AL$801, 18,0) -> 
C129: =VLOOKUP(A129, 'Discrete Entry'!$Q$2:$Z$801, 6,0) ->  | I129: =VLOOKUP(A129, 'Discrete Entry'!$Q$2:$AL$801, 18,0) -> 
C130: =VLOOKUP(A130, 'Discrete Entry'!$Q$2:$Z$801, 6,0) ->  | I130: =VLOOKUP(A130, 'Discrete Entry'!$Q$2:$AL$801, 18,0) -> 
C131: =VLOOKUP(A131, 'Discrete Entry'!$Q$2:$Z$801, 6,0) ->  | I131: =VLOOKUP(A131, 'Discrete Entry'!$Q$2:$AL$801, 18,0) -> 
C132: =VLOOKUP(A132, 'Discrete Entry'!$Q$2:$Z$801, 6,0) ->  | I132: =VLOOKUP(A132, 'Discrete Entry'!$Q$2:$AL$801, 18,0) -> 
C133: =VLOOKUP(A133, 'Discrete Entry'!$Q$2:$Z$801, 6,0) ->  | I133: =VLOOKUP(A133, 'Discrete Entry'!$Q$2:$AL$801, 18,0) -> 
C134: =VLOOKUP(A134, 'Discrete Entry'!$Q$2:$Z$801, 6,0) ->  | I134: =VLOOKUP(A134, 'Discrete Entry'!$Q$2:$AL$801, 18,0) -> 
C135: =VLOOKUP(A135, 'Discrete Entry'!$Q$2:$Z$801, 6,0) ->  | I135: =VLOOKUP(A135, 'Discrete Entry'!$Q$2:$AL$801, 18,0) -> 
C136: =VLOOKUP(A136, 'Discrete Entry'!$Q$2:$Z$801, 6,0) ->  | I136: =VLOOKUP(A136, 'Discrete Entry'!$Q$2:$AL$801, 18,0) -> 
C137: =VLOOKUP(A137, 'Discrete Entry'!$Q$2:$Z$801, 6,0) ->  | I137: =VLOOKUP(A137, 'Discrete Entry'!$Q$2:$AL$801, 18,0) -> 
C138: =VLOOKUP(A138, 'Discrete Entry'!$Q$2:$Z$801, 6,0) ->  | I138: =VLOOKUP(A138, 'Discrete Entry'!$Q$2:$AL$801, 18,0) -> 
C139: =VLOOKUP(A139, 'Discrete Entry'!$Q$2:$Z$801, 6,0) ->  | I139: =VLOOKUP(A139, 'Discrete Entry'!$Q$2:$AL$801, 18,0) -> 
C140: =VLOOKUP(A140, 'Discrete Entry'!$Q$2:$Z$801, 6,0) ->  | I140: =VLOOKUP(A140, 'Discrete Entry'!$Q$2:$AL$801, 18,0) -> 
C141: =VLOOKUP(A141, 'Discrete Entry'!$Q$2:$Z$801, 6,0) ->  | I141: =VLOOKUP(A141, 'Discrete Entry'!$Q$2:$AL$801, 18,0) -> 
C142: =VLOOKUP(A142, 'Discrete Entry'!$Q$2:$Z$801, 6,0) ->  | I142: =VLOOKUP(A142, 'Discrete Entry'!$Q$2:$AL$801, 18,0) -> 
C143: =VLOOKUP(A143, 'Discrete Entry'!$Q$2:$Z$801, 6,0) ->  | I143: =VLOOKUP(A143, 'Discrete Entry'!$Q$2:$AL$801, 18,0) -> 
C144: =VLOOKUP(A144, 'Discrete Entry'!$Q$2:$Z$801, 6,0) ->  | I144: =VLOOKUP(A144, 'Discrete Entry'!$Q$2:$AL$801, 18,0) -> 
C145: =VLOOKUP(A145, 'Discrete Entry'!$Q$2:$Z$801, 6,0) ->  | I145: =VLOOKUP(A145, 'Discrete Entry'!$Q$2:$AL$801, 18,0) -> 
C146: =VLOOKUP(A146, 'Discrete Entry'!$Q$2:$Z$801, 6,0) ->  | I146: =VLOOKUP(A146, 'Discrete Entry'!$Q$2:$AL$801, 18,0) -> 
C147: =VLOOKUP(A147, 'Discrete Entry'!$Q$2:$Z$801, 6,0) ->  | I147: =VLOOKUP(A147, 'Discrete Entry'!$Q$2:$AL$801, 18,0) -> 
C148: =VLOOKUP(A148, 'Discrete Entry'!$Q$2:$Z$801, 6,0) ->  | I148: =VLOOKUP(A148, 'Discrete Entry'!$Q$2:$AL$801, 18,0) -> 
C149: =VLOOKUP(A149, 'Discrete Entry'!$Q$2:$Z$801, 6,0) ->  | I149: =VLOOKUP(A149, 'Discrete Entry'!$Q$2:$AL$801, 18,0) -> 
C150: =VLOOKUP(A150, 'Discrete Entry'!$Q$2:$Z$801, 6,0) ->  | I150: =VLOOKUP(A150, 'Discrete Entry'!$Q$2:$AL$801, 18,0) -> 
C151: =VLOOKUP(A151, 'Discrete Entry'!$Q$2:$Z$801, 6,0) ->  | I151: =VLOOKUP(A151, 'Discrete Entry'!$Q$2:$AL$801, 18,0) -> 
C152: =VLOOKUP(A152, 'Discrete Entry'!$Q$2:$Z$801, 6,0) ->  | I152: =VLOOKUP(A152, 'Discrete Entry'!$Q$2:$AL$801, 18,0) -> 
C153: =VLOOKUP(A153, 'Discrete Entry'!$Q$2:$Z$801, 6,0) ->  | I153: =VLOOKUP(A153, 'Discrete Entry'!$Q$2:$AL$801, 18,0) -> 
C154: =VLOOKUP(A154, 'Discrete Entry'!$Q$2:$Z$801, 6,0) ->  | I154: =VLOOKUP(A154, 'Discrete Entry'!$Q$2:$AL$801, 18,0) -> 
C155: =VLOOKUP(A155, 'Discrete Entry'!$Q$2:$Z$801, 6,0) ->  | I155: =VLOOKUP(A155, 'Discrete Entry'!$Q$2:$AL$801, 18,0) -> 
C156: =VLOOKUP(A156, 'Discrete Entry'!$Q$2:$Z$801, 6,0) ->  | I156: =VLOOKUP(A156, 'Discrete Entry'!$Q$2:$AL$801, 18,0) -> 
C157: =VLOOKUP(A157, 'Discrete Entry'!$Q$2:$Z$801, 6,0) ->  | I157: =VLOOKUP(A157, 'Discrete Entry'!$Q$2:$AL$801, 18,0) -> 
C158: =VLOOKUP(A158, 'Discrete Entry'!$Q$2:$Z$801, 6,0) ->  | I158: =VLOOKUP(A158, 'Discrete Entry'!$Q$2:$AL$801, 18,0) -> 
C159: =VLOOKUP(A159, 'Discrete Entry'!$Q$2:$Z$801, 6,0) ->  | I159: =VLOOKUP(A159, 'Discrete Entry'!$Q$2:$AL$801, 18,0) -> 
C160: =VLOOKUP(A160, 'Discrete Entry'!$Q$2:$Z$801, 6,0) ->  | I160: =VLOOKUP(A160, 'Discrete Entry'!$Q$2:$AL$801, 18,0) -> 
C161: =VLOOKUP(A161, 'Discrete Entry'!$Q$2:$Z$801, 6,0) ->  | I161: =VLOOKUP(A161, 'Discrete Entry'!$Q$2:$AL$801, 18,0) -> 
C162: =VLOOKUP(A162, 'Discrete Entry'!$Q$2:$Z$801, 6,0) ->  | I162: =VLOOKUP(A162, 'Discrete Entry'!$Q$2:$AL$801, 18,0) -> 
C163: =VLOOKUP(A163, 'Discrete Entry'!$Q$2:$Z$801, 6,0) ->  | I163: =VLOOKUP(A163, 'Discrete Entry'!$Q$2:$AL$801, 18,0) -> 
C164: =VLOOKUP(A164, 'Discrete Entry'!$Q$2:$Z$801, 6,0) ->  | I164: =VLOOKUP(A164, 'Discrete Entry'!$Q$2:$AL$801, 18,0) -> 
C165: =VLOOKUP(A165, 'Discrete Entry'!$Q$2:$Z$801, 6,0) ->  | I165: =VLOOKUP(A165, 'Discrete Entry'!$Q$2:$AL$801, 18,0) -> 
C166: =VLOOKUP(A166, 'Discrete Entry'!$Q$2:$Z$801, 6,0) ->  | I166: =VLOOKUP(A166, 'Discrete Entry'!$Q$2:$AL$801, 18,0) -> 
C167: =VLOOKUP(A167, 'Discrete Entry'!$Q$2:$Z$801, 6,0) ->  | I167: =VLOOKUP(A167, 'Discrete Entry'!$Q$2:$AL$801, 18,0) -> 
C168: =VLOOKUP(A168, 'Discrete Entry'!$Q$2:$Z$801, 6,0) ->  | I168: =VLOOKUP(A168, 'Discrete Entry'!$Q$2:$AL$801, 18,0) -> 
C169: =VLOOKUP(A169, 'Discrete Entry'!$Q$2:$Z$801, 6,0) ->  | I169: =VLOOKUP(A169, 'Discrete Entry'!$Q$2:$AL$801, 18,0) -> 
C170: =VLOOKUP(A170, 'Discrete Entry'!$Q$2:$Z$801, 6,0) ->  | I170: =VLOOKUP(A170, 'Discrete Entry'!$Q$2:$AL$801, 18,0) -> 
C171: =VLOOKUP(A171, 'Discrete Entry'!$Q$2:$Z$801, 6,0) ->  | I171: =VLOOKUP(A171, 'Discrete Entry'!$Q$2:$AL$801, 18,0) -> 
C172: =VLOOKUP(A172, 'Discrete Entry'!$Q$2:$Z$801, 6,0) ->  | I172: =VLOOKUP(A172, 'Discrete Entry'!$Q$2:$AL$801, 18,0) -> 
C173: =VLOOKUP(A173, 'Discrete Entry'!$Q$2:$Z$801, 6,0) ->  | I173: =VLOOKUP(A173, 'Discrete Entry'!$Q$2:$AL$801, 18,0) -> 
C174: =VLOOKUP(A174, 'Discrete Entry'!$Q$2:$Z$801, 6,0) ->  | I174: =VLOOKUP(A174, 'Discrete Entry'!$Q$2:$AL$801, 18,0) -> 
C175: =VLOOKUP(A175, 'Discrete Entry'!$Q$2:$Z$801, 6,0) ->  | I175: =VLOOKUP(A175, 'Discrete Entry'!$Q$2:$AL$801, 18,0) -> 
C176: =VLOOKUP(A176, 'Discrete Entry'!$Q$2:$Z$801, 6,0) ->  | I176: =VLOOKUP(A176, 'Discrete Entry'!$Q$2:$AL$801, 18,0) -> 
C177: =VLOOKUP(A177, 'Discrete Entry'!$Q$2:$Z$801, 6,0) ->  | I177: =VLOOKUP(A177, 'Discrete Entry'!$Q$2:$AL$801, 18,0) -> 
C178: =VLOOKUP(A178, 'Discrete Entry'!$Q$2:$Z$801, 6,0) ->  | I178: =VLOOKUP(A178, 'Discrete Entry'!$Q$2:$AL$801, 18,0) -> 
C179: =VLOOKUP(A179, 'Discrete Entry'!$Q$2:$Z$801, 6,0) ->  | I179: =VLOOKUP(A179, 'Discrete Entry'!$Q$2:$AL$801, 18,0) -> 
C180: =VLOOKUP(A180, 'Discrete Entry'!$Q$2:$Z$801, 6,0) ->  | I180: =VLOOKUP(A180, 'Discrete Entry'!$Q$2:$AL$801, 18,0) -> 
C181: =VLOOKUP(A181, 'Discrete Entry'!$Q$2:$Z$801, 6,0) ->  | I181: =VLOOKUP(A181, 'Discrete Entry'!$Q$2:$AL$801, 18,0) -> 
C182: =VLOOKUP(A182, 'Discrete Entry'!$Q$2:$Z$801, 6,0) ->  | I182: =VLOOKUP(A182, 'Discrete Entry'!$Q$2:$AL$801, 18,0) -> 
C183: =VLOOKUP(A183, 'Discrete Entry'!$Q$2:$Z$801, 6,0) ->  | I183: =VLOOKUP(A183, 'Discrete Entry'!$Q$2:$AL$801, 18,0) -> 
C184: =VLOOKUP(A184, 'Discrete Entry'!$Q$2:$Z$801, 6,0) ->  | I184: =VLOOKUP(A184, 'Discrete Entry'!$Q$2:$AL$801, 18,0) -> 
C185: =VLOOKUP(A185, 'Discrete Entry'!$Q$2:$Z$801, 6,0) ->  | I185: =VLOOKUP(A185, 'Discrete Entry'!$Q$2:$AL$801, 18,0) -> 
C186: =VLOOKUP(A186, 'Discrete Entry'!$Q$2:$Z$801, 6,0) ->  | I186: =VLOOKUP(A186, 'Discrete Entry'!$Q$2:$AL$801, 18,0) -> 
C187: =VLOOKUP(A187, 'Discrete Entry'!$Q$2:$Z$801, 6,0) ->  | I187: =VLOOKUP(A187, 'Discrete Entry'!$Q$2:$AL$801, 18,0) -> 
C188: =VLOOKUP(A188, 'Discrete Entry'!$Q$2:$Z$801, 6,0) ->  | I188: =VLOOKUP(A188, 'Discrete Entry'!$Q$2:$AL$801, 18,0) -> 
C189: =VLOOKUP(A189, 'Discrete Entry'!$Q$2:$Z$801, 6,0) ->  | I189: =VLOOKUP(A189, 'Discrete Entry'!$Q$2:$AL$801, 18,0) -> 
C190: =VLOOKUP(A190, 'Discrete Entry'!$Q$2:$Z$801, 6,0) ->  | I190: =VLOOKUP(A190, 'Discrete Entry'!$Q$2:$AL$801, 18,0) -> 
C191: =VLOOKUP(A191, 'Discrete Entry'!$Q$2:$Z$801, 6,0) ->  | I191: =VLOOKUP(A191, 'Discrete Entry'!$Q$2:$AL$801, 18,0) -> 
C192: =VLOOKUP(A192, 'Discrete Entry'!$Q$2:$Z$801, 6,0) ->  | I192: =VLOOKUP(A192, 'Discrete Entry'!$Q$2:$AL$801, 18,0) -> 
C193: =VLOOKUP(A193, 'Discrete Entry'!$Q$2:$Z$801, 6,0) ->  | I193: =VLOOKUP(A193, 'Discrete Entry'!$Q$2:$AL$801, 18,0) -> 
C194: =VLOOKUP(A194, 'Discrete Entry'!$Q$2:$Z$801, 6,0) ->  | I194: =VLOOKUP(A194, 'Discrete Entry'!$Q$2:$AL$801, 18,0) -> 
C195: =VLOOKUP(A195, 'Discrete Entry'!$Q$2:$Z$801, 6,0) ->  | I195: =VLOOKUP(A195, 'Discrete Entry'!$Q$2:$AL$801, 18,0) -> 
C196: =VLOOKUP(A196, 'Discrete Entry'!$Q$2:$Z$801, 6,0) ->  | I196: =VLOOKUP(A196, 'Discrete Entry'!$Q$2:$AL$801, 18,0) -> 
C197: =VLOOKUP(A197, 'Discrete Entry'!$Q$2:$Z$801, 6,0) ->  | I197: =VLOOKUP(A197, 'Discrete Entry'!$Q$2:$AL$801, 18,0) -> 
C198: =VLOOKUP(A198, 'Discrete Entry'!$Q$2:$Z$801, 6,0) ->  | I198: =VLOOKUP(A198, 'Discrete Entry'!$Q$2:$AL$801, 18,0) -> 
C199: =VLOOKUP(A199, 'Discrete Entry'!$Q$2:$Z$801, 6,0) ->  | I199: =VLOOKUP(A199, 'Discrete Entry'!$Q$2:$AL$801, 18,0) -> 
C200: =VLOOKUP(A200, 'Discrete Entry'!$Q$2:$Z$801, 6,0) ->  | I200: =VLOOKUP(A200, 'Discrete Entry'!$Q$2:$AL$801, 18,0) -> 
... 601 more rows

Sheet PIC SW Corr
A1: Balch Sample # | B1: PIC Vol Filt [mL] | C1: Vol Extracted [mL] | D1: Ca [ppb] | E1: Mg [ppb] | F1: Sr [ppb] | G1: Na [ppb] | I1: SW + blank corrected Ca [ppb] | J1: SW + blank corrected Mg [ppb] | K1: SW + blank corrected Sr [ppb] | M1: volume corrected Ca [ug L^-1] | N1: volume corrected Mg [ug L^-1] | O1: volume corrected Sr [ug L^-1] | Q1: SW corrected Ca [mmol m^-3] | R1: SW corrected Mg [mmol m^-3] | S1: SW corrected Sr [mmol m^-3] | U1: PIC [umol L^-1] | V1: Quality Flag PIC | W1: PIC [ug L^-1] | X1: PIC [mol/m^3] | Y1: PIC Comments
A2: ='PIC Raw'!A2 -> 0 | B2: ='PIC Raw'!C2 ->  | C2: ='PIC Raw'!D2 -> 0 | D2: =IF(ISBLANK('PIC Raw'!E2),"",'PIC Raw'!E2) ->  | E2: =IF(ISBLANK('PIC Raw'!F2),"",'PIC Raw'!F2) ->  | F2: =IF(ISBLANK('PIC Raw'!G2),"",'PIC Raw'!G2) ->  | G2: =IF(ISBLANK('PIC Raw'!H2),"",'PIC Raw'!H2) ->  | I2: =IF(ISNUMBER((D2-'PIC Raw'!M$15)-((($G2-'PIC Raw'!$P$15)/10784)*412)),(D2-'PIC Raw'!M$15)-((($G2-'PIC Raw'!$P$15)/10784)*412),-999) -> -999 | J2: =IF(ISNUMBER((E2-'PIC Raw'!N$15)-((($G2-'PIC Raw'!$P$15)/10784)*1284)),(E2-'PIC Raw'!N$15)-((($G2-'PIC Raw'!$P$15)/10784)*1284),-999) -> -999 | K2: =IF(ISNUMBER((F2-'PIC Raw'!O$15)-((($G2-'PIC Raw'!$P$15)/10784)*7.9)),(F2-'PIC Raw'!O$15)-((($G2-'PIC Raw'!$P$15)/10784)*7.9),-999) -> -999 | M2: =IF(I2=-999,-999,(I2*($C2/$B2))) -> -999 | N2: =IF(J2=-999,-999,(J2*($C2/$B2))) -> -999 | O2: =IF(K2=-999,-999,(K2*($C2/$B2))) -> -999 | Q2: =IF(M2=-999, -999, (M2/40)) -> -999 | R2: =IF(N2=-999, -999, (N2/24.31)) -> -999 | S2: =IF(O2=-999, -999, (O2/87.62)) -> -999 | U2: =Q2 -> -999 | W2: =IF(U2=-999, -999, (U2*12)) -> -999 | X2: =IF(U2=-999,-999,(U2/1000)) -> -999 | Y2: ='PIC Raw'!I2 -> 
A3: ='PIC Raw'!A3 -> 0 | B3: ='PIC Raw'!C3 ->  | C3: ='PIC Raw'!D3 -> 0 | D3: =IF(ISBLANK('PIC Raw'!E3),"",'PIC Raw'!E3) ->  | E3: =IF(ISBLANK('PIC Raw'!F3),"",'PIC Raw'!F3) ->  | F3: =IF(ISBLANK('PIC Raw'!G3),"",'PIC Raw'!G3) ->  | G3: =IF(ISBLANK('PIC Raw'!H3),"",'PIC Raw'!H3) ->  | I3: =IF(ISNUMBER((D3-'PIC Raw'!M$15)-((($G3-'PIC Raw'!$P$15)/10784)*412)),(D3-'PIC Raw'!M$15)-((($G3-'PIC Raw'!$P$15)/10784)*412),-999) -> -999 | J3: =IF(ISNUMBER((E3-'PIC Raw'!N$15)-((($G3-'PIC Raw'!$P$15)/10784)*1284)),(E3-'PIC Raw'!N$15)-((($G3-'PIC Raw'!$P$15)/10784)*1284),-999) -> -999 | K3: =IF(ISNUMBER((F3-'PIC Raw'!O$15)-((($G3-'PIC Raw'!$P$15)/10784)*7.9)),(F3-'PIC Raw'!O$15)-((($G3-'PIC Raw'!$P$15)/10784)*7.9),-999) -> -999 | M3: -999 | N3: -999 | O3: -999 | Q3: -999 | R3: -999 | S3: -999 | U3: -999 | W3: -999 | X3: -999 | Y3: ='PIC Raw'!I3 -> 
A4: ='PIC Raw'!A4 -> 0 | B4: ='PIC Raw'!C4 ->  | C4: ='PIC Raw'!D4 -> 0 | D4: =IF(ISBLANK('PIC Raw'!E4),"",'PIC Raw'!E4) ->  | E4: =IF(ISBLANK('PIC Raw'!F4),"",'PIC Raw'!F4) ->  | F4: =IF(ISBLANK('PIC Raw'!G4),"",'PIC Raw'!G4) ->  | G4: =IF(ISBLANK('PIC Raw'!H4),"",'PIC Raw'!H4) ->  | I4: =IF(ISNUMBER((D4-'PIC Raw'!M$15)-((($G4-'PIC Raw'!$P$15)/10784)*412)),(D4-'PIC Raw'!M$15)-((($G4-'PIC Raw'!$P$15)/10784)*412),-999) -> -999 | J4: =IF(ISNUMBER((E4-'PIC Raw'!N$15)-((($G4-'PIC Raw'!$P$15)/10784)*1284)),(E4-'PIC Raw'!N$15)-((($G4-'PIC Raw'!$P$15)/10784)*1284),-999) -> -999 | K4: =IF(ISNUMBER((F4-'PIC Raw'!O$15)-((($G4-'PIC Raw'!$P$15)/10784)*7.9)),(F4-'PIC Raw'!O$15)-((($G4-'PIC Raw'!$P$15)/10784)*7.9),-999) -> -999 | M4: -999 | N4: -999 | O4: -999 | Q4: -999 | R4: -999 | S4: -999 | U4: -999 | W4: -999 | X4: -999 | Y4: ='PIC Raw'!I4 -> 
A5: ='PIC Raw'!A5 -> 0 | B5: ='PIC Raw'!C5 ->  | C5: ='PIC Raw'!D5 -> 0 | D5: =IF(ISBLANK('PIC Raw'!E5),"",'PIC Raw'!E5) ->  | E5: =IF(ISBLANK('PIC Raw'!F5),"",'PIC Raw'!F5) ->  | F5: =IF(ISBLANK('PIC Raw'!G5),"",'PIC Raw'!G5) ->  | G5: =IF(ISBLANK('PIC Raw'!H5),"",'PIC Raw'!H5) ->  | I5: =IF(ISNUMBER((D5-'PIC Raw'!M$15)-((($G5-'PIC Raw'!$P$15)/10784)*412)),(D5-'PIC Raw'!M$15)-((($G5-'PIC Raw'!$P$15)/10784)*412),-999) -> -999 | J5: =IF(ISNUMBER((E5-'PIC Raw'!N$15)-((($G5-'PIC Raw'!$P$15)/10784)*1284)),(E5-'PIC Raw'!N$15)-((($G5-'PIC Raw'!$P$15)/10784)*1284),-999) -> -999 | K5: =IF(ISNUMBER((F5-'PIC Raw'!O$15)-((($G5-'PIC Raw'!$P$15)/10784)*7.9)),(F5-'PIC Raw'!O$15)-((($G5-'PIC Raw'!$P$15)/10784)*7.9),-999) -> -999 | M5: -999 | N5: -999 | O5: -999 | Q5: -999 | R5: -999 | S5: -999 | U5: -999 | W5: -999 | X5: -999 | Y5: ='PIC Raw'!I5 -> 
A6: ='PIC Raw'!A6 -> 0 | B6: ='PIC Raw'!C6 ->  | C6: ='PIC Raw'!D6 -> 0 | D6: =IF(ISBLANK('PIC Raw'!E6),"",'PIC Raw'!E6) ->  | E6: =IF(ISBLANK('PIC Raw'!F6),"",'PIC Raw'!F6) ->  | F6: =IF(ISBLANK('PIC Raw'!G6),"",'PIC Raw'!G6) ->  | G6: =IF(ISBLANK('PIC Raw'!H6),"",'PIC Raw'!H6) ->  | I6: =IF(ISNUMBER((D6-'PIC Raw'!M$15)-((($G6-'PIC Raw'!$P$15)/10784)*412)),(D6-'PIC Raw'!M$15)-((($G6-'PIC Raw'!$P$15)/10784)*412),-999) -> -999 | J6: =IF(ISNUMBER((E6-'PIC Raw'!N$15)-((($G6-'PIC Raw'!$P$15)/10784)*1284)),(E6-'PIC Raw'!N$15)-((($G6-'PIC Raw'!$P$15)/10784)*1284),-999) -> -999 | K6: =IF(ISNUMBER((F6-'PIC Raw'!O$15)-((($G6-'PIC Raw'!$P$15)/10784)*7.9)),(F6-'PIC Raw'!O$15)-((($G6-'PIC Raw'!$P$15)/10784)*7.9),-999) -> -999 | M6: -999 | N6: -999 | O6: -999 | Q6: -999 | R6: -999 | S6: -999 | U6: -999 | W6: -999 | X6: -999 | Y6: ='PIC Raw'!I6 -> 
A7: ='PIC Raw'!A7 -> 0 | B7: ='PIC Raw'!C7 ->  | C7: ='PIC Raw'!D7 -> 0 | D7: =IF(ISBLANK('PIC Raw'!E7),"",'PIC Raw'!E7) ->  | E7: =IF(ISBLANK('PIC Raw'!F7),"",'PIC Raw'!F7) ->  | F7: =IF(ISBLANK('PIC Raw'!G7),"",'PIC Raw'!G7) ->  | G7: =IF(ISBLANK('PIC Raw'!H7),"",'PIC Raw'!H7) ->  | I7: =IF(ISNUMBER((D7-'PIC Raw'!M$15)-((($G7-'PIC Raw'!$P$15)/10784)*412)),(D7-'PIC Raw'!M$15)-((($G7-'PIC Raw'!$P$15)/10784)*412),-999) -> -999 | J7: =IF(ISNUMBER((E7-'PIC Raw'!N$15)-((($G7-'PIC Raw'!$P$15)/10784)*1284)),(E7-'PIC Raw'!N$15)-((($G7-'PIC Raw'!$P$15)/10784)*1284),-999) -> -999 | K7: =IF(ISNUMBER((F7-'PIC Raw'!O$15)-((($G7-'PIC Raw'!$P$15)/10784)*7.9)),(F7-'PIC Raw'!O$15)-((($G7-'PIC Raw'!$P$15)/10784)*7.9),-999) -> -999 | M7: -999 | N7: -999 | O7: -999 | Q7: -999 | R7: -999 | S7: -999 | U7: -999 | W7: -999 | X7: -999 | Y7: ='PIC Raw'!I7 -> 
A8: ='PIC Raw'!A8 -> 0 | B8: ='PIC Raw'!C8 ->  | C8: ='PIC Raw'!D8 -> 0 | D8: =IF(ISBLANK('PIC Raw'!E8),"",'PIC Raw'!E8) ->  | E8: =IF(ISBLANK('PIC Raw'!F8),"",'PIC Raw'!F8) ->  | F8: =IF(ISBLANK('PIC Raw'!G8),"",'PIC Raw'!G8) ->  | G8: =IF(ISBLANK('PIC Raw'!H8),"",'PIC Raw'!H8) ->  | I8: =IF(ISNUMBER((D8-'PIC Raw'!M$15)-((($G8-'PIC Raw'!$P$15)/10784)*412)),(D8-'PIC Raw'!M$15)-((($G8-'PIC Raw'!$P$15)/10784)*412),-999) -> -999 | J8: =IF(ISNUMBER((E8-'PIC Raw'!N$15)-((($G8-'PIC Raw'!$P$15)/10784)*1284)),(E8-'PIC Raw'!N$15)-((($G8-'PIC Raw'!$P$15)/10784)*1284),-999) -> -999 | K8: =IF(ISNUMBER((F8-'PIC Raw'!O$15)-((($G8-'PIC Raw'!$P$15)/10784)*7.9)),(F8-'PIC Raw'!O$15)-((($G8-'PIC Raw'!$P$15)/10784)*7.9),-999) -> -999 | M8: -999 | N8: -999 | O8: -999 | Q8: -999 | R8: -999 | S8: -999 | U8: -999 | W8: -999 | X8: -999 | Y8: ='PIC Raw'!I8 -> 
A9: ='PIC Raw'!A9 -> 0 | B9: ='PIC Raw'!C9 ->  | C9: ='PIC Raw'!D9 -> 0 | D9: =IF(ISBLANK('PIC Raw'!E9),"",'PIC Raw'!E9) ->  | E9: =IF(ISBLANK('PIC Raw'!F9),"",'PIC Raw'!F9) ->  | F9: =IF(ISBLANK('PIC Raw'!G9),"",'PIC Raw'!G9) ->  | G9: =IF(ISBLANK('PIC Raw'!H9),"",'PIC Raw'!H9) ->  | I9: =IF(ISNUMBER((D9-'PIC Raw'!M$15)-((($G9-'PIC Raw'!$P$15)/10784)*412)),(D9-'PIC Raw'!M$15)-((($G9-'PIC Raw'!$P$15)/10784)*412),-999) -> -999 | J9: =IF(ISNUMBER((E9-'PIC Raw'!N$15)-((($G9-'PIC Raw'!$P$15)/10784)*1284)),(E9-'PIC Raw'!N$15)-((($G9-'PIC Raw'!$P$15)/10784)*1284),-999) -> -999 | K9: =IF(ISNUMBER((F9-'PIC Raw'!O$15)-((($G9-'PIC Raw'!$P$15)/10784)*7.9)),(F9-'PIC Raw'!O$15)-((($G9-'PIC Raw'!$P$15)/10784)*7.9),-999) -> -999 | M9: -999 | N9: -999 | O9: -999 | Q9: -999 | R9: -999 | S9: -999 | U9: -999 | W9: -999 | X9: -999 | Y9: ='PIC Raw'!I9 -> 
A10: ='PIC Raw'!A10 -> 0 | B10: ='PIC Raw'!C10 ->  | C10: ='PIC Raw'!D10 -> 0 | D10: =IF(ISBLANK('PIC Raw'!E10),"",'PIC Raw'!E10) ->  | E10: =IF(ISBLANK('PIC Raw'!F10),"",'PIC Raw'!F10) ->  | F10: =IF(ISBLANK('PIC Raw'!G10),"",'PIC Raw'!G10) ->  | G10: =IF(ISBLANK('PIC Raw'!H10),"",'PIC Raw'!H10) ->  | I10: =IF(ISNUMBER((D10-'PIC Raw'!M$15)-((($G10-'PIC Raw'!$P$15)/10784)*412)),(D10-'PIC Raw'!M$15)-((($G10-'PIC Raw'!$P$15)/10784)*412),-999) -> -999 | J10: =IF(ISNUMBER((E10-'PIC Raw'!N$15)-((($G10-'PIC Raw'!$P$15)/10784)*1284)),(E10-'PIC Raw'!N$15)-((($G10-'PIC Raw'!$P$15)/10784)*1284),-999) -> -999 | K10: =IF(ISNUMBER((F10-'PIC Raw'!O$15)-((($G10-'PIC Raw'!$P$15)/10784)*7.9)),(F10-'PIC Raw'!O$15)-((($G10-'PIC Raw'!$P$15)/10784)*7.9),-999) -> -999 | M10: -999 | N10: -999 | O10: -999 | Q10: -999 | R10: -999 | S10: -999 | U10: -999 | W10: -999 | X10: -999 | Y10: ='PIC Raw'!I10 -> 
A11: ='PIC Raw'!A11 -> 0 | B11: ='PIC Raw'!C11 ->  | C11: ='PIC Raw'!D11 -> 0 | D11: =IF(ISBLANK('PIC Raw'!E11),"",'PIC Raw'!E11) ->  | E11: =IF(ISBLANK('PIC Raw'!F11),"",'PIC Raw'!F11) ->  | F11: =IF(ISBLANK('PIC Raw'!G11),"",'PIC Raw'!G11) ->  | G11: =IF(ISBLANK('PIC Raw'!H11),"",'PIC Raw'!H11) ->  | I11: =IF(ISNUMBER((D11-'PIC Raw'!M$15)-((($G11-'PIC Raw'!$P$15)/10784)*412)),(D11-'PIC Raw'!M$15)-((($G11-'PIC Raw'!$P$15)/10784)*412),-999) -> -999 | J11: =IF(ISNUMBER((E11-'PIC Raw'!N$15)-((($G11-'PIC Raw'!$P$15)/10784)*1284)),(E11-'PIC Raw'!N$15)-((($G11-'PIC Raw'!$P$15)/10784)*1284),-999) -> -999 | K11: =IF(ISNUMBER((F11-'PIC Raw'!O$15)-((($G11-'PIC Raw'!$P$15)/10784)*7.9)),(F11-'PIC Raw'!O$15)-((($G11-'PIC Raw'!$P$15)/10784)*7.9),-999) -> -999 | M11: -999 | N11: -999 | O11: -999 | Q11: -999 | R11: -999 | S11: -999 | U11: -999 | W11: -999 | X11: -999 | Y11: ='PIC Raw'!I11 -> 
A12: ='PIC Raw'!A12 -> 0 | B12: ='PIC Raw'!C12 ->  | C12: ='PIC Raw'!D12 -> 0 | D12: =IF(ISBLANK('PIC Raw'!E12),"",'PIC Raw'!E12) ->  | E12: =IF(ISBLANK('PIC Raw'!F12),"",'PIC Raw'!F12) ->  | F12: =IF(ISBLANK('PIC Raw'!G12),"",'PIC Raw'!G12) ->  | G12: =IF(ISBLANK('PIC Raw'!H12),"",'PIC Raw'!H12) ->  | I12: =IF(ISNUMBER((D12-'PIC Raw'!M$15)-((($G12-'PIC Raw'!$P$15)/10784)*412)),(D12-'PIC Raw'!M$15)-((($G12-'PIC Raw'!$P$15)/10784)*412),-999) -> -999 | J12: =IF(ISNUMBER((E12-'PIC Raw'!N$15)-((($G12-'PIC Raw'!$P$15)/10784)*1284)),(E12-'PIC Raw'!N$15)-((($G12-'PIC Raw'!$P$15)/10784)*1284),-999) -> -999 | K12: =IF(ISNUMBER((F12-'PIC Raw'!O$15)-((($G12-'PIC Raw'!$P$15)/10784)*7.9)),(F12-'PIC Raw'!O$15)-((($G12-'PIC Raw'!$P$15)/10784)*7.9),-999) -> -999 | M12: -999 | N12: -999 | O12: -999 | Q12: -999 | R12: -999 | S12: -999 | U12: -999 | W12: -999 | X12: -999 | Y12: ='PIC Raw'!I12 -> 
A13: ='PIC Raw'!A13 -> 0 | B13: ='PIC Raw'!C13 ->  | C13: ='PIC Raw'!D13 -> 0 | D13: =IF(ISBLANK('PIC Raw'!E13),"",'PIC Raw'!E13) ->  | E13: =IF(ISBLANK('PIC Raw'!F13),"",'PIC Raw'!F13) ->  | F13: =IF(ISBLANK('PIC Raw'!G13),"",'PIC Raw'!G13) ->  | G13: =IF(ISBLANK('PIC Raw'!H13),"",'PIC Raw'!H13) ->  | I13: =IF(ISNUMBER((D13-'PIC Raw'!M$15)-((($G13-'PIC Raw'!$P$15)/10784)*412)),(D13-'PIC Raw'!M$15)-((($G13-'PIC Raw'!$P$15)/10784)*412),-999) -> -999 | J13: =IF(ISNUMBER((E13-'PIC Raw'!N$15)-((($G13-'PIC Raw'!$P$15)/10784)*1284)),(E13-'PIC Raw'!N$15)-((($G13-'PIC Raw'!$P$15)/10784)*1284),-999) -> -999 | K13: =IF(ISNUMBER((F13-'PIC Raw'!O$15)-((($G13-'PIC Raw'!$P$15)/10784)*7.9)),(F13-'PIC Raw'!O$15)-((($G13-'PIC Raw'!$P$15)/10784)*7.9),-999) -> -999 | M13: -999 | N13: -999 | O13: -999 | Q13: -999 | R13: -999 | S13: -999 | U13: -999 | W13: -999 | X13: -999 | Y13: ='PIC Raw'!I13 -> 
A14: ='PIC Raw'!A14 -> 0 | B14: ='PIC Raw'!C14 ->  | C14: ='PIC Raw'!D14 -> 0 | D14: =IF(ISBLANK('PIC Raw'!E14),"",'PIC Raw'!E14) ->  | E14: =IF(ISBLANK('PIC Raw'!F14),"",'PIC Raw'!F14) ->  | F14: =IF(ISBLANK('PIC Raw'!G14),"",'PIC Raw'!G14) ->  | G14: =IF(ISBLANK('PIC Raw'!H14),"",'PIC Raw'!H14) ->  | I14: =IF(ISNUMBER((D14-'PIC Raw'!M$15)-((($G14-'PIC Raw'!$P$15)/10784)*412)),(D14-'PIC Raw'!M$15)-((($G14-'PIC Raw'!$P$15)/10784)*412),-999) -> -999 | J14: =IF(ISNUMBER((E14-'PIC Raw'!N$15)-((($G14-'PIC Raw'!$P$15)/10784)*1284)),(E14-'PIC Raw'!N$15)-((($G14-'PIC Raw'!$P$15)/10784)*1284),-999) -> -999 | K14: =IF(ISNUMBER((F14-'PIC Raw'!O$15)-((($G14-'PIC Raw'!$P$15)/10784)*7.9)),(F14-'PIC Raw'!O$15)-((($G14-'PIC Raw'!$P$15)/10784)*7.9),-999) -> -999 | M14: -999 | N14: -999 | O14: -999 | Q14: -999 | R14: -999 | S14: -999 | U14: -999 | W14: -999 | X14: -999 | Y14: ='PIC Raw'!I14 -> 
A15: ='PIC Raw'!A15 -> 0 | B15: ='PIC Raw'!C15 ->  | C15: ='PIC Raw'!D15 -> 0 | D15: =IF(ISBLANK('PIC Raw'!E15),"",'PIC Raw'!E15) ->  | E15: =IF(ISBLANK('PIC Raw'!F15),"",'PIC Raw'!F15) ->  | F15: =IF(ISBLANK('PIC Raw'!G15),"",'PIC Raw'!G15) ->  | G15: =IF(ISBLANK('PIC Raw'!H15),"",'PIC Raw'!H15) ->  | I15: =IF(ISNUMBER((D15-'PIC Raw'!M$15)-((($G15-'PIC Raw'!$P$15)/10784)*412)),(D15-'PIC Raw'!M$15)-((($G15-'PIC Raw'!$P$15)/10784)*412),-999) -> -999 | J15: =IF(ISNUMBER((E15-'PIC Raw'!N$15)-((($G15-'PIC Raw'!$P$15)/10784)*1284)),(E15-'PIC Raw'!N$15)-((($G15-'PIC Raw'!$P$15)/10784)*1284),-999) -> -999 | K15: =IF(ISNUMBER((F15-'PIC Raw'!O$15)-((($G15-'PIC Raw'!$P$15)/10784)*7.9)),(F15-'PIC Raw'!O$15)-((($G15-'PIC Raw'!$P$15)/10784)*7.9),-999) -> -999 | M15: -999 | N15: -999 | O15: -999 | Q15: -999 | R15: -999 | S15: -999 | U15: -999 | W15: -999 | X15: -999 | Y15: ='PIC Raw'!I15 -> 
A16: ='PIC Raw'!A16 -> 0 | B16: ='PIC Raw'!C16 ->  | C16: ='PIC Raw'!D16 -> 0 | D16: =IF(ISBLANK('PIC Raw'!E16),"",'PIC Raw'!E16) ->  | E16: =IF(ISBLANK('PIC Raw'!F16),"",'PIC Raw'!F16) ->  | F16: =IF(ISBLANK('PIC Raw'!G16),"",'PIC Raw'!G16) ->  | G16: =IF(ISBLANK('PIC Raw'!H16),"",'PIC Raw'!H16) ->  | I16: =IF(ISNUMBER((D16-'PIC Raw'!M$15)-((($G16-'PIC Raw'!$P$15)/10784)*412)),(D16-'PIC Raw'!M$15)-((($G16-'PIC Raw'!$P$15)/10784)*412),-999) -> -999 | J16: =IF(ISNUMBER((E16-'PIC Raw'!N$15)-((($G16-'PIC Raw'!$P$15)/10784)*1284)),(E16-'PIC Raw'!N$15)-((($G16-'PIC Raw'!$P$15)/10784)*1284),-999) -> -999 | K16: =IF(ISNUMBER((F16-'PIC Raw'!O$15)-((($G16-'PIC Raw'!$P$15)/10784)*7.9)),(F16-'PIC Raw'!O$15)-((($G16-'PIC Raw'!$P$15)/10784)*7.9),-999) -> -999 | M16: -999 | N16: -999 | O16: -999 | Q16: -999 | R16: -999 | S16: -999 | U16: -999 | W16: -999 | X16: -999 | Y16: ='PIC Raw'!I16 -> 
A17: ='PIC Raw'!A17 -> 0 | B17: ='PIC Raw'!C17 ->  | C17: ='PIC Raw'!D17 -> 0 | D17: =IF(ISBLANK('PIC Raw'!E17),"",'PIC Raw'!E17) ->  | E17: =IF(ISBLANK('PIC Raw'!F17),"",'PIC Raw'!F17) ->  | F17: =IF(ISBLANK('PIC Raw'!G17),"",'PIC Raw'!G17) ->  | G17: =IF(ISBLANK('PIC Raw'!H17),"",'PIC Raw'!H17) ->  | I17: =IF(ISNUMBER((D17-'PIC Raw'!M$15)-((($G17-'PIC Raw'!$P$15)/10784)*412)),(D17-'PIC Raw'!M$15)-((($G17-'PIC Raw'!$P$15)/10784)*412),-999) -> -999 | J17: =IF(ISNUMBER((E17-'PIC Raw'!N$15)-((($G17-'PIC Raw'!$P$15)/10784)*1284)),(E17-'PIC Raw'!N$15)-((($G17-'PIC Raw'!$P$15)/10784)*1284),-999) -> -999 | K17: =IF(ISNUMBER((F17-'PIC Raw'!O$15)-((($G17-'PIC Raw'!$P$15)/10784)*7.9)),(F17-'PIC Raw'!O$15)-((($G17-'PIC Raw'!$P$15)/10784)*7.9),-999) -> -999 | M17: -999 | N17: -999 | O17: -999 | Q17: -999 | R17: -999 | S17: -999 | U17: -999 | W17: -999 | X17: -999 | Y17: ='PIC Raw'!I17 -> 
A18: ='PIC Raw'!A18 -> 0 | B18: ='PIC Raw'!C18 ->  | C18: ='PIC Raw'!D18 -> 0 | D18: =IF(ISBLANK('PIC Raw'!E18),"",'PIC Raw'!E18) ->  | E18: =IF(ISBLANK('PIC Raw'!F18),"",'PIC Raw'!F18) ->  | F18: =IF(ISBLANK('PIC Raw'!G18),"",'PIC Raw'!G18) ->  | G18: =IF(ISBLANK('PIC Raw'!H18),"",'PIC Raw'!H18) ->  | I18: =IF(ISNUMBER((D18-'PIC Raw'!M$15)-((($G18-'PIC Raw'!$P$15)/10784)*412)),(D18-'PIC Raw'!M$15)-((($G18-'PIC Raw'!$P$15)/10784)*412),-999) -> -999 | J18: =IF(ISNUMBER((E18-'PIC Raw'!N$15)-((($G18-'PIC Raw'!$P$15)/10784)*1284)),(E18-'PIC Raw'!N$15)-((($G18-'PIC Raw'!$P$15)/10784)*1284),-999) -> -999 | K18: =IF(ISNUMBER((F18-'PIC Raw'!O$15)-((($G18-'PIC Raw'!$P$15)/10784)*7.9)),(F18-'PIC Raw'!O$15)-((($G18-'PIC Raw'!$P$15)/10784)*7.9),-999) -> -999 | M18: -999 | N18: -999 | O18: -999 | Q18: -999 | R18: -999 | S18: -999 | U18: -999 | W18: -999 | X18: -999 | Y18: ='PIC Raw'!I18 -> 
A19: ='PIC Raw'!A19 -> 0 | B19: ='PIC Raw'!C19 ->  | C19: ='PIC Raw'!D19 -> 0 | D19: =IF(ISBLANK('PIC Raw'!E19),"",'PIC Raw'!E19) ->  | E19: =IF(ISBLANK('PIC Raw'!F19),"",'PIC Raw'!F19) ->  | F19: =IF(ISBLANK('PIC Raw'!G19),"",'PIC Raw'!G19) ->  | G19: =IF(ISBLANK('PIC Raw'!H19),"",'PIC Raw'!H19) ->  | I19: =IF(ISNUMBER((D19-'PIC Raw'!M$15)-((($G19-'PIC Raw'!$P$15)/10784)*412)),(D19-'PIC Raw'!M$15)-((($G19-'PIC Raw'!$P$15)/10784)*412),-999) -> -999 | J19: =IF(ISNUMBER((E19-'PIC Raw'!N$15)-((($G19-'PIC Raw'!$P$15)/10784)*1284)),(E19-'PIC Raw'!N$15)-((($G19-'PIC Raw'!$P$15)/10784)*1284),-999) -> -999 | K19: =IF(ISNUMBER((F19-'PIC Raw'!O$15)-((($G19-'PIC Raw'!$P$15)/10784)*7.9)),(F19-'PIC Raw'!O$15)-((($G19-'PIC Raw'!$P$15)/10784)*7.9),-999) -> -999 | M19: -999 | N19: -999 | O19: -999 | Q19: -999 | R19: -999 | S19: -999 | U19: -999 | W19: -999 | X19: -999 | Y19: ='PIC Raw'!I19 -> 
A20: ='PIC Raw'!A20 -> 0 | B20: ='PIC Raw'!C20 ->  | C20: ='PIC Raw'!D20 -> 0 | D20: =IF(ISBLANK('PIC Raw'!E20),"",'PIC Raw'!E20) ->  | E20: =IF(ISBLANK('PIC Raw'!F20),"",'PIC Raw'!F20) ->  | F20: =IF(ISBLANK('PIC Raw'!G20),"",'PIC Raw'!G20) ->  | G20: =IF(ISBLANK('PIC Raw'!H20),"",'PIC Raw'!H20) ->  | I20: =IF(ISNUMBER((D20-'PIC Raw'!M$15)-((($G20-'PIC Raw'!$P$15)/10784)*412)),(D20-'PIC Raw'!M$15)-((($G20-'PIC Raw'!$P$15)/10784)*412),-999) -> -999 | J20: =IF(ISNUMBER((E20-'PIC Raw'!N$15)-((($G20-'PIC Raw'!$P$15)/10784)*1284)),(E20-'PIC Raw'!N$15)-((($G20-'PIC Raw'!$P$15)/10784)*1284),-999) -> -999 | K20: =IF(ISNUMBER((F20-'PIC Raw'!O$15)-((($G20-'PIC Raw'!$P$15)/10784)*7.9)),(F20-'PIC Raw'!O$15)-((($G20-'PIC Raw'!$P$15)/10784)*7.9),-999) -> -999 | M20: -999 | N20: -999 | O20: -999 | Q20: -999 | R20: -999 | S20: -999 | U20: -999 | W20: -999 | X20: -999 | Y20: ='PIC Raw'!I20 -> 
A21: ='PIC Raw'!A21 -> 0 | B21: ='PIC Raw'!C21 ->  | C21: ='PIC Raw'!D21 -> 0 | D21: =IF(ISBLANK('PIC Raw'!E21),"",'PIC Raw'!E21) ->  | E21: =IF(ISBLANK('PIC Raw'!F21),"",'PIC Raw'!F21) ->  | F21: =IF(ISBLANK('PIC Raw'!G21),"",'PIC Raw'!G21) ->  | G21: =IF(ISBLANK('PIC Raw'!H21),"",'PIC Raw'!H21) ->  | I21: =IF(ISNUMBER((D21-'PIC Raw'!M$15)-((($G21-'PIC Raw'!$P$15)/10784)*412)),(D21-'PIC Raw'!M$15)-((($G21-'PIC Raw'!$P$15)/10784)*412),-999) -> -999 | J21: =IF(ISNUMBER((E21-'PIC Raw'!N$15)-((($G21-'PIC Raw'!$P$15)/10784)*1284)),(E21-'PIC Raw'!N$15)-((($G21-'PIC Raw'!$P$15)/10784)*1284),-999) -> -999 | K21: =IF(ISNUMBER((F21-'PIC Raw'!O$15)-((($G21-'PIC Raw'!$P$15)/10784)*7.9)),(F21-'PIC Raw'!O$15)-((($G21-'PIC Raw'!$P$15)/10784)*7.9),-999) -> -999 | M21: -999 | N21: -999 | O21: -999 | Q21: -999 | R21: -999 | S21: -999 | U21: -999 | W21: -999 | X21: -999 | Y21: ='PIC Raw'!I21 -> 
A22: ='PIC Raw'!A22 -> 0 | B22: ='PIC Raw'!C22 ->  | C22: ='PIC Raw'!D22 -> 0 | D22: =IF(ISBLANK('PIC Raw'!E22),"",'PIC Raw'!E22) ->  | E22: =IF(ISBLANK('PIC Raw'!F22),"",'PIC Raw'!F22) ->  | F22: =IF(ISBLANK('PIC Raw'!G22),"",'PIC Raw'!G22) ->  | G22: =IF(ISBLANK('PIC Raw'!H22),"",'PIC Raw'!H22) ->  | I22: =IF(ISNUMBER((D22-'PIC Raw'!M$15)-((($G22-'PIC Raw'!$P$15)/10784)*412)),(D22-'PIC Raw'!M$15)-((($G22-'PIC Raw'!$P$15)/10784)*412),-999) -> -999 | J22: =IF(ISNUMBER((E22-'PIC Raw'!N$15)-((($G22-'PIC Raw'!$P$15)/10784)*1284)),(E22-'PIC Raw'!N$15)-((($G22-'PIC Raw'!$P$15)/10784)*1284),-999) -> -999 | K22: =IF(ISNUMBER((F22-'PIC Raw'!O$15)-((($G22-'PIC Raw'!$P$15)/10784)*7.9)),(F22-'PIC Raw'!O$15)-((($G22-'PIC Raw'!$P$15)/10784)*7.9),-999) -> -999 | M22: -999 | N22: -999 | O22: -999 | Q22: -999 | R22: -999 | S22: -999 | U22: -999 | W22: -999 | X22: -999 | Y22: ='PIC Raw'!I22 -> 
A23: ='PIC Raw'!A23 -> 0 | B23: ='PIC Raw'!C23 ->  | C23: ='PIC Raw'!D23 -> 0 | D23: =IF(ISBLANK('PIC Raw'!E23),"",'PIC Raw'!E23) ->  | E23: =IF(ISBLANK('PIC Raw'!F23),"",'PIC Raw'!F23) ->  | F23: =IF(ISBLANK('PIC Raw'!G23),"",'PIC Raw'!G23) ->  | G23: =IF(ISBLANK('PIC Raw'!H23),"",'PIC Raw'!H23) ->  | I23: =IF(ISNUMBER((D23-'PIC Raw'!M$15)-((($G23-'PIC Raw'!$P$15)/10784)*412)),(D23-'PIC Raw'!M$15)-((($G23-'PIC Raw'!$P$15)/10784)*412),-999) -> -999 | J23: =IF(ISNUMBER((E23-'PIC Raw'!N$15)-((($G23-'PIC Raw'!$P$15)/10784)*1284)),(E23-'PIC Raw'!N$15)-((($G23-'PIC Raw'!$P$15)/10784)*1284),-999) -> -999 | K23: =IF(ISNUMBER((F23-'PIC Raw'!O$15)-((($G23-'PIC Raw'!$P$15)/10784)*7.9)),(F23-'PIC Raw'!O$15)-((($G23-'PIC Raw'!$P$15)/10784)*7.9),-999) -> -999 | M23: -999 | N23: -999 | O23: -999 | Q23: -999 | R23: -999 | S23: -999 | U23: -999 | W23: -999 | X23: -999 | Y23: ='PIC Raw'!I23 -> 
A24: ='PIC Raw'!A24 -> 0 | B24: ='PIC Raw'!C24 ->  | C24: ='PIC Raw'!D24 -> 0 | D24: =IF(ISBLANK('PIC Raw'!E24),"",'PIC Raw'!E24) ->  | E24: =IF(ISBLANK('PIC Raw'!F24),"",'PIC Raw'!F24) ->  | F24: =IF(ISBLANK('PIC Raw'!G24),"",'PIC Raw'!G24) ->  | G24: =IF(ISBLANK('PIC Raw'!H24),"",'PIC Raw'!H24) ->  | I24: =IF(ISNUMBER((D24-'PIC Raw'!M$15)-((($G24-'PIC Raw'!$P$15)/10784)*412)),(D24-'PIC Raw'!M$15)-((($G24-'PIC Raw'!$P$15)/10784)*412),-999) -> -999 | J24: =IF(ISNUMBER((E24-'PIC Raw'!N$15)-((($G24-'PIC Raw'!$P$15)/10784)*1284)),(E24-'PIC Raw'!N$15)-((($G24-'PIC Raw'!$P$15)/10784)*1284),-999) -> -999 | K24: =IF(ISNUMBER((F24-'PIC Raw'!O$15)-((($G24-'PIC Raw'!$P$15)/10784)*7.9)),(F24-'PIC Raw'!O$15)-((($G24-'PIC Raw'!$P$15)/10784)*7.9),-999) -> -999 | M24: -999 | N24: -999 | O24: -999 | Q24: -999 | R24: -999 | S24: -999 | U24: -999 | W24: -999 | X24: -999 | Y24: ='PIC Raw'!I24 -> 
A25: ='PIC Raw'!A25 -> 0 | B25: ='PIC Raw'!C25 ->  | C25: ='PIC Raw'!D25 -> 0 | D25: =IF(ISBLANK('PIC Raw'!E25),"",'PIC Raw'!E25) ->  | E25: =IF(ISBLANK('PIC Raw'!F25),"",'PIC Raw'!F25) ->  | F25: =IF(ISBLANK('PIC Raw'!G25),"",'PIC Raw'!G25) ->  | G25: =IF(ISBLANK('PIC Raw'!H25),"",'PIC Raw'!H25) ->  | I25: =IF(ISNUMBER((D25-'PIC Raw'!M$15)-((($G25-'PIC Raw'!$P$15)/10784)*412)),(D25-'PIC Raw'!M$15)-((($G25-'PIC Raw'!$P$15)/10784)*412),-999) -> -999 | J25: =IF(ISNUMBER((E25-'PIC Raw'!N$15)-((($G25-'PIC Raw'!$P$15)/10784)*1284)),(E25-'PIC Raw'!N$15)-((($G25-'PIC Raw'!$P$15)/10784)*1284),-999) -> -999 | K25: =IF(ISNUMBER((F25-'PIC Raw'!O$15)-((($G25-'PIC Raw'!$P$15)/10784)*7.9)),(F25-'PIC Raw'!O$15)-((($G25-'PIC Raw'!$P$15)/10784)*7.9),-999) -> -999 | M25: -999 | N25: -999 | O25: -999 | Q25: -999 | R25: -999 | S25: -999 | U25: -999 | W25: -999 | X25: -999 | Y25: ='PIC Raw'!I25 -> 
A26: ='PIC Raw'!A26 -> 0 | B26: ='PIC Raw'!C26 ->  | C26: ='PIC Raw'!D26 -> 0 | D26: =IF(ISBLANK('PIC Raw'!E26),"",'PIC Raw'!E26) ->  | E26: =IF(ISBLANK('PIC Raw'!F26),"",'PIC Raw'!F26) ->  | F26: =IF(ISBLANK('PIC Raw'!G26),"",'PIC Raw'!G26) ->  | G26: =IF(ISBLANK('PIC Raw'!H26),"",'PIC Raw'!H26) ->  | I26: =IF(ISNUMBER((D26-'PIC Raw'!M$15)-((($G26-'PIC Raw'!$P$15)/10784)*412)),(D26-'PIC Raw'!M$15)-((($G26-'PIC Raw'!$P$15)/10784)*412),-999) -> -999 | J26: =IF(ISNUMBER((E26-'PIC Raw'!N$15)-((($G26-'PIC Raw'!$P$15)/10784)*1284)),(E26-'PIC Raw'!N$15)-((($G26-'PIC Raw'!$P$15)/10784)*1284),-999) -> -999 | K26: =IF(ISNUMBER((F26-'PIC Raw'!O$15)-((($G26-'PIC Raw'!$P$15)/10784)*7.9)),(F26-'PIC Raw'!O$15)-((($G26-'PIC Raw'!$P$15)/10784)*7.9),-999) -> -999 | M26: -999 | N26: -999 | O26: -999 | Q26: -999 | R26: -999 | S26: -999 | U26: -999 | W26: -999 | X26: -999 | Y26: ='PIC Raw'!I26 -> 
A27: ='PIC Raw'!A27 -> 0 | B27: ='PIC Raw'!C27 ->  | C27: ='PIC Raw'!D27 -> 0 | D27: =IF(ISBLANK('PIC Raw'!E27),"",'PIC Raw'!E27) ->  | E27: =IF(ISBLANK('PIC Raw'!F27),"",'PIC Raw'!F27) ->  | F27: =IF(ISBLANK('PIC Raw'!G27),"",'PIC Raw'!G27) ->  | G27: =IF(ISBLANK('PIC Raw'!H27),"",'PIC Raw'!H27) ->  | I27: =IF(ISNUMBER((D27-'PIC Raw'!M$15)-((($G27-'PIC Raw'!$P$15)/10784)*412)),(D27-'PIC Raw'!M$15)-((($G27-'PIC Raw'!$P$15)/10784)*412),-999) -> -999 | J27: =IF(ISNUMBER((E27-'PIC Raw'!N$15)-((($G27-'PIC Raw'!$P$15)/10784)*1284)),(E27-'PIC Raw'!N$15)-((($G27-'PIC Raw'!$P$15)/10784)*1284),-999) -> -999 | K27: =IF(ISNUMBER((F27-'PIC Raw'!O$15)-((($G27-'PIC Raw'!$P$15)/10784)*7.9)),(F27-'PIC Raw'!O$15)-((($G27-'PIC Raw'!$P$15)/10784)*7.9),-999) -> -999 | M27: -999 | N27: -999 | O27: -999 | Q27: -999 | R27: -999 | S27: -999 | U27: -999 | W27: -999 | X27: -999 | Y27: ='PIC Raw'!I27 -> 
A28: ='PIC Raw'!A28 -> 0 | B28: ='PIC Raw'!C28 ->  | C28: ='PIC Raw'!D28 -> 0 | D28: =IF(ISBLANK('PIC Raw'!E28),"",'PIC Raw'!E28) ->  | E28: =IF(ISBLANK('PIC Raw'!F28),"",'PIC Raw'!F28) ->  | F28: =IF(ISBLANK('PIC Raw'!G28),"",'PIC Raw'!G28) ->  | G28: =IF(ISBLANK('PIC Raw'!H28),"",'PIC Raw'!H28) ->  | I28: =IF(ISNUMBER((D28-'PIC Raw'!M$15)-((($G28-'PIC Raw'!$P$15)/10784)*412)),(D28-'PIC Raw'!M$15)-((($G28-'PIC Raw'!$P$15)/10784)*412),-999) -> -999 | J28: =IF(ISNUMBER((E28-'PIC Raw'!N$15)-((($G28-'PIC Raw'!$P$15)/10784)*1284)),(E28-'PIC Raw'!N$15)-((($G28-'PIC Raw'!$P$15)/10784)*1284),-999) -> -999 | K28: =IF(ISNUMBER((F28-'PIC Raw'!O$15)-((($G28-'PIC Raw'!$P$15)/10784)*7.9)),(F28-'PIC Raw'!O$15)-((($G28-'PIC Raw'!$P$15)/10784)*7.9),-999) -> -999 | M28: -999 | N28: -999 | O28: -999 | Q28: -999 | R28: -999 | S28: -999 | U28: -999 | W28: -999 | X28: -999 | Y28: ='PIC Raw'!I28 -> 
A29: ='PIC Raw'!A29 -> 0 | B29: ='PIC Raw'!C29 ->  | C29: ='PIC Raw'!D29 -> 0 | D29: =IF(ISBLANK('PIC Raw'!E29),"",'PIC Raw'!E29) ->  | E29: =IF(ISBLANK('PIC Raw'!F29),"",'PIC Raw'!F29) ->  | F29: =IF(ISBLANK('PIC Raw'!G29),"",'PIC Raw'!G29) ->  | G29: =IF(ISBLANK('PIC Raw'!H29),"",'PIC Raw'!H29) ->  | I29: =IF(ISNUMBER((D29-'PIC Raw'!M$15)-((($G29-'PIC Raw'!$P$15)/10784)*412)),(D29-'PIC Raw'!M$15)-((($G29-'PIC Raw'!$P$15)/10784)*412),-999) -> -999 | J29: =IF(ISNUMBER((E29-'PIC Raw'!N$15)-((($G29-'PIC Raw'!$P$15)/10784)*1284)),(E29-'PIC Raw'!N$15)-((($G29-'PIC Raw'!$P$15)/10784)*1284),-999) -> -999 | K29: =IF(ISNUMBER((F29-'PIC Raw'!O$15)-((($G29-'PIC Raw'!$P$15)/10784)*7.9)),(F29-'PIC Raw'!O$15)-((($G29-'PIC Raw'!$P$15)/10784)*7.9),-999) -> -999 | M29: -999 | N29: -999 | O29: -999 | Q29: -999 | R29: -999 | S29: -999 | U29: -999 | W29: -999 | X29: -999 | Y29: ='PIC Raw'!I29 -> 
A30: ='PIC Raw'!A30 -> 0 | B30: ='PIC Raw'!C30 ->  | C30: ='PIC Raw'!D30 -> 0 | D30: =IF(ISBLANK('PIC Raw'!E30),"",'PIC Raw'!E30) ->  | E30: =IF(ISBLANK('PIC Raw'!F30),"",'PIC Raw'!F30) ->  | F30: =IF(ISBLANK('PIC Raw'!G30),"",'PIC Raw'!G30) ->  | G30: =IF(ISBLANK('PIC Raw'!H30),"",'PIC Raw'!H30) ->  | I30: =IF(ISNUMBER((D30-'PIC Raw'!M$15)-((($G30-'PIC Raw'!$P$15)/10784)*412)),(D30-'PIC Raw'!M$15)-((($G30-'PIC Raw'!$P$15)/10784)*412),-999) -> -999 | J30: =IF(ISNUMBER((E30-'PIC Raw'!N$15)-((($G30-'PIC Raw'!$P$15)/10784)*1284)),(E30-'PIC Raw'!N$15)-((($G30-'PIC Raw'!$P$15)/10784)*1284),-999) -> -999 | K30: =IF(ISNUMBER((F30-'PIC Raw'!O$15)-((($G30-'PIC Raw'!$P$15)/10784)*7.9)),(F30-'PIC Raw'!O$15)-((($G30-'PIC Raw'!$P$15)/10784)*7.9),-999) -> -999 | M30: -999 | N30: -999 | O30: -999 | Q30: -999 | R30: -999 | S30: -999 | U30: -999 | W30: -999 | X30: -999 | Y30: ='PIC Raw'!I30 -> 
A31: ='PIC Raw'!A31 -> 0 | B31: ='PIC Raw'!C31 ->  | C31: ='PIC Raw'!D31 -> 0 | D31: =IF(ISBLANK('PIC Raw'!E31),"",'PIC Raw'!E31) ->  | E31: =IF(ISBLANK('PIC Raw'!F31),"",'PIC Raw'!F31) ->  | F31: =IF(ISBLANK('PIC Raw'!G31),"",'PIC Raw'!G31) ->  | G31: =IF(ISBLANK('PIC Raw'!H31),"",'PIC Raw'!H31) ->  | I31: =IF(ISNUMBER((D31-'PIC Raw'!M$15)-((($G31-'PIC Raw'!$P$15)/10784)*412)),(D31-'PIC Raw'!M$15)-((($G31-'PIC Raw'!$P$15)/10784)*412),-999) -> -999 | J31: =IF(ISNUMBER((E31-'PIC Raw'!N$15)-((($G31-'PIC Raw'!$P$15)/10784)*1284)),(E31-'PIC Raw'!N$15)-((($G31-'PIC Raw'!$P$15)/10784)*1284),-999) -> -999 | K31: =IF(ISNUMBER((F31-'PIC Raw'!O$15)-((($G31-'PIC Raw'!$P$15)/10784)*7.9)),(F31-'PIC Raw'!O$15)-((($G31-'PIC Raw'!$P$15)/10784)*7.9),-999) -> -999 | M31: -999 | N31: -999 | O31: -999 | Q31: -999 | R31: -999 | S31: -999 | U31: -999 | W31: -999 | X31: -999 | Y31: ='PIC Raw'!I31 -> 
A32: ='PIC Raw'!A32 -> 0 | B32: ='PIC Raw'!C32 ->  | C32: ='PIC Raw'!D32 -> 0 | D32: =IF(ISBLANK('PIC Raw'!E32),"",'PIC Raw'!E32) ->  | E32: =IF(ISBLANK('PIC Raw'!F32),"",'PIC Raw'!F32) ->  | F32: =IF(ISBLANK('PIC Raw'!G32),"",'PIC Raw'!G32) ->  | G32: =IF(ISBLANK('PIC Raw'!H32),"",'PIC Raw'!H32) ->  | I32: =IF(ISNUMBER((D32-'PIC Raw'!M$15)-((($G32-'PIC Raw'!$P$15)/10784)*412)),(D32-'PIC Raw'!M$15)-((($G32-'PIC Raw'!$P$15)/10784)*412),-999) -> -999 | J32: =IF(ISNUMBER((E32-'PIC Raw'!N$15)-((($G32-'PIC Raw'!$P$15)/10784)*1284)),(E32-'PIC Raw'!N$15)-((($G32-'PIC Raw'!$P$15)/10784)*1284),-999) -> -999 | K32: =IF(ISNUMBER((F32-'PIC Raw'!O$15)-((($G32-'PIC Raw'!$P$15)/10784)*7.9)),(F32-'PIC Raw'!O$15)-((($G32-'PIC Raw'!$P$15)/10784)*7.9),-999) -> -999 | M32: -999 | N32: -999 | O32: -999 | Q32: -999 | R32: -999 | S32: -999 | U32: -999 | W32: -999 | X32: -999 | Y32: ='PIC Raw'!I32 -> 
A33: ='PIC Raw'!A33 -> 0 | B33: ='PIC Raw'!C33 ->  | C33: ='PIC Raw'!D33 -> 0 | D33: =IF(ISBLANK('PIC Raw'!E33),"",'PIC Raw'!E33) ->  | E33: =IF(ISBLANK('PIC Raw'!F33),"",'PIC Raw'!F33) ->  | F33: =IF(ISBLANK('PIC Raw'!G33),"",'PIC Raw'!G33) ->  | G33: =IF(ISBLANK('PIC Raw'!H33),"",'PIC Raw'!H33) ->  | I33: =IF(ISNUMBER((D33-'PIC Raw'!M$15)-((($G33-'PIC Raw'!$P$15)/10784)*412)),(D33-'PIC Raw'!M$15)-((($G33-'PIC Raw'!$P$15)/10784)*412),-999) -> -999 | J33: =IF(ISNUMBER((E33-'PIC Raw'!N$15)-((($G33-'PIC Raw'!$P$15)/10784)*1284)),(E33-'PIC Raw'!N$15)-((($G33-'PIC Raw'!$P$15)/10784)*1284),-999) -> -999 | K33: =IF(ISNUMBER((F33-'PIC Raw'!O$15)-((($G33-'PIC Raw'!$P$15)/10784)*7.9)),(F33-'PIC Raw'!O$15)-((($G33-'PIC Raw'!$P$15)/10784)*7.9),-999) -> -999 | M33: -999 | N33: -999 | O33: -999 | Q33: -999 | R33: -999 | S33: -999 | U33: -999 | W33: -999 | X33: -999 | Y33: ='PIC Raw'!I33 -> 
A34: ='PIC Raw'!A34 -> 0 | B34: ='PIC Raw'!C34 ->  | C34: ='PIC Raw'!D34 -> 0 | D34: =IF(ISBLANK('PIC Raw'!E34),"",'PIC Raw'!E34) ->  | E34: =IF(ISBLANK('PIC Raw'!F34),"",'PIC Raw'!F34) ->  | F34: =IF(ISBLANK('PIC Raw'!G34),"",'PIC Raw'!G34) ->  | G34: =IF(ISBLANK('PIC Raw'!H34),"",'PIC Raw'!H34) ->  | I34: =IF(ISNUMBER((D34-'PIC Raw'!M$15)-((($G34-'PIC Raw'!$P$15)/10784)*412)),(D34-'PIC Raw'!M$15)-((($G34-'PIC Raw'!$P$15)/10784)*412),-999) -> -999 | J34: =IF(ISNUMBER((E34-'PIC Raw'!N$15)-((($G34-'PIC Raw'!$P$15)/10784)*1284)),(E34-'PIC Raw'!N$15)-((($G34-'PIC Raw'!$P$15)/10784)*1284),-999) -> -999 | K34: =IF(ISNUMBER((F34-'PIC Raw'!O$15)-((($G34-'PIC Raw'!$P$15)/10784)*7.9)),(F34-'PIC Raw'!O$15)-((($G34-'PIC Raw'!$P$15)/10784)*7.9),-999) -> -999 | M34: -999 | N34: -999 | O34: -999 | Q34: -999 | R34: -999 | S34: -999 | U34: -999 | W34: -999 | X34: -999 | Y34: ='PIC Raw'!I34 -> 
A35: ='PIC Raw'!A35 -> 0 | B35: ='PIC Raw'!C35 ->  | C35: ='PIC Raw'!D35 -> 0 | D35: =IF(ISBLANK('PIC Raw'!E35),"",'PIC Raw'!E35) ->  | E35: =IF(ISBLANK('PIC Raw'!F35),"",'PIC Raw'!F35) ->  | F35: =IF(ISBLANK('PIC Raw'!G35),"",'PIC Raw'!G35) ->  | G35: =IF(ISBLANK('PIC Raw'!H35),"",'PIC Raw'!H35) ->  | I35: =IF(ISNUMBER((D35-'PIC Raw'!M$15)-((($G35-'PIC Raw'!$P$15)/10784)*412)),(D35-'PIC Raw'!M$15)-((($G35-'PIC Raw'!$P$15)/10784)*412),-999) -> -999 | J35: =IF(ISNUMBER((E35-'PIC Raw'!N$15)-((($G35-'PIC Raw'!$P$15)/10784)*1284)),(E35-'PIC Raw'!N$15)-((($G35-'PIC Raw'!$P$15)/10784)*1284),-999) -> -999 | K35: =IF(ISNUMBER((F35-'PIC Raw'!O$15)-((($G35-'PIC Raw'!$P$15)/10784)*7.9)),(F35-'PIC Raw'!O$15)-((($G35-'PIC Raw'!$P$15)/10784)*7.9),-999) -> -999 | M35: -999 | N35: -999 | O35: -999 | Q35: -999 | R35: -999 | S35: -999 | U35: -999 | W35: -999 | X35: -999 | Y35: ='PIC Raw'!I35 -> 
A36: ='PIC Raw'!A36 -> 0 | B36: ='PIC Raw'!C36 ->  | C36: ='PIC Raw'!D36 -> 0 | D36: =IF(ISBLANK('PIC Raw'!E36),"",'PIC Raw'!E36) ->  | E36: =IF(ISBLANK('PIC Raw'!F36),"",'PIC Raw'!F36) ->  | F36: =IF(ISBLANK('PIC Raw'!G36),"",'PIC Raw'!G36) ->  | G36: =IF(ISBLANK('PIC Raw'!H36),"",'PIC Raw'!H36) ->  | I36: =IF(ISNUMBER((D36-'PIC Raw'!M$15)-((($G36-'PIC Raw'!$P$15)/10784)*412)),(D36-'PIC Raw'!M$15)-((($G36-'PIC Raw'!$P$15)/10784)*412),-999) -> -999 | J36: =IF(ISNUMBER((E36-'PIC Raw'!N$15)-((($G36-'PIC Raw'!$P$15)/10784)*1284)),(E36-'PIC Raw'!N$15)-((($G36-'PIC Raw'!$P$15)/10784)*1284),-999) -> -999 | K36: =IF(ISNUMBER((F36-'PIC Raw'!O$15)-((($G36-'PIC Raw'!$P$15)/10784)*7.9)),(F36-'PIC Raw'!O$15)-((($G36-'PIC Raw'!$P$15)/10784)*7.9),-999) -> -999 | M36: -999 | N36: -999 | O36: -999 | Q36: -999 | R36: -999 | S36: -999 | U36: -999 | W36: -999 | X36: -999 | Y36: ='PIC Raw'!I36 -> 
A37: ='PIC Raw'!A37 -> 0 | B37: ='PIC Raw'!C37 ->  | C37: ='PIC Raw'!D37 -> 0 | D37: =IF(ISBLANK('PIC Raw'!E37),"",'PIC Raw'!E37) ->  | E37: =IF(ISBLANK('PIC Raw'!F37),"",'PIC Raw'!F37) ->  | F37: =IF(ISBLANK('PIC Raw'!G37),"",'PIC Raw'!G37) ->  | G37: =IF(ISBLANK('PIC Raw'!H37),"",'PIC Raw'!H37) ->  | I37: =IF(ISNUMBER((D37-'PIC Raw'!M$15)-((($G37-'PIC Raw'!$P$15)/10784)*412)),(D37-'PIC Raw'!M$15)-((($G37-'PIC Raw'!$P$15)/10784)*412),-999) -> -999 | J37: =IF(ISNUMBER((E37-'PIC Raw'!N$15)-((($G37-'PIC Raw'!$P$15)/10784)*1284)),(E37-'PIC Raw'!N$15)-((($G37-'PIC Raw'!$P$15)/10784)*1284),-999) -> -999 | K37: =IF(ISNUMBER((F37-'PIC Raw'!O$15)-((($G37-'PIC Raw'!$P$15)/10784)*7.9)),(F37-'PIC Raw'!O$15)-((($G37-'PIC Raw'!$P$15)/10784)*7.9),-999) -> -999 | M37: -999 | N37: -999 | O37: -999 | Q37: -999 | R37: -999 | S37: -999 | U37: -999 | W37: -999 | X37: -999 | Y37: ='PIC Raw'!I37 -> 
A38: ='PIC Raw'!A38 -> 0 | B38: ='PIC Raw'!C38 ->  | C38: ='PIC Raw'!D38 -> 0 | D38: =IF(ISBLANK('PIC Raw'!E38),"",'PIC Raw'!E38) ->  | E38: =IF(ISBLANK('PIC Raw'!F38),"",'PIC Raw'!F38) ->  | F38: =IF(ISBLANK('PIC Raw'!G38),"",'PIC Raw'!G38) ->  | G38: =IF(ISBLANK('PIC Raw'!H38),"",'PIC Raw'!H38) ->  | I38: =IF(ISNUMBER((D38-'PIC Raw'!M$15)-((($G38-'PIC Raw'!$P$15)/10784)*412)),(D38-'PIC Raw'!M$15)-((($G38-'PIC Raw'!$P$15)/10784)*412),-999) -> -999 | J38: =IF(ISNUMBER((E38-'PIC Raw'!N$15)-((($G38-'PIC Raw'!$P$15)/10784)*1284)),(E38-'PIC Raw'!N$15)-((($G38-'PIC Raw'!$P$15)/10784)*1284),-999) -> -999 | K38: =IF(ISNUMBER((F38-'PIC Raw'!O$15)-((($G38-'PIC Raw'!$P$15)/10784)*7.9)),(F38-'PIC Raw'!O$15)-((($G38-'PIC Raw'!$P$15)/10784)*7.9),-999) -> -999 | M38: -999 | N38: -999 | O38: -999 | Q38: -999 | R38: -999 | S38: -999 | U38: -999 | W38: -999 | X38: -999 | Y38: ='PIC Raw'!I38 -> 
A39: ='PIC Raw'!A39 -> 0 | B39: ='PIC Raw'!C39 ->  | C39: ='PIC Raw'!D39 -> 0 | D39: =IF(ISBLANK('PIC Raw'!E39),"",'PIC Raw'!E39) ->  | E39: =IF(ISBLANK('PIC Raw'!F39),"",'PIC Raw'!F39) ->  | F39: =IF(ISBLANK('PIC Raw'!G39),"",'PIC Raw'!G39) ->  | G39: =IF(ISBLANK('PIC Raw'!H39),"",'PIC Raw'!H39) ->  | I39: =IF(ISNUMBER((D39-'PIC Raw'!M$15)-((($G39-'PIC Raw'!$P$15)/10784)*412)),(D39-'PIC Raw'!M$15)-((($G39-'PIC Raw'!$P$15)/10784)*412),-999) -> -999 | J39: =IF(ISNUMBER((E39-'PIC Raw'!N$15)-((($G39-'PIC Raw'!$P$15)/10784)*1284)),(E39-'PIC Raw'!N$15)-((($G39-'PIC Raw'!$P$15)/10784)*1284),-999) -> -999 | K39: =IF(ISNUMBER((F39-'PIC Raw'!O$15)-((($G39-'PIC Raw'!$P$15)/10784)*7.9)),(F39-'PIC Raw'!O$15)-((($G39-'PIC Raw'!$P$15)/10784)*7.9),-999) -> -999 | M39: -999 | N39: -999 | O39: -999 | Q39: -999 | R39: -999 | S39: -999 | U39: -999 | W39: -999 | X39: -999 | Y39: ='PIC Raw'!I39 -> 
A40: ='PIC Raw'!A40 -> 0 | B40: ='PIC Raw'!C40 ->  | C40: ='PIC Raw'!D40 -> 0 | D40: =IF(ISBLANK('PIC Raw'!E40),"",'PIC Raw'!E40) ->  | E40: =IF(ISBLANK('PIC Raw'!F40),"",'PIC Raw'!F40) ->  | F40: =IF(ISBLANK('PIC Raw'!G40),"",'PIC Raw'!G40) ->  | G40: =IF(ISBLANK('PIC Raw'!H40),"",'PIC Raw'!H40) ->  | I40: =IF(ISNUMBER((D40-'PIC Raw'!M$15)-((($G40-'PIC Raw'!$P$15)/10784)*412)),(D40-'PIC Raw'!M$15)-((($G40-'PIC Raw'!$P$15)/10784)*412),-999) -> -999 | J40: =IF(ISNUMBER((E40-'PIC Raw'!N$15)-((($G40-'PIC Raw'!$P$15)/10784)*1284)),(E40-'PIC Raw'!N$15)-((($G40-'PIC Raw'!$P$15)/10784)*1284),-999) -> -999 | K40: =IF(ISNUMBER((F40-'PIC Raw'!O$15)-((($G40-'PIC Raw'!$P$15)/10784)*7.9)),(F40-'PIC Raw'!O$15)-((($G40-'PIC Raw'!$P$15)/10784)*7.9),-999) -> -999 | M40: -999 | N40: -999 | O40: -999 | Q40: -999 | R40: -999 | S40: -999 | U40: -999 | W40: -999 | X40: -999 | Y40: ='PIC Raw'!I40 -> 
A41: ='PIC Raw'!A41 -> 0 | B41: ='PIC Raw'!C41 ->  | C41: ='PIC Raw'!D41 -> 0 | D41: =IF(ISBLANK('PIC Raw'!E41),"",'PIC Raw'!E41) ->  | E41: =IF(ISBLANK('PIC Raw'!F41),"",'PIC Raw'!F41) ->  | F41: =IF(ISBLANK('PIC Raw'!G41),"",'PIC Raw'!G41) ->  | G41: =IF(ISBLANK('PIC Raw'!H41),"",'PIC Raw'!H41) ->  | I41: =IF(ISNUMBER((D41-'PIC Raw'!M$15)-((($G41-'PIC Raw'!$P$15)/10784)*412)),(D41-'PIC Raw'!M$15)-((($G41-'PIC Raw'!$P$15)/10784)*412),-999) -> -999 | J41: =IF(ISNUMBER((E41-'PIC Raw'!N$15)-((($G41-'PIC Raw'!$P$15)/10784)*1284)),(E41-'PIC Raw'!N$15)-((($G41-'PIC Raw'!$P$15)/10784)*1284),-999) -> -999 | K41: =IF(ISNUMBER((F41-'PIC Raw'!O$15)-((($G41-'PIC Raw'!$P$15)/10784)*7.9)),(F41-'PIC Raw'!O$15)-((($G41-'PIC Raw'!$P$15)/10784)*7.9),-999) -> -999 | M41: -999 | N41: -999 | O41: -999 | Q41: -999 | R41: -999 | S41: -999 | U41: -999 | W41: -999 | X41: -999 | Y41: ='PIC Raw'!I41 -> 
A42: ='PIC Raw'!A42 -> 0 | B42: ='PIC Raw'!C42 ->  | C42: ='PIC Raw'!D42 -> 0 | D42: =IF(ISBLANK('PIC Raw'!E42),"",'PIC Raw'!E42) ->  | E42: =IF(ISBLANK('PIC Raw'!F42),"",'PIC Raw'!F42) ->  | F42: =IF(ISBLANK('PIC Raw'!G42),"",'PIC Raw'!G42) ->  | G42: =IF(ISBLANK('PIC Raw'!H42),"",'PIC Raw'!H42) ->  | I42: =IF(ISNUMBER((D42-'PIC Raw'!M$15)-((($G42-'PIC Raw'!$P$15)/10784)*412)),(D42-'PIC Raw'!M$15)-((($G42-'PIC Raw'!$P$15)/10784)*412),-999) -> -999 | J42: =IF(ISNUMBER((E42-'PIC Raw'!N$15)-((($G42-'PIC Raw'!$P$15)/10784)*1284)),(E42-'PIC Raw'!N$15)-((($G42-'PIC Raw'!$P$15)/10784)*1284),-999) -> -999 | K42: =IF(ISNUMBER((F42-'PIC Raw'!O$15)-((($G42-'PIC Raw'!$P$15)/10784)*7.9)),(F42-'PIC Raw'!O$15)-((($G42-'PIC Raw'!$P$15)/10784)*7.9),-999) -> -999 | M42: -999 | N42: -999 | O42: -999 | Q42: -999 | R42: -999 | S42: -999 | U42: -999 | W42: -999 | X42: -999 | Y42: ='PIC Raw'!I42 -> 
A43: ='PIC Raw'!A43 -> 0 | B43: ='PIC Raw'!C43 ->  | C43: ='PIC Raw'!D43 -> 0 | D43: =IF(ISBLANK('PIC Raw'!E43),"",'PIC Raw'!E43) ->  | E43: =IF(ISBLANK('PIC Raw'!F43),"",'PIC Raw'!F43) ->  | F43: =IF(ISBLANK('PIC Raw'!G43),"",'PIC Raw'!G43) ->  | G43: =IF(ISBLANK('PIC Raw'!H43),"",'PIC Raw'!H43) ->  | I43: =IF(ISNUMBER((D43-'PIC Raw'!M$15)-((($G43-'PIC Raw'!$P$15)/10784)*412)),(D43-'PIC Raw'!M$15)-((($G43-'PIC Raw'!$P$15)/10784)*412),-999) -> -999 | J43: =IF(ISNUMBER((E43-'PIC Raw'!N$15)-((($G43-'PIC Raw'!$P$15)/10784)*1284)),(E43-'PIC Raw'!N$15)-((($G43-'PIC Raw'!$P$15)/10784)*1284),-999) -> -999 | K43: =IF(ISNUMBER((F43-'PIC Raw'!O$15)-((($G43-'PIC Raw'!$P$15)/10784)*7.9)),(F43-'PIC Raw'!O$15)-((($G43-'PIC Raw'!$P$15)/10784)*7.9),-999) -> -999 | M43: -999 | N43: -999 | O43: -999 | Q43: -999 | R43: -999 | S43: -999 | U43: -999 | W43: -999 | X43: -999 | Y43: ='PIC Raw'!I43 -> 
A44: ='PIC Raw'!A44 -> 0 | B44: ='PIC Raw'!C44 ->  | C44: ='PIC Raw'!D44 -> 0 | D44: =IF(ISBLANK('PIC Raw'!E44),"",'PIC Raw'!E44) ->  | E44: =IF(ISBLANK('PIC Raw'!F44),"",'PIC Raw'!F44) ->  | F44: =IF(ISBLANK('PIC Raw'!G44),"",'PIC Raw'!G44) ->  | G44: =IF(ISBLANK('PIC Raw'!H44),"",'PIC Raw'!H44) ->  | I44: =IF(ISNUMBER((D44-'PIC Raw'!M$15)-((($G44-'PIC Raw'!$P$15)/10784)*412)),(D44-'PIC Raw'!M$15)-((($G44-'PIC Raw'!$P$15)/10784)*412),-999) -> -999 | J44: =IF(ISNUMBER((E44-'PIC Raw'!N$15)-((($G44-'PIC Raw'!$P$15)/10784)*1284)),(E44-'PIC Raw'!N$15)-((($G44-'PIC Raw'!$P$15)/10784)*1284),-999) -> -999 | K44: =IF(ISNUMBER((F44-'PIC Raw'!O$15)-((($G44-'PIC Raw'!$P$15)/10784)*7.9)),(F44-'PIC Raw'!O$15)-((($G44-'PIC Raw'!$P$15)/10784)*7.9),-999) -> -999 | M44: -999 | N44: -999 | O44: -999 | Q44: -999 | R44: -999 | S44: -999 | U44: -999 | W44: -999 | X44: -999 | Y44: ='PIC Raw'!I44 -> 
A45: ='PIC Raw'!A45 -> 0 | B45: ='PIC Raw'!C45 ->  | C45: ='PIC Raw'!D45 -> 0 | D45: =IF(ISBLANK('PIC Raw'!E45),"",'PIC Raw'!E45) ->  | E45: =IF(ISBLANK('PIC Raw'!F45),"",'PIC Raw'!F45) ->  | F45: =IF(ISBLANK('PIC Raw'!G45),"",'PIC Raw'!G45) ->  | G45: =IF(ISBLANK('PIC Raw'!H45),"",'PIC Raw'!H45) ->  | I45: =IF(ISNUMBER((D45-'PIC Raw'!M$15)-((($G45-'PIC Raw'!$P$15)/10784)*412)),(D45-'PIC Raw'!M$15)-((($G45-'PIC Raw'!$P$15)/10784)*412),-999) -> -999 | J45: =IF(ISNUMBER((E45-'PIC Raw'!N$15)-((($G45-'PIC Raw'!$P$15)/10784)*1284)),(E45-'PIC Raw'!N$15)-((($G45-'PIC Raw'!$P$15)/10784)*1284),-999) -> -999 | K45: =IF(ISNUMBER((F45-'PIC Raw'!O$15)-((($G45-'PIC Raw'!$P$15)/10784)*7.9)),(F45-'PIC Raw'!O$15)-((($G45-'PIC Raw'!$P$15)/10784)*7.9),-999) -> -999 | M45: -999 | N45: -999 | O45: -999 | Q45: -999 | R45: -999 | S45: -999 | U45: -999 | W45: -999 | X45: -999 | Y45: ='PIC Raw'!I45 -> 
A46: ='PIC Raw'!A46 -> 0 | B46: ='PIC Raw'!C46 ->  | C46: ='PIC Raw'!D46 -> 0 | D46: =IF(ISBLANK('PIC Raw'!E46),"",'PIC Raw'!E46) ->  | E46: =IF(ISBLANK('PIC Raw'!F46),"",'PIC Raw'!F46) ->  | F46: =IF(ISBLANK('PIC Raw'!G46),"",'PIC Raw'!G46) ->  | G46: =IF(ISBLANK('PIC Raw'!H46),"",'PIC Raw'!H46) ->  | I46: =IF(ISNUMBER((D46-'PIC Raw'!M$15)-((($G46-'PIC Raw'!$P$15)/10784)*412)),(D46-'PIC Raw'!M$15)-((($G46-'PIC Raw'!$P$15)/10784)*412),-999) -> -999 | J46: =IF(ISNUMBER((E46-'PIC Raw'!N$15)-((($G46-'PIC Raw'!$P$15)/10784)*1284)),(E46-'PIC Raw'!N$15)-((($G46-'PIC Raw'!$P$15)/10784)*1284),-999) -> -999 | K46: =IF(ISNUMBER((F46-'PIC Raw'!O$15)-((($G46-'PIC Raw'!$P$15)/10784)*7.9)),(F46-'PIC Raw'!O$15)-((($G46-'PIC Raw'!$P$15)/10784)*7.9),-999) -> -999 | M46: -999 | N46: -999 | O46: -999 | Q46: -999 | R46: -999 | S46: -999 | U46: -999 | W46: -999 | X46: -999 | Y46: ='PIC Raw'!I46 -> 
A47: ='PIC Raw'!A47 -> 0 | B47: ='PIC Raw'!C47 ->  | C47: ='PIC Raw'!D47 -> 0 | D47: =IF(ISBLANK('PIC Raw'!E47),"",'PIC Raw'!E47) ->  | E47: =IF(ISBLANK('PIC Raw'!F47),"",'PIC Raw'!F47) ->  | F47: =IF(ISBLANK('PIC Raw'!G47),"",'PIC Raw'!G47) ->  | G47: =IF(ISBLANK('PIC Raw'!H47),"",'PIC Raw'!H47) ->  | I47: =IF(ISNUMBER((D47-'PIC Raw'!M$15)-((($G47-'PIC Raw'!$P$15)/10784)*412)),(D47-'PIC Raw'!M$15)-((($G47-'PIC Raw'!$P$15)/10784)*412),-999) -> -999 | J47: =IF(ISNUMBER((E47-'PIC Raw'!N$15)-((($G47-'PIC Raw'!$P$15)/10784)*1284)),(E47-'PIC Raw'!N$15)-((($G47-'PIC Raw'!$P$15)/10784)*1284),-999) -> -999 | K47: =IF(ISNUMBER((F47-'PIC Raw'!O$15)-((($G47-'PIC Raw'!$P$15)/10784)*7.9)),(F47-'PIC Raw'!O$15)-((($G47-'PIC Raw'!$P$15)/10784)*7.9),-999) -> -999 | M47: -999 | N47: -999 | O47: -999 | Q47: -999 | R47: -999 | S47: -999 | U47: -999 | W47: -999 | X47: -999 | Y47: ='PIC Raw'!I47 -> 
A48: ='PIC Raw'!A48 -> 0 | B48: ='PIC Raw'!C48 ->  | C48: ='PIC Raw'!D48 -> 0 | D48: =IF(ISBLANK('PIC Raw'!E48),"",'PIC Raw'!E48) ->  | E48: =IF(ISBLANK('PIC Raw'!F48),"",'PIC Raw'!F48) ->  | F48: =IF(ISBLANK('PIC Raw'!G48),"",'PIC Raw'!G48) ->  | G48: =IF(ISBLANK('PIC Raw'!H48),"",'PIC Raw'!H48) ->  | I48: =IF(ISNUMBER((D48-'PIC Raw'!M$15)-((($G48-'PIC Raw'!$P$15)/10784)*412)),(D48-'PIC Raw'!M$15)-((($G48-'PIC Raw'!$P$15)/10784)*412),-999) -> -999 | J48: =IF(ISNUMBER((E48-'PIC Raw'!N$15)-((($G48-'PIC Raw'!$P$15)/10784)*1284)),(E48-'PIC Raw'!N$15)-((($G48-'PIC Raw'!$P$15)/10784)*1284),-999) -> -999 | K48: =IF(ISNUMBER((F48-'PIC Raw'!O$15)-((($G48-'PIC Raw'!$P$15)/10784)*7.9)),(F48-'PIC Raw'!O$15)-((($G48-'PIC Raw'!$P$15)/10784)*7.9),-999) -> -999 | M48: -999 | N48: -999 | O48: -999 | Q48: -999 | R48: -999 | S48: -999 | U48: -999 | W48: -999 | X48: -999 | Y48: ='PIC Raw'!I48 -> 
A49: ='PIC Raw'!A49 -> 0 | B49: ='PIC Raw'!C49 ->  | C49: ='PIC Raw'!D49 -> 0 | D49: =IF(ISBLANK('PIC Raw'!E49),"",'PIC Raw'!E49) ->  | E49: =IF(ISBLANK('PIC Raw'!F49),"",'PIC Raw'!F49) ->  | F49: =IF(ISBLANK('PIC Raw'!G49),"",'PIC Raw'!G49) ->  | G49: =IF(ISBLANK('PIC Raw'!H49),"",'PIC Raw'!H49) ->  | I49: =IF(ISNUMBER((D49-'PIC Raw'!M$15)-((($G49-'PIC Raw'!$P$15)/10784)*412)),(D49-'PIC Raw'!M$15)-((($G49-'PIC Raw'!$P$15)/10784)*412),-999) -> -999 | J49: =IF(ISNUMBER((E49-'PIC Raw'!N$15)-((($G49-'PIC Raw'!$P$15)/10784)*1284)),(E49-'PIC Raw'!N$15)-((($G49-'PIC Raw'!$P$15)/10784)*1284),-999) -> -999 | K49: =IF(ISNUMBER((F49-'PIC Raw'!O$15)-((($G49-'PIC Raw'!$P$15)/10784)*7.9)),(F49-'PIC Raw'!O$15)-((($G49-'PIC Raw'!$P$15)/10784)*7.9),-999) -> -999 | M49: -999 | N49: -999 | O49: -999 | Q49: -999 | R49: -999 | S49: -999 | U49: -999 | W49: -999 | X49: -999 | Y49: ='PIC Raw'!I49 -> 
A50: ='PIC Raw'!A50 -> 0 | B50: ='PIC Raw'!C50 ->  | C50: ='PIC Raw'!D50 -> 0 | D50: =IF(ISBLANK('PIC Raw'!E50),"",'PIC Raw'!E50) ->  | E50: =IF(ISBLANK('PIC Raw'!F50),"",'PIC Raw'!F50) ->  | F50: =IF(ISBLANK('PIC Raw'!G50),"",'PIC Raw'!G50) ->  | G50: =IF(ISBLANK('PIC Raw'!H50),"",'PIC Raw'!H50) ->  | I50: =IF(ISNUMBER((D50-'PIC Raw'!M$15)-((($G50-'PIC Raw'!$P$15)/10784)*412)),(D50-'PIC Raw'!M$15)-((($G50-'PIC Raw'!$P$15)/10784)*412),-999) -> -999 | J50: =IF(ISNUMBER((E50-'PIC Raw'!N$15)-((($G50-'PIC Raw'!$P$15)/10784)*1284)),(E50-'PIC Raw'!N$15)-((($G50-'PIC Raw'!$P$15)/10784)*1284),-999) -> -999 | K50: =IF(ISNUMBER((F50-'PIC Raw'!O$15)-((($G50-'PIC Raw'!$P$15)/10784)*7.9)),(F50-'PIC Raw'!O$15)-((($G50-'PIC Raw'!$P$15)/10784)*7.9),-999) -> -999 | M50: -999 | N50: -999 | O50: -999 | Q50: -999 | R50: -999 | S50: -999 | U50: -999 | W50: -999 | X50: -999 | Y50: ='PIC Raw'!I50 -> 
A51: ='PIC Raw'!A51 -> 0 | B51: ='PIC Raw'!C51 ->  | C51: ='PIC Raw'!D51 -> 0 | D51: =IF(ISBLANK('PIC Raw'!E51),"",'PIC Raw'!E51) ->  | E51: =IF(ISBLANK('PIC Raw'!F51),"",'PIC Raw'!F51) ->  | F51: =IF(ISBLANK('PIC Raw'!G51),"",'PIC Raw'!G51) ->  | G51: =IF(ISBLANK('PIC Raw'!H51),"",'PIC Raw'!H51) ->  | I51: =IF(ISNUMBER((D51-'PIC Raw'!M$15)-((($G51-'PIC Raw'!$P$15)/10784)*412)),(D51-'PIC Raw'!M$15)-((($G51-'PIC Raw'!$P$15)/10784)*412),-999) -> -999 | J51: =IF(ISNUMBER((E51-'PIC Raw'!N$15)-((($G51-'PIC Raw'!$P$15)/10784)*1284)),(E51-'PIC Raw'!N$15)-((($G51-'PIC Raw'!$P$15)/10784)*1284),-999) -> -999 | K51: =IF(ISNUMBER((F51-'PIC Raw'!O$15)-((($G51-'PIC Raw'!$P$15)/10784)*7.9)),(F51-'PIC Raw'!O$15)-((($G51-'PIC Raw'!$P$15)/10784)*7.9),-999) -> -999 | M51: -999 | N51: -999 | O51: -999 | Q51: -999 | R51: -999 | S51: -999 | U51: -999 | W51: -999 | X51: -999 | Y51: ='PIC Raw'!I51 -> 
A52: ='PIC Raw'!A52 -> 0 | B52: ='PIC Raw'!C52 ->  | C52: ='PIC Raw'!D52 -> 0 | D52: =IF(ISBLANK('PIC Raw'!E52),"",'PIC Raw'!E52) ->  | E52: =IF(ISBLANK('PIC Raw'!F52),"",'PIC Raw'!F52) ->  | F52: =IF(ISBLANK('PIC Raw'!G52),"",'PIC Raw'!G52) ->  | G52: =IF(ISBLANK('PIC Raw'!H52),"",'PIC Raw'!H52) ->  | I52: =IF(ISNUMBER((D52-'PIC Raw'!M$15)-((($G52-'PIC Raw'!$P$15)/10784)*412)),(D52-'PIC Raw'!M$15)-((($G52-'PIC Raw'!$P$15)/10784)*412),-999) -> -999 | J52: =IF(ISNUMBER((E52-'PIC Raw'!N$15)-((($G52-'PIC Raw'!$P$15)/10784)*1284)),(E52-'PIC Raw'!N$15)-((($G52-'PIC Raw'!$P$15)/10784)*1284),-999) -> -999 | K52: =IF(ISNUMBER((F52-'PIC Raw'!O$15)-((($G52-'PIC Raw'!$P$15)/10784)*7.9)),(F52-'PIC Raw'!O$15)-((($G52-'PIC Raw'!$P$15)/10784)*7.9),-999) -> -999 | M52: -999 | N52: -999 | O52: -999 | Q52: -999 | R52: -999 | S52: -999 | U52: -999 | W52: -999 | X52: -999 | Y52: ='PIC Raw'!I52 -> 
A53: ='PIC Raw'!A53 -> 0 | B53: ='PIC Raw'!C53 ->  | C53: ='PIC Raw'!D53 -> 0 | D53: =IF(ISBLANK('PIC Raw'!E53),"",'PIC Raw'!E53) ->  | E53: =IF(ISBLANK('PIC Raw'!F53),"",'PIC Raw'!F53) ->  | F53: =IF(ISBLANK('PIC Raw'!G53),"",'PIC Raw'!G53) ->  | G53: =IF(ISBLANK('PIC Raw'!H53),"",'PIC Raw'!H53) ->  | I53: =IF(ISNUMBER((D53-'PIC Raw'!M$15)-((($G53-'PIC Raw'!$P$15)/10784)*412)),(D53-'PIC Raw'!M$15)-((($G53-'PIC Raw'!$P$15)/10784)*412),-999) -> -999 | J53: =IF(ISNUMBER((E53-'PIC Raw'!N$15)-((($G53-'PIC Raw'!$P$15)/10784)*1284)),(E53-'PIC Raw'!N$15)-((($G53-'PIC Raw'!$P$15)/10784)*1284),-999) -> -999 | K53: =IF(ISNUMBER((F53-'PIC Raw'!O$15)-((($G53-'PIC Raw'!$P$15)/10784)*7.9)),(F53-'PIC Raw'!O$15)-((($G53-'PIC Raw'!$P$15)/10784)*7.9),-999) -> -999 | M53: -999 | N53: -999 | O53: -999 | Q53: -999 | R53: -999 | S53: -999 | U53: -999 | W53: -999 | X53: -999 | Y53: ='PIC Raw'!I53 -> 
A54: ='PIC Raw'!A54 -> 0 | B54: ='PIC Raw'!C54 ->  | C54: ='PIC Raw'!D54 -> 0 | D54: =IF(ISBLANK('PIC Raw'!E54),"",'PIC Raw'!E54) ->  | E54: =IF(ISBLANK('PIC Raw'!F54),"",'PIC Raw'!F54) ->  | F54: =IF(ISBLANK('PIC Raw'!G54),"",'PIC Raw'!G54) ->  | G54: =IF(ISBLANK('PIC Raw'!H54),"",'PIC Raw'!H54) ->  | I54: =IF(ISNUMBER((D54-'PIC Raw'!M$15)-((($G54-'PIC Raw'!$P$15)/10784)*412)),(D54-'PIC Raw'!M$15)-((($G54-'PIC Raw'!$P$15)/10784)*412),-999) -> -999 | J54: =IF(ISNUMBER((E54-'PIC Raw'!N$15)-((($G54-'PIC Raw'!$P$15)/10784)*1284)),(E54-'PIC Raw'!N$15)-((($G54-'PIC Raw'!$P$15)/10784)*1284),-999) -> -999 | K54: =IF(ISNUMBER((F54-'PIC Raw'!O$15)-((($G54-'PIC Raw'!$P$15)/10784)*7.9)),(F54-'PIC Raw'!O$15)-((($G54-'PIC Raw'!$P$15)/10784)*7.9),-999) -> -999 | M54: -999 | N54: -999 | O54: -999 | Q54: -999 | R54: -999 | S54: -999 | U54: -999 | W54: -999 | X54: -999 | Y54: ='PIC Raw'!I54 -> 
A55: ='PIC Raw'!A55 -> 0 | B55: ='PIC Raw'!C55 ->  | C55: ='PIC Raw'!D55 -> 0 | D55: =IF(ISBLANK('PIC Raw'!E55),"",'PIC Raw'!E55) ->  | E55: =IF(ISBLANK('PIC Raw'!F55),"",'PIC Raw'!F55) ->  | F55: =IF(ISBLANK('PIC Raw'!G55),"",'PIC Raw'!G55) ->  | G55: =IF(ISBLANK('PIC Raw'!H55),"",'PIC Raw'!H55) ->  | I55: =IF(ISNUMBER((D55-'PIC Raw'!M$15)-((($G55-'PIC Raw'!$P$15)/10784)*412)),(D55-'PIC Raw'!M$15)-((($G55-'PIC Raw'!$P$15)/10784)*412),-999) -> -999 | J55: =IF(ISNUMBER((E55-'PIC Raw'!N$15)-((($G55-'PIC Raw'!$P$15)/10784)*1284)),(E55-'PIC Raw'!N$15)-((($G55-'PIC Raw'!$P$15)/10784)*1284),-999) -> -999 | K55: =IF(ISNUMBER((F55-'PIC Raw'!O$15)-((($G55-'PIC Raw'!$P$15)/10784)*7.9)),(F55-'PIC Raw'!O$15)-((($G55-'PIC Raw'!$P$15)/10784)*7.9),-999) -> -999 | M55: -999 | N55: -999 | O55: -999 | Q55: -999 | R55: -999 | S55: -999 | U55: -999 | W55: -999 | X55: -999 | Y55: ='PIC Raw'!I55 -> 
A56: ='PIC Raw'!A56 -> 0 | B56: ='PIC Raw'!C56 ->  | C56: ='PIC Raw'!D56 -> 0 | D56: =IF(ISBLANK('PIC Raw'!E56),"",'PIC Raw'!E56) ->  | E56: =IF(ISBLANK('PIC Raw'!F56),"",'PIC Raw'!F56) ->  | F56: =IF(ISBLANK('PIC Raw'!G56),"",'PIC Raw'!G56) ->  | G56: =IF(ISBLANK('PIC Raw'!H56),"",'PIC Raw'!H56) ->  | I56: =IF(ISNUMBER((D56-'PIC Raw'!M$15)-((($G56-'PIC Raw'!$P$15)/10784)*412)),(D56-'PIC Raw'!M$15)-((($G56-'PIC Raw'!$P$15)/10784)*412),-999) -> -999 | J56: =IF(ISNUMBER((E56-'PIC Raw'!N$15)-((($G56-'PIC Raw'!$P$15)/10784)*1284)),(E56-'PIC Raw'!N$15)-((($G56-'PIC Raw'!$P$15)/10784)*1284),-999) -> -999 | K56: =IF(ISNUMBER((F56-'PIC Raw'!O$15)-((($G56-'PIC Raw'!$P$15)/10784)*7.9)),(F56-'PIC Raw'!O$15)-((($G56-'PIC Raw'!$P$15)/10784)*7.9),-999) -> -999 | M56: -999 | N56: -999 | O56: -999 | Q56: -999 | R56: -999 | S56: -999 | U56: -999 | W56: -999 | X56: -999 | Y56: ='PIC Raw'!I56 -> 
A57: ='PIC Raw'!A57 -> 0 | B57: ='PIC Raw'!C57 ->  | C57: ='PIC Raw'!D57 -> 0 | D57: =IF(ISBLANK('PIC Raw'!E57),"",'PIC Raw'!E57) ->  | E57: =IF(ISBLANK('PIC Raw'!F57),"",'PIC Raw'!F57) ->  | F57: =IF(ISBLANK('PIC Raw'!G57),"",'PIC Raw'!G57) ->  | G57: =IF(ISBLANK('PIC Raw'!H57),"",'PIC Raw'!H57) ->  | I57: =IF(ISNUMBER((D57-'PIC Raw'!M$15)-((($G57-'PIC Raw'!$P$15)/10784)*412)),(D57-'PIC Raw'!M$15)-((($G57-'PIC Raw'!$P$15)/10784)*412),-999) -> -999 | J57: =IF(ISNUMBER((E57-'PIC Raw'!N$15)-((($G57-'PIC Raw'!$P$15)/10784)*1284)),(E57-'PIC Raw'!N$15)-((($G57-'PIC Raw'!$P$15)/10784)*1284),-999) -> -999 | K57: =IF(ISNUMBER((F57-'PIC Raw'!O$15)-((($G57-'PIC Raw'!$P$15)/10784)*7.9)),(F57-'PIC Raw'!O$15)-((($G57-'PIC Raw'!$P$15)/10784)*7.9),-999) -> -999 | M57: -999 | N57: -999 | O57: -999 | Q57: -999 | R57: -999 | S57: -999 | U57: -999 | W57: -999 | X57: -999 | Y57: ='PIC Raw'!I57 -> 
A58: ='PIC Raw'!A58 -> 0 | B58: ='PIC Raw'!C58 ->  | C58: ='PIC Raw'!D58 -> 0 | D58: =IF(ISBLANK('PIC Raw'!E58),"",'PIC Raw'!E58) ->  | E58: =IF(ISBLANK('PIC Raw'!F58),"",'PIC Raw'!F58) ->  | F58: =IF(ISBLANK('PIC Raw'!G58),"",'PIC Raw'!G58) ->  | G58: =IF(ISBLANK('PIC Raw'!H58),"",'PIC Raw'!H58) ->  | I58: =IF(ISNUMBER((D58-'PIC Raw'!M$15)-((($G58-'PIC Raw'!$P$15)/10784)*412)),(D58-'PIC Raw'!M$15)-((($G58-'PIC Raw'!$P$15)/10784)*412),-999) -> -999 | J58: =IF(ISNUMBER((E58-'PIC Raw'!N$15)-((($G58-'PIC Raw'!$P$15)/10784)*1284)),(E58-'PIC Raw'!N$15)-((($G58-'PIC Raw'!$P$15)/10784)*1284),-999) -> -999 | K58: =IF(ISNUMBER((F58-'PIC Raw'!O$15)-((($G58-'PIC Raw'!$P$15)/10784)*7.9)),(F58-'PIC Raw'!O$15)-((($G58-'PIC Raw'!$P$15)/10784)*7.9),-999) -> -999 | M58: -999 | N58: -999 | O58: -999 | Q58: -999 | R58: -999 | S58: -999 | U58: -999 | W58: -999 | X58: -999 | Y58: ='PIC Raw'!I58 -> 
A59: ='PIC Raw'!A59 -> 0 | B59: ='PIC Raw'!C59 ->  | C59: ='PIC Raw'!D59 -> 0 | D59: =IF(ISBLANK('PIC Raw'!E59),"",'PIC Raw'!E59) ->  | E59: =IF(ISBLANK('PIC Raw'!F59),"",'PIC Raw'!F59) ->  | F59: =IF(ISBLANK('PIC Raw'!G59),"",'PIC Raw'!G59) ->  | G59: =IF(ISBLANK('PIC Raw'!H59),"",'PIC Raw'!H59) ->  | I59: =IF(ISNUMBER((D59-'PIC Raw'!M$15)-((($G59-'PIC Raw'!$P$15)/10784)*412)),(D59-'PIC Raw'!M$15)-((($G59-'PIC Raw'!$P$15)/10784)*412),-999) -> -999 | J59: =IF(ISNUMBER((E59-'PIC Raw'!N$15)-((($G59-'PIC Raw'!$P$15)/10784)*1284)),(E59-'PIC Raw'!N$15)-((($G59-'PIC Raw'!$P$15)/10784)*1284),-999) -> -999 | K59: =IF(ISNUMBER((F59-'PIC Raw'!O$15)-((($G59-'PIC Raw'!$P$15)/10784)*7.9)),(F59-'PIC Raw'!O$15)-((($G59-'PIC Raw'!$P$15)/10784)*7.9),-999) -> -999 | M59: -999 | N59: -999 | O59: -999 | Q59: -999 | R59: -999 | S59: -999 | U59: -999 | W59: -999 | X59: -999 | Y59: ='PIC Raw'!I59 -> 
A60: ='PIC Raw'!A60 -> 0 | B60: ='PIC Raw'!C60 ->  | C60: ='PIC Raw'!D60 -> 0 | D60: =IF(ISBLANK('PIC Raw'!E60),"",'PIC Raw'!E60) ->  | E60: =IF(ISBLANK('PIC Raw'!F60),"",'PIC Raw'!F60) ->  | F60: =IF(ISBLANK('PIC Raw'!G60),"",'PIC Raw'!G60) ->  | G60: =IF(ISBLANK('PIC Raw'!H60),"",'PIC Raw'!H60) ->  | I60: =IF(ISNUMBER((D60-'PIC Raw'!M$15)-((($G60-'PIC Raw'!$P$15)/10784)*412)),(D60-'PIC Raw'!M$15)-((($G60-'PIC Raw'!$P$15)/10784)*412),-999) -> -999 | J60: =IF(ISNUMBER((E60-'PIC Raw'!N$15)-((($G60-'PIC Raw'!$P$15)/10784)*1284)),(E60-'PIC Raw'!N$15)-((($G60-'PIC Raw'!$P$15)/10784)*1284),-999) -> -999 | K60: =IF(ISNUMBER((F60-'PIC Raw'!O$15)-((($G60-'PIC Raw'!$P$15)/10784)*7.9)),(F60-'PIC Raw'!O$15)-((($G60-'PIC Raw'!$P$15)/10784)*7.9),-999) -> -999 | M60: -999 | N60: -999 | O60: -999 | Q60: -999 | R60: -999 | S60: -999 | U60: -999 | W60: -999 | X60: -999 | Y60: ='PIC Raw'!I60 -> 
A61: ='PIC Raw'!A61 -> 0 | B61: ='PIC Raw'!C61 ->  | C61: ='PIC Raw'!D61 -> 0 | D61: =IF(ISBLANK('PIC Raw'!E61),"",'PIC Raw'!E61) ->  | E61: =IF(ISBLANK('PIC Raw'!F61),"",'PIC Raw'!F61) ->  | F61: =IF(ISBLANK('PIC Raw'!G61),"",'PIC Raw'!G61) ->  | G61: =IF(ISBLANK('PIC Raw'!H61),"",'PIC Raw'!H61) ->  | I61: =IF(ISNUMBER((D61-'PIC Raw'!M$15)-((($G61-'PIC Raw'!$P$15)/10784)*412)),(D61-'PIC Raw'!M$15)-((($G61-'PIC Raw'!$P$15)/10784)*412),-999) -> -999 | J61: =IF(ISNUMBER((E61-'PIC Raw'!N$15)-((($G61-'PIC Raw'!$P$15)/10784)*1284)),(E61-'PIC Raw'!N$15)-((($G61-'PIC Raw'!$P$15)/10784)*1284),-999) -> -999 | K61: =IF(ISNUMBER((F61-'PIC Raw'!O$15)-((($G61-'PIC Raw'!$P$15)/10784)*7.9)),(F61-'PIC Raw'!O$15)-((($G61-'PIC Raw'!$P$15)/10784)*7.9),-999) -> -999 | M61: -999 | N61: -999 | O61: -999 | Q61: -999 | R61: -999 | S61: -999 | U61: -999 | W61: -999 | X61: -999 | Y61: ='PIC Raw'!I61 -> 
A62: ='PIC Raw'!A62 -> 0 | B62: ='PIC Raw'!C62 ->  | C62: ='PIC Raw'!D62 -> 0 | D62: =IF(ISBLANK('PIC Raw'!E62),"",'PIC Raw'!E62) ->  | E62: =IF(ISBLANK('PIC Raw'!F62),"",'PIC Raw'!F62) ->  | F62: =IF(ISBLANK('PIC Raw'!G62),"",'PIC Raw'!G62) ->  | G62: =IF(ISBLANK('PIC Raw'!H62),"",'PIC Raw'!H62) ->  | I62: =IF(ISNUMBER((D62-'PIC Raw'!M$15)-((($G62-'PIC Raw'!$P$15)/10784)*412)),(D62-'PIC Raw'!M$15)-((($G62-'PIC Raw'!$P$15)/10784)*412),-999) -> -999 | J62: =IF(ISNUMBER((E62-'PIC Raw'!N$15)-((($G62-'PIC Raw'!$P$15)/10784)*1284)),(E62-'PIC Raw'!N$15)-((($G62-'PIC Raw'!$P$15)/10784)*1284),-999) -> -999 | K62: =IF(ISNUMBER((F62-'PIC Raw'!O$15)-((($G62-'PIC Raw'!$P$15)/10784)*7.9)),(F62-'PIC Raw'!O$15)-((($G62-'PIC Raw'!$P$15)/10784)*7.9),-999) -> -999 | M62: -999 | N62: -999 | O62: -999 | Q62: -999 | R62: -999 | S62: -999 | U62: -999 | W62: -999 | X62: -999 | Y62: ='PIC Raw'!I62 -> 
A63: ='PIC Raw'!A63 -> 0 | B63: ='PIC Raw'!C63 ->  | C63: ='PIC Raw'!D63 -> 0 | D63: =IF(ISBLANK('PIC Raw'!E63),"",'PIC Raw'!E63) ->  | E63: =IF(ISBLANK('PIC Raw'!F63),"",'PIC Raw'!F63) ->  | F63: =IF(ISBLANK('PIC Raw'!G63),"",'PIC Raw'!G63) ->  | G63: =IF(ISBLANK('PIC Raw'!H63),"",'PIC Raw'!H63) ->  | I63: =IF(ISNUMBER((D63-'PIC Raw'!M$15)-((($G63-'PIC Raw'!$P$15)/10784)*412)),(D63-'PIC Raw'!M$15)-((($G63-'PIC Raw'!$P$15)/10784)*412),-999) -> -999 | J63: =IF(ISNUMBER((E63-'PIC Raw'!N$15)-((($G63-'PIC Raw'!$P$15)/10784)*1284)),(E63-'PIC Raw'!N$15)-((($G63-'PIC Raw'!$P$15)/10784)*1284),-999) -> -999 | K63: =IF(ISNUMBER((F63-'PIC Raw'!O$15)-((($G63-'PIC Raw'!$P$15)/10784)*7.9)),(F63-'PIC Raw'!O$15)-((($G63-'PIC Raw'!$P$15)/10784)*7.9),-999) -> -999 | M63: -999 | N63: -999 | O63: -999 | Q63: -999 | R63: -999 | S63: -999 | U63: -999 | W63: -999 | X63: -999 | Y63: ='PIC Raw'!I63 -> 
A64: ='PIC Raw'!A64 -> 0 | B64: ='PIC Raw'!C64 ->  | C64: ='PIC Raw'!D64 -> 0 | D64: =IF(ISBLANK('PIC Raw'!E64),"",'PIC Raw'!E64) ->  | E64: =IF(ISBLANK('PIC Raw'!F64),"",'PIC Raw'!F64) ->  | F64: =IF(ISBLANK('PIC Raw'!G64),"",'PIC Raw'!G64) ->  | G64: =IF(ISBLANK('PIC Raw'!H64),"",'PIC Raw'!H64) ->  | I64: =IF(ISNUMBER((D64-'PIC Raw'!M$15)-((($G64-'PIC Raw'!$P$15)/10784)*412)),(D64-'PIC Raw'!M$15)-((($G64-'PIC Raw'!$P$15)/10784)*412),-999) -> -999 | J64: =IF(ISNUMBER((E64-'PIC Raw'!N$15)-((($G64-'PIC Raw'!$P$15)/10784)*1284)),(E64-'PIC Raw'!N$15)-((($G64-'PIC Raw'!$P$15)/10784)*1284),-999) -> -999 | K64: =IF(ISNUMBER((F64-'PIC Raw'!O$15)-((($G64-'PIC Raw'!$P$15)/10784)*7.9)),(F64-'PIC Raw'!O$15)-((($G64-'PIC Raw'!$P$15)/10784)*7.9),-999) -> -999 | M64: -999 | N64: -999 | O64: -999 | Q64: -999 | R64: -999 | S64: -999 | U64: -999 | W64: -999 | X64: -999 | Y64: ='PIC Raw'!I64 -> 
A65: ='PIC Raw'!A65 -> 0 | B65: ='PIC Raw'!C65 ->  | C65: ='PIC Raw'!D65 -> 0 | D65: =IF(ISBLANK('PIC Raw'!E65),"",'PIC Raw'!E65) ->  | E65: =IF(ISBLANK('PIC Raw'!F65),"",'PIC Raw'!F65) ->  | F65: =IF(ISBLANK('PIC Raw'!G65),"",'PIC Raw'!G65) ->  | G65: =IF(ISBLANK('PIC Raw'!H65),"",'PIC Raw'!H65) ->  | I65: =IF(ISNUMBER((D65-'PIC Raw'!M$15)-((($G65-'PIC Raw'!$P$15)/10784)*412)),(D65-'PIC Raw'!M$15)-((($G65-'PIC Raw'!$P$15)/10784)*412),-999) -> -999 | J65: =IF(ISNUMBER((E65-'PIC Raw'!N$15)-((($G65-'PIC Raw'!$P$15)/10784)*1284)),(E65-'PIC Raw'!N$15)-((($G65-'PIC Raw'!$P$15)/10784)*1284),-999) -> -999 | K65: =IF(ISNUMBER((F65-'PIC Raw'!O$15)-((($G65-'PIC Raw'!$P$15)/10784)*7.9)),(F65-'PIC Raw'!O$15)-((($G65-'PIC Raw'!$P$15)/10784)*7.9),-999) -> -999 | M65: -999 | N65: -999 | O65: -999 | Q65: -999 | R65: -999 | S65: -999 | U65: -999 | W65: -999 | X65: -999 | Y65: ='PIC Raw'!I65 -> 
A66: ='PIC Raw'!A66 -> 0 | B66: ='PIC Raw'!C66 ->  | C66: ='PIC Raw'!D66 -> 0 | D66: =IF(ISBLANK('PIC Raw'!E66),"",'PIC Raw'!E66) ->  | E66: =IF(ISBLANK('PIC Raw'!F66),"",'PIC Raw'!F66) ->  | F66: =IF(ISBLANK('PIC Raw'!G66),"",'PIC Raw'!G66) ->  | G66: =IF(ISBLANK('PIC Raw'!H66),"",'PIC Raw'!H66) ->  | I66: =IF(ISNUMBER((D66-'PIC Raw'!M$15)-((($G66-'PIC Raw'!$P$15)/10784)*412)),(D66-'PIC Raw'!M$15)-((($G66-'PIC Raw'!$P$15)/10784)*412),-999) -> -999 | J66: =IF(ISNUMBER((E66-'PIC Raw'!N$15)-((($G66-'PIC Raw'!$P$15)/10784)*1284)),(E66-'PIC Raw'!N$15)-((($G66-'PIC Raw'!$P$15)/10784)*1284),-999) -> -999 | K66: =IF(ISNUMBER((F66-'PIC Raw'!O$15)-((($G66-'PIC Raw'!$P$15)/10784)*7.9)),(F66-'PIC Raw'!O$15)-((($G66-'PIC Raw'!$P$15)/10784)*7.9),-999) -> -999 | M66: =IF(I66=-999,-999,(I66*($C66/$B66))) -> -999 | N66: =IF(J66=-999,-999,(J66*($C66/$B66))) -> -999 | O66: =IF(K66=-999,-999,(K66*($C66/$B66))) -> -999 | Q66: =IF(M66=-999, -999, (M66/40)) -> -999 | R66: =IF(N66=-999, -999, (N66/24.31)) -> -999 | S66: =IF(O66=-999, -999, (O66/87.62)) -> -999 | U66: =Q66 -> -999 | W66: =IF(U66=-999, -999, (U66*12)) -> -999 | X66: =IF(U66=-999,-999,(U66/1000)) -> -999 | Y66: ='PIC Raw'!I66 -> 
A67: ='PIC Raw'!A67 -> 0 | B67: ='PIC Raw'!C67 ->  | C67: ='PIC Raw'!D67 -> 0 | D67: =IF(ISBLANK('PIC Raw'!E67),"",'PIC Raw'!E67) ->  | E67: =IF(ISBLANK('PIC Raw'!F67),"",'PIC Raw'!F67) ->  | F67: =IF(ISBLANK('PIC Raw'!G67),"",'PIC Raw'!G67) ->  | G67: =IF(ISBLANK('PIC Raw'!H67),"",'PIC Raw'!H67) ->  | I67: =IF(ISNUMBER((D67-'PIC Raw'!M$15)-((($G67-'PIC Raw'!$P$15)/10784)*412)),(D67-'PIC Raw'!M$15)-((($G67-'PIC Raw'!$P$15)/10784)*412),-999) -> -999 | J67: =IF(ISNUMBER((E67-'PIC Raw'!N$15)-((($G67-'PIC Raw'!$P$15)/10784)*1284)),(E67-'PIC Raw'!N$15)-((($G67-'PIC Raw'!$P$15)/10784)*1284),-999) -> -999 | K67: =IF(ISNUMBER((F67-'PIC Raw'!O$15)-((($G67-'PIC Raw'!$P$15)/10784)*7.9)),(F67-'PIC Raw'!O$15)-((($G67-'PIC Raw'!$P$15)/10784)*7.9),-999) -> -999 | M67: -999 | N67: -999 | O67: -999 | Q67: -999 | R67: -999 | S67: -999 | U67: -999 | W67: -999 | X67: -999 | Y67: ='PIC Raw'!I67 -> 
A68: ='PIC Raw'!A68 -> 0 | B68: ='PIC Raw'!C68 ->  | C68: ='PIC Raw'!D68 -> 0 | D68: =IF(ISBLANK('PIC Raw'!E68),"",'PIC Raw'!E68) ->  | E68: =IF(ISBLANK('PIC Raw'!F68),"",'PIC Raw'!F68) ->  | F68: =IF(ISBLANK('PIC Raw'!G68),"",'PIC Raw'!G68) ->  | G68: =IF(ISBLANK('PIC Raw'!H68),"",'PIC Raw'!H68) ->  | I68: =IF(ISNUMBER((D68-'PIC Raw'!M$15)-((($G68-'PIC Raw'!$P$15)/10784)*412)),(D68-'PIC Raw'!M$15)-((($G68-'PIC Raw'!$P$15)/10784)*412),-999) -> -999 | J68: =IF(ISNUMBER((E68-'PIC Raw'!N$15)-((($G68-'PIC Raw'!$P$15)/10784)*1284)),(E68-'PIC Raw'!N$15)-((($G68-'PIC Raw'!$P$15)/10784)*1284),-999) -> -999 | K68: =IF(ISNUMBER((F68-'PIC Raw'!O$15)-((($G68-'PIC Raw'!$P$15)/10784)*7.9)),(F68-'PIC Raw'!O$15)-((($G68-'PIC Raw'!$P$15)/10784)*7.9),-999) -> -999 | M68: -999 | N68: -999 | O68: -999 | Q68: -999 | R68: -999 | S68: -999 | U68: -999 | W68: -999 | X68: -999 | Y68: ='PIC Raw'!I68 -> 
A69: ='PIC Raw'!A69 -> 0 | B69: ='PIC Raw'!C69 ->  | C69: ='PIC Raw'!D69 -> 0 | D69: =IF(ISBLANK('PIC Raw'!E69),"",'PIC Raw'!E69) ->  | E69: =IF(ISBLANK('PIC Raw'!F69),"",'PIC Raw'!F69) ->  | F69: =IF(ISBLANK('PIC Raw'!G69),"",'PIC Raw'!G69) ->  | G69: =IF(ISBLANK('PIC Raw'!H69),"",'PIC Raw'!H69) ->  | I69: =IF(ISNUMBER((D69-'PIC Raw'!M$15)-((($G69-'PIC Raw'!$P$15)/10784)*412)),(D69-'PIC Raw'!M$15)-((($G69-'PIC Raw'!$P$15)/10784)*412),-999) -> -999 | J69: =IF(ISNUMBER((E69-'PIC Raw'!N$15)-((($G69-'PIC Raw'!$P$15)/10784)*1284)),(E69-'PIC Raw'!N$15)-((($G69-'PIC Raw'!$P$15)/10784)*1284),-999) -> -999 | K69: =IF(ISNUMBER((F69-'PIC Raw'!O$15)-((($G69-'PIC Raw'!$P$15)/10784)*7.9)),(F69-'PIC Raw'!O$15)-((($G69-'PIC Raw'!$P$15)/10784)*7.9),-999) -> -999 | M69: -999 | N69: -999 | O69: -999 | Q69: -999 | R69: -999 | S69: -999 | U69: -999 | W69: -999 | X69: -999 | Y69: ='PIC Raw'!I69 -> 
A70: ='PIC Raw'!A70 -> 0 | B70: ='PIC Raw'!C70 ->  | C70: ='PIC Raw'!D70 -> 0 | D70: =IF(ISBLANK('PIC Raw'!E70),"",'PIC Raw'!E70) ->  | E70: =IF(ISBLANK('PIC Raw'!F70),"",'PIC Raw'!F70) ->  | F70: =IF(ISBLANK('PIC Raw'!G70),"",'PIC Raw'!G70) ->  | G70: =IF(ISBLANK('PIC Raw'!H70),"",'PIC Raw'!H70) ->  | I70: =IF(ISNUMBER((D70-'PIC Raw'!M$15)-((($G70-'PIC Raw'!$P$15)/10784)*412)),(D70-'PIC Raw'!M$15)-((($G70-'PIC Raw'!$P$15)/10784)*412),-999) -> -999 | J70: =IF(ISNUMBER((E70-'PIC Raw'!N$15)-((($G70-'PIC Raw'!$P$15)/10784)*1284)),(E70-'PIC Raw'!N$15)-((($G70-'PIC Raw'!$P$15)/10784)*1284),-999) -> -999 | K70: =IF(ISNUMBER((F70-'PIC Raw'!O$15)-((($G70-'PIC Raw'!$P$15)/10784)*7.9)),(F70-'PIC Raw'!O$15)-((($G70-'PIC Raw'!$P$15)/10784)*7.9),-999) -> -999 | M70: -999 | N70: -999 | O70: -999 | Q70: -999 | R70: -999 | S70: -999 | U70: -999 | W70: -999 | X70: -999 | Y70: ='PIC Raw'!I70 -> 
A71: ='PIC Raw'!A71 -> 0 | B71: ='PIC Raw'!C71 ->  | C71: ='PIC Raw'!D71 -> 0 | D71: =IF(ISBLANK('PIC Raw'!E71),"",'PIC Raw'!E71) ->  | E71: =IF(ISBLANK('PIC Raw'!F71),"",'PIC Raw'!F71) ->  | F71: =IF(ISBLANK('PIC Raw'!G71),"",'PIC Raw'!G71) ->  | G71: =IF(ISBLANK('PIC Raw'!H71),"",'PIC Raw'!H71) ->  | I71: =IF(ISNUMBER((D71-'PIC Raw'!M$15)-((($G71-'PIC Raw'!$P$15)/10784)*412)),(D71-'PIC Raw'!M$15)-((($G71-'PIC Raw'!$P$15)/10784)*412),-999) -> -999 | J71: =IF(ISNUMBER((E71-'PIC Raw'!N$15)-((($G71-'PIC Raw'!$P$15)/10784)*1284)),(E71-'PIC Raw'!N$15)-((($G71-'PIC Raw'!$P$15)/10784)*1284),-999) -> -999 | K71: =IF(ISNUMBER((F71-'PIC Raw'!O$15)-((($G71-'PIC Raw'!$P$15)/10784)*7.9)),(F71-'PIC Raw'!O$15)-((($G71-'PIC Raw'!$P$15)/10784)*7.9),-999) -> -999 | M71: -999 | N71: -999 | O71: -999 | Q71: -999 | R71: -999 | S71: -999 | U71: -999 | W71: -999 | X71: -999 | Y71: ='PIC Raw'!I71 -> 
A72: ='PIC Raw'!A72 -> 0 | B72: ='PIC Raw'!C72 ->  | C72: ='PIC Raw'!D72 -> 0 | D72: =IF(ISBLANK('PIC Raw'!E72),"",'PIC Raw'!E72) ->  | E72: =IF(ISBLANK('PIC Raw'!F72),"",'PIC Raw'!F72) ->  | F72: =IF(ISBLANK('PIC Raw'!G72),"",'PIC Raw'!G72) ->  | G72: =IF(ISBLANK('PIC Raw'!H72),"",'PIC Raw'!H72) ->  | I72: =IF(ISNUMBER((D72-'PIC Raw'!M$15)-((($G72-'PIC Raw'!$P$15)/10784)*412)),(D72-'PIC Raw'!M$15)-((($G72-'PIC Raw'!$P$15)/10784)*412),-999) -> -999 | J72: =IF(ISNUMBER((E72-'PIC Raw'!N$15)-((($G72-'PIC Raw'!$P$15)/10784)*1284)),(E72-'PIC Raw'!N$15)-((($G72-'PIC Raw'!$P$15)/10784)*1284),-999) -> -999 | K72: =IF(ISNUMBER((F72-'PIC Raw'!O$15)-((($G72-'PIC Raw'!$P$15)/10784)*7.9)),(F72-'PIC Raw'!O$15)-((($G72-'PIC Raw'!$P$15)/10784)*7.9),-999) -> -999 | M72: -999 | N72: -999 | O72: -999 | Q72: -999 | R72: -999 | S72: -999 | U72: -999 | W72: -999 | X72: -999 | Y72: ='PIC Raw'!I72 -> 
A73: ='PIC Raw'!A73 -> 0 | B73: ='PIC Raw'!C73 ->  | C73: ='PIC Raw'!D73 -> 0 | D73: =IF(ISBLANK('PIC Raw'!E73),"",'PIC Raw'!E73) ->  | E73: =IF(ISBLANK('PIC Raw'!F73),"",'PIC Raw'!F73) ->  | F73: =IF(ISBLANK('PIC Raw'!G73),"",'PIC Raw'!G73) ->  | G73: =IF(ISBLANK('PIC Raw'!H73),"",'PIC Raw'!H73) ->  | I73: =IF(ISNUMBER((D73-'PIC Raw'!M$15)-((($G73-'PIC Raw'!$P$15)/10784)*412)),(D73-'PIC Raw'!M$15)-((($G73-'PIC Raw'!$P$15)/10784)*412),-999) -> -999 | J73: =IF(ISNUMBER((E73-'PIC Raw'!N$15)-((($G73-'PIC Raw'!$P$15)/10784)*1284)),(E73-'PIC Raw'!N$15)-((($G73-'PIC Raw'!$P$15)/10784)*1284),-999) -> -999 | K73: =IF(ISNUMBER((F73-'PIC Raw'!O$15)-((($G73-'PIC Raw'!$P$15)/10784)*7.9)),(F73-'PIC Raw'!O$15)-((($G73-'PIC Raw'!$P$15)/10784)*7.9),-999) -> -999 | M73: -999 | N73: -999 | O73: -999 | Q73: -999 | R73: -999 | S73: -999 | U73: -999 | W73: -999 | X73: -999 | Y73: ='PIC Raw'!I73 -> 
A74: ='PIC Raw'!A74 -> 0 | B74: ='PIC Raw'!C74 ->  | C74: ='PIC Raw'!D74 -> 0 | D74: =IF(ISBLANK('PIC Raw'!E74),"",'PIC Raw'!E74) ->  | E74: =IF(ISBLANK('PIC Raw'!F74),"",'PIC Raw'!F74) ->  | F74: =IF(ISBLANK('PIC Raw'!G74),"",'PIC Raw'!G74) ->  | G74: =IF(ISBLANK('PIC Raw'!H74),"",'PIC Raw'!H74) ->  | I74: =IF(ISNUMBER((D74-'PIC Raw'!M$15)-((($G74-'PIC Raw'!$P$15)/10784)*412)),(D74-'PIC Raw'!M$15)-((($G74-'PIC Raw'!$P$15)/10784)*412),-999) -> -999 | J74: =IF(ISNUMBER((E74-'PIC Raw'!N$15)-((($G74-'PIC Raw'!$P$15)/10784)*1284)),(E74-'PIC Raw'!N$15)-((($G74-'PIC Raw'!$P$15)/10784)*1284),-999) -> -999 | K74: =IF(ISNUMBER((F74-'PIC Raw'!O$15)-((($G74-'PIC Raw'!$P$15)/10784)*7.9)),(F74-'PIC Raw'!O$15)-((($G74-'PIC Raw'!$P$15)/10784)*7.9),-999) -> -999 | M74: -999 | N74: -999 | O74: -999 | Q74: -999 | R74: -999 | S74: -999 | U74: -999 | W74: -999 | X74: -999 | Y74: ='PIC Raw'!I74 -> 
A75: ='PIC Raw'!A75 -> 0 | B75: ='PIC Raw'!C75 ->  | C75: ='PIC Raw'!D75 -> 0 | D75: =IF(ISBLANK('PIC Raw'!E75),"",'PIC Raw'!E75) ->  | E75: =IF(ISBLANK('PIC Raw'!F75),"",'PIC Raw'!F75) ->  | F75: =IF(ISBLANK('PIC Raw'!G75),"",'PIC Raw'!G75) ->  | G75: =IF(ISBLANK('PIC Raw'!H75),"",'PIC Raw'!H75) ->  | I75: =IF(ISNUMBER((D75-'PIC Raw'!M$15)-((($G75-'PIC Raw'!$P$15)/10784)*412)),(D75-'PIC Raw'!M$15)-((($G75-'PIC Raw'!$P$15)/10784)*412),-999) -> -999 | J75: =IF(ISNUMBER((E75-'PIC Raw'!N$15)-((($G75-'PIC Raw'!$P$15)/10784)*1284)),(E75-'PIC Raw'!N$15)-((($G75-'PIC Raw'!$P$15)/10784)*1284),-999) -> -999 | K75: =IF(ISNUMBER((F75-'PIC Raw'!O$15)-((($G75-'PIC Raw'!$P$15)/10784)*7.9)),(F75-'PIC Raw'!O$15)-((($G75-'PIC Raw'!$P$15)/10784)*7.9),-999) -> -999 | M75: -999 | N75: -999 | O75: -999 | Q75: -999 | R75: -999 | S75: -999 | U75: -999 | W75: -999 | X75: -999 | Y75: ='PIC Raw'!I75 -> 
A76: ='PIC Raw'!A76 -> 0 | B76: ='PIC Raw'!C76 ->  | C76: ='PIC Raw'!D76 -> 0 | D76: =IF(ISBLANK('PIC Raw'!E76),"",'PIC Raw'!E76) ->  | E76: =IF(ISBLANK('PIC Raw'!F76),"",'PIC Raw'!F76) ->  | F76: =IF(ISBLANK('PIC Raw'!G76),"",'PIC Raw'!G76) ->  | G76: =IF(ISBLANK('PIC Raw'!H76),"",'PIC Raw'!H76) ->  | I76: =IF(ISNUMBER((D76-'PIC Raw'!M$15)-((($G76-'PIC Raw'!$P$15)/10784)*412)),(D76-'PIC Raw'!M$15)-((($G76-'PIC Raw'!$P$15)/10784)*412),-999) -> -999 | J76: =IF(ISNUMBER((E76-'PIC Raw'!N$15)-((($G76-'PIC Raw'!$P$15)/10784)*1284)),(E76-'PIC Raw'!N$15)-((($G76-'PIC Raw'!$P$15)/10784)*1284),-999) -> -999 | K76: =IF(ISNUMBER((F76-'PIC Raw'!O$15)-((($G76-'PIC Raw'!$P$15)/10784)*7.9)),(F76-'PIC Raw'!O$15)-((($G76-'PIC Raw'!$P$15)/10784)*7.9),-999) -> -999 | M76: -999 | N76: -999 | O76: -999 | Q76: -999 | R76: -999 | S76: -999 | U76: -999 | W76: -999 | X76: -999 | Y76: ='PIC Raw'!I76 -> 
A77: ='PIC Raw'!A77 -> 0 | B77: ='PIC Raw'!C77 ->  | C77: ='PIC Raw'!D77 -> 0 | D77: =IF(ISBLANK('PIC Raw'!E77),"",'PIC Raw'!E77) ->  | E77: =IF(ISBLANK('PIC Raw'!F77),"",'PIC Raw'!F77) ->  | F77: =IF(ISBLANK('PIC Raw'!G77),"",'PIC Raw'!G77) ->  | G77: =IF(ISBLANK('PIC Raw'!H77),"",'PIC Raw'!H77) ->  | I77: =IF(ISNUMBER((D77-'PIC Raw'!M$15)-((($G77-'PIC Raw'!$P$15)/10784)*412)),(D77-'PIC Raw'!M$15)-((($G77-'PIC Raw'!$P$15)/10784)*412),-999) -> -999 | J77: =IF(ISNUMBER((E77-'PIC Raw'!N$15)-((($G77-'PIC Raw'!$P$15)/10784)*1284)),(E77-'PIC Raw'!N$15)-((($G77-'PIC Raw'!$P$15)/10784)*1284),-999) -> -999 | K77: =IF(ISNUMBER((F77-'PIC Raw'!O$15)-((($G77-'PIC Raw'!$P$15)/10784)*7.9)),(F77-'PIC Raw'!O$15)-((($G77-'PIC Raw'!$P$15)/10784)*7.9),-999) -> -999 | M77: -999 | N77: -999 | O77: -999 | Q77: -999 | R77: -999 | S77: -999 | U77: -999 | W77: -999 | X77: -999 | Y77: ='PIC Raw'!I77 -> 
A78: ='PIC Raw'!A78 -> 0 | B78: ='PIC Raw'!C78 ->  | C78: ='PIC Raw'!D78 -> 0 | D78: =IF(ISBLANK('PIC Raw'!E78),"",'PIC Raw'!E78) ->  | E78: =IF(ISBLANK('PIC Raw'!F78),"",'PIC Raw'!F78) ->  | F78: =IF(ISBLANK('PIC Raw'!G78),"",'PIC Raw'!G78) ->  | G78: =IF(ISBLANK('PIC Raw'!H78),"",'PIC Raw'!H78) ->  | I78: =IF(ISNUMBER((D78-'PIC Raw'!M$15)-((($G78-'PIC Raw'!$P$15)/10784)*412)),(D78-'PIC Raw'!M$15)-((($G78-'PIC Raw'!$P$15)/10784)*412),-999) -> -999 | J78: =IF(ISNUMBER((E78-'PIC Raw'!N$15)-((($G78-'PIC Raw'!$P$15)/10784)*1284)),(E78-'PIC Raw'!N$15)-((($G78-'PIC Raw'!$P$15)/10784)*1284),-999) -> -999 | K78: =IF(ISNUMBER((F78-'PIC Raw'!O$15)-((($G78-'PIC Raw'!$P$15)/10784)*7.9)),(F78-'PIC Raw'!O$15)-((($G78-'PIC Raw'!$P$15)/10784)*7.9),-999) -> -999 | M78: -999 | N78: -999 | O78: -999 | Q78: -999 | R78: -999 | S78: -999 | U78: -999 | W78: -999 | X78: -999 | Y78: ='PIC Raw'!I78 -> 
A79: ='PIC Raw'!A79 -> 0 | B79: ='PIC Raw'!C79 ->  | C79: ='PIC Raw'!D79 -> 0 | D79: =IF(ISBLANK('PIC Raw'!E79),"",'PIC Raw'!E79) ->  | E79: =IF(ISBLANK('PIC Raw'!F79),"",'PIC Raw'!F79) ->  | F79: =IF(ISBLANK('PIC Raw'!G79),"",'PIC Raw'!G79) ->  | G79: =IF(ISBLANK('PIC Raw'!H79),"",'PIC Raw'!H79) ->  | I79: =IF(ISNUMBER((D79-'PIC Raw'!M$15)-((($G79-'PIC Raw'!$P$15)/10784)*412)),(D79-'PIC Raw'!M$15)-((($G79-'PIC Raw'!$P$15)/10784)*412),-999) -> -999 | J79: =IF(ISNUMBER((E79-'PIC Raw'!N$15)-((($G79-'PIC Raw'!$P$15)/10784)*1284)),(E79-'PIC Raw'!N$15)-((($G79-'PIC Raw'!$P$15)/10784)*1284),-999) -> -999 | K79: =IF(ISNUMBER((F79-'PIC Raw'!O$15)-((($G79-'PIC Raw'!$P$15)/10784)*7.9)),(F79-'PIC Raw'!O$15)-((($G79-'PIC Raw'!$P$15)/10784)*7.9),-999) -> -999 | M79: -999 | N79: -999 | O79: -999 | Q79: -999 | R79: -999 | S79: -999 | U79: -999 | W79: -999 | X79: -999 | Y79: ='PIC Raw'!I79 -> 
A80: ='PIC Raw'!A80 -> 0 | B80: ='PIC Raw'!C80 ->  | C80: ='PIC Raw'!D80 -> 0 | D80: =IF(ISBLANK('PIC Raw'!E80),"",'PIC Raw'!E80) ->  | E80: =IF(ISBLANK('PIC Raw'!F80),"",'PIC Raw'!F80) ->  | F80: =IF(ISBLANK('PIC Raw'!G80),"",'PIC Raw'!G80) ->  | G80: =IF(ISBLANK('PIC Raw'!H80),"",'PIC Raw'!H80) ->  | I80: =IF(ISNUMBER((D80-'PIC Raw'!M$15)-((($G80-'PIC Raw'!$P$15)/10784)*412)),(D80-'PIC Raw'!M$15)-((($G80-'PIC Raw'!$P$15)/10784)*412),-999) -> -999 | J80: =IF(ISNUMBER((E80-'PIC Raw'!N$15)-((($G80-'PIC Raw'!$P$15)/10784)*1284)),(E80-'PIC Raw'!N$15)-((($G80-'PIC Raw'!$P$15)/10784)*1284),-999) -> -999 | K80: =IF(ISNUMBER((F80-'PIC Raw'!O$15)-((($G80-'PIC Raw'!$P$15)/10784)*7.9)),(F80-'PIC Raw'!O$15)-((($G80-'PIC Raw'!$P$15)/10784)*7.9),-999) -> -999 | M80: -999 | N80: -999 | O80: -999 | Q80: -999 | R80: -999 | S80: -999 | U80: -999 | W80: -999 | X80: -999 | Y80: ='PIC Raw'!I80 -> 
A81: ='PIC Raw'!A81 -> 0 | B81: ='PIC Raw'!C81 ->  | C81: ='PIC Raw'!D81 -> 0 | D81: =IF(ISBLANK('PIC Raw'!E81),"",'PIC Raw'!E81) ->  | E81: =IF(ISBLANK('PIC Raw'!F81),"",'PIC Raw'!F81) ->  | F81: =IF(ISBLANK('PIC Raw'!G81),"",'PIC Raw'!G81) ->  | G81: =IF(ISBLANK('PIC Raw'!H81),"",'PIC Raw'!H81) ->  | I81: =IF(ISNUMBER((D81-'PIC Raw'!M$15)-((($G81-'PIC Raw'!$P$15)/10784)*412)),(D81-'PIC Raw'!M$15)-((($G81-'PIC Raw'!$P$15)/10784)*412),-999) -> -999 | J81: =IF(ISNUMBER((E81-'PIC Raw'!N$15)-((($G81-'PIC Raw'!$P$15)/10784)*1284)),(E81-'PIC Raw'!N$15)-((($G81-'PIC Raw'!$P$15)/10784)*1284),-999) -> -999 | K81: =IF(ISNUMBER((F81-'PIC Raw'!O$15)-((($G81-'PIC Raw'!$P$15)/10784)*7.9)),(F81-'PIC Raw'!O$15)-((($G81-'PIC Raw'!$P$15)/10784)*7.9),-999) -> -999 | M81: -999 | N81: -999 | O81: -999 | Q81: -999 | R81: -999 | S81: -999 | U81: -999 | W81: -999 | X81: -999 | Y81: ='PIC Raw'!I81 -> 
A82: ='PIC Raw'!A82 -> 0 | B82: ='PIC Raw'!C82 ->  | C82: ='PIC Raw'!D82 -> 0 | D82: =IF(ISBLANK('PIC Raw'!E82),"",'PIC Raw'!E82) ->  | E82: =IF(ISBLANK('PIC Raw'!F82),"",'PIC Raw'!F82) ->  | F82: =IF(ISBLANK('PIC Raw'!G82),"",'PIC Raw'!G82) ->  | G82: =IF(ISBLANK('PIC Raw'!H82),"",'PIC Raw'!H82) ->  | I82: =IF(ISNUMBER((D82-'PIC Raw'!M$15)-((($G82-'PIC Raw'!$P$15)/10784)*412)),(D82-'PIC Raw'!M$15)-((($G82-'PIC Raw'!$P$15)/10784)*412),-999) -> -999 | J82: =IF(ISNUMBER((E82-'PIC Raw'!N$15)-((($G82-'PIC Raw'!$P$15)/10784)*1284)),(E82-'PIC Raw'!N$15)-((($G82-'PIC Raw'!$P$15)/10784)*1284),-999) -> -999 | K82: =IF(ISNUMBER((F82-'PIC Raw'!O$15)-((($G82-'PIC Raw'!$P$15)/10784)*7.9)),(F82-'PIC Raw'!O$15)-((($G82-'PIC Raw'!$P$15)/10784)*7.9),-999) -> -999 | M82: -999 | N82: -999 | O82: -999 | Q82: -999 | R82: -999 | S82: -999 | U82: -999 | W82: -999 | X82: -999 | Y82: ='PIC Raw'!I82 -> 
A83: ='PIC Raw'!A83 -> 0 | B83: ='PIC Raw'!C83 ->  | C83: ='PIC Raw'!D83 -> 0 | D83: =IF(ISBLANK('PIC Raw'!E83),"",'PIC Raw'!E83) ->  | E83: =IF(ISBLANK('PIC Raw'!F83),"",'PIC Raw'!F83) ->  | F83: =IF(ISBLANK('PIC Raw'!G83),"",'PIC Raw'!G83) ->  | G83: =IF(ISBLANK('PIC Raw'!H83),"",'PIC Raw'!H83) ->  | I83: =IF(ISNUMBER((D83-'PIC Raw'!M$15)-((($G83-'PIC Raw'!$P$15)/10784)*412)),(D83-'PIC Raw'!M$15)-((($G83-'PIC Raw'!$P$15)/10784)*412),-999) -> -999 | J83: =IF(ISNUMBER((E83-'PIC Raw'!N$15)-((($G83-'PIC Raw'!$P$15)/10784)*1284)),(E83-'PIC Raw'!N$15)-((($G83-'PIC Raw'!$P$15)/10784)*1284),-999) -> -999 | K83: =IF(ISNUMBER((F83-'PIC Raw'!O$15)-((($G83-'PIC Raw'!$P$15)/10784)*7.9)),(F83-'PIC Raw'!O$15)-((($G83-'PIC Raw'!$P$15)/10784)*7.9),-999) -> -999 | M83: -999 | N83: -999 | O83: -999 | Q83: -999 | R83: -999 | S83: -999 | U83: -999 | W83: -999 | X83: -999 | Y83: ='PIC Raw'!I83 -> 
A84: ='PIC Raw'!A84 -> 0 | B84: ='PIC Raw'!C84 ->  | C84: ='PIC Raw'!D84 -> 0 | D84: =IF(ISBLANK('PIC Raw'!E84),"",'PIC Raw'!E84) ->  | E84: =IF(ISBLANK('PIC Raw'!F84),"",'PIC Raw'!F84) ->  | F84: =IF(ISBLANK('PIC Raw'!G84),"",'PIC Raw'!G84) ->  | G84: =IF(ISBLANK('PIC Raw'!H84),"",'PIC Raw'!H84) ->  | I84: =IF(ISNUMBER((D84-'PIC Raw'!M$15)-((($G84-'PIC Raw'!$P$15)/10784)*412)),(D84-'PIC Raw'!M$15)-((($G84-'PIC Raw'!$P$15)/10784)*412),-999) -> -999 | J84: =IF(ISNUMBER((E84-'PIC Raw'!N$15)-((($G84-'PIC Raw'!$P$15)/10784)*1284)),(E84-'PIC Raw'!N$15)-((($G84-'PIC Raw'!$P$15)/10784)*1284),-999) -> -999 | K84: =IF(ISNUMBER((F84-'PIC Raw'!O$15)-((($G84-'PIC Raw'!$P$15)/10784)*7.9)),(F84-'PIC Raw'!O$15)-((($G84-'PIC Raw'!$P$15)/10784)*7.9),-999) -> -999 | M84: -999 | N84: -999 | O84: -999 | Q84: -999 | R84: -999 | S84: -999 | U84: -999 | W84: -999 | X84: -999 | Y84: ='PIC Raw'!I84 -> 
A85: ='PIC Raw'!A85 -> 0 | B85: ='PIC Raw'!C85 ->  | C85: ='PIC Raw'!D85 -> 0 | D85: =IF(ISBLANK('PIC Raw'!E85),"",'PIC Raw'!E85) ->  | E85: =IF(ISBLANK('PIC Raw'!F85),"",'PIC Raw'!F85) ->  | F85: =IF(ISBLANK('PIC Raw'!G85),"",'PIC Raw'!G85) ->  | G85: =IF(ISBLANK('PIC Raw'!H85),"",'PIC Raw'!H85) ->  | I85: =IF(ISNUMBER((D85-'PIC Raw'!M$15)-((($G85-'PIC Raw'!$P$15)/10784)*412)),(D85-'PIC Raw'!M$15)-((($G85-'PIC Raw'!$P$15)/10784)*412),-999) -> -999 | J85: =IF(ISNUMBER((E85-'PIC Raw'!N$15)-((($G85-'PIC Raw'!$P$15)/10784)*1284)),(E85-'PIC Raw'!N$15)-((($G85-'PIC Raw'!$P$15)/10784)*1284),-999) -> -999 | K85: =IF(ISNUMBER((F85-'PIC Raw'!O$15)-((($G85-'PIC Raw'!$P$15)/10784)*7.9)),(F85-'PIC Raw'!O$15)-((($G85-'PIC Raw'!$P$15)/10784)*7.9),-999) -> -999 | M85: -999 | N85: -999 | O85: -999 | Q85: -999 | R85: -999 | S85: -999 | U85: -999 | W85: -999 | X85: -999 | Y85: ='PIC Raw'!I85 -> 
A86: ='PIC Raw'!A86 -> 0 | B86: ='PIC Raw'!C86 ->  | C86: ='PIC Raw'!D86 -> 0 | D86: =IF(ISBLANK('PIC Raw'!E86),"",'PIC Raw'!E86) ->  | E86: =IF(ISBLANK('PIC Raw'!F86),"",'PIC Raw'!F86) ->  | F86: =IF(ISBLANK('PIC Raw'!G86),"",'PIC Raw'!G86) ->  | G86: =IF(ISBLANK('PIC Raw'!H86),"",'PIC Raw'!H86) ->  | I86: =IF(ISNUMBER((D86-'PIC Raw'!M$15)-((($G86-'PIC Raw'!$P$15)/10784)*412)),(D86-'PIC Raw'!M$15)-((($G86-'PIC Raw'!$P$15)/10784)*412),-999) -> -999 | J86: =IF(ISNUMBER((E86-'PIC Raw'!N$15)-((($G86-'PIC Raw'!$P$15)/10784)*1284)),(E86-'PIC Raw'!N$15)-((($G86-'PIC Raw'!$P$15)/10784)*1284),-999) -> -999 | K86: =IF(ISNUMBER((F86-'PIC Raw'!O$15)-((($G86-'PIC Raw'!$P$15)/10784)*7.9)),(F86-'PIC Raw'!O$15)-((($G86-'PIC Raw'!$P$15)/10784)*7.9),-999) -> -999 | M86: -999 | N86: -999 | O86: -999 | Q86: -999 | R86: -999 | S86: -999 | U86: -999 | W86: -999 | X86: -999 | Y86: ='PIC Raw'!I86 -> 
A87: ='PIC Raw'!A87 -> 0 | B87: ='PIC Raw'!C87 ->  | C87: ='PIC Raw'!D87 -> 0 | D87: =IF(ISBLANK('PIC Raw'!E87),"",'PIC Raw'!E87) ->  | E87: =IF(ISBLANK('PIC Raw'!F87),"",'PIC Raw'!F87) ->  | F87: =IF(ISBLANK('PIC Raw'!G87),"",'PIC Raw'!G87) ->  | G87: =IF(ISBLANK('PIC Raw'!H87),"",'PIC Raw'!H87) ->  | I87: =IF(ISNUMBER((D87-'PIC Raw'!M$15)-((($G87-'PIC Raw'!$P$15)/10784)*412)),(D87-'PIC Raw'!M$15)-((($G87-'PIC Raw'!$P$15)/10784)*412),-999) -> -999 | J87: =IF(ISNUMBER((E87-'PIC Raw'!N$15)-((($G87-'PIC Raw'!$P$15)/10784)*1284)),(E87-'PIC Raw'!N$15)-((($G87-'PIC Raw'!$P$15)/10784)*1284),-999) -> -999 | K87: =IF(ISNUMBER((F87-'PIC Raw'!O$15)-((($G87-'PIC Raw'!$P$15)/10784)*7.9)),(F87-'PIC Raw'!O$15)-((($G87-'PIC Raw'!$P$15)/10784)*7.9),-999) -> -999 | M87: -999 | N87: -999 | O87: -999 | Q87: -999 | R87: -999 | S87: -999 | U87: -999 | W87: -999 | X87: -999 | Y87: ='PIC Raw'!I87 -> 
A88: ='PIC Raw'!A88 -> 0 | B88: ='PIC Raw'!C88 ->  | C88: ='PIC Raw'!D88 -> 0 | D88: =IF(ISBLANK('PIC Raw'!E88),"",'PIC Raw'!E88) ->  | E88: =IF(ISBLANK('PIC Raw'!F88),"",'PIC Raw'!F88) ->  | F88: =IF(ISBLANK('PIC Raw'!G88),"",'PIC Raw'!G88) ->  | G88: =IF(ISBLANK('PIC Raw'!H88),"",'PIC Raw'!H88) ->  | I88: =IF(ISNUMBER((D88-'PIC Raw'!M$15)-((($G88-'PIC Raw'!$P$15)/10784)*412)),(D88-'PIC Raw'!M$15)-((($G88-'PIC Raw'!$P$15)/10784)*412),-999) -> -999 | J88: =IF(ISNUMBER((E88-'PIC Raw'!N$15)-((($G88-'PIC Raw'!$P$15)/10784)*1284)),(E88-'PIC Raw'!N$15)-((($G88-'PIC Raw'!$P$15)/10784)*1284),-999) -> -999 | K88: =IF(ISNUMBER((F88-'PIC Raw'!O$15)-((($G88-'PIC Raw'!$P$15)/10784)*7.9)),(F88-'PIC Raw'!O$15)-((($G88-'PIC Raw'!$P$15)/10784)*7.9),-999) -> -999 | M88: -999 | N88: -999 | O88: -999 | Q88: -999 | R88: -999 | S88: -999 | U88: -999 | W88: -999 | X88: -999 | Y88: ='PIC Raw'!I88 -> 
A89: ='PIC Raw'!A89 -> 0 | B89: ='PIC Raw'!C89 ->  | C89: ='PIC Raw'!D89 -> 0 | D89: =IF(ISBLANK('PIC Raw'!E89),"",'PIC Raw'!E89) ->  | E89: =IF(ISBLANK('PIC Raw'!F89),"",'PIC Raw'!F89) ->  | F89: =IF(ISBLANK('PIC Raw'!G89),"",'PIC Raw'!G89) ->  | G89: =IF(ISBLANK('PIC Raw'!H89),"",'PIC Raw'!H89) ->  | I89: =IF(ISNUMBER((D89-'PIC Raw'!M$15)-((($G89-'PIC Raw'!$P$15)/10784)*412)),(D89-'PIC Raw'!M$15)-((($G89-'PIC Raw'!$P$15)/10784)*412),-999) -> -999 | J89: =IF(ISNUMBER((E89-'PIC Raw'!N$15)-((($G89-'PIC Raw'!$P$15)/10784)*1284)),(E89-'PIC Raw'!N$15)-((($G89-'PIC Raw'!$P$15)/10784)*1284),-999) -> -999 | K89: =IF(ISNUMBER((F89-'PIC Raw'!O$15)-((($G89-'PIC Raw'!$P$15)/10784)*7.9)),(F89-'PIC Raw'!O$15)-((($G89-'PIC Raw'!$P$15)/10784)*7.9),-999) -> -999 | M89: -999 | N89: -999 | O89: -999 | Q89: -999 | R89: -999 | S89: -999 | U89: -999 | W89: -999 | X89: -999 | Y89: ='PIC Raw'!I89 -> 
A90: ='PIC Raw'!A90 -> 0 | B90: ='PIC Raw'!C90 ->  | C90: ='PIC Raw'!D90 -> 0 | D90: =IF(ISBLANK('PIC Raw'!E90),"",'PIC Raw'!E90) ->  | E90: =IF(ISBLANK('PIC Raw'!F90),"",'PIC Raw'!F90) ->  | F90: =IF(ISBLANK('PIC Raw'!G90),"",'PIC Raw'!G90) ->  | G90: =IF(ISBLANK('PIC Raw'!H90),"",'PIC Raw'!H90) ->  | I90: =IF(ISNUMBER((D90-'PIC Raw'!M$15)-((($G90-'PIC Raw'!$P$15)/10784)*412)),(D90-'PIC Raw'!M$15)-((($G90-'PIC Raw'!$P$15)/10784)*412),-999) -> -999 | J90: =IF(ISNUMBER((E90-'PIC Raw'!N$15)-((($G90-'PIC Raw'!$P$15)/10784)*1284)),(E90-'PIC Raw'!N$15)-((($G90-'PIC Raw'!$P$15)/10784)*1284),-999) -> -999 | K90: =IF(ISNUMBER((F90-'PIC Raw'!O$15)-((($G90-'PIC Raw'!$P$15)/10784)*7.9)),(F90-'PIC Raw'!O$15)-((($G90-'PIC Raw'!$P$15)/10784)*7.9),-999) -> -999 | M90: -999 | N90: -999 | O90: -999 | Q90: -999 | R90: -999 | S90: -999 | U90: -999 | W90: -999 | X90: -999 | Y90: ='PIC Raw'!I90 -> 
A91: ='PIC Raw'!A91 -> 0 | B91: ='PIC Raw'!C91 ->  | C91: ='PIC Raw'!D91 -> 0 | D91: =IF(ISBLANK('PIC Raw'!E91),"",'PIC Raw'!E91) ->  | E91: =IF(ISBLANK('PIC Raw'!F91),"",'PIC Raw'!F91) ->  | F91: =IF(ISBLANK('PIC Raw'!G91),"",'PIC Raw'!G91) ->  | G91: =IF(ISBLANK('PIC Raw'!H91),"",'PIC Raw'!H91) ->  | I91: =IF(ISNUMBER((D91-'PIC Raw'!M$15)-((($G91-'PIC Raw'!$P$15)/10784)*412)),(D91-'PIC Raw'!M$15)-((($G91-'PIC Raw'!$P$15)/10784)*412),-999) -> -999 | J91: =IF(ISNUMBER((E91-'PIC Raw'!N$15)-((($G91-'PIC Raw'!$P$15)/10784)*1284)),(E91-'PIC Raw'!N$15)-((($G91-'PIC Raw'!$P$15)/10784)*1284),-999) -> -999 | K91: =IF(ISNUMBER((F91-'PIC Raw'!O$15)-((($G91-'PIC Raw'!$P$15)/10784)*7.9)),(F91-'PIC Raw'!O$15)-((($G91-'PIC Raw'!$P$15)/10784)*7.9),-999) -> -999 | M91: -999 | N91: -999 | O91: -999 | Q91: -999 | R91: -999 | S91: -999 | U91: -999 | W91: -999 | X91: -999 | Y91: ='PIC Raw'!I91 -> 
A92: ='PIC Raw'!A92 -> 0 | B92: ='PIC Raw'!C92 ->  | C92: ='PIC Raw'!D92 -> 0 | D92: =IF(ISBLANK('PIC Raw'!E92),"",'PIC Raw'!E92) ->  | E92: =IF(ISBLANK('PIC Raw'!F92),"",'PIC Raw'!F92) ->  | F92: =IF(ISBLANK('PIC Raw'!G92),"",'PIC Raw'!G92) ->  | G92: =IF(ISBLANK('PIC Raw'!H92),"",'PIC Raw'!H92) ->  | I92: =IF(ISNUMBER((D92-'PIC Raw'!M$15)-((($G92-'PIC Raw'!$P$15)/10784)*412)),(D92-'PIC Raw'!M$15)-((($G92-'PIC Raw'!$P$15)/10784)*412),-999) -> -999 | J92: =IF(ISNUMBER((E92-'PIC Raw'!N$15)-((($G92-'PIC Raw'!$P$15)/10784)*1284)),(E92-'PIC Raw'!N$15)-((($G92-'PIC Raw'!$P$15)/10784)*1284),-999) -> -999 | K92: =IF(ISNUMBER((F92-'PIC Raw'!O$15)-((($G92-'PIC Raw'!$P$15)/10784)*7.9)),(F92-'PIC Raw'!O$15)-((($G92-'PIC Raw'!$P$15)/10784)*7.9),-999) -> -999 | M92: -999 | N92: -999 | O92: -999 | Q92: -999 | R92: -999 | S92: -999 | U92: -999 | W92: -999 | X92: -999 | Y92: ='PIC Raw'!I92 -> 
A93: ='PIC Raw'!A93 -> 0 | B93: ='PIC Raw'!C93 ->  | C93: ='PIC Raw'!D93 -> 0 | D93: =IF(ISBLANK('PIC Raw'!E93),"",'PIC Raw'!E93) ->  | E93: =IF(ISBLANK('PIC Raw'!F93),"",'PIC Raw'!F93) ->  | F93: =IF(ISBLANK('PIC Raw'!G93),"",'PIC Raw'!G93) ->  | G93: =IF(ISBLANK('PIC Raw'!H93),"",'PIC Raw'!H93) ->  | I93: =IF(ISNUMBER((D93-'PIC Raw'!M$15)-((($G93-'PIC Raw'!$P$15)/10784)*412)),(D93-'PIC Raw'!M$15)-((($G93-'PIC Raw'!$P$15)/10784)*412),-999) -> -999 | J93: =IF(ISNUMBER((E93-'PIC Raw'!N$15)-((($G93-'PIC Raw'!$P$15)/10784)*1284)),(E93-'PIC Raw'!N$15)-((($G93-'PIC Raw'!$P$15)/10784)*1284),-999) -> -999 | K93: =IF(ISNUMBER((F93-'PIC Raw'!O$15)-((($G93-'PIC Raw'!$P$15)/10784)*7.9)),(F93-'PIC Raw'!O$15)-((($G93-'PIC Raw'!$P$15)/10784)*7.9),-999) -> -999 | M93: -999 | N93: -999 | O93: -999 | Q93: -999 | R93: -999 | S93: -999 | U93: -999 | W93: -999 | X93: -999 | Y93: ='PIC Raw'!I93 -> 
A94: ='PIC Raw'!A94 -> 0 | B94: ='PIC Raw'!C94 ->  | C94: ='PIC Raw'!D94 -> 0 | D94: =IF(ISBLANK('PIC Raw'!E94),"",'PIC Raw'!E94) ->  | E94: =IF(ISBLANK('PIC Raw'!F94),"",'PIC Raw'!F94) ->  | F94: =IF(ISBLANK('PIC Raw'!G94),"",'PIC Raw'!G94) ->  | G94: =IF(ISBLANK('PIC Raw'!H94),"",'PIC Raw'!H94) ->  | I94: =IF(ISNUMBER((D94-'PIC Raw'!M$15)-((($G94-'PIC Raw'!$P$15)/10784)*412)),(D94-'PIC Raw'!M$15)-((($G94-'PIC Raw'!$P$15)/10784)*412),-999) -> -999 | J94: =IF(ISNUMBER((E94-'PIC Raw'!N$15)-((($G94-'PIC Raw'!$P$15)/10784)*1284)),(E94-'PIC Raw'!N$15)-((($G94-'PIC Raw'!$P$15)/10784)*1284),-999) -> -999 | K94: =IF(ISNUMBER((F94-'PIC Raw'!O$15)-((($G94-'PIC Raw'!$P$15)/10784)*7.9)),(F94-'PIC Raw'!O$15)-((($G94-'PIC Raw'!$P$15)/10784)*7.9),-999) -> -999 | M94: -999 | N94: -999 | O94: -999 | Q94: -999 | R94: -999 | S94: -999 | U94: -999 | W94: -999 | X94: -999 | Y94: ='PIC Raw'!I94 -> 
A95: ='PIC Raw'!A95 -> 0 | B95: ='PIC Raw'!C95 ->  | C95: ='PIC Raw'!D95 -> 0 | D95: =IF(ISBLANK('PIC Raw'!E95),"",'PIC Raw'!E95) ->  | E95: =IF(ISBLANK('PIC Raw'!F95),"",'PIC Raw'!F95) ->  | F95: =IF(ISBLANK('PIC Raw'!G95),"",'PIC Raw'!G95) ->  | G95: =IF(ISBLANK('PIC Raw'!H95),"",'PIC Raw'!H95) ->  | I95: =IF(ISNUMBER((D95-'PIC Raw'!M$15)-((($G95-'PIC Raw'!$P$15)/10784)*412)),(D95-'PIC Raw'!M$15)-((($G95-'PIC Raw'!$P$15)/10784)*412),-999) -> -999 | J95: =IF(ISNUMBER((E95-'PIC Raw'!N$15)-((($G95-'PIC Raw'!$P$15)/10784)*1284)),(E95-'PIC Raw'!N$15)-((($G95-'PIC Raw'!$P$15)/10784)*1284),-999) -> -999 | K95: =IF(ISNUMBER((F95-'PIC Raw'!O$15)-((($G95-'PIC Raw'!$P$15)/10784)*7.9)),(F95-'PIC Raw'!O$15)-((($G95-'PIC Raw'!$P$15)/10784)*7.9),-999) -> -999 | M95: -999 | N95: -999 | O95: -999 | Q95: -999 | R95: -999 | S95: -999 | U95: -999 | W95: -999 | X95: -999 | Y95: ='PIC Raw'!I95 -> 
A96: ='PIC Raw'!A96 -> 0 | B96: ='PIC Raw'!C96 ->  | C96: ='PIC Raw'!D96 -> 0 | D96: =IF(ISBLANK('PIC Raw'!E96),"",'PIC Raw'!E96) ->  | E96: =IF(ISBLANK('PIC Raw'!F96),"",'PIC Raw'!F96) ->  | F96: =IF(ISBLANK('PIC Raw'!G96),"",'PIC Raw'!G96) ->  | G96: =IF(ISBLANK('PIC Raw'!H96),"",'PIC Raw'!H96) ->  | I96: =IF(ISNUMBER((D96-'PIC Raw'!M$15)-((($G96-'PIC Raw'!$P$15)/10784)*412)),(D96-'PIC Raw'!M$15)-((($G96-'PIC Raw'!$P$15)/10784)*412),-999) -> -999 | J96: =IF(ISNUMBER((E96-'PIC Raw'!N$15)-((($G96-'PIC Raw'!$P$15)/10784)*1284)),(E96-'PIC Raw'!N$15)-((($G96-'PIC Raw'!$P$15)/10784)*1284),-999) -> -999 | K96: =IF(ISNUMBER((F96-'PIC Raw'!O$15)-((($G96-'PIC Raw'!$P$15)/10784)*7.9)),(F96-'PIC Raw'!O$15)-((($G96-'PIC Raw'!$P$15)/10784)*7.9),-999) -> -999 | M96: -999 | N96: -999 | O96: -999 | Q96: -999 | R96: -999 | S96: -999 | U96: -999 | W96: -999 | X96: -999 | Y96: ='PIC Raw'!I96 -> 
A97: ='PIC Raw'!A97 -> 0 | B97: ='PIC Raw'!C97 ->  | C97: ='PIC Raw'!D97 -> 0 | D97: =IF(ISBLANK('PIC Raw'!E97),"",'PIC Raw'!E97) ->  | E97: =IF(ISBLANK('PIC Raw'!F97),"",'PIC Raw'!F97) ->  | F97: =IF(ISBLANK('PIC Raw'!G97),"",'PIC Raw'!G97) ->  | G97: =IF(ISBLANK('PIC Raw'!H97),"",'PIC Raw'!H97) ->  | I97: =IF(ISNUMBER((D97-'PIC Raw'!M$15)-((($G97-'PIC Raw'!$P$15)/10784)*412)),(D97-'PIC Raw'!M$15)-((($G97-'PIC Raw'!$P$15)/10784)*412),-999) -> -999 | J97: =IF(ISNUMBER((E97-'PIC Raw'!N$15)-((($G97-'PIC Raw'!$P$15)/10784)*1284)),(E97-'PIC Raw'!N$15)-((($G97-'PIC Raw'!$P$15)/10784)*1284),-999) -> -999 | K97: =IF(ISNUMBER((F97-'PIC Raw'!O$15)-((($G97-'PIC Raw'!$P$15)/10784)*7.9)),(F97-'PIC Raw'!O$15)-((($G97-'PIC Raw'!$P$15)/10784)*7.9),-999) -> -999 | M97: -999 | N97: -999 | O97: -999 | Q97: -999 | R97: -999 | S97: -999 | U97: -999 | W97: -999 | X97: -999 | Y97: ='PIC Raw'!I97 -> 
A98: ='PIC Raw'!A98 -> 0 | B98: ='PIC Raw'!C98 ->  | C98: ='PIC Raw'!D98 -> 0 | D98: =IF(ISBLANK('PIC Raw'!E98),"",'PIC Raw'!E98) ->  | E98: =IF(ISBLANK('PIC Raw'!F98),"",'PIC Raw'!F98) ->  | F98: =IF(ISBLANK('PIC Raw'!G98),"",'PIC Raw'!G98) ->  | G98: =IF(ISBLANK('PIC Raw'!H98),"",'PIC Raw'!H98) ->  | I98: =IF(ISNUMBER((D98-'PIC Raw'!M$15)-((($G98-'PIC Raw'!$P$15)/10784)*412)),(D98-'PIC Raw'!M$15)-((($G98-'PIC Raw'!$P$15)/10784)*412),-999) -> -999 | J98: =IF(ISNUMBER((E98-'PIC Raw'!N$15)-((($G98-'PIC Raw'!$P$15)/10784)*1284)),(E98-'PIC Raw'!N$15)-((($G98-'PIC Raw'!$P$15)/10784)*1284),-999) -> -999 | K98: =IF(ISNUMBER((F98-'PIC Raw'!O$15)-((($G98-'PIC Raw'!$P$15)/10784)*7.9)),(F98-'PIC Raw'!O$15)-((($G98-'PIC Raw'!$P$15)/10784)*7.9),-999) -> -999 | M98: -999 | N98: -999 | O98: -999 | Q98: -999 | R98: -999 | S98: -999 | U98: -999 | W98: -999 | X98: -999 | Y98: ='PIC Raw'!I98 -> 
A99: ='PIC Raw'!A99 -> 0 | B99: ='PIC Raw'!C99 ->  | C99: ='PIC Raw'!D99 -> 0 | D99: =IF(ISBLANK('PIC Raw'!E99),"",'PIC Raw'!E99) ->  | E99: =IF(ISBLANK('PIC Raw'!F99),"",'PIC Raw'!F99) ->  | F99: =IF(ISBLANK('PIC Raw'!G99),"",'PIC Raw'!G99) ->  | G99: =IF(ISBLANK('PIC Raw'!H99),"",'PIC Raw'!H99) ->  | I99: =IF(ISNUMBER((D99-'PIC Raw'!M$15)-((($G99-'PIC Raw'!$P$15)/10784)*412)),(D99-'PIC Raw'!M$15)-((($G99-'PIC Raw'!$P$15)/10784)*412),-999) -> -999 | J99: =IF(ISNUMBER((E99-'PIC Raw'!N$15)-((($G99-'PIC Raw'!$P$15)/10784)*1284)),(E99-'PIC Raw'!N$15)-((($G99-'PIC Raw'!$P$15)/10784)*1284),-999) -> -999 | K99: =IF(ISNUMBER((F99-'PIC Raw'!O$15)-((($G99-'PIC Raw'!$P$15)/10784)*7.9)),(F99-'PIC Raw'!O$15)-((($G99-'PIC Raw'!$P$15)/10784)*7.9),-999) -> -999 | M99: -999 | N99: -999 | O99: -999 | Q99: -999 | R99: -999 | S99: -999 | U99: -999 | W99: -999 | X99: -999 | Y99: ='PIC Raw'!I99 -> 
A100: ='PIC Raw'!A100 -> 0 | B100: ='PIC Raw'!C100 ->  | C100: ='PIC Raw'!D100 -> 0 | D100: =IF(ISBLANK('PIC Raw'!E100),"",'PIC Raw'!E100) ->  | E100: =IF(ISBLANK('PIC Raw'!F100),"",'PIC Raw'!F100) ->  | F100: =IF(ISBLANK('PIC Raw'!G100),"",'PIC Raw'!G100) ->  | G100: =IF(ISBLANK('PIC Raw'!H100),"",'PIC Raw'!H100) ->  | I100: =IF(ISNUMBER((D100-'PIC Raw'!M$15)-((($G100-'PIC Raw'!$P$15)/10784)*412)),(D100-'PIC Raw'!M$15)-((($G100-'PIC Raw'!$P$15)/10784)*412),-999) -> -999 | J100: =IF(ISNUMBER((E100-'PIC Raw'!N$15)-((($G100-'PIC Raw'!$P$15)/10784)*1284)),(E100-'PIC Raw'!N$15)-((($G100-'PIC Raw'!$P$15)/10784)*1284),-999) -> -999 | K100: =IF(ISNUMBER((F100-'PIC Raw'!O$15)-((($G100-'PIC Raw'!$P$15)/10784)*7.9)),(F100-'PIC Raw'!O$15)-((($G100-'PIC Raw'!$P$15)/10784)*7.9),-999) -> -999 | M100: -999 | N100: -999 | O100: -999 | Q100: -999 | R100: -999 | S100: -999 | U100: -999 | W100: -999 | X100: -999 | Y100: ='PIC Raw'!I100 -> 
A101: ='PIC Raw'!A101 -> 0 | B101: ='PIC Raw'!C101 ->  | C101: ='PIC Raw'!D101 -> 0 | D101: =IF(ISBLANK('PIC Raw'!E101),"",'PIC Raw'!E101) ->  | E101: =IF(ISBLANK('PIC Raw'!F101),"",'PIC Raw'!F101) ->  | F101: =IF(ISBLANK('PIC Raw'!G101),"",'PIC Raw'!G101) ->  | G101: =IF(ISBLANK('PIC Raw'!H101),"",'PIC Raw'!H101) ->  | I101: =IF(ISNUMBER((D101-'PIC Raw'!M$15)-((($G101-'PIC Raw'!$P$15)/10784)*412)),(D101-'PIC Raw'!M$15)-((($G101-'PIC Raw'!$P$15)/10784)*412),-999) -> -999 | J101: =IF(ISNUMBER((E101-'PIC Raw'!N$15)-((($G101-'PIC Raw'!$P$15)/10784)*1284)),(E101-'PIC Raw'!N$15)-((($G101-'PIC Raw'!$P$15)/10784)*1284),-999) -> -999 | K101: =IF(ISNUMBER((F101-'PIC Raw'!O$15)-((($G101-'PIC Raw'!$P$15)/10784)*7.9)),(F101-'PIC Raw'!O$15)-((($G101-'PIC Raw'!$P$15)/10784)*7.9),-999) -> -999 | M101: -999 | N101: -999 | O101: -999 | Q101: -999 | R101: -999 | S101: -999 | U101: -999 | W101: -999 | X101: -999 | Y101: ='PIC Raw'!I101 -> 
A102: ='PIC Raw'!A102 -> 0 | B102: ='PIC Raw'!C102 ->  | C102: ='PIC Raw'!D102 -> 0 | D102: =IF(ISBLANK('PIC Raw'!E102),"",'PIC Raw'!E102) ->  | E102: =IF(ISBLANK('PIC Raw'!F102),"",'PIC Raw'!F102) ->  | F102: =IF(ISBLANK('PIC Raw'!G102),"",'PIC Raw'!G102) ->  | G102: =IF(ISBLANK('PIC Raw'!H102),"",'PIC Raw'!H102) ->  | I102: =IF(ISNUMBER((D102-'PIC Raw'!M$15)-((($G102-'PIC Raw'!$P$15)/10784)*412)),(D102-'PIC Raw'!M$15)-((($G102-'PIC Raw'!$P$15)/10784)*412),-999) -> -999 | J102: =IF(ISNUMBER((E102-'PIC Raw'!N$15)-((($G102-'PIC Raw'!$P$15)/10784)*1284)),(E102-'PIC Raw'!N$15)-((($G102-'PIC Raw'!$P$15)/10784)*1284),-999) -> -999 | K102: =IF(ISNUMBER((F102-'PIC Raw'!O$15)-((($G102-'PIC Raw'!$P$15)/10784)*7.9)),(F102-'PIC Raw'!O$15)-((($G102-'PIC Raw'!$P$15)/10784)*7.9),-999) -> -999 | M102: -999 | N102: -999 | O102: -999 | Q102: -999 | R102: -999 | S102: -999 | U102: -999 | W102: -999 | X102: -999 | Y102: ='PIC Raw'!I102 -> 
A103: ='PIC Raw'!A103 -> 0 | B103: ='PIC Raw'!C103 ->  | C103: ='PIC Raw'!D103 -> 0 | D103: =IF(ISBLANK('PIC Raw'!E103),"",'PIC Raw'!E103) ->  | E103: =IF(ISBLANK('PIC Raw'!F103),"",'PIC Raw'!F103) ->  | F103: =IF(ISBLANK('PIC Raw'!G103),"",'PIC Raw'!G103) ->  | G103: =IF(ISBLANK('PIC Raw'!H103),"",'PIC Raw'!H103) ->  | I103: =IF(ISNUMBER((D103-'PIC Raw'!M$15)-((($G103-'PIC Raw'!$P$15)/10784)*412)),(D103-'PIC Raw'!M$15)-((($G103-'PIC Raw'!$P$15)/10784)*412),-999) -> -999 | J103: =IF(ISNUMBER((E103-'PIC Raw'!N$15)-((($G103-'PIC Raw'!$P$15)/10784)*1284)),(E103-'PIC Raw'!N$15)-((($G103-'PIC Raw'!$P$15)/10784)*1284),-999) -> -999 | K103: =IF(ISNUMBER((F103-'PIC Raw'!O$15)-((($G103-'PIC Raw'!$P$15)/10784)*7.9)),(F103-'PIC Raw'!O$15)-((($G103-'PIC Raw'!$P$15)/10784)*7.9),-999) -> -999 | M103: -999 | N103: -999 | O103: -999 | Q103: -999 | R103: -999 | S103: -999 | U103: -999 | W103: -999 | X103: -999 | Y103: ='PIC Raw'!I103 -> 
A104: ='PIC Raw'!A104 -> 0 | B104: ='PIC Raw'!C104 ->  | C104: ='PIC Raw'!D104 -> 0 | D104: =IF(ISBLANK('PIC Raw'!E104),"",'PIC Raw'!E104) ->  | E104: =IF(ISBLANK('PIC Raw'!F104),"",'PIC Raw'!F104) ->  | F104: =IF(ISBLANK('PIC Raw'!G104),"",'PIC Raw'!G104) ->  | G104: =IF(ISBLANK('PIC Raw'!H104),"",'PIC Raw'!H104) ->  | I104: =IF(ISNUMBER((D104-'PIC Raw'!M$15)-((($G104-'PIC Raw'!$P$15)/10784)*412)),(D104-'PIC Raw'!M$15)-((($G104-'PIC Raw'!$P$15)/10784)*412),-999) -> -999 | J104: =IF(ISNUMBER((E104-'PIC Raw'!N$15)-((($G104-'PIC Raw'!$P$15)/10784)*1284)),(E104-'PIC Raw'!N$15)-((($G104-'PIC Raw'!$P$15)/10784)*1284),-999) -> -999 | K104: =IF(ISNUMBER((F104-'PIC Raw'!O$15)-((($G104-'PIC Raw'!$P$15)/10784)*7.9)),(F104-'PIC Raw'!O$15)-((($G104-'PIC Raw'!$P$15)/10784)*7.9),-999) -> -999 | M104: -999 | N104: -999 | O104: -999 | Q104: -999 | R104: -999 | S104: -999 | U104: -999 | W104: -999 | X104: -999 | Y104: ='PIC Raw'!I104 -> 
A105: ='PIC Raw'!A105 -> 0 | B105: ='PIC Raw'!C105 ->  | C105: ='PIC Raw'!D105 -> 0 | D105: =IF(ISBLANK('PIC Raw'!E105),"",'PIC Raw'!E105) ->  | E105: =IF(ISBLANK('PIC Raw'!F105),"",'PIC Raw'!F105) ->  | F105: =IF(ISBLANK('PIC Raw'!G105),"",'PIC Raw'!G105) ->  | G105: =IF(ISBLANK('PIC Raw'!H105),"",'PIC Raw'!H105) ->  | I105: =IF(ISNUMBER((D105-'PIC Raw'!M$15)-((($G105-'PIC Raw'!$P$15)/10784)*412)),(D105-'PIC Raw'!M$15)-((($G105-'PIC Raw'!$P$15)/10784)*412),-999) -> -999 | J105: =IF(ISNUMBER((E105-'PIC Raw'!N$15)-((($G105-'PIC Raw'!$P$15)/10784)*1284)),(E105-'PIC Raw'!N$15)-((($G105-'PIC Raw'!$P$15)/10784)*1284),-999) -> -999 | K105: =IF(ISNUMBER((F105-'PIC Raw'!O$15)-((($G105-'PIC Raw'!$P$15)/10784)*7.9)),(F105-'PIC Raw'!O$15)-((($G105-'PIC Raw'!$P$15)/10784)*7.9),-999) -> -999 | M105: -999 | N105: -999 | O105: -999 | Q105: -999 | R105: -999 | S105: -999 | U105: -999 | W105: -999 | X105: -999 | Y105: ='PIC Raw'!I105 -> 
A106: ='PIC Raw'!A106 -> 0 | B106: ='PIC Raw'!C106 ->  | C106: ='PIC Raw'!D106 -> 0 | D106: =IF(ISBLANK('PIC Raw'!E106),"",'PIC Raw'!E106) ->  | E106: =IF(ISBLANK('PIC Raw'!F106),"",'PIC Raw'!F106) ->  | F106: =IF(ISBLANK('PIC Raw'!G106),"",'PIC Raw'!G106) ->  | G106: =IF(ISBLANK('PIC Raw'!H106),"",'PIC Raw'!H106) ->  | I106: =IF(ISNUMBER((D106-'PIC Raw'!M$15)-((($G106-'PIC Raw'!$P$15)/10784)*412)),(D106-'PIC Raw'!M$15)-((($G106-'PIC Raw'!$P$15)/10784)*412),-999) -> -999 | J106: =IF(ISNUMBER((E106-'PIC Raw'!N$15)-((($G106-'PIC Raw'!$P$15)/10784)*1284)),(E106-'PIC Raw'!N$15)-((($G106-'PIC Raw'!$P$15)/10784)*1284),-999) -> -999 | K106: =IF(ISNUMBER((F106-'PIC Raw'!O$15)-((($G106-'PIC Raw'!$P$15)/10784)*7.9)),(F106-'PIC Raw'!O$15)-((($G106-'PIC Raw'!$P$15)/10784)*7.9),-999) -> -999 | M106: -999 | N106: -999 | O106: -999 | Q106: -999 | R106: -999 | S106: -999 | U106: -999 | W106: -999 | X106: -999 | Y106: ='PIC Raw'!I106 -> 
A107: ='PIC Raw'!A107 -> 0 | B107: ='PIC Raw'!C107 ->  | C107: ='PIC Raw'!D107 -> 0 | D107: =IF(ISBLANK('PIC Raw'!E107),"",'PIC Raw'!E107) ->  | E107: =IF(ISBLANK('PIC Raw'!F107),"",'PIC Raw'!F107) ->  | F107: =IF(ISBLANK('PIC Raw'!G107),"",'PIC Raw'!G107) ->  | G107: =IF(ISBLANK('PIC Raw'!H107),"",'PIC Raw'!H107) ->  | I107: =IF(ISNUMBER((D107-'PIC Raw'!M$15)-((($G107-'PIC Raw'!$P$15)/10784)*412)),(D107-'PIC Raw'!M$15)-((($G107-'PIC Raw'!$P$15)/10784)*412),-999) -> -999 | J107: =IF(ISNUMBER((E107-'PIC Raw'!N$15)-((($G107-'PIC Raw'!$P$15)/10784)*1284)),(E107-'PIC Raw'!N$15)-((($G107-'PIC Raw'!$P$15)/10784)*1284),-999) -> -999 | K107: =IF(ISNUMBER((F107-'PIC Raw'!O$15)-((($G107-'PIC Raw'!$P$15)/10784)*7.9)),(F107-'PIC Raw'!O$15)-((($G107-'PIC Raw'!$P$15)/10784)*7.9),-999) -> -999 | M107: -999 | N107: -999 | O107: -999 | Q107: -999 | R107: -999 | S107: -999 | U107: -999 | W107: -999 | X107: -999 | Y107: ='PIC Raw'!I107 -> 
A108: ='PIC Raw'!A108 -> 0 | B108: ='PIC Raw'!C108 ->  | C108: ='PIC Raw'!D108 -> 0 | D108: =IF(ISBLANK('PIC Raw'!E108),"",'PIC Raw'!E108) ->  | E108: =IF(ISBLANK('PIC Raw'!F108),"",'PIC Raw'!F108) ->  | F108: =IF(ISBLANK('PIC Raw'!G108),"",'PIC Raw'!G108) ->  | G108: =IF(ISBLANK('PIC Raw'!H108),"",'PIC Raw'!H108) ->  | I108: =IF(ISNUMBER((D108-'PIC Raw'!M$15)-((($G108-'PIC Raw'!$P$15)/10784)*412)),(D108-'PIC Raw'!M$15)-((($G108-'PIC Raw'!$P$15)/10784)*412),-999) -> -999 | J108: =IF(ISNUMBER((E108-'PIC Raw'!N$15)-((($G108-'PIC Raw'!$P$15)/10784)*1284)),(E108-'PIC Raw'!N$15)-((($G108-'PIC Raw'!$P$15)/10784)*1284),-999) -> -999 | K108: =IF(ISNUMBER((F108-'PIC Raw'!O$15)-((($G108-'PIC Raw'!$P$15)/10784)*7.9)),(F108-'PIC Raw'!O$15)-((($G108-'PIC Raw'!$P$15)/10784)*7.9),-999) -> -999 | M108: -999 | N108: -999 | O108: -999 | Q108: -999 | R108: -999 | S108: -999 | U108: -999 | W108: -999 | X108: -999 | Y108: ='PIC Raw'!I108 -> 
A109: ='PIC Raw'!A109 -> 0 | B109: ='PIC Raw'!C109 ->  | C109: ='PIC Raw'!D109 -> 0 | D109: =IF(ISBLANK('PIC Raw'!E109),"",'PIC Raw'!E109) ->  | E109: =IF(ISBLANK('PIC Raw'!F109),"",'PIC Raw'!F109) ->  | F109: =IF(ISBLANK('PIC Raw'!G109),"",'PIC Raw'!G109) ->  | G109: =IF(ISBLANK('PIC Raw'!H109),"",'PIC Raw'!H109) ->  | I109: =IF(ISNUMBER((D109-'PIC Raw'!M$15)-((($G109-'PIC Raw'!$P$15)/10784)*412)),(D109-'PIC Raw'!M$15)-((($G109-'PIC Raw'!$P$15)/10784)*412),-999) -> -999 | J109: =IF(ISNUMBER((E109-'PIC Raw'!N$15)-((($G109-'PIC Raw'!$P$15)/10784)*1284)),(E109-'PIC Raw'!N$15)-((($G109-'PIC Raw'!$P$15)/10784)*1284),-999) -> -999 | K109: =IF(ISNUMBER((F109-'PIC Raw'!O$15)-((($G109-'PIC Raw'!$P$15)/10784)*7.9)),(F109-'PIC Raw'!O$15)-((($G109-'PIC Raw'!$P$15)/10784)*7.9),-999) -> -999 | M109: -999 | N109: -999 | O109: -999 | Q109: -999 | R109: -999 | S109: -999 | U109: -999 | W109: -999 | X109: -999 | Y109: ='PIC Raw'!I109 -> 
A110: ='PIC Raw'!A110 -> 0 | B110: ='PIC Raw'!C110 ->  | C110: ='PIC Raw'!D110 -> 0 | D110: =IF(ISBLANK('PIC Raw'!E110),"",'PIC Raw'!E110) ->  | E110: =IF(ISBLANK('PIC Raw'!F110),"",'PIC Raw'!F110) ->  | F110: =IF(ISBLANK('PIC Raw'!G110),"",'PIC Raw'!G110) ->  | G110: =IF(ISBLANK('PIC Raw'!H110),"",'PIC Raw'!H110) ->  | I110: =IF(ISNUMBER((D110-'PIC Raw'!M$15)-((($G110-'PIC Raw'!$P$15)/10784)*412)),(D110-'PIC Raw'!M$15)-((($G110-'PIC Raw'!$P$15)/10784)*412),-999) -> -999 | J110: =IF(ISNUMBER((E110-'PIC Raw'!N$15)-((($G110-'PIC Raw'!$P$15)/10784)*1284)),(E110-'PIC Raw'!N$15)-((($G110-'PIC Raw'!$P$15)/10784)*1284),-999) -> -999 | K110: =IF(ISNUMBER((F110-'PIC Raw'!O$15)-((($G110-'PIC Raw'!$P$15)/10784)*7.9)),(F110-'PIC Raw'!O$15)-((($G110-'PIC Raw'!$P$15)/10784)*7.9),-999) -> -999 | M110: -999 | N110: -999 | O110: -999 | Q110: -999 | R110: -999 | S110: -999 | U110: -999 | W110: -999 | X110: -999 | Y110: ='PIC Raw'!I110 -> 
A111: ='PIC Raw'!A111 -> 0 | B111: ='PIC Raw'!C111 ->  | C111: ='PIC Raw'!D111 -> 0 | D111: =IF(ISBLANK('PIC Raw'!E111),"",'PIC Raw'!E111) ->  | E111: =IF(ISBLANK('PIC Raw'!F111),"",'PIC Raw'!F111) ->  | F111: =IF(ISBLANK('PIC Raw'!G111),"",'PIC Raw'!G111) ->  | G111: =IF(ISBLANK('PIC Raw'!H111),"",'PIC Raw'!H111) ->  | I111: =IF(ISNUMBER((D111-'PIC Raw'!M$15)-((($G111-'PIC Raw'!$P$15)/10784)*412)),(D111-'PIC Raw'!M$15)-((($G111-'PIC Raw'!$P$15)/10784)*412),-999) -> -999 | J111: =IF(ISNUMBER((E111-'PIC Raw'!N$15)-((($G111-'PIC Raw'!$P$15)/10784)*1284)),(E111-'PIC Raw'!N$15)-((($G111-'PIC Raw'!$P$15)/10784)*1284),-999) -> -999 | K111: =IF(ISNUMBER((F111-'PIC Raw'!O$15)-((($G111-'PIC Raw'!$P$15)/10784)*7.9)),(F111-'PIC Raw'!O$15)-((($G111-'PIC Raw'!$P$15)/10784)*7.9),-999) -> -999 | M111: -999 | N111: -999 | O111: -999 | Q111: -999 | R111: -999 | S111: -999 | U111: -999 | W111: -999 | X111: -999 | Y111: ='PIC Raw'!I111 -> 
A112: ='PIC Raw'!A112 -> 0 | B112: ='PIC Raw'!C112 ->  | C112: ='PIC Raw'!D112 -> 0 | D112: =IF(ISBLANK('PIC Raw'!E112),"",'PIC Raw'!E112) ->  | E112: =IF(ISBLANK('PIC Raw'!F112),"",'PIC Raw'!F112) ->  | F112: =IF(ISBLANK('PIC Raw'!G112),"",'PIC Raw'!G112) ->  | G112: =IF(ISBLANK('PIC Raw'!H112),"",'PIC Raw'!H112) ->  | I112: =IF(ISNUMBER((D112-'PIC Raw'!M$15)-((($G112-'PIC Raw'!$P$15)/10784)*412)),(D112-'PIC Raw'!M$15)-((($G112-'PIC Raw'!$P$15)/10784)*412),-999) -> -999 | J112: =IF(ISNUMBER((E112-'PIC Raw'!N$15)-((($G112-'PIC Raw'!$P$15)/10784)*1284)),(E112-'PIC Raw'!N$15)-((($G112-'PIC Raw'!$P$15)/10784)*1284),-999) -> -999 | K112: =IF(ISNUMBER((F112-'PIC Raw'!O$15)-((($G112-'PIC Raw'!$P$15)/10784)*7.9)),(F112-'PIC Raw'!O$15)-((($G112-'PIC Raw'!$P$15)/10784)*7.9),-999) -> -999 | M112: -999 | N112: -999 | O112: -999 | Q112: -999 | R112: -999 | S112: -999 | U112: -999 | W112: -999 | X112: -999 | Y112: ='PIC Raw'!I112 -> 
A113: ='PIC Raw'!A113 -> 0 | B113: ='PIC Raw'!C113 ->  | C113: ='PIC Raw'!D113 -> 0 | D113: =IF(ISBLANK('PIC Raw'!E113),"",'PIC Raw'!E113) ->  | E113: =IF(ISBLANK('PIC Raw'!F113),"",'PIC Raw'!F113) ->  | F113: =IF(ISBLANK('PIC Raw'!G113),"",'PIC Raw'!G113) ->  | G113: =IF(ISBLANK('PIC Raw'!H113),"",'PIC Raw'!H113) ->  | I113: =IF(ISNUMBER((D113-'PIC Raw'!M$15)-((($G113-'PIC Raw'!$P$15)/10784)*412)),(D113-'PIC Raw'!M$15)-((($G113-'PIC Raw'!$P$15)/10784)*412),-999) -> -999 | J113: =IF(ISNUMBER((E113-'PIC Raw'!N$15)-((($G113-'PIC Raw'!$P$15)/10784)*1284)),(E113-'PIC Raw'!N$15)-((($G113-'PIC Raw'!$P$15)/10784)*1284),-999) -> -999 | K113: =IF(ISNUMBER((F113-'PIC Raw'!O$15)-((($G113-'PIC Raw'!$P$15)/10784)*7.9)),(F113-'PIC Raw'!O$15)-((($G113-'PIC Raw'!$P$15)/10784)*7.9),-999) -> -999 | M113: -999 | N113: -999 | O113: -999 | Q113: -999 | R113: -999 | S113: -999 | U113: -999 | W113: -999 | X113: -999 | Y113: ='PIC Raw'!I113 -> 
A114: ='PIC Raw'!A114 -> 0 | B114: ='PIC Raw'!C114 ->  | C114: ='PIC Raw'!D114 -> 0 | D114: =IF(ISBLANK('PIC Raw'!E114),"",'PIC Raw'!E114) ->  | E114: =IF(ISBLANK('PIC Raw'!F114),"",'PIC Raw'!F114) ->  | F114: =IF(ISBLANK('PIC Raw'!G114),"",'PIC Raw'!G114) ->  | G114: =IF(ISBLANK('PIC Raw'!H114),"",'PIC Raw'!H114) ->  | I114: =IF(ISNUMBER((D114-'PIC Raw'!M$15)-((($G114-'PIC Raw'!$P$15)/10784)*412)),(D114-'PIC Raw'!M$15)-((($G114-'PIC Raw'!$P$15)/10784)*412),-999) -> -999 | J114: =IF(ISNUMBER((E114-'PIC Raw'!N$15)-((($G114-'PIC Raw'!$P$15)/10784)*1284)),(E114-'PIC Raw'!N$15)-((($G114-'PIC Raw'!$P$15)/10784)*1284),-999) -> -999 | K114: =IF(ISNUMBER((F114-'PIC Raw'!O$15)-((($G114-'PIC Raw'!$P$15)/10784)*7.9)),(F114-'PIC Raw'!O$15)-((($G114-'PIC Raw'!$P$15)/10784)*7.9),-999) -> -999 | M114: -999 | N114: -999 | O114: -999 | Q114: -999 | R114: -999 | S114: -999 | U114: -999 | W114: -999 | X114: -999 | Y114: ='PIC Raw'!I114 -> 
A115: ='PIC Raw'!A115 -> 0 | B115: ='PIC Raw'!C115 ->  | C115: ='PIC Raw'!D115 -> 0 | D115: =IF(ISBLANK('PIC Raw'!E115),"",'PIC Raw'!E115) ->  | E115: =IF(ISBLANK('PIC Raw'!F115),"",'PIC Raw'!F115) ->  | F115: =IF(ISBLANK('PIC Raw'!G115),"",'PIC Raw'!G115) ->  | G115: =IF(ISBLANK('PIC Raw'!H115),"",'PIC Raw'!H115) ->  | I115: =IF(ISNUMBER((D115-'PIC Raw'!M$15)-((($G115-'PIC Raw'!$P$15)/10784)*412)),(D115-'PIC Raw'!M$15)-((($G115-'PIC Raw'!$P$15)/10784)*412),-999) -> -999 | J115: =IF(ISNUMBER((E115-'PIC Raw'!N$15)-((($G115-'PIC Raw'!$P$15)/10784)*1284)),(E115-'PIC Raw'!N$15)-((($G115-'PIC Raw'!$P$15)/10784)*1284),-999) -> -999 | K115: =IF(ISNUMBER((F115-'PIC Raw'!O$15)-((($G115-'PIC Raw'!$P$15)/10784)*7.9)),(F115-'PIC Raw'!O$15)-((($G115-'PIC Raw'!$P$15)/10784)*7.9),-999) -> -999 | M115: -999 | N115: -999 | O115: -999 | Q115: -999 | R115: -999 | S115: -999 | U115: -999 | W115: -999 | X115: -999 | Y115: ='PIC Raw'!I115 -> 
A116: ='PIC Raw'!A116 -> 0 | B116: ='PIC Raw'!C116 ->  | C116: ='PIC Raw'!D116 -> 0 | D116: =IF(ISBLANK('PIC Raw'!E116),"",'PIC Raw'!E116) ->  | E116: =IF(ISBLANK('PIC Raw'!F116),"",'PIC Raw'!F116) ->  | F116: =IF(ISBLANK('PIC Raw'!G116),"",'PIC Raw'!G116) ->  | G116: =IF(ISBLANK('PIC Raw'!H116),"",'PIC Raw'!H116) ->  | I116: =IF(ISNUMBER((D116-'PIC Raw'!M$15)-((($G116-'PIC Raw'!$P$15)/10784)*412)),(D116-'PIC Raw'!M$15)-((($G116-'PIC Raw'!$P$15)/10784)*412),-999) -> -999 | J116: =IF(ISNUMBER((E116-'PIC Raw'!N$15)-((($G116-'PIC Raw'!$P$15)/10784)*1284)),(E116-'PIC Raw'!N$15)-((($G116-'PIC Raw'!$P$15)/10784)*1284),-999) -> -999 | K116: =IF(ISNUMBER((F116-'PIC Raw'!O$15)-((($G116-'PIC Raw'!$P$15)/10784)*7.9)),(F116-'PIC Raw'!O$15)-((($G116-'PIC Raw'!$P$15)/10784)*7.9),-999) -> -999 | M116: -999 | N116: -999 | O116: -999 | Q116: -999 | R116: -999 | S116: -999 | U116: -999 | W116: -999 | X116: -999 | Y116: ='PIC Raw'!I116 -> 
A117: ='PIC Raw'!A117 -> 0 | B117: ='PIC Raw'!C117 ->  | C117: ='PIC Raw'!D117 -> 0 | D117: =IF(ISBLANK('PIC Raw'!E117),"",'PIC Raw'!E117) ->  | E117: =IF(ISBLANK('PIC Raw'!F117),"",'PIC Raw'!F117) ->  | F117: =IF(ISBLANK('PIC Raw'!G117),"",'PIC Raw'!G117) ->  | G117: =IF(ISBLANK('PIC Raw'!H117),"",'PIC Raw'!H117) ->  | I117: =IF(ISNUMBER((D117-'PIC Raw'!M$15)-((($G117-'PIC Raw'!$P$15)/10784)*412)),(D117-'PIC Raw'!M$15)-((($G117-'PIC Raw'!$P$15)/10784)*412),-999) -> -999 | J117: =IF(ISNUMBER((E117-'PIC Raw'!N$15)-((($G117-'PIC Raw'!$P$15)/10784)*1284)),(E117-'PIC Raw'!N$15)-((($G117-'PIC Raw'!$P$15)/10784)*1284),-999) -> -999 | K117: =IF(ISNUMBER((F117-'PIC Raw'!O$15)-((($G117-'PIC Raw'!$P$15)/10784)*7.9)),(F117-'PIC Raw'!O$15)-((($G117-'PIC Raw'!$P$15)/10784)*7.9),-999) -> -999 | M117: -999 | N117: -999 | O117: -999 | Q117: -999 | R117: -999 | S117: -999 | U117: -999 | W117: -999 | X117: -999 | Y117: ='PIC Raw'!I117 -> 
A118: ='PIC Raw'!A118 -> 0 | B118: ='PIC Raw'!C118 ->  | C118: ='PIC Raw'!D118 -> 0 | D118: =IF(ISBLANK('PIC Raw'!E118),"",'PIC Raw'!E118) ->  | E118: =IF(ISBLANK('PIC Raw'!F118),"",'PIC Raw'!F118) ->  | F118: =IF(ISBLANK('PIC Raw'!G118),"",'PIC Raw'!G118) ->  | G118: =IF(ISBLANK('PIC Raw'!H118),"",'PIC Raw'!H118) ->  | I118: =IF(ISNUMBER((D118-'PIC Raw'!M$15)-((($G118-'PIC Raw'!$P$15)/10784)*412)),(D118-'PIC Raw'!M$15)-((($G118-'PIC Raw'!$P$15)/10784)*412),-999) -> -999 | J118: =IF(ISNUMBER((E118-'PIC Raw'!N$15)-((($G118-'PIC Raw'!$P$15)/10784)*1284)),(E118-'PIC Raw'!N$15)-((($G118-'PIC Raw'!$P$15)/10784)*1284),-999) -> -999 | K118: =IF(ISNUMBER((F118-'PIC Raw'!O$15)-((($G118-'PIC Raw'!$P$15)/10784)*7.9)),(F118-'PIC Raw'!O$15)-((($G118-'PIC Raw'!$P$15)/10784)*7.9),-999) -> -999 | M118: -999 | N118: -999 | O118: -999 | Q118: -999 | R118: -999 | S118: -999 | U118: -999 | W118: -999 | X118: -999 | Y118: ='PIC Raw'!I118 -> 
A119: ='PIC Raw'!A119 -> 0 | B119: ='PIC Raw'!C119 ->  | C119: ='PIC Raw'!D119 -> 0 | D119: =IF(ISBLANK('PIC Raw'!E119),"",'PIC Raw'!E119) ->  | E119: =IF(ISBLANK('PIC Raw'!F119),"",'PIC Raw'!F119) ->  | F119: =IF(ISBLANK('PIC Raw'!G119),"",'PIC Raw'!G119) ->  | G119: =IF(ISBLANK('PIC Raw'!H119),"",'PIC Raw'!H119) ->  | I119: =IF(ISNUMBER((D119-'PIC Raw'!M$15)-((($G119-'PIC Raw'!$P$15)/10784)*412)),(D119-'PIC Raw'!M$15)-((($G119-'PIC Raw'!$P$15)/10784)*412),-999) -> -999 | J119: =IF(ISNUMBER((E119-'PIC Raw'!N$15)-((($G119-'PIC Raw'!$P$15)/10784)*1284)),(E119-'PIC Raw'!N$15)-((($G119-'PIC Raw'!$P$15)/10784)*1284),-999) -> -999 | K119: =IF(ISNUMBER((F119-'PIC Raw'!O$15)-((($G119-'PIC Raw'!$P$15)/10784)*7.9)),(F119-'PIC Raw'!O$15)-((($G119-'PIC Raw'!$P$15)/10784)*7.9),-999) -> -999 | M119: -999 | N119: -999 | O119: -999 | Q119: -999 | R119: -999 | S119: -999 | U119: -999 | W119: -999 | X119: -999 | Y119: ='PIC Raw'!I119 -> 
A120: ='PIC Raw'!A120 -> 0 | B120: ='PIC Raw'!C120 ->  | C120: ='PIC Raw'!D120 -> 0 | D120: =IF(ISBLANK('PIC Raw'!E120),"",'PIC Raw'!E120) ->  | E120: =IF(ISBLANK('PIC Raw'!F120),"",'PIC Raw'!F120) ->  | F120: =IF(ISBLANK('PIC Raw'!G120),"",'PIC Raw'!G120) ->  | G120: =IF(ISBLANK('PIC Raw'!H120),"",'PIC Raw'!H120) ->  | I120: =IF(ISNUMBER((D120-'PIC Raw'!M$15)-((($G120-'PIC Raw'!$P$15)/10784)*412)),(D120-'PIC Raw'!M$15)-((($G120-'PIC Raw'!$P$15)/10784)*412),-999) -> -999 | J120: =IF(ISNUMBER((E120-'PIC Raw'!N$15)-((($G120-'PIC Raw'!$P$15)/10784)*1284)),(E120-'PIC Raw'!N$15)-((($G120-'PIC Raw'!$P$15)/10784)*1284),-999) -> -999 | K120: =IF(ISNUMBER((F120-'PIC Raw'!O$15)-((($G120-'PIC Raw'!$P$15)/10784)*7.9)),(F120-'PIC Raw'!O$15)-((($G120-'PIC Raw'!$P$15)/10784)*7.9),-999) -> -999 | M120: -999 | N120: -999 | O120: -999 | Q120: -999 | R120: -999 | S120: -999 | U120: -999 | W120: -999 | X120: -999 | Y120: ='PIC Raw'!I120 -> 
A121: ='PIC Raw'!A121 -> 0 | B121: ='PIC Raw'!C121 ->  | C121: ='PIC Raw'!D121 -> 0 | D121: =IF(ISBLANK('PIC Raw'!E121),"",'PIC Raw'!E121) ->  | E121: =IF(ISBLANK('PIC Raw'!F121),"",'PIC Raw'!F121) ->  | F121: =IF(ISBLANK('PIC Raw'!G121),"",'PIC Raw'!G121) ->  | G121: =IF(ISBLANK('PIC Raw'!H121),"",'PIC Raw'!H121) ->  | I121: =IF(ISNUMBER((D121-'PIC Raw'!M$15)-((($G121-'PIC Raw'!$P$15)/10784)*412)),(D121-'PIC Raw'!M$15)-((($G121-'PIC Raw'!$P$15)/10784)*412),-999) -> -999 | J121: =IF(ISNUMBER((E121-'PIC Raw'!N$15)-((($G121-'PIC Raw'!$P$15)/10784)*1284)),(E121-'PIC Raw'!N$15)-((($G121-'PIC Raw'!$P$15)/10784)*1284),-999) -> -999 | K121: =IF(ISNUMBER((F121-'PIC Raw'!O$15)-((($G121-'PIC Raw'!$P$15)/10784)*7.9)),(F121-'PIC Raw'!O$15)-((($G121-'PIC Raw'!$P$15)/10784)*7.9),-999) -> -999 | M121: -999 | N121: -999 | O121: -999 | Q121: -999 | R121: -999 | S121: -999 | U121: -999 | W121: -999 | X121: -999 | Y121: ='PIC Raw'!I121 -> 
A122: ='PIC Raw'!A122 -> 0 | B122: ='PIC Raw'!C122 ->  | C122: ='PIC Raw'!D122 -> 0 | D122: =IF(ISBLANK('PIC Raw'!E122),"",'PIC Raw'!E122) ->  | E122: =IF(ISBLANK('PIC Raw'!F122),"",'PIC Raw'!F122) ->  | F122: =IF(ISBLANK('PIC Raw'!G122),"",'PIC Raw'!G122) ->  | G122: =IF(ISBLANK('PIC Raw'!H122),"",'PIC Raw'!H122) ->  | I122: =IF(ISNUMBER((D122-'PIC Raw'!M$15)-((($G122-'PIC Raw'!$P$15)/10784)*412)),(D122-'PIC Raw'!M$15)-((($G122-'PIC Raw'!$P$15)/10784)*412),-999) -> -999 | J122: =IF(ISNUMBER((E122-'PIC Raw'!N$15)-((($G122-'PIC Raw'!$P$15)/10784)*1284)),(E122-'PIC Raw'!N$15)-((($G122-'PIC Raw'!$P$15)/10784)*1284),-999) -> -999 | K122: =IF(ISNUMBER((F122-'PIC Raw'!O$15)-((($G122-'PIC Raw'!$P$15)/10784)*7.9)),(F122-'PIC Raw'!O$15)-((($G122-'PIC Raw'!$P$15)/10784)*7.9),-999) -> -999 | M122: -999 | N122: -999 | O122: -999 | Q122: -999 | R122: -999 | S122: -999 | U122: -999 | W122: -999 | X122: -999 | Y122: ='PIC Raw'!I122 -> 
A123: ='PIC Raw'!A123 -> 0 | B123: ='PIC Raw'!C123 ->  | C123: ='PIC Raw'!D123 -> 0 | D123: =IF(ISBLANK('PIC Raw'!E123),"",'PIC Raw'!E123) ->  | E123: =IF(ISBLANK('PIC Raw'!F123),"",'PIC Raw'!F123) ->  | F123: =IF(ISBLANK('PIC Raw'!G123),"",'PIC Raw'!G123) ->  | G123: =IF(ISBLANK('PIC Raw'!H123),"",'PIC Raw'!H123) ->  | I123: =IF(ISNUMBER((D123-'PIC Raw'!M$15)-((($G123-'PIC Raw'!$P$15)/10784)*412)),(D123-'PIC Raw'!M$15)-((($G123-'PIC Raw'!$P$15)/10784)*412),-999) -> -999 | J123: =IF(ISNUMBER((E123-'PIC Raw'!N$15)-((($G123-'PIC Raw'!$P$15)/10784)*1284)),(E123-'PIC Raw'!N$15)-((($G123-'PIC Raw'!$P$15)/10784)*1284),-999) -> -999 | K123: =IF(ISNUMBER((F123-'PIC Raw'!O$15)-((($G123-'PIC Raw'!$P$15)/10784)*7.9)),(F123-'PIC Raw'!O$15)-((($G123-'PIC Raw'!$P$15)/10784)*7.9),-999) -> -999 | M123: -999 | N123: -999 | O123: -999 | Q123: -999 | R123: -999 | S123: -999 | U123: -999 | W123: -999 | X123: -999 | Y123: ='PIC Raw'!I123 -> 
A124: ='PIC Raw'!A124 -> 0 | B124: ='PIC Raw'!C124 ->  | C124: ='PIC Raw'!D124 -> 0 | D124: =IF(ISBLANK('PIC Raw'!E124),"",'PIC Raw'!E124) ->  | E124: =IF(ISBLANK('PIC Raw'!F124),"",'PIC Raw'!F124) ->  | F124: =IF(ISBLANK('PIC Raw'!G124),"",'PIC Raw'!G124) ->  | G124: =IF(ISBLANK('PIC Raw'!H124),"",'PIC Raw'!H124) ->  | I124: =IF(ISNUMBER((D124-'PIC Raw'!M$15)-((($G124-'PIC Raw'!$P$15)/10784)*412)),(D124-'PIC Raw'!M$15)-((($G124-'PIC Raw'!$P$15)/10784)*412),-999) -> -999 | J124: =IF(ISNUMBER((E124-'PIC Raw'!N$15)-((($G124-'PIC Raw'!$P$15)/10784)*1284)),(E124-'PIC Raw'!N$15)-((($G124-'PIC Raw'!$P$15)/10784)*1284),-999) -> -999 | K124: =IF(ISNUMBER((F124-'PIC Raw'!O$15)-((($G124-'PIC Raw'!$P$15)/10784)*7.9)),(F124-'PIC Raw'!O$15)-((($G124-'PIC Raw'!$P$15)/10784)*7.9),-999) -> -999 | M124: -999 | N124: -999 | O124: -999 | Q124: -999 | R124: -999 | S124: -999 | U124: -999 | W124: -999 | X124: -999 | Y124: ='PIC Raw'!I124 -> 
A125: ='PIC Raw'!A125 -> 0 | B125: ='PIC Raw'!C125 ->  | C125: ='PIC Raw'!D125 -> 0 | D125: =IF(ISBLANK('PIC Raw'!E125),"",'PIC Raw'!E125) ->  | E125: =IF(ISBLANK('PIC Raw'!F125),"",'PIC Raw'!F125) ->  | F125: =IF(ISBLANK('PIC Raw'!G125),"",'PIC Raw'!G125) ->  | G125: =IF(ISBLANK('PIC Raw'!H125),"",'PIC Raw'!H125) ->  | I125: =IF(ISNUMBER((D125-'PIC Raw'!M$15)-((($G125-'PIC Raw'!$P$15)/10784)*412)),(D125-'PIC Raw'!M$15)-((($G125-'PIC Raw'!$P$15)/10784)*412),-999) -> -999 | J125: =IF(ISNUMBER((E125-'PIC Raw'!N$15)-((($G125-'PIC Raw'!$P$15)/10784)*1284)),(E125-'PIC Raw'!N$15)-((($G125-'PIC Raw'!$P$15)/10784)*1284),-999) -> -999 | K125: =IF(ISNUMBER((F125-'PIC Raw'!O$15)-((($G125-'PIC Raw'!$P$15)/10784)*7.9)),(F125-'PIC Raw'!O$15)-((($G125-'PIC Raw'!$P$15)/10784)*7.9),-999) -> -999 | M125: -999 | N125: -999 | O125: -999 | Q125: -999 | R125: -999 | S125: -999 | U125: -999 | W125: -999 | X125: -999 | Y125: ='PIC Raw'!I125 -> 
A126: ='PIC Raw'!A126 -> 0 | B126: ='PIC Raw'!C126 ->  | C126: ='PIC Raw'!D126 -> 0 | D126: =IF(ISBLANK('PIC Raw'!E126),"",'PIC Raw'!E126) ->  | E126: =IF(ISBLANK('PIC Raw'!F126),"",'PIC Raw'!F126) ->  | F126: =IF(ISBLANK('PIC Raw'!G126),"",'PIC Raw'!G126) ->  | G126: =IF(ISBLANK('PIC Raw'!H126),"",'PIC Raw'!H126) ->  | I126: =IF(ISNUMBER((D126-'PIC Raw'!M$15)-((($G126-'PIC Raw'!$P$15)/10784)*412)),(D126-'PIC Raw'!M$15)-((($G126-'PIC Raw'!$P$15)/10784)*412),-999) -> -999 | J126: =IF(ISNUMBER((E126-'PIC Raw'!N$15)-((($G126-'PIC Raw'!$P$15)/10784)*1284)),(E126-'PIC Raw'!N$15)-((($G126-'PIC Raw'!$P$15)/10784)*1284),-999) -> -999 | K126: =IF(ISNUMBER((F126-'PIC Raw'!O$15)-((($G126-'PIC Raw'!$P$15)/10784)*7.9)),(F126-'PIC Raw'!O$15)-((($G126-'PIC Raw'!$P$15)/10784)*7.9),-999) -> -999 | M126: -999 | N126: -999 | O126: -999 | Q126: -999 | R126: -999 | S126: -999 | U126: -999 | W126: -999 | X126: -999 | Y126: ='PIC Raw'!I126 -> 
A127: ='PIC Raw'!A127 -> 0 | B127: ='PIC Raw'!C127 ->  | C127: ='PIC Raw'!D127 -> 0 | D127: =IF(ISBLANK('PIC Raw'!E127),"",'PIC Raw'!E127) ->  | E127: =IF(ISBLANK('PIC Raw'!F127),"",'PIC Raw'!F127) ->  | F127: =IF(ISBLANK('PIC Raw'!G127),"",'PIC Raw'!G127) ->  | G127: =IF(ISBLANK('PIC Raw'!H127),"",'PIC Raw'!H127) ->  | I127: =IF(ISNUMBER((D127-'PIC Raw'!M$15)-((($G127-'PIC Raw'!$P$15)/10784)*412)),(D127-'PIC Raw'!M$15)-((($G127-'PIC Raw'!$P$15)/10784)*412),-999) -> -999 | J127: =IF(ISNUMBER((E127-'PIC Raw'!N$15)-((($G127-'PIC Raw'!$P$15)/10784)*1284)),(E127-'PIC Raw'!N$15)-((($G127-'PIC Raw'!$P$15)/10784)*1284),-999) -> -999 | K127: =IF(ISNUMBER((F127-'PIC Raw'!O$15)-((($G127-'PIC Raw'!$P$15)/10784)*7.9)),(F127-'PIC Raw'!O$15)-((($G127-'PIC Raw'!$P$15)/10784)*7.9),-999) -> -999 | M127: -999 | N127: -999 | O127: -999 | Q127: -999 | R127: -999 | S127: -999 | U127: -999 | W127: -999 | X127: -999 | Y127: ='PIC Raw'!I127 -> 
A128: ='PIC Raw'!A128 -> 0 | B128: ='PIC Raw'!C128 ->  | C128: ='PIC Raw'!D128 -> 0 | D128: =IF(ISBLANK('PIC Raw'!E128),"",'PIC Raw'!E128) ->  | E128: =IF(ISBLANK('PIC Raw'!F128),"",'PIC Raw'!F128) ->  | F128: =IF(ISBLANK('PIC Raw'!G128),"",'PIC Raw'!G128) ->  | G128: =IF(ISBLANK('PIC Raw'!H128),"",'PIC Raw'!H128) ->  | I128: =IF(ISNUMBER((D128-'PIC Raw'!M$15)-((($G128-'PIC Raw'!$P$15)/10784)*412)),(D128-'PIC Raw'!M$15)-((($G128-'PIC Raw'!$P$15)/10784)*412),-999) -> -999 | J128: =IF(ISNUMBER((E128-'PIC Raw'!N$15)-((($G128-'PIC Raw'!$P$15)/10784)*1284)),(E128-'PIC Raw'!N$15)-((($G128-'PIC Raw'!$P$15)/10784)*1284),-999) -> -999 | K128: =IF(ISNUMBER((F128-'PIC Raw'!O$15)-((($G128-'PIC Raw'!$P$15)/10784)*7.9)),(F128-'PIC Raw'!O$15)-((($G128-'PIC Raw'!$P$15)/10784)*7.9),-999) -> -999 | M128: -999 | N128: -999 | O128: -999 | Q128: -999 | R128: -999 | S128: -999 | U128: -999 | W128: -999 | X128: -999 | Y128: ='PIC Raw'!I128 -> 
A129: ='PIC Raw'!A129 -> 0 | B129: ='PIC Raw'!C129 ->  | C129: ='PIC Raw'!D129 -> 0 | D129: =IF(ISBLANK('PIC Raw'!E129),"",'PIC Raw'!E129) ->  | E129: =IF(ISBLANK('PIC Raw'!F129),"",'PIC Raw'!F129) ->  | F129: =IF(ISBLANK('PIC Raw'!G129),"",'PIC Raw'!G129) ->  | G129: =IF(ISBLANK('PIC Raw'!H129),"",'PIC Raw'!H129) ->  | I129: =IF(ISNUMBER((D129-'PIC Raw'!M$15)-((($G129-'PIC Raw'!$P$15)/10784)*412)),(D129-'PIC Raw'!M$15)-((($G129-'PIC Raw'!$P$15)/10784)*412),-999) -> -999 | J129: =IF(ISNUMBER((E129-'PIC Raw'!N$15)-((($G129-'PIC Raw'!$P$15)/10784)*1284)),(E129-'PIC Raw'!N$15)-((($G129-'PIC Raw'!$P$15)/10784)*1284),-999) -> -999 | K129: =IF(ISNUMBER((F129-'PIC Raw'!O$15)-((($G129-'PIC Raw'!$P$15)/10784)*7.9)),(F129-'PIC Raw'!O$15)-((($G129-'PIC Raw'!$P$15)/10784)*7.9),-999) -> -999 | M129: -999 | N129: -999 | O129: -999 | Q129: -999 | R129: -999 | S129: -999 | U129: -999 | W129: -999 | X129: -999 | Y129: ='PIC Raw'!I129 -> 
A130: ='PIC Raw'!A130 -> 0 | B130: ='PIC Raw'!C130 ->  | C130: ='PIC Raw'!D130 -> 0 | D130: =IF(ISBLANK('PIC Raw'!E130),"",'PIC Raw'!E130) ->  | E130: =IF(ISBLANK('PIC Raw'!F130),"",'PIC Raw'!F130) ->  | F130: =IF(ISBLANK('PIC Raw'!G130),"",'PIC Raw'!G130) ->  | G130: =IF(ISBLANK('PIC Raw'!H130),"",'PIC Raw'!H130) ->  | I130: =IF(ISNUMBER((D130-'PIC Raw'!M$15)-((($G130-'PIC Raw'!$P$15)/10784)*412)),(D130-'PIC Raw'!M$15)-((($G130-'PIC Raw'!$P$15)/10784)*412),-999) -> -999 | J130: =IF(ISNUMBER((E130-'PIC Raw'!N$15)-((($G130-'PIC Raw'!$P$15)/10784)*1284)),(E130-'PIC Raw'!N$15)-((($G130-'PIC Raw'!$P$15)/10784)*1284),-999) -> -999 | K130: =IF(ISNUMBER((F130-'PIC Raw'!O$15)-((($G130-'PIC Raw'!$P$15)/10784)*7.9)),(F130-'PIC Raw'!O$15)-((($G130-'PIC Raw'!$P$15)/10784)*7.9),-999) -> -999 | M130: =IF(I130=-999,-999,(I130*($C130/$B130))) -> -999 | N130: =IF(J130=-999,-999,(J130*($C130/$B130))) -> -999 | O130: =IF(K130=-999,-999,(K130*($C130/$B130))) -> -999 | Q130: =IF(M130=-999, -999, (M130/40)) -> -999 | R130: =IF(N130=-999, -999, (N130/24.31)) -> -999 | S130: =IF(O130=-999, -999, (O130/87.62)) -> -999 | U130: =Q130 -> -999 | W130: =IF(U130=-999, -999, (U130*12)) -> -999 | X130: =IF(U130=-999,-999,(U130/1000)) -> -999 | Y130: ='PIC Raw'!I130 -> 
A131: ='PIC Raw'!A131 -> 0 | B131: ='PIC Raw'!C131 ->  | C131: ='PIC Raw'!D131 -> 0 | D131: =IF(ISBLANK('PIC Raw'!E131),"",'PIC Raw'!E131) ->  | E131: =IF(ISBLANK('PIC Raw'!F131),"",'PIC Raw'!F131) ->  | F131: =IF(ISBLANK('PIC Raw'!G131),"",'PIC Raw'!G131) ->  | G131: =IF(ISBLANK('PIC Raw'!H131),"",'PIC Raw'!H131) ->  | I131: =IF(ISNUMBER((D131-'PIC Raw'!M$15)-((($G131-'PIC Raw'!$P$15)/10784)*412)),(D131-'PIC Raw'!M$15)-((($G131-'PIC Raw'!$P$15)/10784)*412),-999) -> -999 | J131: =IF(ISNUMBER((E131-'PIC Raw'!N$15)-((($G131-'PIC Raw'!$P$15)/10784)*1284)),(E131-'PIC Raw'!N$15)-((($G131-'PIC Raw'!$P$15)/10784)*1284),-999) -> -999 | K131: =IF(ISNUMBER((F131-'PIC Raw'!O$15)-((($G131-'PIC Raw'!$P$15)/10784)*7.9)),(F131-'PIC Raw'!O$15)-((($G131-'PIC Raw'!$P$15)/10784)*7.9),-999) -> -999 | M131: -999 | N131: -999 | O131: -999 | Q131: -999 | R131: -999 | S131: -999 | U131: -999 | W131: -999 | X131: -999 | Y131: ='PIC Raw'!I131 -> 
A132: ='PIC Raw'!A132 -> 0 | B132: ='PIC Raw'!C132 ->  | C132: ='PIC Raw'!D132 -> 0 | D132: =IF(ISBLANK('PIC Raw'!E132),"",'PIC Raw'!E132) ->  | E132: =IF(ISBLANK('PIC Raw'!F132),"",'PIC Raw'!F132) ->  | F132: =IF(ISBLANK('PIC Raw'!G132),"",'PIC Raw'!G132) ->  | G132: =IF(ISBLANK('PIC Raw'!H132),"",'PIC Raw'!H132) ->  | I132: =IF(ISNUMBER((D132-'PIC Raw'!M$15)-((($G132-'PIC Raw'!$P$15)/10784)*412)),(D132-'PIC Raw'!M$15)-((($G132-'PIC Raw'!$P$15)/10784)*412),-999) -> -999 | J132: =IF(ISNUMBER((E132-'PIC Raw'!N$15)-((($G132-'PIC Raw'!$P$15)/10784)*1284)),(E132-'PIC Raw'!N$15)-((($G132-'PIC Raw'!$P$15)/10784)*1284),-999) -> -999 | K132: =IF(ISNUMBER((F132-'PIC Raw'!O$15)-((($G132-'PIC Raw'!$P$15)/10784)*7.9)),(F132-'PIC Raw'!O$15)-((($G132-'PIC Raw'!$P$15)/10784)*7.9),-999) -> -999 | M132: -999 | N132: -999 | O132: -999 | Q132: -999 | R132: -999 | S132: -999 | U132: -999 | W132: -999 | X132: -999 | Y132: ='PIC Raw'!I132 -> 
A133: ='PIC Raw'!A133 -> 0 | B133: ='PIC Raw'!C133 ->  | C133: ='PIC Raw'!D133 -> 0 | D133: =IF(ISBLANK('PIC Raw'!E133),"",'PIC Raw'!E133) ->  | E133: =IF(ISBLANK('PIC Raw'!F133),"",'PIC Raw'!F133) ->  | F133: =IF(ISBLANK('PIC Raw'!G133),"",'PIC Raw'!G133) ->  | G133: =IF(ISBLANK('PIC Raw'!H133),"",'PIC Raw'!H133) ->  | I133: =IF(ISNUMBER((D133-'PIC Raw'!M$15)-((($G133-'PIC Raw'!$P$15)/10784)*412)),(D133-'PIC Raw'!M$15)-((($G133-'PIC Raw'!$P$15)/10784)*412),-999) -> -999 | J133: =IF(ISNUMBER((E133-'PIC Raw'!N$15)-((($G133-'PIC Raw'!$P$15)/10784)*1284)),(E133-'PIC Raw'!N$15)-((($G133-'PIC Raw'!$P$15)/10784)*1284),-999) -> -999 | K133: =IF(ISNUMBER((F133-'PIC Raw'!O$15)-((($G133-'PIC Raw'!$P$15)/10784)*7.9)),(F133-'PIC Raw'!O$15)-((($G133-'PIC Raw'!$P$15)/10784)*7.9),-999) -> -999 | M133: -999 | N133: -999 | O133: -999 | Q133: -999 | R133: -999 | S133: -999 | U133: -999 | W133: -999 | X133: -999 | Y133: ='PIC Raw'!I133 -> 
A134: ='PIC Raw'!A134 -> 0 | B134: ='PIC Raw'!C134 ->  | C134: ='PIC Raw'!D134 -> 0 | D134: =IF(ISBLANK('PIC Raw'!E134),"",'PIC Raw'!E134) ->  | E134: =IF(ISBLANK('PIC Raw'!F134),"",'PIC Raw'!F134) ->  | F134: =IF(ISBLANK('PIC Raw'!G134),"",'PIC Raw'!G134) ->  | G134: =IF(ISBLANK('PIC Raw'!H134),"",'PIC Raw'!H134) ->  | I134: =IF(ISNUMBER((D134-'PIC Raw'!M$15)-((($G134-'PIC Raw'!$P$15)/10784)*412)),(D134-'PIC Raw'!M$15)-((($G134-'PIC Raw'!$P$15)/10784)*412),-999) -> -999 | J134: =IF(ISNUMBER((E134-'PIC Raw'!N$15)-((($G134-'PIC Raw'!$P$15)/10784)*1284)),(E134-'PIC Raw'!N$15)-((($G134-'PIC Raw'!$P$15)/10784)*1284),-999) -> -999 | K134: =IF(ISNUMBER((F134-'PIC Raw'!O$15)-((($G134-'PIC Raw'!$P$15)/10784)*7.9)),(F134-'PIC Raw'!O$15)-((($G134-'PIC Raw'!$P$15)/10784)*7.9),-999) -> -999 | M134: -999 | N134: -999 | O134: -999 | Q134: -999 | R134: -999 | S134: -999 | U134: -999 | W134: -999 | X134: -999 | Y134: ='PIC Raw'!I134 -> 
A135: ='PIC Raw'!A135 -> 0 | B135: ='PIC Raw'!C135 ->  | C135: ='PIC Raw'!D135 -> 0 | D135: =IF(ISBLANK('PIC Raw'!E135),"",'PIC Raw'!E135) ->  | E135: =IF(ISBLANK('PIC Raw'!F135),"",'PIC Raw'!F135) ->  | F135: =IF(ISBLANK('PIC Raw'!G135),"",'PIC Raw'!G135) ->  | G135: =IF(ISBLANK('PIC Raw'!H135),"",'PIC Raw'!H135) ->  | I135: =IF(ISNUMBER((D135-'PIC Raw'!M$15)-((($G135-'PIC Raw'!$P$15)/10784)*412)),(D135-'PIC Raw'!M$15)-((($G135-'PIC Raw'!$P$15)/10784)*412),-999) -> -999 | J135: =IF(ISNUMBER((E135-'PIC Raw'!N$15)-((($G135-'PIC Raw'!$P$15)/10784)*1284)),(E135-'PIC Raw'!N$15)-((($G135-'PIC Raw'!$P$15)/10784)*1284),-999) -> -999 | K135: =IF(ISNUMBER((F135-'PIC Raw'!O$15)-((($G135-'PIC Raw'!$P$15)/10784)*7.9)),(F135-'PIC Raw'!O$15)-((($G135-'PIC Raw'!$P$15)/10784)*7.9),-999) -> -999 | M135: -999 | N135: -999 | O135: -999 | Q135: -999 | R135: -999 | S135: -999 | U135: -999 | W135: -999 | X135: -999 | Y135: ='PIC Raw'!I135 -> 
A136: ='PIC Raw'!A136 -> 0 | B136: ='PIC Raw'!C136 ->  | C136: ='PIC Raw'!D136 -> 0 | D136: =IF(ISBLANK('PIC Raw'!E136),"",'PIC Raw'!E136) ->  | E136: =IF(ISBLANK('PIC Raw'!F136),"",'PIC Raw'!F136) ->  | F136: =IF(ISBLANK('PIC Raw'!G136),"",'PIC Raw'!G136) ->  | G136: =IF(ISBLANK('PIC Raw'!H136),"",'PIC Raw'!H136) ->  | I136: =IF(ISNUMBER((D136-'PIC Raw'!M$15)-((($G136-'PIC Raw'!$P$15)/10784)*412)),(D136-'PIC Raw'!M$15)-((($G136-'PIC Raw'!$P$15)/10784)*412),-999) -> -999 | J136: =IF(ISNUMBER((E136-'PIC Raw'!N$15)-((($G136-'PIC Raw'!$P$15)/10784)*1284)),(E136-'PIC Raw'!N$15)-((($G136-'PIC Raw'!$P$15)/10784)*1284),-999) -> -999 | K136: =IF(ISNUMBER((F136-'PIC Raw'!O$15)-((($G136-'PIC Raw'!$P$15)/10784)*7.9)),(F136-'PIC Raw'!O$15)-((($G136-'PIC Raw'!$P$15)/10784)*7.9),-999) -> -999 | M136: -999 | N136: -999 | O136: -999 | Q136: -999 | R136: -999 | S136: -999 | U136: -999 | W136: -999 | X136: -999 | Y136: ='PIC Raw'!I136 -> 
A137: ='PIC Raw'!A137 -> 0 | B137: ='PIC Raw'!C137 ->  | C137: ='PIC Raw'!D137 -> 0 | D137: =IF(ISBLANK('PIC Raw'!E137),"",'PIC Raw'!E137) ->  | E137: =IF(ISBLANK('PIC Raw'!F137),"",'PIC Raw'!F137) ->  | F137: =IF(ISBLANK('PIC Raw'!G137),"",'PIC Raw'!G137) ->  | G137: =IF(ISBLANK('PIC Raw'!H137),"",'PIC Raw'!H137) ->  | I137: =IF(ISNUMBER((D137-'PIC Raw'!M$15)-((($G137-'PIC Raw'!$P$15)/10784)*412)),(D137-'PIC Raw'!M$15)-((($G137-'PIC Raw'!$P$15)/10784)*412),-999) -> -999 | J137: =IF(ISNUMBER((E137-'PIC Raw'!N$15)-((($G137-'PIC Raw'!$P$15)/10784)*1284)),(E137-'PIC Raw'!N$15)-((($G137-'PIC Raw'!$P$15)/10784)*1284),-999) -> -999 | K137: =IF(ISNUMBER((F137-'PIC Raw'!O$15)-((($G137-'PIC Raw'!$P$15)/10784)*7.9)),(F137-'PIC Raw'!O$15)-((($G137-'PIC Raw'!$P$15)/10784)*7.9),-999) -> -999 | M137: -999 | N137: -999 | O137: -999 | Q137: -999 | R137: -999 | S137: -999 | U137: -999 | W137: -999 | X137: -999 | Y137: ='PIC Raw'!I137 -> 
A138: ='PIC Raw'!A138 -> 0 | B138: ='PIC Raw'!C138 ->  | C138: ='PIC Raw'!D138 -> 0 | D138: =IF(ISBLANK('PIC Raw'!E138),"",'PIC Raw'!E138) ->  | E138: =IF(ISBLANK('PIC Raw'!F138),"",'PIC Raw'!F138) ->  | F138: =IF(ISBLANK('PIC Raw'!G138),"",'PIC Raw'!G138) ->  | G138: =IF(ISBLANK('PIC Raw'!H138),"",'PIC Raw'!H138) ->  | I138: =IF(ISNUMBER((D138-'PIC Raw'!M$15)-((($G138-'PIC Raw'!$P$15)/10784)*412)),(D138-'PIC Raw'!M$15)-((($G138-'PIC Raw'!$P$15)/10784)*412),-999) -> -999 | J138: =IF(ISNUMBER((E138-'PIC Raw'!N$15)-((($G138-'PIC Raw'!$P$15)/10784)*1284)),(E138-'PIC Raw'!N$15)-((($G138-'PIC Raw'!$P$15)/10784)*1284),-999) -> -999 | K138: =IF(ISNUMBER((F138-'PIC Raw'!O$15)-((($G138-'PIC Raw'!$P$15)/10784)*7.9)),(F138-'PIC Raw'!O$15)-((($G138-'PIC Raw'!$P$15)/10784)*7.9),-999) -> -999 | M138: -999 | N138: -999 | O138: -999 | Q138: -999 | R138: -999 | S138: -999 | U138: -999 | W138: -999 | X138: -999 | Y138: ='PIC Raw'!I138 -> 
A139: ='PIC Raw'!A139 -> 0 | B139: ='PIC Raw'!C139 ->  | C139: ='PIC Raw'!D139 -> 0 | D139: =IF(ISBLANK('PIC Raw'!E139),"",'PIC Raw'!E139) ->  | E139: =IF(ISBLANK('PIC Raw'!F139),"",'PIC Raw'!F139) ->  | F139: =IF(ISBLANK('PIC Raw'!G139),"",'PIC Raw'!G139) ->  | G139: =IF(ISBLANK('PIC Raw'!H139),"",'PIC Raw'!H139) ->  | I139: =IF(ISNUMBER((D139-'PIC Raw'!M$15)-((($G139-'PIC Raw'!$P$15)/10784)*412)),(D139-'PIC Raw'!M$15)-((($G139-'PIC Raw'!$P$15)/10784)*412),-999) -> -999 | J139: =IF(ISNUMBER((E139-'PIC Raw'!N$15)-((($G139-'PIC Raw'!$P$15)/10784)*1284)),(E139-'PIC Raw'!N$15)-((($G139-'PIC Raw'!$P$15)/10784)*1284),-999) -> -999 | K139: =IF(ISNUMBER((F139-'PIC Raw'!O$15)-((($G139-'PIC Raw'!$P$15)/10784)*7.9)),(F139-'PIC Raw'!O$15)-((($G139-'PIC Raw'!$P$15)/10784)*7.9),-999) -> -999 | M139: -999 | N139: -999 | O139: -999 | Q139: -999 | R139: -999 | S139: -999 | U139: -999 | W139: -999 | X139: -999 | Y139: ='PIC Raw'!I139 -> 
A140: ='PIC Raw'!A140 -> 0 | B140: ='PIC Raw'!C140 ->  | C140: ='PIC Raw'!D140 -> 0 | D140: =IF(ISBLANK('PIC Raw'!E140),"",'PIC Raw'!E140) ->  | E140: =IF(ISBLANK('PIC Raw'!F140),"",'PIC Raw'!F140) ->  | F140: =IF(ISBLANK('PIC Raw'!G140),"",'PIC Raw'!G140) ->  | G140: =IF(ISBLANK('PIC Raw'!H140),"",'PIC Raw'!H140) ->  | I140: =IF(ISNUMBER((D140-'PIC Raw'!M$15)-((($G140-'PIC Raw'!$P$15)/10784)*412)),(D140-'PIC Raw'!M$15)-((($G140-'PIC Raw'!$P$15)/10784)*412),-999) -> -999 | J140: =IF(ISNUMBER((E140-'PIC Raw'!N$15)-((($G140-'PIC Raw'!$P$15)/10784)*1284)),(E140-'PIC Raw'!N$15)-((($G140-'PIC Raw'!$P$15)/10784)*1284),-999) -> -999 | K140: =IF(ISNUMBER((F140-'PIC Raw'!O$15)-((($G140-'PIC Raw'!$P$15)/10784)*7.9)),(F140-'PIC Raw'!O$15)-((($G140-'PIC Raw'!$P$15)/10784)*7.9),-999) -> -999 | M140: -999 | N140: -999 | O140: -999 | Q140: -999 | R140: -999 | S140: -999 | U140: -999 | W140: -999 | X140: -999 | Y140: ='PIC Raw'!I140 -> 
A141: ='PIC Raw'!A141 -> 0 | B141: ='PIC Raw'!C141 ->  | C141: ='PIC Raw'!D141 -> 0 | D141: =IF(ISBLANK('PIC Raw'!E141),"",'PIC Raw'!E141) ->  | E141: =IF(ISBLANK('PIC Raw'!F141),"",'PIC Raw'!F141) ->  | F141: =IF(ISBLANK('PIC Raw'!G141),"",'PIC Raw'!G141) ->  | G141: =IF(ISBLANK('PIC Raw'!H141),"",'PIC Raw'!H141) ->  | I141: =IF(ISNUMBER((D141-'PIC Raw'!M$15)-((($G141-'PIC Raw'!$P$15)/10784)*412)),(D141-'PIC Raw'!M$15)-((($G141-'PIC Raw'!$P$15)/10784)*412),-999) -> -999 | J141: =IF(ISNUMBER((E141-'PIC Raw'!N$15)-((($G141-'PIC Raw'!$P$15)/10784)*1284)),(E141-'PIC Raw'!N$15)-((($G141-'PIC Raw'!$P$15)/10784)*1284),-999) -> -999 | K141: =IF(ISNUMBER((F141-'PIC Raw'!O$15)-((($G141-'PIC Raw'!$P$15)/10784)*7.9)),(F141-'PIC Raw'!O$15)-((($G141-'PIC Raw'!$P$15)/10784)*7.9),-999) -> -999 | M141: -999 | N141: -999 | O141: -999 | Q141: -999 | R141: -999 | S141: -999 | U141: -999 | W141: -999 | X141: -999 | Y141: ='PIC Raw'!I141 -> 
A142: ='PIC Raw'!A142 -> 0 | B142: ='PIC Raw'!C142 ->  | C142: ='PIC Raw'!D142 -> 0 | D142: =IF(ISBLANK('PIC Raw'!E142),"",'PIC Raw'!E142) ->  | E142: =IF(ISBLANK('PIC Raw'!F142),"",'PIC Raw'!F142) ->  | F142: =IF(ISBLANK('PIC Raw'!G142),"",'PIC Raw'!G142) ->  | G142: =IF(ISBLANK('PIC Raw'!H142),"",'PIC Raw'!H142) ->  | I142: =IF(ISNUMBER((D142-'PIC Raw'!M$15)-((($G142-'PIC Raw'!$P$15)/10784)*412)),(D142-'PIC Raw'!M$15)-((($G142-'PIC Raw'!$P$15)/10784)*412),-999) -> -999 | J142: =IF(ISNUMBER((E142-'PIC Raw'!N$15)-((($G142-'PIC Raw'!$P$15)/10784)*1284)),(E142-'PIC Raw'!N$15)-((($G142-'PIC Raw'!$P$15)/10784)*1284),-999) -> -999 | K142: =IF(ISNUMBER((F142-'PIC Raw'!O$15)-((($G142-'PIC Raw'!$P$15)/10784)*7.9)),(F142-'PIC Raw'!O$15)-((($G142-'PIC Raw'!$P$15)/10784)*7.9),-999) -> -999 | M142: -999 | N142: -999 | O142: -999 | Q142: -999 | R142: -999 | S142: -999 | U142: -999 | W142: -999 | X142: -999 | Y142: ='PIC Raw'!I142 -> 
A143: ='PIC Raw'!A143 -> 0 | B143: ='PIC Raw'!C143 ->  | C143: ='PIC Raw'!D143 -> 0 | D143: =IF(ISBLANK('PIC Raw'!E143),"",'PIC Raw'!E143) ->  | E143: =IF(ISBLANK('PIC Raw'!F143),"",'PIC Raw'!F143) ->  | F143: =IF(ISBLANK('PIC Raw'!G143),"",'PIC Raw'!G143) ->  | G143: =IF(ISBLANK('PIC Raw'!H143),"",'PIC Raw'!H143) ->  | I143: =IF(ISNUMBER((D143-'PIC Raw'!M$15)-((($G143-'PIC Raw'!$P$15)/10784)*412)),(D143-'PIC Raw'!M$15)-((($G143-'PIC Raw'!$P$15)/10784)*412),-999) -> -999 | J143: =IF(ISNUMBER((E143-'PIC Raw'!N$15)-((($G143-'PIC Raw'!$P$15)/10784)*1284)),(E143-'PIC Raw'!N$15)-((($G143-'PIC Raw'!$P$15)/10784)*1284),-999) -> -999 | K143: =IF(ISNUMBER((F143-'PIC Raw'!O$15)-((($G143-'PIC Raw'!$P$15)/10784)*7.9)),(F143-'PIC Raw'!O$15)-((($G143-'PIC Raw'!$P$15)/10784)*7.9),-999) -> -999 | M143: -999 | N143: -999 | O143: -999 | Q143: -999 | R143: -999 | S143: -999 | U143: -999 | W143: -999 | X143: -999 | Y143: ='PIC Raw'!I143 -> 
A144: ='PIC Raw'!A144 -> 0 | B144: ='PIC Raw'!C144 ->  | C144: ='PIC Raw'!D144 -> 0 | D144: =IF(ISBLANK('PIC Raw'!E144),"",'PIC Raw'!E144) ->  | E144: =IF(ISBLANK('PIC Raw'!F144),"",'PIC Raw'!F144) ->  | F144: =IF(ISBLANK('PIC Raw'!G144),"",'PIC Raw'!G144) ->  | G144: =IF(ISBLANK('PIC Raw'!H144),"",'PIC Raw'!H144) ->  | I144: =IF(ISNUMBER((D144-'PIC Raw'!M$15)-((($G144-'PIC Raw'!$P$15)/10784)*412)),(D144-'PIC Raw'!M$15)-((($G144-'PIC Raw'!$P$15)/10784)*412),-999) -> -999 | J144: =IF(ISNUMBER((E144-'PIC Raw'!N$15)-((($G144-'PIC Raw'!$P$15)/10784)*1284)),(E144-'PIC Raw'!N$15)-((($G144-'PIC Raw'!$P$15)/10784)*1284),-999) -> -999 | K144: =IF(ISNUMBER((F144-'PIC Raw'!O$15)-((($G144-'PIC Raw'!$P$15)/10784)*7.9)),(F144-'PIC Raw'!O$15)-((($G144-'PIC Raw'!$P$15)/10784)*7.9),-999) -> -999 | M144: -999 | N144: -999 | O144: -999 | Q144: -999 | R144: -999 | S144: -999 | U144: -999 | W144: -999 | X144: -999 | Y144: ='PIC Raw'!I144 -> 
A145: ='PIC Raw'!A145 -> 0 | B145: ='PIC Raw'!C145 ->  | C145: ='PIC Raw'!D145 -> 0 | D145: =IF(ISBLANK('PIC Raw'!E145),"",'PIC Raw'!E145) ->  | E145: =IF(ISBLANK('PIC Raw'!F145),"",'PIC Raw'!F145) ->  | F145: =IF(ISBLANK('PIC Raw'!G145),"",'PIC Raw'!G145) ->  | G145: =IF(ISBLANK('PIC Raw'!H145),"",'PIC Raw'!H145) ->  | I145: =IF(ISNUMBER((D145-'PIC Raw'!M$15)-((($G145-'PIC Raw'!$P$15)/10784)*412)),(D145-'PIC Raw'!M$15)-((($G145-'PIC Raw'!$P$15)/10784)*412),-999) -> -999 | J145: =IF(ISNUMBER((E145-'PIC Raw'!N$15)-((($G145-'PIC Raw'!$P$15)/10784)*1284)),(E145-'PIC Raw'!N$15)-((($G145-'PIC Raw'!$P$15)/10784)*1284),-999) -> -999 | K145: =IF(ISNUMBER((F145-'PIC Raw'!O$15)-((($G145-'PIC Raw'!$P$15)/10784)*7.9)),(F145-'PIC Raw'!O$15)-((($G145-'PIC Raw'!$P$15)/10784)*7.9),-999) -> -999 | M145: -999 | N145: -999 | O145: -999 | Q145: -999 | R145: -999 | S145: -999 | U145: -999 | W145: -999 | X145: -999 | Y145: ='PIC Raw'!I145 -> 
A146: ='PIC Raw'!A146 -> 0 | B146: ='PIC Raw'!C146 ->  | C146: ='PIC Raw'!D146 -> 0 | D146: =IF(ISBLANK('PIC Raw'!E146),"",'PIC Raw'!E146) ->  | E146: =IF(ISBLANK('PIC Raw'!F146),"",'PIC Raw'!F146) ->  | F146: =IF(ISBLANK('PIC Raw'!G146),"",'PIC Raw'!G146) ->  | G146: =IF(ISBLANK('PIC Raw'!H146),"",'PIC Raw'!H146) ->  | I146: =IF(ISNUMBER((D146-'PIC Raw'!M$15)-((($G146-'PIC Raw'!$P$15)/10784)*412)),(D146-'PIC Raw'!M$15)-((($G146-'PIC Raw'!$P$15)/10784)*412),-999) -> -999 | J146: =IF(ISNUMBER((E146-'PIC Raw'!N$15)-((($G146-'PIC Raw'!$P$15)/10784)*1284)),(E146-'PIC Raw'!N$15)-((($G146-'PIC Raw'!$P$15)/10784)*1284),-999) -> -999 | K146: =IF(ISNUMBER((F146-'PIC Raw'!O$15)-((($G146-'PIC Raw'!$P$15)/10784)*7.9)),(F146-'PIC Raw'!O$15)-((($G146-'PIC Raw'!$P$15)/10784)*7.9),-999) -> -999 | M146: -999 | N146: -999 | O146: -999 | Q146: -999 | R146: -999 | S146: -999 | U146: -999 | W146: -999 | X146: -999 | Y146: ='PIC Raw'!I146 -> 
A147: ='PIC Raw'!A147 -> 0 | B147: ='PIC Raw'!C147 ->  | C147: ='PIC Raw'!D147 -> 0 | D147: =IF(ISBLANK('PIC Raw'!E147),"",'PIC Raw'!E147) ->  | E147: =IF(ISBLANK('PIC Raw'!F147),"",'PIC Raw'!F147) ->  | F147: =IF(ISBLANK('PIC Raw'!G147),"",'PIC Raw'!G147) ->  | G147: =IF(ISBLANK('PIC Raw'!H147),"",'PIC Raw'!H147) ->  | I147: =IF(ISNUMBER((D147-'PIC Raw'!M$15)-((($G147-'PIC Raw'!$P$15)/10784)*412)),(D147-'PIC Raw'!M$15)-((($G147-'PIC Raw'!$P$15)/10784)*412),-999) -> -999 | J147: =IF(ISNUMBER((E147-'PIC Raw'!N$15)-((($G147-'PIC Raw'!$P$15)/10784)*1284)),(E147-'PIC Raw'!N$15)-((($G147-'PIC Raw'!$P$15)/10784)*1284),-999) -> -999 | K147: =IF(ISNUMBER((F147-'PIC Raw'!O$15)-((($G147-'PIC Raw'!$P$15)/10784)*7.9)),(F147-'PIC Raw'!O$15)-((($G147-'PIC Raw'!$P$15)/10784)*7.9),-999) -> -999 | M147: -999 | N147: -999 | O147: -999 | Q147: -999 | R147: -999 | S147: -999 | U147: -999 | W147: -999 | X147: -999 | Y147: ='PIC Raw'!I147 -> 
A148: ='PIC Raw'!A148 -> 0 | B148: ='PIC Raw'!C148 ->  | C148: ='PIC Raw'!D148 -> 0 | D148: =IF(ISBLANK('PIC Raw'!E148),"",'PIC Raw'!E148) ->  | E148: =IF(ISBLANK('PIC Raw'!F148),"",'PIC Raw'!F148) ->  | F148: =IF(ISBLANK('PIC Raw'!G148),"",'PIC Raw'!G148) ->  | G148: =IF(ISBLANK('PIC Raw'!H148),"",'PIC Raw'!H148) ->  | I148: =IF(ISNUMBER((D148-'PIC Raw'!M$15)-((($G148-'PIC Raw'!$P$15)/10784)*412)),(D148-'PIC Raw'!M$15)-((($G148-'PIC Raw'!$P$15)/10784)*412),-999) -> -999 | J148: =IF(ISNUMBER((E148-'PIC Raw'!N$15)-((($G148-'PIC Raw'!$P$15)/10784)*1284)),(E148-'PIC Raw'!N$15)-((($G148-'PIC Raw'!$P$15)/10784)*1284),-999) -> -999 | K148: =IF(ISNUMBER((F148-'PIC Raw'!O$15)-((($G148-'PIC Raw'!$P$15)/10784)*7.9)),(F148-'PIC Raw'!O$15)-((($G148-'PIC Raw'!$P$15)/10784)*7.9),-999) -> -999 | M148: -999 | N148: -999 | O148: -999 | Q148: -999 | R148: -999 | S148: -999 | U148: -999 | W148: -999 | X148: -999 | Y148: ='PIC Raw'!I148 -> 
A149: ='PIC Raw'!A149 -> 0 | B149: ='PIC Raw'!C149 ->  | C149: ='PIC Raw'!D149 -> 0 | D149: =IF(ISBLANK('PIC Raw'!E149),"",'PIC Raw'!E149) ->  | E149: =IF(ISBLANK('PIC Raw'!F149),"",'PIC Raw'!F149) ->  | F149: =IF(ISBLANK('PIC Raw'!G149),"",'PIC Raw'!G149) ->  | G149: =IF(ISBLANK('PIC Raw'!H149),"",'PIC Raw'!H149) ->  | I149: =IF(ISNUMBER((D149-'PIC Raw'!M$15)-((($G149-'PIC Raw'!$P$15)/10784)*412)),(D149-'PIC Raw'!M$15)-((($G149-'PIC Raw'!$P$15)/10784)*412),-999) -> -999 | J149: =IF(ISNUMBER((E149-'PIC Raw'!N$15)-((($G149-'PIC Raw'!$P$15)/10784)*1284)),(E149-'PIC Raw'!N$15)-((($G149-'PIC Raw'!$P$15)/10784)*1284),-999) -> -999 | K149: =IF(ISNUMBER((F149-'PIC Raw'!O$15)-((($G149-'PIC Raw'!$P$15)/10784)*7.9)),(F149-'PIC Raw'!O$15)-((($G149-'PIC Raw'!$P$15)/10784)*7.9),-999) -> -999 | M149: -999 | N149: -999 | O149: -999 | Q149: -999 | R149: -999 | S149: -999 | U149: -999 | W149: -999 | X149: -999 | Y149: ='PIC Raw'!I149 -> 
A150: ='PIC Raw'!A150 -> 0 | B150: ='PIC Raw'!C150 ->  | C150: ='PIC Raw'!D150 -> 0 | D150: =IF(ISBLANK('PIC Raw'!E150),"",'PIC Raw'!E150) ->  | E150: =IF(ISBLANK('PIC Raw'!F150),"",'PIC Raw'!F150) ->  | F150: =IF(ISBLANK('PIC Raw'!G150),"",'PIC Raw'!G150) ->  | G150: =IF(ISBLANK('PIC Raw'!H150),"",'PIC Raw'!H150) ->  | I150: =IF(ISNUMBER((D150-'PIC Raw'!M$15)-((($G150-'PIC Raw'!$P$15)/10784)*412)),(D150-'PIC Raw'!M$15)-((($G150-'PIC Raw'!$P$15)/10784)*412),-999) -> -999 | J150: =IF(ISNUMBER((E150-'PIC Raw'!N$15)-((($G150-'PIC Raw'!$P$15)/10784)*1284)),(E150-'PIC Raw'!N$15)-((($G150-'PIC Raw'!$P$15)/10784)*1284),-999) -> -999 | K150: =IF(ISNUMBER((F150-'PIC Raw'!O$15)-((($G150-'PIC Raw'!$P$15)/10784)*7.9)),(F150-'PIC Raw'!O$15)-((($G150-'PIC Raw'!$P$15)/10784)*7.9),-999) -> -999 | M150: -999 | N150: -999 | O150: -999 | Q150: -999 | R150: -999 | S150: -999 | U150: -999 | W150: -999 | X150: -999 | Y150: ='PIC Raw'!I150 -> 
A151: ='PIC Raw'!A151 -> 0 | B151: ='PIC Raw'!C151 ->  | C151: ='PIC Raw'!D151 -> 0 | D151: =IF(ISBLANK('PIC Raw'!E151),"",'PIC Raw'!E151) ->  | E151: =IF(ISBLANK('PIC Raw'!F151),"",'PIC Raw'!F151) ->  | F151: =IF(ISBLANK('PIC Raw'!G151),"",'PIC Raw'!G151) ->  | G151: =IF(ISBLANK('PIC Raw'!H151),"",'PIC Raw'!H151) ->  | I151: =IF(ISNUMBER((D151-'PIC Raw'!M$15)-((($G151-'PIC Raw'!$P$15)/10784)*412)),(D151-'PIC Raw'!M$15)-((($G151-'PIC Raw'!$P$15)/10784)*412),-999) -> -999 | J151: =IF(ISNUMBER((E151-'PIC Raw'!N$15)-((($G151-'PIC Raw'!$P$15)/10784)*1284)),(E151-'PIC Raw'!N$15)-((($G151-'PIC Raw'!$P$15)/10784)*1284),-999) -> -999 | K151: =IF(ISNUMBER((F151-'PIC Raw'!O$15)-((($G151-'PIC Raw'!$P$15)/10784)*7.9)),(F151-'PIC Raw'!O$15)-((($G151-'PIC Raw'!$P$15)/10784)*7.9),-999) -> -999 | M151: -999 | N151: -999 | O151: -999 | Q151: -999 | R151: -999 | S151: -999 | U151: -999 | W151: -999 | X151: -999 | Y151: ='PIC Raw'!I151 -> 
A152: ='PIC Raw'!A152 -> 0 | B152: ='PIC Raw'!C152 ->  | C152: ='PIC Raw'!D152 -> 0 | D152: =IF(ISBLANK('PIC Raw'!E152),"",'PIC Raw'!E152) ->  | E152: =IF(ISBLANK('PIC Raw'!F152),"",'PIC Raw'!F152) ->  | F152: =IF(ISBLANK('PIC Raw'!G152),"",'PIC Raw'!G152) ->  | G152: =IF(ISBLANK('PIC Raw'!H152),"",'PIC Raw'!H152) ->  | I152: =IF(ISNUMBER((D152-'PIC Raw'!M$15)-((($G152-'PIC Raw'!$P$15)/10784)*412)),(D152-'PIC Raw'!M$15)-((($G152-'PIC Raw'!$P$15)/10784)*412),-999) -> -999 | J152: =IF(ISNUMBER((E152-'PIC Raw'!N$15)-((($G152-'PIC Raw'!$P$15)/10784)*1284)),(E152-'PIC Raw'!N$15)-((($G152-'PIC Raw'!$P$15)/10784)*1284),-999) -> -999 | K152: =IF(ISNUMBER((F152-'PIC Raw'!O$15)-((($G152-'PIC Raw'!$P$15)/10784)*7.9)),(F152-'PIC Raw'!O$15)-((($G152-'PIC Raw'!$P$15)/10784)*7.9),-999) -> -999 | M152: -999 | N152: -999 | O152: -999 | Q152: -999 | R152: -999 | S152: -999 | U152: -999 | W152: -999 | X152: -999 | Y152: ='PIC Raw'!I152 -> 
A153: ='PIC Raw'!A153 -> 0 | B153: ='PIC Raw'!C153 ->  | C153: ='PIC Raw'!D153 -> 0 | D153: =IF(ISBLANK('PIC Raw'!E153),"",'PIC Raw'!E153) ->  | E153: =IF(ISBLANK('PIC Raw'!F153),"",'PIC Raw'!F153) ->  | F153: =IF(ISBLANK('PIC Raw'!G153),"",'PIC Raw'!G153) ->  | G153: =IF(ISBLANK('PIC Raw'!H153),"",'PIC Raw'!H153) ->  | I153: =IF(ISNUMBER((D153-'PIC Raw'!M$15)-((($G153-'PIC Raw'!$P$15)/10784)*412)),(D153-'PIC Raw'!M$15)-((($G153-'PIC Raw'!$P$15)/10784)*412),-999) -> -999 | J153: =IF(ISNUMBER((E153-'PIC Raw'!N$15)-((($G153-'PIC Raw'!$P$15)/10784)*1284)),(E153-'PIC Raw'!N$15)-((($G153-'PIC Raw'!$P$15)/10784)*1284),-999) -> -999 | K153: =IF(ISNUMBER((F153-'PIC Raw'!O$15)-((($G153-'PIC Raw'!$P$15)/10784)*7.9)),(F153-'PIC Raw'!O$15)-((($G153-'PIC Raw'!$P$15)/10784)*7.9),-999) -> -999 | M153: -999 | N153: -999 | O153: -999 | Q153: -999 | R153: -999 | S153: -999 | U153: -999 | W153: -999 | X153: -999 | Y153: ='PIC Raw'!I153 -> 
A154: ='PIC Raw'!A154 -> 0 | B154: ='PIC Raw'!C154 ->  | C154: ='PIC Raw'!D154 -> 0 | D154: =IF(ISBLANK('PIC Raw'!E154),"",'PIC Raw'!E154) ->  | E154: =IF(ISBLANK('PIC Raw'!F154),"",'PIC Raw'!F154) ->  | F154: =IF(ISBLANK('PIC Raw'!G154),"",'PIC Raw'!G154) ->  | G154: =IF(ISBLANK('PIC Raw'!H154),"",'PIC Raw'!H154) ->  | I154: =IF(ISNUMBER((D154-'PIC Raw'!M$15)-((($G154-'PIC Raw'!$P$15)/10784)*412)),(D154-'PIC Raw'!M$15)-((($G154-'PIC Raw'!$P$15)/10784)*412),-999) -> -999 | J154: =IF(ISNUMBER((E154-'PIC Raw'!N$15)-((($G154-'PIC Raw'!$P$15)/10784)*1284)),(E154-'PIC Raw'!N$15)-((($G154-'PIC Raw'!$P$15)/10784)*1284),-999) -> -999 | K154: =IF(ISNUMBER((F154-'PIC Raw'!O$15)-((($G154-'PIC Raw'!$P$15)/10784)*7.9)),(F154-'PIC Raw'!O$15)-((($G154-'PIC Raw'!$P$15)/10784)*7.9),-999) -> -999 | M154: -999 | N154: -999 | O154: -999 | Q154: -999 | R154: -999 | S154: -999 | U154: -999 | W154: -999 | X154: -999 | Y154: ='PIC Raw'!I154 -> 
A155: ='PIC Raw'!A155 -> 0 | B155: ='PIC Raw'!C155 ->  | C155: ='PIC Raw'!D155 -> 0 | D155: =IF(ISBLANK('PIC Raw'!E155),"",'PIC Raw'!E155) ->  | E155: =IF(ISBLANK('PIC Raw'!F155),"",'PIC Raw'!F155) ->  | F155: =IF(ISBLANK('PIC Raw'!G155),"",'PIC Raw'!G155) ->  | G155: =IF(ISBLANK('PIC Raw'!H155),"",'PIC Raw'!H155) ->  | I155: =IF(ISNUMBER((D155-'PIC Raw'!M$15)-((($G155-'PIC Raw'!$P$15)/10784)*412)),(D155-'PIC Raw'!M$15)-((($G155-'PIC Raw'!$P$15)/10784)*412),-999) -> -999 | J155: =IF(ISNUMBER((E155-'PIC Raw'!N$15)-((($G155-'PIC Raw'!$P$15)/10784)*1284)),(E155-'PIC Raw'!N$15)-((($G155-'PIC Raw'!$P$15)/10784)*1284),-999) -> -999 | K155: =IF(ISNUMBER((F155-'PIC Raw'!O$15)-((($G155-'PIC Raw'!$P$15)/10784)*7.9)),(F155-'PIC Raw'!O$15)-((($G155-'PIC Raw'!$P$15)/10784)*7.9),-999) -> -999 | M155: -999 | N155: -999 | O155: -999 | Q155: -999 | R155: -999 | S155: -999 | U155: -999 | W155: -999 | X155: -999 | Y155: ='PIC Raw'!I155 -> 
A156: ='PIC Raw'!A156 -> 0 | B156: ='PIC Raw'!C156 ->  | C156: ='PIC Raw'!D156 -> 0 | D156: =IF(ISBLANK('PIC Raw'!E156),"",'PIC Raw'!E156) ->  | E156: =IF(ISBLANK('PIC Raw'!F156),"",'PIC Raw'!F156) ->  | F156: =IF(ISBLANK('PIC Raw'!G156),"",'PIC Raw'!G156) ->  | G156: =IF(ISBLANK('PIC Raw'!H156),"",'PIC Raw'!H156) ->  | I156: =IF(ISNUMBER((D156-'PIC Raw'!M$15)-((($G156-'PIC Raw'!$P$15)/10784)*412)),(D156-'PIC Raw'!M$15)-((($G156-'PIC Raw'!$P$15)/10784)*412),-999) -> -999 | J156: =IF(ISNUMBER((E156-'PIC Raw'!N$15)-((($G156-'PIC Raw'!$P$15)/10784)*1284)),(E156-'PIC Raw'!N$15)-((($G156-'PIC Raw'!$P$15)/10784)*1284),-999) -> -999 | K156: =IF(ISNUMBER((F156-'PIC Raw'!O$15)-((($G156-'PIC Raw'!$P$15)/10784)*7.9)),(F156-'PIC Raw'!O$15)-((($G156-'PIC Raw'!$P$15)/10784)*7.9),-999) -> -999 | M156: -999 | N156: -999 | O156: -999 | Q156: -999 | R156: -999 | S156: -999 | U156: -999 | W156: -999 | X156: -999 | Y156: ='PIC Raw'!I156 -> 
A157: ='PIC Raw'!A157 -> 0 | B157: ='PIC Raw'!C157 ->  | C157: ='PIC Raw'!D157 -> 0 | D157: =IF(ISBLANK('PIC Raw'!E157),"",'PIC Raw'!E157) ->  | E157: =IF(ISBLANK('PIC Raw'!F157),"",'PIC Raw'!F157) ->  | F157: =IF(ISBLANK('PIC Raw'!G157),"",'PIC Raw'!G157) ->  | G157: =IF(ISBLANK('PIC Raw'!H157),"",'PIC Raw'!H157) ->  | I157: =IF(ISNUMBER((D157-'PIC Raw'!M$15)-((($G157-'PIC Raw'!$P$15)/10784)*412)),(D157-'PIC Raw'!M$15)-((($G157-'PIC Raw'!$P$15)/10784)*412),-999) -> -999 | J157: =IF(ISNUMBER((E157-'PIC Raw'!N$15)-((($G157-'PIC Raw'!$P$15)/10784)*1284)),(E157-'PIC Raw'!N$15)-((($G157-'PIC Raw'!$P$15)/10784)*1284),-999) -> -999 | K157: =IF(ISNUMBER((F157-'PIC Raw'!O$15)-((($G157-'PIC Raw'!$P$15)/10784)*7.9)),(F157-'PIC Raw'!O$15)-((($G157-'PIC Raw'!$P$15)/10784)*7.9),-999) -> -999 | M157: -999 | N157: -999 | O157: -999 | Q157: -999 | R157: -999 | S157: -999 | U157: -999 | W157: -999 | X157: -999 | Y157: ='PIC Raw'!I157 -> 
A158: ='PIC Raw'!A158 -> 0 | B158: ='PIC Raw'!C158 ->  | C158: ='PIC Raw'!D158 -> 0 | D158: =IF(ISBLANK('PIC Raw'!E158),"",'PIC Raw'!E158) ->  | E158: =IF(ISBLANK('PIC Raw'!F158),"",'PIC Raw'!F158) ->  | F158: =IF(ISBLANK('PIC Raw'!G158),"",'PIC Raw'!G158) ->  | G158: =IF(ISBLANK('PIC Raw'!H158),"",'PIC Raw'!H158) ->  | I158: =IF(ISNUMBER((D158-'PIC Raw'!M$15)-((($G158-'PIC Raw'!$P$15)/10784)*412)),(D158-'PIC Raw'!M$15)-((($G158-'PIC Raw'!$P$15)/10784)*412),-999) -> -999 | J158: =IF(ISNUMBER((E158-'PIC Raw'!N$15)-((($G158-'PIC Raw'!$P$15)/10784)*1284)),(E158-'PIC Raw'!N$15)-((($G158-'PIC Raw'!$P$15)/10784)*1284),-999) -> -999 | K158: =IF(ISNUMBER((F158-'PIC Raw'!O$15)-((($G158-'PIC Raw'!$P$15)/10784)*7.9)),(F158-'PIC Raw'!O$15)-((($G158-'PIC Raw'!$P$15)/10784)*7.9),-999) -> -999 | M158: -999 | N158: -999 | O158: -999 | Q158: -999 | R158: -999 | S158: -999 | U158: -999 | W158: -999 | X158: -999 | Y158: ='PIC Raw'!I158 -> 
A159: ='PIC Raw'!A159 -> 0 | B159: ='PIC Raw'!C159 ->  | C159: ='PIC Raw'!D159 -> 0 | D159: =IF(ISBLANK('PIC Raw'!E159),"",'PIC Raw'!E159) ->  | E159: =IF(ISBLANK('PIC Raw'!F159),"",'PIC Raw'!F159) ->  | F159: =IF(ISBLANK('PIC Raw'!G159),"",'PIC Raw'!G159) ->  | G159: =IF(ISBLANK('PIC Raw'!H159),"",'PIC Raw'!H159) ->  | I159: =IF(ISNUMBER((D159-'PIC Raw'!M$15)-((($G159-'PIC Raw'!$P$15)/10784)*412)),(D159-'PIC Raw'!M$15)-((($G159-'PIC Raw'!$P$15)/10784)*412),-999) -> -999 | J159: =IF(ISNUMBER((E159-'PIC Raw'!N$15)-((($G159-'PIC Raw'!$P$15)/10784)*1284)),(E159-'PIC Raw'!N$15)-((($G159-'PIC Raw'!$P$15)/10784)*1284),-999) -> -999 | K159: =IF(ISNUMBER((F159-'PIC Raw'!O$15)-((($G159-'PIC Raw'!$P$15)/10784)*7.9)),(F159-'PIC Raw'!O$15)-((($G159-'PIC Raw'!$P$15)/10784)*7.9),-999) -> -999 | M159: -999 | N159: -999 | O159: -999 | Q159: -999 | R159: -999 | S159: -999 | U159: -999 | W159: -999 | X159: -999 | Y159: ='PIC Raw'!I159 -> 
A160: ='PIC Raw'!A160 -> 0 | B160: ='PIC Raw'!C160 ->  | C160: ='PIC Raw'!D160 -> 0 | D160: =IF(ISBLANK('PIC Raw'!E160),"",'PIC Raw'!E160) ->  | E160: =IF(ISBLANK('PIC Raw'!F160),"",'PIC Raw'!F160) ->  | F160: =IF(ISBLANK('PIC Raw'!G160),"",'PIC Raw'!G160) ->  | G160: =IF(ISBLANK('PIC Raw'!H160),"",'PIC Raw'!H160) ->  | I160: =IF(ISNUMBER((D160-'PIC Raw'!M$15)-((($G160-'PIC Raw'!$P$15)/10784)*412)),(D160-'PIC Raw'!M$15)-((($G160-'PIC Raw'!$P$15)/10784)*412),-999) -> -999 | J160: =IF(ISNUMBER((E160-'PIC Raw'!N$15)-((($G160-'PIC Raw'!$P$15)/10784)*1284)),(E160-'PIC Raw'!N$15)-((($G160-'PIC Raw'!$P$15)/10784)*1284),-999) -> -999 | K160: =IF(ISNUMBER((F160-'PIC Raw'!O$15)-((($G160-'PIC Raw'!$P$15)/10784)*7.9)),(F160-'PIC Raw'!O$15)-((($G160-'PIC Raw'!$P$15)/10784)*7.9),-999) -> -999 | M160: -999 | N160: -999 | O160: -999 | Q160: -999 | R160: -999 | S160: -999 | U160: -999 | W160: -999 | X160: -999 | Y160: ='PIC Raw'!I160 -> 
A161: ='PIC Raw'!A161 -> 0 | B161: ='PIC Raw'!C161 ->  | C161: ='PIC Raw'!D161 -> 0 | D161: =IF(ISBLANK('PIC Raw'!E161),"",'PIC Raw'!E161) ->  | E161: =IF(ISBLANK('PIC Raw'!F161),"",'PIC Raw'!F161) ->  | F161: =IF(ISBLANK('PIC Raw'!G161),"",'PIC Raw'!G161) ->  | G161: =IF(ISBLANK('PIC Raw'!H161),"",'PIC Raw'!H161) ->  | I161: =IF(ISNUMBER((D161-'PIC Raw'!M$15)-((($G161-'PIC Raw'!$P$15)/10784)*412)),(D161-'PIC Raw'!M$15)-((($G161-'PIC Raw'!$P$15)/10784)*412),-999) -> -999 | J161: =IF(ISNUMBER((E161-'PIC Raw'!N$15)-((($G161-'PIC Raw'!$P$15)/10784)*1284)),(E161-'PIC Raw'!N$15)-((($G161-'PIC Raw'!$P$15)/10784)*1284),-999) -> -999 | K161: =IF(ISNUMBER((F161-'PIC Raw'!O$15)-((($G161-'PIC Raw'!$P$15)/10784)*7.9)),(F161-'PIC Raw'!O$15)-((($G161-'PIC Raw'!$P$15)/10784)*7.9),-999) -> -999 | M161: -999 | N161: -999 | O161: -999 | Q161: -999 | R161: -999 | S161: -999 | U161: -999 | W161: -999 | X161: -999 | Y161: ='PIC Raw'!I161 -> 
A162: ='PIC Raw'!A162 -> 0 | B162: ='PIC Raw'!C162 ->  | C162: ='PIC Raw'!D162 -> 0 | D162: =IF(ISBLANK('PIC Raw'!E162),"",'PIC Raw'!E162) ->  | E162: =IF(ISBLANK('PIC Raw'!F162),"",'PIC Raw'!F162) ->  | F162: =IF(ISBLANK('PIC Raw'!G162),"",'PIC Raw'!G162) ->  | G162: =IF(ISBLANK('PIC Raw'!H162),"",'PIC Raw'!H162) ->  | I162: =IF(ISNUMBER((D162-'PIC Raw'!M$15)-((($G162-'PIC Raw'!$P$15)/10784)*412)),(D162-'PIC Raw'!M$15)-((($G162-'PIC Raw'!$P$15)/10784)*412),-999) -> -999 | J162: =IF(ISNUMBER((E162-'PIC Raw'!N$15)-((($G162-'PIC Raw'!$P$15)/10784)*1284)),(E162-'PIC Raw'!N$15)-((($G162-'PIC Raw'!$P$15)/10784)*1284),-999) -> -999 | K162: =IF(ISNUMBER((F162-'PIC Raw'!O$15)-((($G162-'PIC Raw'!$P$15)/10784)*7.9)),(F162-'PIC Raw'!O$15)-((($G162-'PIC Raw'!$P$15)/10784)*7.9),-999) -> -999 | M162: -999 | N162: -999 | O162: -999 | Q162: -999 | R162: -999 | S162: -999 | U162: -999 | W162: -999 | X162: -999 | Y162: ='PIC Raw'!I162 -> 
A163: ='PIC Raw'!A163 -> 0 | B163: ='PIC Raw'!C163 ->  | C163: ='PIC Raw'!D163 -> 0 | D163: =IF(ISBLANK('PIC Raw'!E163),"",'PIC Raw'!E163) ->  | E163: =IF(ISBLANK('PIC Raw'!F163),"",'PIC Raw'!F163) ->  | F163: =IF(ISBLANK('PIC Raw'!G163),"",'PIC Raw'!G163) ->  | G163: =IF(ISBLANK('PIC Raw'!H163),"",'PIC Raw'!H163) ->  | I163: =IF(ISNUMBER((D163-'PIC Raw'!M$15)-((($G163-'PIC Raw'!$P$15)/10784)*412)),(D163-'PIC Raw'!M$15)-((($G163-'PIC Raw'!$P$15)/10784)*412),-999) -> -999 | J163: =IF(ISNUMBER((E163-'PIC Raw'!N$15)-((($G163-'PIC Raw'!$P$15)/10784)*1284)),(E163-'PIC Raw'!N$15)-((($G163-'PIC Raw'!$P$15)/10784)*1284),-999) -> -999 | K163: =IF(ISNUMBER((F163-'PIC Raw'!O$15)-((($G163-'PIC Raw'!$P$15)/10784)*7.9)),(F163-'PIC Raw'!O$15)-((($G163-'PIC Raw'!$P$15)/10784)*7.9),-999) -> -999 | M163: -999 | N163: -999 | O163: -999 | Q163: -999 | R163: -999 | S163: -999 | U163: -999 | W163: -999 | X163: -999 | Y163: ='PIC Raw'!I163 -> 
A164: ='PIC Raw'!A164 -> 0 | B164: ='PIC Raw'!C164 ->  | C164: ='PIC Raw'!D164 -> 0 | D164: =IF(ISBLANK('PIC Raw'!E164),"",'PIC Raw'!E164) ->  | E164: =IF(ISBLANK('PIC Raw'!F164),"",'PIC Raw'!F164) ->  | F164: =IF(ISBLANK('PIC Raw'!G164),"",'PIC Raw'!G164) ->  | G164: =IF(ISBLANK('PIC Raw'!H164),"",'PIC Raw'!H164) ->  | I164: =IF(ISNUMBER((D164-'PIC Raw'!M$15)-((($G164-'PIC Raw'!$P$15)/10784)*412)),(D164-'PIC Raw'!M$15)-((($G164-'PIC Raw'!$P$15)/10784)*412),-999) -> -999 | J164: =IF(ISNUMBER((E164-'PIC Raw'!N$15)-((($G164-'PIC Raw'!$P$15)/10784)*1284)),(E164-'PIC Raw'!N$15)-((($G164-'PIC Raw'!$P$15)/10784)*1284),-999) -> -999 | K164: =IF(ISNUMBER((F164-'PIC Raw'!O$15)-((($G164-'PIC Raw'!$P$15)/10784)*7.9)),(F164-'PIC Raw'!O$15)-((($G164-'PIC Raw'!$P$15)/10784)*7.9),-999) -> -999 | M164: -999 | N164: -999 | O164: -999 | Q164: -999 | R164: -999 | S164: -999 | U164: -999 | W164: -999 | X164: -999 | Y164: ='PIC Raw'!I164 -> 
A165: ='PIC Raw'!A165 -> 0 | B165: ='PIC Raw'!C165 ->  | C165: ='PIC Raw'!D165 -> 0 | D165: =IF(ISBLANK('PIC Raw'!E165),"",'PIC Raw'!E165) ->  | E165: =IF(ISBLANK('PIC Raw'!F165),"",'PIC Raw'!F165) ->  | F165: =IF(ISBLANK('PIC Raw'!G165),"",'PIC Raw'!G165) ->  | G165: =IF(ISBLANK('PIC Raw'!H165),"",'PIC Raw'!H165) ->  | I165: =IF(ISNUMBER((D165-'PIC Raw'!M$15)-((($G165-'PIC Raw'!$P$15)/10784)*412)),(D165-'PIC Raw'!M$15)-((($G165-'PIC Raw'!$P$15)/10784)*412),-999) -> -999 | J165: =IF(ISNUMBER((E165-'PIC Raw'!N$15)-((($G165-'PIC Raw'!$P$15)/10784)*1284)),(E165-'PIC Raw'!N$15)-((($G165-'PIC Raw'!$P$15)/10784)*1284),-999) -> -999 | K165: =IF(ISNUMBER((F165-'PIC Raw'!O$15)-((($G165-'PIC Raw'!$P$15)/10784)*7.9)),(F165-'PIC Raw'!O$15)-((($G165-'PIC Raw'!$P$15)/10784)*7.9),-999) -> -999 | M165: -999 | N165: -999 | O165: -999 | Q165: -999 | R165: -999 | S165: -999 | U165: -999 | W165: -999 | X165: -999 | Y165: ='PIC Raw'!I165 -> 
A166: ='PIC Raw'!A166 -> 0 | B166: ='PIC Raw'!C166 ->  | C166: ='PIC Raw'!D166 -> 0 | D166: =IF(ISBLANK('PIC Raw'!E166),"",'PIC Raw'!E166) ->  | E166: =IF(ISBLANK('PIC Raw'!F166),"",'PIC Raw'!F166) ->  | F166: =IF(ISBLANK('PIC Raw'!G166),"",'PIC Raw'!G166) ->  | G166: =IF(ISBLANK('PIC Raw'!H166),"",'PIC Raw'!H166) ->  | I166: =IF(ISNUMBER((D166-'PIC Raw'!M$15)-((($G166-'PIC Raw'!$P$15)/10784)*412)),(D166-'PIC Raw'!M$15)-((($G166-'PIC Raw'!$P$15)/10784)*412),-999) -> -999 | J166: =IF(ISNUMBER((E166-'PIC Raw'!N$15)-((($G166-'PIC Raw'!$P$15)/10784)*1284)),(E166-'PIC Raw'!N$15)-((($G166-'PIC Raw'!$P$15)/10784)*1284),-999) -> -999 | K166: =IF(ISNUMBER((F166-'PIC Raw'!O$15)-((($G166-'PIC Raw'!$P$15)/10784)*7.9)),(F166-'PIC Raw'!O$15)-((($G166-'PIC Raw'!$P$15)/10784)*7.9),-999) -> -999 | M166: -999 | N166: -999 | O166: -999 | Q166: -999 | R166: -999 | S166: -999 | U166: -999 | W166: -999 | X166: -999 | Y166: ='PIC Raw'!I166 -> 
A167: ='PIC Raw'!A167 -> 0 | B167: ='PIC Raw'!C167 ->  | C167: ='PIC Raw'!D167 -> 0 | D167: =IF(ISBLANK('PIC Raw'!E167),"",'PIC Raw'!E167) ->  | E167: =IF(ISBLANK('PIC Raw'!F167),"",'PIC Raw'!F167) ->  | F167: =IF(ISBLANK('PIC Raw'!G167),"",'PIC Raw'!G167) ->  | G167: =IF(ISBLANK('PIC Raw'!H167),"",'PIC Raw'!H167) ->  | I167: =IF(ISNUMBER((D167-'PIC Raw'!M$15)-((($G167-'PIC Raw'!$P$15)/10784)*412)),(D167-'PIC Raw'!M$15)-((($G167-'PIC Raw'!$P$15)/10784)*412),-999) -> -999 | J167: =IF(ISNUMBER((E167-'PIC Raw'!N$15)-((($G167-'PIC Raw'!$P$15)/10784)*1284)),(E167-'PIC Raw'!N$15)-((($G167-'PIC Raw'!$P$15)/10784)*1284),-999) -> -999 | K167: =IF(ISNUMBER((F167-'PIC Raw'!O$15)-((($G167-'PIC Raw'!$P$15)/10784)*7.9)),(F167-'PIC Raw'!O$15)-((($G167-'PIC Raw'!$P$15)/10784)*7.9),-999) -> -999 | M167: -999 | N167: -999 | O167: -999 | Q167: -999 | R167: -999 | S167: -999 | U167: -999 | W167: -999 | X167: -999 | Y167: ='PIC Raw'!I167 -> 
A168: ='PIC Raw'!A168 -> 0 | B168: ='PIC Raw'!C168 ->  | C168: ='PIC Raw'!D168 -> 0 | D168: =IF(ISBLANK('PIC Raw'!E168),"",'PIC Raw'!E168) ->  | E168: =IF(ISBLANK('PIC Raw'!F168),"",'PIC Raw'!F168) ->  | F168: =IF(ISBLANK('PIC Raw'!G168),"",'PIC Raw'!G168) ->  | G168: =IF(ISBLANK('PIC Raw'!H168),"",'PIC Raw'!H168) ->  | I168: =IF(ISNUMBER((D168-'PIC Raw'!M$15)-((($G168-'PIC Raw'!$P$15)/10784)*412)),(D168-'PIC Raw'!M$15)-((($G168-'PIC Raw'!$P$15)/10784)*412),-999) -> -999 | J168: =IF(ISNUMBER((E168-'PIC Raw'!N$15)-((($G168-'PIC Raw'!$P$15)/10784)*1284)),(E168-'PIC Raw'!N$15)-((($G168-'PIC Raw'!$P$15)/10784)*1284),-999) -> -999 | K168: =IF(ISNUMBER((F168-'PIC Raw'!O$15)-((($G168-'PIC Raw'!$P$15)/10784)*7.9)),(F168-'PIC Raw'!O$15)-((($G168-'PIC Raw'!$P$15)/10784)*7.9),-999) -> -999 | M168: -999 | N168: -999 | O168: -999 | Q168: -999 | R168: -999 | S168: -999 | U168: -999 | W168: -999 | X168: -999 | Y168: ='PIC Raw'!I168 -> 
A169: ='PIC Raw'!A169 -> 0 | B169: ='PIC Raw'!C169 ->  | C169: ='PIC Raw'!D169 -> 0 | D169: =IF(ISBLANK('PIC Raw'!E169),"",'PIC Raw'!E169) ->  | E169: =IF(ISBLANK('PIC Raw'!F169),"",'PIC Raw'!F169) ->  | F169: =IF(ISBLANK('PIC Raw'!G169),"",'PIC Raw'!G169) ->  | G169: =IF(ISBLANK('PIC Raw'!H169),"",'PIC Raw'!H169) ->  | I169: =IF(ISNUMBER((D169-'PIC Raw'!M$15)-((($G169-'PIC Raw'!$P$15)/10784)*412)),(D169-'PIC Raw'!M$15)-((($G169-'PIC Raw'!$P$15)/10784)*412),-999) -> -999 | J169: =IF(ISNUMBER((E169-'PIC Raw'!N$15)-((($G169-'PIC Raw'!$P$15)/10784)*1284)),(E169-'PIC Raw'!N$15)-((($G169-'PIC Raw'!$P$15)/10784)*1284),-999) -> -999 | K169: =IF(ISNUMBER((F169-'PIC Raw'!O$15)-((($G169-'PIC Raw'!$P$15)/10784)*7.9)),(F169-'PIC Raw'!O$15)-((($G169-'PIC Raw'!$P$15)/10784)*7.9),-999) -> -999 | M169: -999 | N169: -999 | O169: -999 | Q169: -999 | R169: -999 | S169: -999 | U169: -999 | W169: -999 | X169: -999 | Y169: ='PIC Raw'!I169 -> 
A170: ='PIC Raw'!A170 -> 0 | B170: ='PIC Raw'!C170 ->  | C170: ='PIC Raw'!D170 -> 0 | D170: =IF(ISBLANK('PIC Raw'!E170),"",'PIC Raw'!E170) ->  | E170: =IF(ISBLANK('PIC Raw'!F170),"",'PIC Raw'!F170) ->  | F170: =IF(ISBLANK('PIC Raw'!G170),"",'PIC Raw'!G170) ->  | G170: =IF(ISBLANK('PIC Raw'!H170),"",'PIC Raw'!H170) ->  | I170: =IF(ISNUMBER((D170-'PIC Raw'!M$15)-((($G170-'PIC Raw'!$P$15)/10784)*412)),(D170-'PIC Raw'!M$15)-((($G170-'PIC Raw'!$P$15)/10784)*412),-999) -> -999 | J170: =IF(ISNUMBER((E170-'PIC Raw'!N$15)-((($G170-'PIC Raw'!$P$15)/10784)*1284)),(E170-'PIC Raw'!N$15)-((($G170-'PIC Raw'!$P$15)/10784)*1284),-999) -> -999 | K170: =IF(ISNUMBER((F170-'PIC Raw'!O$15)-((($G170-'PIC Raw'!$P$15)/10784)*7.9)),(F170-'PIC Raw'!O$15)-((($G170-'PIC Raw'!$P$15)/10784)*7.9),-999) -> -999 | M170: -999 | N170: -999 | O170: -999 | Q170: -999 | R170: -999 | S170: -999 | U170: -999 | W170: -999 | X170: -999 | Y170: ='PIC Raw'!I170 -> 
A171: ='PIC Raw'!A171 -> 0 | B171: ='PIC Raw'!C171 ->  | C171: ='PIC Raw'!D171 -> 0 | D171: =IF(ISBLANK('PIC Raw'!E171),"",'PIC Raw'!E171) ->  | E171: =IF(ISBLANK('PIC Raw'!F171),"",'PIC Raw'!F171) ->  | F171: =IF(ISBLANK('PIC Raw'!G171),"",'PIC Raw'!G171) ->  | G171: =IF(ISBLANK('PIC Raw'!H171),"",'PIC Raw'!H171) ->  | I171: =IF(ISNUMBER((D171-'PIC Raw'!M$15)-((($G171-'PIC Raw'!$P$15)/10784)*412)),(D171-'PIC Raw'!M$15)-((($G171-'PIC Raw'!$P$15)/10784)*412),-999) -> -999 | J171: =IF(ISNUMBER((E171-'PIC Raw'!N$15)-((($G171-'PIC Raw'!$P$15)/10784)*1284)),(E171-'PIC Raw'!N$15)-((($G171-'PIC Raw'!$P$15)/10784)*1284),-999) -> -999 | K171: =IF(ISNUMBER((F171-'PIC Raw'!O$15)-((($G171-'PIC Raw'!$P$15)/10784)*7.9)),(F171-'PIC Raw'!O$15)-((($G171-'PIC Raw'!$P$15)/10784)*7.9),-999) -> -999 | M171: -999 | N171: -999 | O171: -999 | Q171: -999 | R171: -999 | S171: -999 | U171: -999 | W171: -999 | X171: -999 | Y171: ='PIC Raw'!I171 -> 
A172: ='PIC Raw'!A172 -> 0 | B172: ='PIC Raw'!C172 ->  | C172: ='PIC Raw'!D172 -> 0 | D172: =IF(ISBLANK('PIC Raw'!E172),"",'PIC Raw'!E172) ->  | E172: =IF(ISBLANK('PIC Raw'!F172),"",'PIC Raw'!F172) ->  | F172: =IF(ISBLANK('PIC Raw'!G172),"",'PIC Raw'!G172) ->  | G172: =IF(ISBLANK('PIC Raw'!H172),"",'PIC Raw'!H172) ->  | I172: =IF(ISNUMBER((D172-'PIC Raw'!M$15)-((($G172-'PIC Raw'!$P$15)/10784)*412)),(D172-'PIC Raw'!M$15)-((($G172-'PIC Raw'!$P$15)/10784)*412),-999) -> -999 | J172: =IF(ISNUMBER((E172-'PIC Raw'!N$15)-((($G172-'PIC Raw'!$P$15)/10784)*1284)),(E172-'PIC Raw'!N$15)-((($G172-'PIC Raw'!$P$15)/10784)*1284),-999) -> -999 | K172: =IF(ISNUMBER((F172-'PIC Raw'!O$15)-((($G172-'PIC Raw'!$P$15)/10784)*7.9)),(F172-'PIC Raw'!O$15)-((($G172-'PIC Raw'!$P$15)/10784)*7.9),-999) -> -999 | M172: -999 | N172: -999 | O172: -999 | Q172: -999 | R172: -999 | S172: -999 | U172: -999 | W172: -999 | X172: -999 | Y172: ='PIC Raw'!I172 -> 
A173: ='PIC Raw'!A173 -> 0 | B173: ='PIC Raw'!C173 ->  | C173: ='PIC Raw'!D173 -> 0 | D173: =IF(ISBLANK('PIC Raw'!E173),"",'PIC Raw'!E173) ->  | E173: =IF(ISBLANK('PIC Raw'!F173),"",'PIC Raw'!F173) ->  | F173: =IF(ISBLANK('PIC Raw'!G173),"",'PIC Raw'!G173) ->  | G173: =IF(ISBLANK('PIC Raw'!H173),"",'PIC Raw'!H173) ->  | I173: =IF(ISNUMBER((D173-'PIC Raw'!M$15)-((($G173-'PIC Raw'!$P$15)/10784)*412)),(D173-'PIC Raw'!M$15)-((($G173-'PIC Raw'!$P$15)/10784)*412),-999) -> -999 | J173: =IF(ISNUMBER((E173-'PIC Raw'!N$15)-((($G173-'PIC Raw'!$P$15)/10784)*1284)),(E173-'PIC Raw'!N$15)-((($G173-'PIC Raw'!$P$15)/10784)*1284),-999) -> -999 | K173: =IF(ISNUMBER((F173-'PIC Raw'!O$15)-((($G173-'PIC Raw'!$P$15)/10784)*7.9)),(F173-'PIC Raw'!O$15)-((($G173-'PIC Raw'!$P$15)/10784)*7.9),-999) -> -999 | M173: -999 | N173: -999 | O173: -999 | Q173: -999 | R173: -999 | S173: -999 | U173: -999 | W173: -999 | X173: -999 | Y173: ='PIC Raw'!I173 -> 
A174: ='PIC Raw'!A174 -> 0 | B174: ='PIC Raw'!C174 ->  | C174: ='PIC Raw'!D174 -> 0 | D174: =IF(ISBLANK('PIC Raw'!E174),"",'PIC Raw'!E174) ->  | E174: =IF(ISBLANK('PIC Raw'!F174),"",'PIC Raw'!F174) ->  | F174: =IF(ISBLANK('PIC Raw'!G174),"",'PIC Raw'!G174) ->  | G174: =IF(ISBLANK('PIC Raw'!H174),"",'PIC Raw'!H174) ->  | I174: =IF(ISNUMBER((D174-'PIC Raw'!M$15)-((($G174-'PIC Raw'!$P$15)/10784)*412)),(D174-'PIC Raw'!M$15)-((($G174-'PIC Raw'!$P$15)/10784)*412),-999) -> -999 | J174: =IF(ISNUMBER((E174-'PIC Raw'!N$15)-((($G174-'PIC Raw'!$P$15)/10784)*1284)),(E174-'PIC Raw'!N$15)-((($G174-'PIC Raw'!$P$15)/10784)*1284),-999) -> -999 | K174: =IF(ISNUMBER((F174-'PIC Raw'!O$15)-((($G174-'PIC Raw'!$P$15)/10784)*7.9)),(F174-'PIC Raw'!O$15)-((($G174-'PIC Raw'!$P$15)/10784)*7.9),-999) -> -999 | M174: -999 | N174: -999 | O174: -999 | Q174: -999 | R174: -999 | S174: -999 | U174: -999 | W174: -999 | X174: -999 | Y174: ='PIC Raw'!I174 -> 
A175: ='PIC Raw'!A175 -> 0 | B175: ='PIC Raw'!C175 ->  | C175: ='PIC Raw'!D175 -> 0 | D175: =IF(ISBLANK('PIC Raw'!E175),"",'PIC Raw'!E175) ->  | E175: =IF(ISBLANK('PIC Raw'!F175),"",'PIC Raw'!F175) ->  | F175: =IF(ISBLANK('PIC Raw'!G175),"",'PIC Raw'!G175) ->  | G175: =IF(ISBLANK('PIC Raw'!H175),"",'PIC Raw'!H175) ->  | I175: =IF(ISNUMBER((D175-'PIC Raw'!M$15)-((($G175-'PIC Raw'!$P$15)/10784)*412)),(D175-'PIC Raw'!M$15)-((($G175-'PIC Raw'!$P$15)/10784)*412),-999) -> -999 | J175: =IF(ISNUMBER((E175-'PIC Raw'!N$15)-((($G175-'PIC Raw'!$P$15)/10784)*1284)),(E175-'PIC Raw'!N$15)-((($G175-'PIC Raw'!$P$15)/10784)*1284),-999) -> -999 | K175: =IF(ISNUMBER((F175-'PIC Raw'!O$15)-((($G175-'PIC Raw'!$P$15)/10784)*7.9)),(F175-'PIC Raw'!O$15)-((($G175-'PIC Raw'!$P$15)/10784)*7.9),-999) -> -999 | M175: -999 | N175: -999 | O175: -999 | Q175: -999 | R175: -999 | S175: -999 | U175: -999 | W175: -999 | X175: -999 | Y175: ='PIC Raw'!I175 -> 
A176: ='PIC Raw'!A176 -> 0 | B176: ='PIC Raw'!C176 ->  | C176: ='PIC Raw'!D176 -> 0 | D176: =IF(ISBLANK('PIC Raw'!E176),"",'PIC Raw'!E176) ->  | E176: =IF(ISBLANK('PIC Raw'!F176),"",'PIC Raw'!F176) ->  | F176: =IF(ISBLANK('PIC Raw'!G176),"",'PIC Raw'!G176) ->  | G176: =IF(ISBLANK('PIC Raw'!H176),"",'PIC Raw'!H176) ->  | I176: =IF(ISNUMBER((D176-'PIC Raw'!M$15)-((($G176-'PIC Raw'!$P$15)/10784)*412)),(D176-'PIC Raw'!M$15)-((($G176-'PIC Raw'!$P$15)/10784)*412),-999) -> -999 | J176: =IF(ISNUMBER((E176-'PIC Raw'!N$15)-((($G176-'PIC Raw'!$P$15)/10784)*1284)),(E176-'PIC Raw'!N$15)-((($G176-'PIC Raw'!$P$15)/10784)*1284),-999) -> -999 | K176: =IF(ISNUMBER((F176-'PIC Raw'!O$15)-((($G176-'PIC Raw'!$P$15)/10784)*7.9)),(F176-'PIC Raw'!O$15)-((($G176-'PIC Raw'!$P$15)/10784)*7.9),-999) -> -999 | M176: -999 | N176: -999 | O176: -999 | Q176: -999 | R176: -999 | S176: -999 | U176: -999 | W176: -999 | X176: -999 | Y176: ='PIC Raw'!I176 -> 
A177: ='PIC Raw'!A177 -> 0 | B177: ='PIC Raw'!C177 ->  | C177: ='PIC Raw'!D177 -> 0 | D177: =IF(ISBLANK('PIC Raw'!E177),"",'PIC Raw'!E177) ->  | E177: =IF(ISBLANK('PIC Raw'!F177),"",'PIC Raw'!F177) ->  | F177: =IF(ISBLANK('PIC Raw'!G177),"",'PIC Raw'!G177) ->  | G177: =IF(ISBLANK('PIC Raw'!H177),"",'PIC Raw'!H177) ->  | I177: =IF(ISNUMBER((D177-'PIC Raw'!M$15)-((($G177-'PIC Raw'!$P$15)/10784)*412)),(D177-'PIC Raw'!M$15)-((($G177-'PIC Raw'!$P$15)/10784)*412),-999) -> -999 | J177: =IF(ISNUMBER((E177-'PIC Raw'!N$15)-((($G177-'PIC Raw'!$P$15)/10784)*1284)),(E177-'PIC Raw'!N$15)-((($G177-'PIC Raw'!$P$15)/10784)*1284),-999) -> -999 | K177: =IF(ISNUMBER((F177-'PIC Raw'!O$15)-((($G177-'PIC Raw'!$P$15)/10784)*7.9)),(F177-'PIC Raw'!O$15)-((($G177-'PIC Raw'!$P$15)/10784)*7.9),-999) -> -999 | M177: -999 | N177: -999 | O177: -999 | Q177: -999 | R177: -999 | S177: -999 | U177: -999 | W177: -999 | X177: -999 | Y177: ='PIC Raw'!I177 -> 
A178: ='PIC Raw'!A178 -> 0 | B178: ='PIC Raw'!C178 ->  | C178: ='PIC Raw'!D178 -> 0 | D178: =IF(ISBLANK('PIC Raw'!E178),"",'PIC Raw'!E178) ->  | E178: =IF(ISBLANK('PIC Raw'!F178),"",'PIC Raw'!F178) ->  | F178: =IF(ISBLANK('PIC Raw'!G178),"",'PIC Raw'!G178) ->  | G178: =IF(ISBLANK('PIC Raw'!H178),"",'PIC Raw'!H178) ->  | I178: =IF(ISNUMBER((D178-'PIC Raw'!M$15)-((($G178-'PIC Raw'!$P$15)/10784)*412)),(D178-'PIC Raw'!M$15)-((($G178-'PIC Raw'!$P$15)/10784)*412),-999) -> -999 | J178: =IF(ISNUMBER((E178-'PIC Raw'!N$15)-((($G178-'PIC Raw'!$P$15)/10784)*1284)),(E178-'PIC Raw'!N$15)-((($G178-'PIC Raw'!$P$15)/10784)*1284),-999) -> -999 | K178: =IF(ISNUMBER((F178-'PIC Raw'!O$15)-((($G178-'PIC Raw'!$P$15)/10784)*7.9)),(F178-'PIC Raw'!O$15)-((($G178-'PIC Raw'!$P$15)/10784)*7.9),-999) -> -999 | M178: -999 | N178: -999 | O178: -999 | Q178: -999 | R178: -999 | S178: -999 | U178: -999 | W178: -999 | X178: -999 | Y178: ='PIC Raw'!I178 -> 
A179: ='PIC Raw'!A179 -> 0 | B179: ='PIC Raw'!C179 ->  | C179: ='PIC Raw'!D179 -> 0 | D179: =IF(ISBLANK('PIC Raw'!E179),"",'PIC Raw'!E179) ->  | E179: =IF(ISBLANK('PIC Raw'!F179),"",'PIC Raw'!F179) ->  | F179: =IF(ISBLANK('PIC Raw'!G179),"",'PIC Raw'!G179) ->  | G179: =IF(ISBLANK('PIC Raw'!H179),"",'PIC Raw'!H179) ->  | I179: =IF(ISNUMBER((D179-'PIC Raw'!M$15)-((($G179-'PIC Raw'!$P$15)/10784)*412)),(D179-'PIC Raw'!M$15)-((($G179-'PIC Raw'!$P$15)/10784)*412),-999) -> -999 | J179: =IF(ISNUMBER((E179-'PIC Raw'!N$15)-((($G179-'PIC Raw'!$P$15)/10784)*1284)),(E179-'PIC Raw'!N$15)-((($G179-'PIC Raw'!$P$15)/10784)*1284),-999) -> -999 | K179: =IF(ISNUMBER((F179-'PIC Raw'!O$15)-((($G179-'PIC Raw'!$P$15)/10784)*7.9)),(F179-'PIC Raw'!O$15)-((($G179-'PIC Raw'!$P$15)/10784)*7.9),-999) -> -999 | M179: -999 | N179: -999 | O179: -999 | Q179: -999 | R179: -999 | S179: -999 | U179: -999 | W179: -999 | X179: -999 | Y179: ='PIC Raw'!I179 -> 
A180: ='PIC Raw'!A180 -> 0 | B180: ='PIC Raw'!C180 ->  | C180: ='PIC Raw'!D180 -> 0 | D180: =IF(ISBLANK('PIC Raw'!E180),"",'PIC Raw'!E180) ->  | E180: =IF(ISBLANK('PIC Raw'!F180),"",'PIC Raw'!F180) ->  | F180: =IF(ISBLANK('PIC Raw'!G180),"",'PIC Raw'!G180) ->  | G180: =IF(ISBLANK('PIC Raw'!H180),"",'PIC Raw'!H180) ->  | I180: =IF(ISNUMBER((D180-'PIC Raw'!M$15)-((($G180-'PIC Raw'!$P$15)/10784)*412)),(D180-'PIC Raw'!M$15)-((($G180-'PIC Raw'!$P$15)/10784)*412),-999) -> -999 | J180: =IF(ISNUMBER((E180-'PIC Raw'!N$15)-((($G180-'PIC Raw'!$P$15)/10784)*1284)),(E180-'PIC Raw'!N$15)-((($G180-'PIC Raw'!$P$15)/10784)*1284),-999) -> -999 | K180: =IF(ISNUMBER((F180-'PIC Raw'!O$15)-((($G180-'PIC Raw'!$P$15)/10784)*7.9)),(F180-'PIC Raw'!O$15)-((($G180-'PIC Raw'!$P$15)/10784)*7.9),-999) -> -999 | M180: -999 | N180: -999 | O180: -999 | Q180: -999 | R180: -999 | S180: -999 | U180: -999 | W180: -999 | X180: -999 | Y180: ='PIC Raw'!I180 -> 
A181: ='PIC Raw'!A181 -> 0 | B181: ='PIC Raw'!C181 ->  | C181: ='PIC Raw'!D181 -> 0 | D181: =IF(ISBLANK('PIC Raw'!E181),"",'PIC Raw'!E181) ->  | E181: =IF(ISBLANK('PIC Raw'!F181),"",'PIC Raw'!F181) ->  | F181: =IF(ISBLANK('PIC Raw'!G181),"",'PIC Raw'!G181) ->  | G181: =IF(ISBLANK('PIC Raw'!H181),"",'PIC Raw'!H181) ->  | I181: =IF(ISNUMBER((D181-'PIC Raw'!M$15)-((($G181-'PIC Raw'!$P$15)/10784)*412)),(D181-'PIC Raw'!M$15)-((($G181-'PIC Raw'!$P$15)/10784)*412),-999) -> -999 | J181: =IF(ISNUMBER((E181-'PIC Raw'!N$15)-((($G181-'PIC Raw'!$P$15)/10784)*1284)),(E181-'PIC Raw'!N$15)-((($G181-'PIC Raw'!$P$15)/10784)*1284),-999) -> -999 | K181: =IF(ISNUMBER((F181-'PIC Raw'!O$15)-((($G181-'PIC Raw'!$P$15)/10784)*7.9)),(F181-'PIC Raw'!O$15)-((($G181-'PIC Raw'!$P$15)/10784)*7.9),-999) -> -999 | M181: -999 | N181: -999 | O181: -999 | Q181: -999 | R181: -999 | S181: -999 | U181: -999 | W181: -999 | X181: -999 | Y181: ='PIC Raw'!I181 -> 
A182: ='PIC Raw'!A182 -> 0 | B182: ='PIC Raw'!C182 ->  | C182: ='PIC Raw'!D182 -> 0 | D182: =IF(ISBLANK('PIC Raw'!E182),"",'PIC Raw'!E182) ->  | E182: =IF(ISBLANK('PIC Raw'!F182),"",'PIC Raw'!F182) ->  | F182: =IF(ISBLANK('PIC Raw'!G182),"",'PIC Raw'!G182) ->  | G182: =IF(ISBLANK('PIC Raw'!H182),"",'PIC Raw'!H182) ->  | I182: =IF(ISNUMBER((D182-'PIC Raw'!M$15)-((($G182-'PIC Raw'!$P$15)/10784)*412)),(D182-'PIC Raw'!M$15)-((($G182-'PIC Raw'!$P$15)/10784)*412),-999) -> -999 | J182: =IF(ISNUMBER((E182-'PIC Raw'!N$15)-((($G182-'PIC Raw'!$P$15)/10784)*1284)),(E182-'PIC Raw'!N$15)-((($G182-'PIC Raw'!$P$15)/10784)*1284),-999) -> -999 | K182: =IF(ISNUMBER((F182-'PIC Raw'!O$15)-((($G182-'PIC Raw'!$P$15)/10784)*7.9)),(F182-'PIC Raw'!O$15)-((($G182-'PIC Raw'!$P$15)/10784)*7.9),-999) -> -999 | M182: -999 | N182: -999 | O182: -999 | Q182: -999 | R182: -999 | S182: -999 | U182: -999 | W182: -999 | X182: -999 | Y182: ='PIC Raw'!I182 -> 
A183: ='PIC Raw'!A183 -> 0 | B183: ='PIC Raw'!C183 ->  | C183: ='PIC Raw'!D183 -> 0 | D183: =IF(ISBLANK('PIC Raw'!E183),"",'PIC Raw'!E183) ->  | E183: =IF(ISBLANK('PIC Raw'!F183),"",'PIC Raw'!F183) ->  | F183: =IF(ISBLANK('PIC Raw'!G183),"",'PIC Raw'!G183) ->  | G183: =IF(ISBLANK('PIC Raw'!H183),"",'PIC Raw'!H183) ->  | I183: =IF(ISNUMBER((D183-'PIC Raw'!M$15)-((($G183-'PIC Raw'!$P$15)/10784)*412)),(D183-'PIC Raw'!M$15)-((($G183-'PIC Raw'!$P$15)/10784)*412),-999) -> -999 | J183: =IF(ISNUMBER((E183-'PIC Raw'!N$15)-((($G183-'PIC Raw'!$P$15)/10784)*1284)),(E183-'PIC Raw'!N$15)-((($G183-'PIC Raw'!$P$15)/10784)*1284),-999) -> -999 | K183: =IF(ISNUMBER((F183-'PIC Raw'!O$15)-((($G183-'PIC Raw'!$P$15)/10784)*7.9)),(F183-'PIC Raw'!O$15)-((($G183-'PIC Raw'!$P$15)/10784)*7.9),-999) -> -999 | M183: -999 | N183: -999 | O183: -999 | Q183: -999 | R183: -999 | S183: -999 | U183: -999 | W183: -999 | X183: -999 | Y183: ='PIC Raw'!I183 -> 
A184: ='PIC Raw'!A184 -> 0 | B184: ='PIC Raw'!C184 ->  | C184: ='PIC Raw'!D184 -> 0 | D184: =IF(ISBLANK('PIC Raw'!E184),"",'PIC Raw'!E184) ->  | E184: =IF(ISBLANK('PIC Raw'!F184),"",'PIC Raw'!F184) ->  | F184: =IF(ISBLANK('PIC Raw'!G184),"",'PIC Raw'!G184) ->  | G184: =IF(ISBLANK('PIC Raw'!H184),"",'PIC Raw'!H184) ->  | I184: =IF(ISNUMBER((D184-'PIC Raw'!M$15)-((($G184-'PIC Raw'!$P$15)/10784)*412)),(D184-'PIC Raw'!M$15)-((($G184-'PIC Raw'!$P$15)/10784)*412),-999) -> -999 | J184: =IF(ISNUMBER((E184-'PIC Raw'!N$15)-((($G184-'PIC Raw'!$P$15)/10784)*1284)),(E184-'PIC Raw'!N$15)-((($G184-'PIC Raw'!$P$15)/10784)*1284),-999) -> -999 | K184: =IF(ISNUMBER((F184-'PIC Raw'!O$15)-((($G184-'PIC Raw'!$P$15)/10784)*7.9)),(F184-'PIC Raw'!O$15)-((($G184-'PIC Raw'!$P$15)/10784)*7.9),-999) -> -999 | M184: -999 | N184: -999 | O184: -999 | Q184: -999 | R184: -999 | S184: -999 | U184: -999 | W184: -999 | X184: -999 | Y184: ='PIC Raw'!I184 -> 
A185: ='PIC Raw'!A185 -> 0 | B185: ='PIC Raw'!C185 ->  | C185: ='PIC Raw'!D185 -> 0 | D185: =IF(ISBLANK('PIC Raw'!E185),"",'PIC Raw'!E185) ->  | E185: =IF(ISBLANK('PIC Raw'!F185),"",'PIC Raw'!F185) ->  | F185: =IF(ISBLANK('PIC Raw'!G185),"",'PIC Raw'!G185) ->  | G185: =IF(ISBLANK('PIC Raw'!H185),"",'PIC Raw'!H185) ->  | I185: =IF(ISNUMBER((D185-'PIC Raw'!M$15)-((($G185-'PIC Raw'!$P$15)/10784)*412)),(D185-'PIC Raw'!M$15)-((($G185-'PIC Raw'!$P$15)/10784)*412),-999) -> -999 | J185: =IF(ISNUMBER((E185-'PIC Raw'!N$15)-((($G185-'PIC Raw'!$P$15)/10784)*1284)),(E185-'PIC Raw'!N$15)-((($G185-'PIC Raw'!$P$15)/10784)*1284),-999) -> -999 | K185: =IF(ISNUMBER((F185-'PIC Raw'!O$15)-((($G185-'PIC Raw'!$P$15)/10784)*7.9)),(F185-'PIC Raw'!O$15)-((($G185-'PIC Raw'!$P$15)/10784)*7.9),-999) -> -999 | M185: -999 | N185: -999 | O185: -999 | Q185: -999 | R185: -999 | S185: -999 | U185: -999 | W185: -999 | X185: -999 | Y185: ='PIC Raw'!I185 -> 
A186: ='PIC Raw'!A186 -> 0 | B186: ='PIC Raw'!C186 ->  | C186: ='PIC Raw'!D186 -> 0 | D186: =IF(ISBLANK('PIC Raw'!E186),"",'PIC Raw'!E186) ->  | E186: =IF(ISBLANK('PIC Raw'!F186),"",'PIC Raw'!F186) ->  | F186: =IF(ISBLANK('PIC Raw'!G186),"",'PIC Raw'!G186) ->  | G186: =IF(ISBLANK('PIC Raw'!H186),"",'PIC Raw'!H186) ->  | I186: =IF(ISNUMBER((D186-'PIC Raw'!M$15)-((($G186-'PIC Raw'!$P$15)/10784)*412)),(D186-'PIC Raw'!M$15)-((($G186-'PIC Raw'!$P$15)/10784)*412),-999) -> -999 | J186: =IF(ISNUMBER((E186-'PIC Raw'!N$15)-((($G186-'PIC Raw'!$P$15)/10784)*1284)),(E186-'PIC Raw'!N$15)-((($G186-'PIC Raw'!$P$15)/10784)*1284),-999) -> -999 | K186: =IF(ISNUMBER((F186-'PIC Raw'!O$15)-((($G186-'PIC Raw'!$P$15)/10784)*7.9)),(F186-'PIC Raw'!O$15)-((($G186-'PIC Raw'!$P$15)/10784)*7.9),-999) -> -999 | M186: -999 | N186: -999 | O186: -999 | Q186: -999 | R186: -999 | S186: -999 | U186: -999 | W186: -999 | X186: -999 | Y186: ='PIC Raw'!I186 -> 
A187: ='PIC Raw'!A187 -> 0 | B187: ='PIC Raw'!C187 ->  | C187: ='PIC Raw'!D187 -> 0 | D187: =IF(ISBLANK('PIC Raw'!E187),"",'PIC Raw'!E187) ->  | E187: =IF(ISBLANK('PIC Raw'!F187),"",'PIC Raw'!F187) ->  | F187: =IF(ISBLANK('PIC Raw'!G187),"",'PIC Raw'!G187) ->  | G187: =IF(ISBLANK('PIC Raw'!H187),"",'PIC Raw'!H187) ->  | I187: =IF(ISNUMBER((D187-'PIC Raw'!M$15)-((($G187-'PIC Raw'!$P$15)/10784)*412)),(D187-'PIC Raw'!M$15)-((($G187-'PIC Raw'!$P$15)/10784)*412),-999) -> -999 | J187: =IF(ISNUMBER((E187-'PIC Raw'!N$15)-((($G187-'PIC Raw'!$P$15)/10784)*1284)),(E187-'PIC Raw'!N$15)-((($G187-'PIC Raw'!$P$15)/10784)*1284),-999) -> -999 | K187: =IF(ISNUMBER((F187-'PIC Raw'!O$15)-((($G187-'PIC Raw'!$P$15)/10784)*7.9)),(F187-'PIC Raw'!O$15)-((($G187-'PIC Raw'!$P$15)/10784)*7.9),-999) -> -999 | M187: -999 | N187: -999 | O187: -999 | Q187: -999 | R187: -999 | S187: -999 | U187: -999 | W187: -999 | X187: -999 | Y187: ='PIC Raw'!I187 -> 
A188: ='PIC Raw'!A188 -> 0 | B188: ='PIC Raw'!C188 ->  | C188: ='PIC Raw'!D188 -> 0 | D188: =IF(ISBLANK('PIC Raw'!E188),"",'PIC Raw'!E188) ->  | E188: =IF(ISBLANK('PIC Raw'!F188),"",'PIC Raw'!F188) ->  | F188: =IF(ISBLANK('PIC Raw'!G188),"",'PIC Raw'!G188) ->  | G188: =IF(ISBLANK('PIC Raw'!H188),"",'PIC Raw'!H188) ->  | I188: =IF(ISNUMBER((D188-'PIC Raw'!M$15)-((($G188-'PIC Raw'!$P$15)/10784)*412)),(D188-'PIC Raw'!M$15)-((($G188-'PIC Raw'!$P$15)/10784)*412),-999) -> -999 | J188: =IF(ISNUMBER((E188-'PIC Raw'!N$15)-((($G188-'PIC Raw'!$P$15)/10784)*1284)),(E188-'PIC Raw'!N$15)-((($G188-'PIC Raw'!$P$15)/10784)*1284),-999) -> -999 | K188: =IF(ISNUMBER((F188-'PIC Raw'!O$15)-((($G188-'PIC Raw'!$P$15)/10784)*7.9)),(F188-'PIC Raw'!O$15)-((($G188-'PIC Raw'!$P$15)/10784)*7.9),-999) -> -999 | M188: -999 | N188: -999 | O188: -999 | Q188: -999 | R188: -999 | S188: -999 | U188: -999 | W188: -999 | X188: -999 | Y188: ='PIC Raw'!I188 -> 
A189: ='PIC Raw'!A189 -> 0 | B189: ='PIC Raw'!C189 ->  | C189: ='PIC Raw'!D189 -> 0 | D189: =IF(ISBLANK('PIC Raw'!E189),"",'PIC Raw'!E189) ->  | E189: =IF(ISBLANK('PIC Raw'!F189),"",'PIC Raw'!F189) ->  | F189: =IF(ISBLANK('PIC Raw'!G189),"",'PIC Raw'!G189) ->  | G189: =IF(ISBLANK('PIC Raw'!H189),"",'PIC Raw'!H189) ->  | I189: =IF(ISNUMBER((D189-'PIC Raw'!M$15)-((($G189-'PIC Raw'!$P$15)/10784)*412)),(D189-'PIC Raw'!M$15)-((($G189-'PIC Raw'!$P$15)/10784)*412),-999) -> -999 | J189: =IF(ISNUMBER((E189-'PIC Raw'!N$15)-((($G189-'PIC Raw'!$P$15)/10784)*1284)),(E189-'PIC Raw'!N$15)-((($G189-'PIC Raw'!$P$15)/10784)*1284),-999) -> -999 | K189: =IF(ISNUMBER((F189-'PIC Raw'!O$15)-((($G189-'PIC Raw'!$P$15)/10784)*7.9)),(F189-'PIC Raw'!O$15)-((($G189-'PIC Raw'!$P$15)/10784)*7.9),-999) -> -999 | M189: -999 | N189: -999 | O189: -999 | Q189: -999 | R189: -999 | S189: -999 | U189: -999 | W189: -999 | X189: -999 | Y189: ='PIC Raw'!I189 -> 
A190: ='PIC Raw'!A190 -> 0 | B190: ='PIC Raw'!C190 ->  | C190: ='PIC Raw'!D190 -> 0 | D190: =IF(ISBLANK('PIC Raw'!E190),"",'PIC Raw'!E190) ->  | E190: =IF(ISBLANK('PIC Raw'!F190),"",'PIC Raw'!F190) ->  | F190: =IF(ISBLANK('PIC Raw'!G190),"",'PIC Raw'!G190) ->  | G190: =IF(ISBLANK('PIC Raw'!H190),"",'PIC Raw'!H190) ->  | I190: =IF(ISNUMBER((D190-'PIC Raw'!M$15)-((($G190-'PIC Raw'!$P$15)/10784)*412)),(D190-'PIC Raw'!M$15)-((($G190-'PIC Raw'!$P$15)/10784)*412),-999) -> -999 | J190: =IF(ISNUMBER((E190-'PIC Raw'!N$15)-((($G190-'PIC Raw'!$P$15)/10784)*1284)),(E190-'PIC Raw'!N$15)-((($G190-'PIC Raw'!$P$15)/10784)*1284),-999) -> -999 | K190: =IF(ISNUMBER((F190-'PIC Raw'!O$15)-((($G190-'PIC Raw'!$P$15)/10784)*7.9)),(F190-'PIC Raw'!O$15)-((($G190-'PIC Raw'!$P$15)/10784)*7.9),-999) -> -999 | M190: -999 | N190: -999 | O190: -999 | Q190: -999 | R190: -999 | S190: -999 | U190: -999 | W190: -999 | X190: -999 | Y190: ='PIC Raw'!I190 -> 
A191: ='PIC Raw'!A191 -> 0 | B191: ='PIC Raw'!C191 ->  | C191: ='PIC Raw'!D191 -> 0 | D191: =IF(ISBLANK('PIC Raw'!E191),"",'PIC Raw'!E191) ->  | E191: =IF(ISBLANK('PIC Raw'!F191),"",'PIC Raw'!F191) ->  | F191: =IF(ISBLANK('PIC Raw'!G191),"",'PIC Raw'!G191) ->  | G191: =IF(ISBLANK('PIC Raw'!H191),"",'PIC Raw'!H191) ->  | I191: =IF(ISNUMBER((D191-'PIC Raw'!M$15)-((($G191-'PIC Raw'!$P$15)/10784)*412)),(D191-'PIC Raw'!M$15)-((($G191-'PIC Raw'!$P$15)/10784)*412),-999) -> -999 | J191: =IF(ISNUMBER((E191-'PIC Raw'!N$15)-((($G191-'PIC Raw'!$P$15)/10784)*1284)),(E191-'PIC Raw'!N$15)-((($G191-'PIC Raw'!$P$15)/10784)*1284),-999) -> -999 | K191: =IF(ISNUMBER((F191-'PIC Raw'!O$15)-((($G191-'PIC Raw'!$P$15)/10784)*7.9)),(F191-'PIC Raw'!O$15)-((($G191-'PIC Raw'!$P$15)/10784)*7.9),-999) -> -999 | M191: -999 | N191: -999 | O191: -999 | Q191: -999 | R191: -999 | S191: -999 | U191: -999 | W191: -999 | X191: -999 | Y191: ='PIC Raw'!I191 -> 
A192: ='PIC Raw'!A192 -> 0 | B192: ='PIC Raw'!C192 ->  | C192: ='PIC Raw'!D192 -> 0 | D192: =IF(ISBLANK('PIC Raw'!E192),"",'PIC Raw'!E192) ->  | E192: =IF(ISBLANK('PIC Raw'!F192),"",'PIC Raw'!F192) ->  | F192: =IF(ISBLANK('PIC Raw'!G192),"",'PIC Raw'!G192) ->  | G192: =IF(ISBLANK('PIC Raw'!H192),"",'PIC Raw'!H192) ->  | I192: =IF(ISNUMBER((D192-'PIC Raw'!M$15)-((($G192-'PIC Raw'!$P$15)/10784)*412)),(D192-'PIC Raw'!M$15)-((($G192-'PIC Raw'!$P$15)/10784)*412),-999) -> -999 | J192: =IF(ISNUMBER((E192-'PIC Raw'!N$15)-((($G192-'PIC Raw'!$P$15)/10784)*1284)),(E192-'PIC Raw'!N$15)-((($G192-'PIC Raw'!$P$15)/10784)*1284),-999) -> -999 | K192: =IF(ISNUMBER((F192-'PIC Raw'!O$15)-((($G192-'PIC Raw'!$P$15)/10784)*7.9)),(F192-'PIC Raw'!O$15)-((($G192-'PIC Raw'!$P$15)/10784)*7.9),-999) -> -999 | M192: -999 | N192: -999 | O192: -999 | Q192: -999 | R192: -999 | S192: -999 | U192: -999 | W192: -999 | X192: -999 | Y192: ='PIC Raw'!I192 -> 
A193: ='PIC Raw'!A193 -> 0 | B193: ='PIC Raw'!C193 ->  | C193: ='PIC Raw'!D193 -> 0 | D193: =IF(ISBLANK('PIC Raw'!E193),"",'PIC Raw'!E193) ->  | E193: =IF(ISBLANK('PIC Raw'!F193),"",'PIC Raw'!F193) ->  | F193: =IF(ISBLANK('PIC Raw'!G193),"",'PIC Raw'!G193) ->  | G193: =IF(ISBLANK('PIC Raw'!H193),"",'PIC Raw'!H193) ->  | I193: =IF(ISNUMBER((D193-'PIC Raw'!M$15)-((($G193-'PIC Raw'!$P$15)/10784)*412)),(D193-'PIC Raw'!M$15)-((($G193-'PIC Raw'!$P$15)/10784)*412),-999) -> -999 | J193: =IF(ISNUMBER((E193-'PIC Raw'!N$15)-((($G193-'PIC Raw'!$P$15)/10784)*1284)),(E193-'PIC Raw'!N$15)-((($G193-'PIC Raw'!$P$15)/10784)*1284),-999) -> -999 | K193: =IF(ISNUMBER((F193-'PIC Raw'!O$15)-((($G193-'PIC Raw'!$P$15)/10784)*7.9)),(F193-'PIC Raw'!O$15)-((($G193-'PIC Raw'!$P$15)/10784)*7.9),-999) -> -999 | M193: -999 | N193: -999 | O193: -999 | Q193: -999 | R193: -999 | S193: -999 | U193: -999 | W193: -999 | X193: -999 | Y193: ='PIC Raw'!I193 -> 
A194: ='PIC Raw'!A194 -> 0 | B194: ='PIC Raw'!C194 ->  | C194: ='PIC Raw'!D194 -> 0 | D194: =IF(ISBLANK('PIC Raw'!E194),"",'PIC Raw'!E194) ->  | E194: =IF(ISBLANK('PIC Raw'!F194),"",'PIC Raw'!F194) ->  | F194: =IF(ISBLANK('PIC Raw'!G194),"",'PIC Raw'!G194) ->  | G194: =IF(ISBLANK('PIC Raw'!H194),"",'PIC Raw'!H194) ->  | I194: =IF(ISNUMBER((D194-'PIC Raw'!M$15)-((($G194-'PIC Raw'!$P$15)/10784)*412)),(D194-'PIC Raw'!M$15)-((($G194-'PIC Raw'!$P$15)/10784)*412),-999) -> -999 | J194: =IF(ISNUMBER((E194-'PIC Raw'!N$15)-((($G194-'PIC Raw'!$P$15)/10784)*1284)),(E194-'PIC Raw'!N$15)-((($G194-'PIC Raw'!$P$15)/10784)*1284),-999) -> -999 | K194: =IF(ISNUMBER((F194-'PIC Raw'!O$15)-((($G194-'PIC Raw'!$P$15)/10784)*7.9)),(F194-'PIC Raw'!O$15)-((($G194-'PIC Raw'!$P$15)/10784)*7.9),-999) -> -999 | M194: =IF(I194=-999,-999,(I194*($C194/$B194))) -> -999 | N194: =IF(J194=-999,-999,(J194*($C194/$B194))) -> -999 | O194: =IF(K194=-999,-999,(K194*($C194/$B194))) -> -999 | Q194: =IF(M194=-999, -999, (M194/40)) -> -999 | R194: =IF(N194=-999, -999, (N194/24.31)) -> -999 | S194: =IF(O194=-999, -999, (O194/87.62)) -> -999 | U194: =Q194 -> -999 | W194: =IF(U194=-999, -999, (U194*12)) -> -999 | X194: =IF(U194=-999,-999,(U194/1000)) -> -999 | Y194: ='PIC Raw'!I194 -> 
A195: ='PIC Raw'!A195 -> 0 | B195: ='PIC Raw'!C195 ->  | C195: ='PIC Raw'!D195 -> 0 | D195: =IF(ISBLANK('PIC Raw'!E195),"",'PIC Raw'!E195) ->  | E195: =IF(ISBLANK('PIC Raw'!F195),"",'PIC Raw'!F195) ->  | F195: =IF(ISBLANK('PIC Raw'!G195),"",'PIC Raw'!G195) ->  | G195: =IF(ISBLANK('PIC Raw'!H195),"",'PIC Raw'!H195) ->  | I195: =IF(ISNUMBER((D195-'PIC Raw'!M$15)-((($G195-'PIC Raw'!$P$15)/10784)*412)),(D195-'PIC Raw'!M$15)-((($G195-'PIC Raw'!$P$15)/10784)*412),-999) -> -999 | J195: =IF(ISNUMBER((E195-'PIC Raw'!N$15)-((($G195-'PIC Raw'!$P$15)/10784)*1284)),(E195-'PIC Raw'!N$15)-((($G195-'PIC Raw'!$P$15)/10784)*1284),-999) -> -999 | K195: =IF(ISNUMBER((F195-'PIC Raw'!O$15)-((($G195-'PIC Raw'!$P$15)/10784)*7.9)),(F195-'PIC Raw'!O$15)-((($G195-'PIC Raw'!$P$15)/10784)*7.9),-999) -> -999 | M195: -999 | N195: -999 | O195: -999 | Q195: -999 | R195: -999 | S195: -999 | U195: -999 | W195: -999 | X195: -999 | Y195: ='PIC Raw'!I195 -> 
A196: ='PIC Raw'!A196 -> 0 | B196: ='PIC Raw'!C196 ->  | C196: ='PIC Raw'!D196 -> 0 | D196: =IF(ISBLANK('PIC Raw'!E196),"",'PIC Raw'!E196) ->  | E196: =IF(ISBLANK('PIC Raw'!F196),"",'PIC Raw'!F196) ->  | F196: =IF(ISBLANK('PIC Raw'!G196),"",'PIC Raw'!G196) ->  | G196: =IF(ISBLANK('PIC Raw'!H196),"",'PIC Raw'!H196) ->  | I196: =IF(ISNUMBER((D196-'PIC Raw'!M$15)-((($G196-'PIC Raw'!$P$15)/10784)*412)),(D196-'PIC Raw'!M$15)-((($G196-'PIC Raw'!$P$15)/10784)*412),-999) -> -999 | J196: =IF(ISNUMBER((E196-'PIC Raw'!N$15)-((($G196-'PIC Raw'!$P$15)/10784)*1284)),(E196-'PIC Raw'!N$15)-((($G196-'PIC Raw'!$P$15)/10784)*1284),-999) -> -999 | K196: =IF(ISNUMBER((F196-'PIC Raw'!O$15)-((($G196-'PIC Raw'!$P$15)/10784)*7.9)),(F196-'PIC Raw'!O$15)-((($G196-'PIC Raw'!$P$15)/10784)*7.9),-999) -> -999 | M196: -999 | N196: -999 | O196: -999 | Q196: -999 | R196: -999 | S196: -999 | U196: -999 | W196: -999 | X196: -999 | Y196: ='PIC Raw'!I196 -> 
A197: ='PIC Raw'!A197 -> 0 | B197: ='PIC Raw'!C197 ->  | C197: ='PIC Raw'!D197 -> 0 | D197: =IF(ISBLANK('PIC Raw'!E197),"",'PIC Raw'!E197) ->  | E197: =IF(ISBLANK('PIC Raw'!F197),"",'PIC Raw'!F197) ->  | F197: =IF(ISBLANK('PIC Raw'!G197),"",'PIC Raw'!G197) ->  | G197: =IF(ISBLANK('PIC Raw'!H197),"",'PIC Raw'!H197) ->  | I197: =IF(ISNUMBER((D197-'PIC Raw'!M$15)-((($G197-'PIC Raw'!$P$15)/10784)*412)),(D197-'PIC Raw'!M$15)-((($G197-'PIC Raw'!$P$15)/10784)*412),-999) -> -999 | J197: =IF(ISNUMBER((E197-'PIC Raw'!N$15)-((($G197-'PIC Raw'!$P$15)/10784)*1284)),(E197-'PIC Raw'!N$15)-((($G197-'PIC Raw'!$P$15)/10784)*1284),-999) -> -999 | K197: =IF(ISNUMBER((F197-'PIC Raw'!O$15)-((($G197-'PIC Raw'!$P$15)/10784)*7.9)),(F197-'PIC Raw'!O$15)-((($G197-'PIC Raw'!$P$15)/10784)*7.9),-999) -> -999 | M197: -999 | N197: -999 | O197: -999 | Q197: -999 | R197: -999 | S197: -999 | U197: -999 | W197: -999 | X197: -999 | Y197: ='PIC Raw'!I197 -> 
A198: ='PIC Raw'!A198 -> 0 | B198: ='PIC Raw'!C198 ->  | C198: ='PIC Raw'!D198 -> 0 | D198: =IF(ISBLANK('PIC Raw'!E198),"",'PIC Raw'!E198) ->  | E198: =IF(ISBLANK('PIC Raw'!F198),"",'PIC Raw'!F198) ->  | F198: =IF(ISBLANK('PIC Raw'!G198),"",'PIC Raw'!G198) ->  | G198: =IF(ISBLANK('PIC Raw'!H198),"",'PIC Raw'!H198) ->  | I198: =IF(ISNUMBER((D198-'PIC Raw'!M$15)-((($G198-'PIC Raw'!$P$15)/10784)*412)),(D198-'PIC Raw'!M$15)-((($G198-'PIC Raw'!$P$15)/10784)*412),-999) -> -999 | J198: =IF(ISNUMBER((E198-'PIC Raw'!N$15)-((($G198-'PIC Raw'!$P$15)/10784)*1284)),(E198-'PIC Raw'!N$15)-((($G198-'PIC Raw'!$P$15)/10784)*1284),-999) -> -999 | K198: =IF(ISNUMBER((F198-'PIC Raw'!O$15)-((($G198-'PIC Raw'!$P$15)/10784)*7.9)),(F198-'PIC Raw'!O$15)-((($G198-'PIC Raw'!$P$15)/10784)*7.9),-999) -> -999 | M198: -999 | N198: -999 | O198: -999 | Q198: -999 | R198: -999 | S198: -999 | U198: -999 | W198: -999 | X198: -999 | Y198: ='PIC Raw'!I198 -> 
A199: ='PIC Raw'!A199 -> 0 | B199: ='PIC Raw'!C199 ->  | C199: ='PIC Raw'!D199 -> 0 | D199: =IF(ISBLANK('PIC Raw'!E199),"",'PIC Raw'!E199) ->  | E199: =IF(ISBLANK('PIC Raw'!F199),"",'PIC Raw'!F199) ->  | F199: =IF(ISBLANK('PIC Raw'!G199),"",'PIC Raw'!G199) ->  | G199: =IF(ISBLANK('PIC Raw'!H199),"",'PIC Raw'!H199) ->  | I199: =IF(ISNUMBER((D199-'PIC Raw'!M$15)-((($G199-'PIC Raw'!$P$15)/10784)*412)),(D199-'PIC Raw'!M$15)-((($G199-'PIC Raw'!$P$15)/10784)*412),-999) -> -999 | J199: =IF(ISNUMBER((E199-'PIC Raw'!N$15)-((($G199-'PIC Raw'!$P$15)/10784)*1284)),(E199-'PIC Raw'!N$15)-((($G199-'PIC Raw'!$P$15)/10784)*1284),-999) -> -999 | K199: =IF(ISNUMBER((F199-'PIC Raw'!O$15)-((($G199-'PIC Raw'!$P$15)/10784)*7.9)),(F199-'PIC Raw'!O$15)-((($G199-'PIC Raw'!$P$15)/10784)*7.9),-999) -> -999 | M199: -999 | N199: -999 | O199: -999 | Q199: -999 | R199: -999 | S199: -999 | U199: -999 | W199: -999 | X199: -999 | Y199: ='PIC Raw'!I199 -> 
